Workbook

Sheet RAROC Analysis
K1: Loan Date | L1: 2018-01-01 | N1: Currency | P1: USD | Q1: Periods | R1: 12
B3: RAROC Outputs for Loan | K3: Business Risk Rating | L3: =SUMPRODUCT(R8:R22,S8:S22) -> 5.755 | N3: Simulated Credit Rating | Q3: =S26 -> BB
C4: Overall IRR on Loan without Risk Adjustment | F4: ='IRR Analysis'!E55 -> 0.07544702198
C5: NPV of Risk Premium Earned Before Risk Adj | F5: ='IRR Analysis'!F66 -> 2003.18249 | H5: Risk Input Data | L5: Input | M5: Default | N5: Rating | O5: Weight | R5: Rating | S5: Weight
C6: Implied Max Cumulative Loss Probability | F6: ='IRR Analysis'!E111 -> 0.3212931517 | I6: Industry Assesment
C7: Risk Rating from Analysis | F7: =IF(S28="",R26,S28) -> 3.317016206 | J7: Industry Price Variation | M7: =IFERROR(INDEX('Weights and Defaults'!E:E,MATCH(J7,'Weights and Defaults'!C:C,0)),"") -> 6 | N7: =IF(L7,L7,M7) -> 6 | O7: =IFERROR(INDEX('Weights and Defaults'!$F:$F,MATCH(J7,'Weights and Defaults'!$C:$C,0)),"") -> 0.25
C8: Probability of Defalut from Risk Assessment | F8: ='Rating and PD'!C81 -> 0.07128716873 | J8: Industry Capital Intensity | M8: =IFERROR(INDEX('Weights and Defaults'!E:E,MATCH(J8,'Weights and Defaults'!C:C,0)),"") -> 7 | N8: =IF(L8,L8,M8) -> 7 | O8: =IFERROR(INDEX('Weights and Defaults'!$F:$F,MATCH(J8,'Weights and Defaults'!$C:$C,0)),"") -> 0.25 | Q8: Industry | R8: =SUMPRODUCT(N7:N11,O7:O11) -> 5.5 | S8: 0.6
C9: Capital Allocation From Risk Rating | F9: ='Capital Allocation'!C3 -> 0.09268064824 | J9: Oblosense Risk | M9: =IFERROR(INDEX('Weights and Defaults'!E:E,MATCH(J9,'Weights and Defaults'!C:C,0)),"") -> 5 | N9: 5 | O9: =IFERROR(INDEX('Weights and Defaults'!$F:$F,MATCH(J9,'Weights and Defaults'!$C:$C,0)),"") -> 0.25
C10: New Capital Required for Loan | F10: ='IRR Analysis'!E171 -> 953.6363203 | J10: Operating Leverage | M10: =IFERROR(INDEX('Weights and Defaults'!E:E,MATCH(J10,'Weights and Defaults'!C:C,0)),"") -> 4 | N10: 4 | O10: =IFERROR(INDEX('Weights and Defaults'!$F:$F,MATCH(J10,'Weights and Defaults'!$C:$C,0)),"") -> 0.25
C11: Final RAROC | F11: ='IRR Analysis'!E169 -> 0.3001682699 | J11: Contract Strength | M11: =IFERROR(INDEX('Weights and Defaults'!E:E,MATCH(J11,'Weights and Defaults'!C:C,0)),"") -> 0 | N11: 0 | O11: =IFERROR(INDEX('Weights and Defaults'!$F:$F,MATCH(J11,'Weights and Defaults'!$C:$C,0)),"") -> 0
B12: Loan Terms Input | I12: Management Assessment | O12: =IFERROR(INDEX('Weights and Defaults'!$F:$F,MATCH(J12,'Weights and Defaults'!$C:$C,0)),"") -> 
C13: Credit Spread and Fees | J13: Company Size | M13: =IFERROR(INDEX('Weights and Defaults'!E:E,MATCH(J13,'Weights and Defaults'!C:C,0)),"") -> 5 | N13: 5 | O13: =IFERROR(INDEX('Weights and Defaults'!$F:$F,MATCH(J13,'Weights and Defaults'!$C:$C,0)),"") -> 0.15
D14: ="Loan Amount ("&P1&" 000's)" -> Loan Amount (USD 000's) | F14: ='Loan Inputs'!C5 -> 10000 | J14: Prior Projects | M14: =IFERROR(INDEX('Weights and Defaults'!E:E,MATCH(J14,'Weights and Defaults'!C:C,0)),"") -> 6 | N14: 6 | O14: =IFERROR(INDEX('Weights and Defaults'!$F:$F,MATCH(J14,'Weights and Defaults'!$C:$C,0)),"") -> 0.1 | Q14: Mgmt | R14: =SUMPRODUCT(O13:O16,N13:N16) -> 4.85 | S14: 0.3
D15: ="Base Interest Rate ("&P1&" Percent)" -> Base Interest Rate (USD Percent) | F15: ='Loan Inputs'!C6 -> 0.03 | J15: Reputation Assessment | M15: =IFERROR(INDEX('Weights and Defaults'!E:E,MATCH(J15,'Weights and Defaults'!C:C,0)),"") -> 4 | N15: 4 | O15: =IFERROR(INDEX('Weights and Defaults'!$F:$F,MATCH(J15,'Weights and Defaults'!$C:$C,0)),"") -> 0.25
D16: Credit Spread (Annual Percent) | F16: ='Loan Inputs'!C7 -> 0.039 | J16: Excessive Project IRR | M16: =IFERROR(INDEX('Weights and Defaults'!E:E,MATCH(J16,'Weights and Defaults'!C:C,0)),"") -> 5 | N16: 5 | O16: =IFERROR(INDEX('Weights and Defaults'!$F:$F,MATCH(J16,'Weights and Defaults'!$C:$C,0)),"") -> 0.5
D17: Up-front Fee (Annual Percent) | F17: ='Loan Inputs'!C8 -> 0.01 | I17: Collateral | O17: =IFERROR(INDEX('Weights and Defaults'!$F:$F,MATCH(J17,'Weights and Defaults'!$C:$C,0)),"") -> 
D18: Commitment Fee (Annual Percent) | F18: ='Loan Inputs'!C9 -> 0.015 | J18: Collateral Included | M18: =IFERROR(INDEX('Weights and Defaults'!E:E,MATCH(J18,'Weights and Defaults'!C:C,0)),"") -> 5 | N18: =IF(L18,L18,M18) -> 5 | O18: =IFERROR(INDEX('Weights and Defaults'!$F:$F,MATCH(J18,'Weights and Defaults'!$C:$C,0)),"") -> 0.5 | Q18: Collateral | R18: =SUMPRODUCT(N18:N19,O18:O19) -> 5 | S18: 0.1
D19: ="Other Fees "&P1&" 000's)" -> Other Fees USD 000's) | F19: ='Loan Inputs'!C10 -> 0 | J19: Value of Collateral/Loan | M19: =IFERROR(INDEX('Weights and Defaults'!E:E,MATCH(J19,'Weights and Defaults'!C:C,0)),"") -> 5 | N19: 5 | O19: =IFERROR(INDEX('Weights and Defaults'!$F:$F,MATCH(J19,'Weights and Defaults'!$C:$C,0)),"") -> 0.5
C20: Loan Repayment | I20: Credit Enhancements | M20: =IFERROR(INDEX('Weights and Defaults'!E:E,MATCH(J20,'Weights and Defaults'!C:C,0)),"") ->  | O20: =IFERROR(INDEX('Weights and Defaults'!$F:$F,MATCH(J20,'Weights and Defaults'!$C:$C,0)),"") -> 
D21: Maturity | F21: ='Loan Inputs'!C12 -> 10 | J21: DSRA | M21: =IFERROR(INDEX('Weights and Defaults'!E:E,MATCH(J21,'Weights and Defaults'!C:C,0)),"") -> 5 | N21: 5 | O21: =IFERROR(INDEX('Weights and Defaults'!$F:$F,MATCH(J21,'Weights and Defaults'!$C:$C,0)),"") -> 0.5 | Q21: Enhance | R21: =SUMPRODUCT(N21:N22,O21:O22) -> 5 | S21: 0.1
D22: Grace Period | F22: ='Loan Inputs'!C13 -> 0 | J22: Dividend Lock-up Covenant | M22: =IFERROR(INDEX('Weights and Defaults'!E:E,MATCH(J22,'Weights and Defaults'!C:C,0)),"") -> 5 | N22: 5 | O22: =IFERROR(INDEX('Weights and Defaults'!$F:$F,MATCH(J22,'Weights and Defaults'!$C:$C,0)),"") -> 0.5
D23: Repayments (1-Mtg,2-Level,3-Sculpt) | F23: ='Loan Inputs'!C14 -> 1 | I23: Capital Assessment | M23: =IFERROR(INDEX('Weights and Defaults'!E:E,MATCH(J23,'Weights and Defaults'!C:C,0)),"") ->  | O23: =IFERROR(INDEX('Weights and Defaults'!$F:$F,MATCH(J23,'Weights and Defaults'!$C:$C,0)),"") -> 
B24: Loan Expense and Deposit Inputs | J24: Debt to Capital Ratio | M24: ='Loan Inputs'!C19 -> 0.49 | N24: =CHOOSE(Notes!S20,'Bond Rating Simulation'!P22,'Bond Rating Simulation'!P49,'Bond Rating Simulation'!P75) -> 2.048617731 | O24: =IFERROR(INDEX('Weights and Defaults'!$F:$F,MATCH(J24,'Weights and Defaults'!$C:$C,0)),"") -> 0.35
C25: Cost of Deposits/Funds (USD Percent) | F25: =F15 -> 0.03 | J25: Coverage Ratio - Minimum | M25: ='Loan Inputs'!C16 -> 1.89 | N25: =CHOOSE(Notes!S20,'Bond Rating Simulation'!D22,'Bond Rating Simulation'!D49,'Bond Rating Simulation'!D75) -> 4 | O25: =IFERROR(INDEX('Weights and Defaults'!$F:$F,MATCH(J25,'Weights and Defaults'!$C:$C,0)),"") -> 0.1
C26: Return on Safe Investments (USD Percent) | F26: 0.015 | J26: Coverage Ratio - Average | M26: ='Loan Inputs'!C17 -> 2.81 | N26: =CHOOSE(Notes!S20,'Bond Rating Simulation'!D22,'Bond Rating Simulation'!J49,'Bond Rating Simulation'!J75) -> 4 | O26: =IFERROR(INDEX('Weights and Defaults'!$F:$F,MATCH(J26,'Weights and Defaults'!$C:$C,0)),"") -> 0.1 | Q26: Capital | R26: =SUMPRODUCT(N24:N28,O24:O28) -> 3.317016206 | S26: =INDEX('Bond Rating Simulation'!D3:H3,MATCH(R26,'Bond Rating Simulation'!D2:G2)+1) -> BB
C27: Loan Expenses - Annual | F27: 0.005 | J27: Debt to EBITDA | M27: ='Loan Inputs'!C24 -> 4.5 | N27: =CHOOSE(Notes!S20,'Bond Rating Simulation'!J23,0,0) -> 4 | O27: =IFERROR(INDEX('Weights and Defaults'!$F:$F,MATCH(J27,'Weights and Defaults'!$C:$C,0)),"") -> 0.45
C28: Loss Given Default Estimate | F28: 0.6 | J28: PLCR/Loan to Value | M28: ='Loan Inputs'!C26 -> 0.6 | O28: =IFERROR(INDEX('Weights and Defaults'!$F:$F,MATCH(J28,'Weights and Defaults'!$C:$C,0)),"") -> 0 | Q28: Input Rating

Sheet IRR Analysis
F1: =E7 -> 12
A2: Date | G2: 2018-01-01 | H2: =EDATE(G2,$E$7) -> 2019-01-01 | I2: =EDATE(H2,$E$7) -> 2020-01-01 | J2: 2021-01-01 | K2: 2022-01-01 | L2: 2023-01-01 | M2: 2024-01-01 | N2: 2025-01-01 | O2: 2026-01-01 | P2: 2027-01-01 | Q2: 2028-01-01 | R2: 2029-01-01 | S2: 2030-01-01 | T2: 2031-01-01 | U2: 2032-01-01 | V2: 2033-01-01 | W2: 2034-01-01 | X2: 2035-01-01 | Y2: 2036-01-01 | Z2: 2037-01-01 | AA2: 2038-01-01 | AB2: 2039-01-01 | AC2: 2040-01-01 | AD2: 2041-01-01 | AE2: 2042-01-01 | AF2: 2043-01-01 | AG2: 2044-01-01 | AH2: 2045-01-01 | AI2: 2046-01-01 | AJ2: 2047-01-01 | AK2: 2048-01-01 | AL2: 2049-01-01 | AM2: 2050-01-01 | AN2: 2051-01-01 | AO2: =EDATE(AN2,$E$7) -> 2052-01-01 | AP2: 2053-01-01 | AQ2: 2054-01-01 | AR2: 2055-01-01 | AS2: 2056-01-01 | AT2: 2057-01-01 | AU2: 2058-01-01 | AV2: 2059-01-01 | AW2: 2060-01-01 | AX2: 2061-01-01 | AY2: 2062-01-01 | AZ2: 2063-01-01 | BA2: 2064-01-01 | BB2: 2065-01-01 | BC2: 2066-01-01 | BD2: 2067-01-01 | BE2: 2068-01-01 | BF2: 2069-01-01 | BG2: 2070-01-01 | BH2: 2071-01-01 | BI2: 2072-01-01 | BJ2: 2073-01-01 | BK2: 2074-01-01 | BL2: 2075-01-01 | BM2: 2076-01-01 | BN2: 2077-01-01 | BO2: 2078-01-01 | BP2: 2079-01-01 | BQ2: 2080-01-01 | BR2: 2081-01-01 | BS2: 2082-01-01 | BT2: 2083-01-01 | BU2: 2084-01-01 | BV2: 2085-01-01 | BW2: 2086-01-01 | BX2: 2087-01-01 | BY2: 2088-01-01 | BZ2: 2089-01-01 | CA2: 2090-01-01 | CB2: 2091-01-01 | CC2: 2092-01-01 | CD2: 2093-01-01 | CE2: 2094-01-01 | CF2: 2095-01-01 | CG2: 2096-01-01 | CH2: 2097-01-01 | CI2: 2098-01-01 | CJ2: 2099-01-01 | CK2: 2100-01-01 | CL2: 2101-01-01 | CM2: 2102-01-01 | CN2: 2103-01-01 | CO2: 2104-01-01 | CP2: 2105-01-01 | CQ2: 2106-01-01 | CR2: 2107-01-01 | CS2: 2108-01-01 | CT2: 2109-01-01 | CU2: 2110-01-01 | CV2: 2111-01-01 | CW2: 2112-01-01 | CX2: 2113-01-01 | CY2: 2114-01-01 | CZ2: 2115-01-01 | DA2: =EDATE(CZ2,$E$7) -> 2116-01-01 | DB2: 2117-01-01 | DC2: 2118-01-01 | DD2: 2119-01-01 | DE2: 2120-01-01 | DF2: 2121-01-01 | DG2: 2122-01-01 | DH2: 2123-01-01 | DI2: 2124-01-01 | DJ2: 2125-01-01 | DK2: 2126-01-01 | DL2: 2127-01-01 | DM2: 2128-01-01 | DN2: 2129-01-01 | DO2: 2130-01-01 | DP2: 2131-01-01 | DQ2: 2132-01-01 | DR2: 2133-01-01 | DS2: 2134-01-01 | DT2: 2135-01-01 | DU2: 2136-01-01 | DV2: 2137-01-01 | DW2: 2138-01-01 | DX2: 2139-01-01
A3: Grace Period | E3: =E27 -> 2019-01-01 | F3: =COUNTIF(G3:AN3,TRUE) -> 1 | G3: =G2<$E$3 -> TRUE | H3: =H2<$E$3 -> FALSE | I3: FALSE | J3: FALSE | K3: FALSE | L3: FALSE | M3: FALSE | N3: FALSE | O3: FALSE | P3: FALSE | Q3: FALSE | R3: FALSE | S3: FALSE | T3: FALSE | U3: FALSE | V3: FALSE | W3: FALSE | X3: FALSE | Y3: FALSE | Z3: FALSE | AA3: FALSE | AB3: FALSE | AC3: FALSE | AD3: FALSE | AE3: FALSE | AF3: FALSE | AG3: FALSE | AH3: FALSE | AI3: FALSE | AJ3: FALSE | AK3: FALSE | AL3: FALSE | AM3: FALSE | AN3: FALSE | AO3: =AO2<$E$3 -> FALSE | AP3: =AP2<$E$3 -> FALSE | AQ3: =AQ2<$E$3 -> FALSE | AR3: =AR2<$E$3 -> FALSE | AS3: =AS2<$E$3 -> FALSE | AT3: =AT2<$E$3 -> FALSE | AU3: =AU2<$E$3 -> FALSE | AV3: =AV2<$E$3 -> FALSE | AW3: =AW2<$E$3 -> FALSE | AX3: =AX2<$E$3 -> FALSE | AY3: =AY2<$E$3 -> FALSE | AZ3: =AZ2<$E$3 -> FALSE | BA3: =BA2<$E$3 -> FALSE | BB3: =BB2<$E$3 -> FALSE | BC3: =BC2<$E$3 -> FALSE | BD3: =BD2<$E$3 -> FALSE | BE3: =BE2<$E$3 -> FALSE | BF3: =BF2<$E$3 -> FALSE | BG3: =BG2<$E$3 -> FALSE | BH3: =BH2<$E$3 -> FALSE | BI3: =BI2<$E$3 -> FALSE | BJ3: =BJ2<$E$3 -> FALSE | BK3: =BK2<$E$3 -> FALSE | BL3: =BL2<$E$3 -> FALSE | BM3: =BM2<$E$3 -> FALSE | BN3: =BN2<$E$3 -> FALSE | BO3: =BO2<$E$3 -> FALSE | BP3: =BP2<$E$3 -> FALSE | BQ3: =BQ2<$E$3 -> FALSE | BR3: =BR2<$E$3 -> FALSE | BS3: =BS2<$E$3 -> FALSE | BT3: =BT2<$E$3 -> FALSE | BU3: =BU2<$E$3 -> FALSE | BV3: =BV2<$E$3 -> FALSE | BW3: =BW2<$E$3 -> FALSE | BX3: =BX2<$E$3 -> FALSE | BY3: =BY2<$E$3 -> FALSE | BZ3: =BZ2<$E$3 -> FALSE | CA3: =CA2<$E$3 -> FALSE | CB3: =CB2<$E$3 -> FALSE | CC3: =CC2<$E$3 -> FALSE | CD3: =CD2<$E$3 -> FALSE | CE3: =CE2<$E$3 -> FALSE | CF3: =CF2<$E$3 -> FALSE | CG3: =CG2<$E$3 -> FALSE | CH3: =CH2<$E$3 -> FALSE | CI3: =CI2<$E$3 -> FALSE | CJ3: =CJ2<$E$3 -> FALSE | CK3: =CK2<$E$3 -> FALSE | CL3: =CL2<$E$3 -> FALSE | CM3: =CM2<$E$3 -> FALSE | CN3: =CN2<$E$3 -> FALSE | CO3: =CO2<$E$3 -> FALSE | CP3: =CP2<$E$3 -> FALSE | CQ3: =CQ2<$E$3 -> FALSE | CR3: =CR2<$E$3 -> FALSE | CS3: =CS2<$E$3 -> FALSE | CT3: =CT2<$E$3 -> FALSE | CU3: =CU2<$E$3 -> FALSE | CV3: =CV2<$E$3 -> FALSE | CW3: =CW2<$E$3 -> FALSE | CX3: =CX2<$E$3 -> FALSE | CY3: =CY2<$E$3 -> FALSE | CZ3: =CZ2<$E$3 -> FALSE | DA3: =DA2<$E$3 -> FALSE | DB3: =DB2<$E$3 -> FALSE | DC3: =DC2<$E$3 -> FALSE | DD3: =DD2<$E$3 -> FALSE | DE3: =DE2<$E$3 -> FALSE | DF3: =DF2<$E$3 -> FALSE | DG3: =DG2<$E$3 -> FALSE | DH3: =DH2<$E$3 -> FALSE | DI3: =DI2<$E$3 -> FALSE | DJ3: =DJ2<$E$3 -> FALSE | DK3: =DK2<$E$3 -> FALSE | DL3: =DL2<$E$3 -> FALSE | DM3: =DM2<$E$3 -> FALSE | DN3: =DN2<$E$3 -> FALSE | DO3: =DO2<$E$3 -> FALSE | DP3: =DP2<$E$3 -> FALSE | DQ3: =DQ2<$E$3 -> FALSE | DR3: =DR2<$E$3 -> FALSE | DS3: =DS2<$E$3 -> FALSE | DT3: =DT2<$E$3 -> FALSE | DU3: =DU2<$E$3 -> FALSE | DV3: =DV2<$E$3 -> FALSE | DW3: =DW2<$E$3 -> FALSE | DX3: =DX2<$E$3 -> FALSE
A4: Repayment Period | E4: =E28 -> 2028-01-01 | F4: =COUNTIF(G4:ZN4,TRUE) -> 9 | G4: =AND(G2>=$E$3,G2<$E$4) -> FALSE | H4: =AND(H2>=$E$3,H2<$E$4) -> TRUE | I4: TRUE | J4: TRUE | K4: TRUE | L4: TRUE | M4: TRUE | N4: TRUE | O4: TRUE | P4: TRUE | Q4: FALSE | R4: FALSE | S4: FALSE | T4: FALSE | U4: FALSE | V4: FALSE | W4: FALSE | X4: FALSE | Y4: FALSE | Z4: FALSE | AA4: FALSE | AB4: FALSE | AC4: FALSE | AD4: FALSE | AE4: FALSE | AF4: FALSE | AG4: FALSE | AH4: FALSE | AI4: FALSE | AJ4: FALSE | AK4: FALSE | AL4: FALSE | AM4: FALSE | AN4: FALSE | AO4: FALSE | AP4: FALSE | AQ4: FALSE | AR4: FALSE | AS4: FALSE | AT4: FALSE | AU4: FALSE | AV4: FALSE | AW4: FALSE | AX4: FALSE | AY4: FALSE | AZ4: FALSE | BA4: FALSE | BB4: FALSE | BC4: FALSE | BD4: FALSE | BE4: FALSE | BF4: FALSE | BG4: FALSE | BH4: FALSE | BI4: FALSE | BJ4: FALSE | BK4: FALSE | BL4: FALSE | BM4: FALSE | BN4: FALSE | BO4: FALSE | BP4: FALSE | BQ4: FALSE | BR4: FALSE | BS4: FALSE | BT4: =AND(BT2>=$E$3,BT2<$E$4) -> FALSE | BU4: FALSE | BV4: FALSE | BW4: FALSE | BX4: FALSE | BY4: FALSE | BZ4: FALSE | CA4: FALSE | CB4: FALSE | CC4: FALSE | CD4: FALSE | CE4: FALSE | CF4: FALSE | CG4: FALSE | CH4: FALSE | CI4: FALSE | CJ4: FALSE | CK4: FALSE | CL4: FALSE | CM4: FALSE | CN4: FALSE | CO4: FALSE | CP4: FALSE | CQ4: FALSE | CR4: FALSE | CS4: FALSE | CT4: FALSE | CU4: FALSE | CV4: FALSE | CW4: FALSE | CX4: FALSE | CY4: FALSE | CZ4: FALSE | DA4: FALSE | DB4: FALSE | DC4: FALSE | DD4: FALSE | DE4: FALSE | DF4: FALSE | DG4: FALSE | DH4: FALSE | DI4: FALSE | DJ4: FALSE | DK4: FALSE | DL4: FALSE | DM4: FALSE | DN4: FALSE | DO4: FALSE | DP4: FALSE | DQ4: FALSE | DR4: FALSE | DS4: FALSE | DT4: FALSE | DU4: FALSE | DV4: FALSE | DW4: FALSE | DX4: FALSE
F5: =SUM(F3:F4)/E8 -> 10
A6: General Inputs
B7: Months in Period | E7: ='RAROC Analysis'!R1 -> 12
B8: Periods in Year | E8: =12/E7 -> 1
A10: Inputs
B11: Loan Amount | E11: ='RAROC Analysis'!F14 -> 10000
B12: Credit Spread | E12: ='RAROC Analysis'!F16 -> 0.039
B13: Base Rate | E13: ='RAROC Analysis'!F15 -> 0.03
B14: Total Rate Added | E14: =E12+E13 -> 0.069
B16: Cost of Funds | E16: ='RAROC Analysis'!F25 -> 0.03
B17: Implied Effective Credit Spread | E17: =E58 -> 0.04412332231
B19: Up Front Fees | E19: ='RAROC Analysis'!F17 -> 0.01
B20: Commitment Fees | E20: ='RAROC Analysis'!F18 -> 0.015
B21: Other Fees | E21: ='RAROC Analysis'!F19 -> 0
B23: Maturity | E23: ='RAROC Analysis'!F21 -> 10
B24: Grace Period | E24: =IF('RAROC Analysis'!F22>0,'RAROC Analysis'!F22,1/E8) -> 1
B25: Repayments (1-Mtg,2-Level,3-Sculpt) | E25: ='RAROC Analysis'!F23 -> 1
B27: End of Grace Period | E27: =EDATE(G2,E24*12) -> 2019-01-01
B28: End of Repayment Period | E28: =EDATE(G2,E23*12) -> 2028-01-01
A30: Cash Flow
B31: Draw Percent | E31: =(1/E24/E8) -> 1 | G31: =$E$31*G3 -> 1 | H31: 0 | I31: 0 | J31: 0 | K31: 0 | L31: 0 | M31: 0 | N31: 0 | O31: 0 | P31: 0 | Q31: 0 | R31: 0 | S31: 0 | T31: 0 | U31: 0 | V31: 0 | W31: 0 | X31: 0 | Y31: 0 | Z31: 0 | AA31: 0 | AB31: 0 | AC31: 0 | AD31: 0 | AE31: 0 | AF31: 0 | AG31: 0 | AH31: 0 | AI31: 0 | AJ31: 0 | AK31: 0 | AL31: 0 | AM31: =$E$31*AM3 -> 0 | AN31: 0 | AO31: 0 | AP31: 0 | AQ31: 0 | AR31: 0 | AS31: 0 | AT31: 0 | AU31: 0 | AV31: 0 | AW31: 0 | AX31: 0 | AY31: 0 | AZ31: 0 | BA31: 0 | BB31: 0 | BC31: 0 | BD31: 0 | BE31: 0 | BF31: 0 | BG31: 0 | BH31: 0 | BI31: 0 | BJ31: 0 | BK31: 0 | BL31: 0 | BM31: 0 | BN31: 0 | BO31: 0 | BP31: 0 | BQ31: 0 | BR31: 0 | BS31: =$E$31*BS3 -> 0 | BT31: 0 | BU31: 0 | BV31: 0 | BW31: 0 | BX31: 0 | BY31: 0 | BZ31: 0 | CA31: 0 | CB31: 0 | CC31: 0 | CD31: 0 | CE31: 0 | CF31: 0 | CG31: 0 | CH31: 0 | CI31: 0 | CJ31: 0 | CK31: 0 | CL31: 0 | CM31: 0 | CN31: 0 | CO31: 0 | CP31: 0 | CQ31: 0 | CR31: 0 | CS31: 0 | CT31: 0 | CU31: 0 | CV31: 0 | CW31: 0 | CX31: 0 | CY31: =$E$31*CY3 -> 0 | CZ31: 0 | DA31: 0 | DB31: 0 | DC31: 0 | DD31: 0 | DE31: 0 | DF31: 0 | DG31: 0 | DH31: 0 | DI31: 0 | DJ31: 0 | DK31: 0 | DL31: 0 | DM31: 0 | DN31: 0 | DO31: 0 | DP31: 0 | DQ31: 0 | DR31: 0 | DS31: 0 | DT31: 0 | DU31: 0 | DV31: 0 | DW31: 0 | DX31: 0
B32: Draws | E32: =E11 -> 10000 | G32: =$E$32*G31 -> 10000 | H32: =$E$32*H31 -> 0 | I32: 0 | J32: 0 | K32: 0 | L32: 0 | M32: 0 | N32: 0 | O32: 0 | P32: 0 | Q32: 0 | R32: 0 | S32: 0 | T32: 0 | U32: 0 | V32: 0 | W32: 0 | X32: 0 | Y32: 0 | Z32: 0 | AA32: 0 | AB32: 0 | AC32: 0 | AD32: 0 | AE32: 0 | AF32: 0 | AG32: 0 | AH32: 0 | AI32: 0 | AJ32: 0 | AK32: 0 | AL32: 0 | AM32: 0 | AN32: 0 | AO32: =$E$32*AO31 -> 0 | AP32: =$E$32*AP31 -> 0 | AQ32: =$E$32*AQ31 -> 0 | AR32: =$E$32*AR31 -> 0 | AS32: =$E$32*AS31 -> 0 | AT32: =$E$32*AT31 -> 0 | AU32: =$E$32*AU31 -> 0 | AV32: =$E$32*AV31 -> 0 | AW32: =$E$32*AW31 -> 0 | AX32: =$E$32*AX31 -> 0 | AY32: =$E$32*AY31 -> 0 | AZ32: =$E$32*AZ31 -> 0 | BA32: =$E$32*BA31 -> 0 | BB32: =$E$32*BB31 -> 0 | BC32: =$E$32*BC31 -> 0 | BD32: =$E$32*BD31 -> 0 | BE32: =$E$32*BE31 -> 0 | BF32: =$E$32*BF31 -> 0 | BG32: =$E$32*BG31 -> 0 | BH32: =$E$32*BH31 -> 0 | BI32: =$E$32*BI31 -> 0 | BJ32: =$E$32*BJ31 -> 0 | BK32: =$E$32*BK31 -> 0 | BL32: =$E$32*BL31 -> 0 | BM32: =$E$32*BM31 -> 0 | BN32: =$E$32*BN31 -> 0 | BO32: =$E$32*BO31 -> 0 | BP32: =$E$32*BP31 -> 0 | BQ32: =$E$32*BQ31 -> 0 | BR32: =$E$32*BR31 -> 0 | BS32: =$E$32*BS31 -> 0 | BT32: =$E$32*BT31 -> 0 | BU32: =$E$32*BU31 -> 0 | BV32: =$E$32*BV31 -> 0 | BW32: =$E$32*BW31 -> 0 | BX32: =$E$32*BX31 -> 0 | BY32: =$E$32*BY31 -> 0 | BZ32: =$E$32*BZ31 -> 0 | CA32: =$E$32*CA31 -> 0 | CB32: =$E$32*CB31 -> 0 | CC32: =$E$32*CC31 -> 0 | CD32: =$E$32*CD31 -> 0 | CE32: =$E$32*CE31 -> 0 | CF32: =$E$32*CF31 -> 0 | CG32: =$E$32*CG31 -> 0 | CH32: =$E$32*CH31 -> 0 | CI32: =$E$32*CI31 -> 0 | CJ32: =$E$32*CJ31 -> 0 | CK32: =$E$32*CK31 -> 0 | CL32: =$E$32*CL31 -> 0 | CM32: =$E$32*CM31 -> 0 | CN32: =$E$32*CN31 -> 0 | CO32: =$E$32*CO31 -> 0 | CP32: =$E$32*CP31 -> 0 | CQ32: =$E$32*CQ31 -> 0 | CR32: =$E$32*CR31 -> 0 | CS32: =$E$32*CS31 -> 0 | CT32: =$E$32*CT31 -> 0 | CU32: =$E$32*CU31 -> 0 | CV32: =$E$32*CV31 -> 0 | CW32: =$E$32*CW31 -> 0 | CX32: =$E$32*CX31 -> 0 | CY32: =$E$32*CY31 -> 0 | CZ32: =$E$32*CZ31 -> 0 | DA32: =$E$32*DA31 -> 0 | DB32: =$E$32*DB31 -> 0 | DC32: =$E$32*DC31 -> 0 | DD32: =$E$32*DD31 -> 0 | DE32: =$E$32*DE31 -> 0 | DF32: =$E$32*DF31 -> 0 | DG32: =$E$32*DG31 -> 0 | DH32: =$E$32*DH31 -> 0 | DI32: =$E$32*DI31 -> 0 | DJ32: =$E$32*DJ31 -> 0 | DK32: =$E$32*DK31 -> 0 | DL32: =$E$32*DL31 -> 0 | DM32: =$E$32*DM31 -> 0 | DN32: =$E$32*DN31 -> 0 | DO32: =$E$32*DO31 -> 0 | DP32: =$E$32*DP31 -> 0 | DQ32: =$E$32*DQ31 -> 0 | DR32: =$E$32*DR31 -> 0 | DS32: =$E$32*DS31 -> 0 | DT32: =$E$32*DT31 -> 0 | DU32: =$E$32*DU31 -> 0 | DV32: =$E$32*DV31 -> 0 | DW32: =$E$32*DW31 -> 0 | DX32: =$E$32*DX31 -> 0
B33: Loan Repayment Period | G33: =F33+G4 -> 0 | H33: 1 | I33: 2 | J33: 3 | K33: 4 | L33: 5 | M33: 6 | N33: 7 | O33: 8 | P33: 9 | Q33: 9 | R33: 9 | S33: 9 | T33: 9 | U33: 9 | V33: 9 | W33: 9 | X33: 9 | Y33: 9 | Z33: 9 | AA33: 9 | AB33: 9 | AC33: 9 | AD33: 9 | AE33: 9 | AF33: 9 | AG33: 9 | AH33: 9 | AI33: 9 | AJ33: 9 | AK33: 9 | AL33: 9 | AM33: =AL33+AM4 -> 9 | AN33: 9 | AO33: 9 | AP33: 9 | AQ33: 9 | AR33: 9 | AS33: 9 | AT33: 9 | AU33: 9 | AV33: 9 | AW33: 9 | AX33: 9 | AY33: 9 | AZ33: 9 | BA33: 9 | BB33: 9 | BC33: 9 | BD33: 9 | BE33: 9 | BF33: 9 | BG33: 9 | BH33: 9 | BI33: 9 | BJ33: 9 | BK33: 9 | BL33: 9 | BM33: 9 | BN33: 9 | BO33: 9 | BP33: 9 | BQ33: 9 | BR33: 9 | BS33: =BR33+BS4 -> 9 | BT33: 9 | BU33: 9 | BV33: 9 | BW33: 9 | BX33: 9 | BY33: 9 | BZ33: 9 | CA33: 9 | CB33: 9 | CC33: 9 | CD33: 9 | CE33: 9 | CF33: 9 | CG33: 9 | CH33: 9 | CI33: 9 | CJ33: 9 | CK33: 9 | CL33: 9 | CM33: 9 | CN33: 9 | CO33: 9 | CP33: 9 | CQ33: 9 | CR33: 9 | CS33: 9 | CT33: 9 | CU33: 9 | CV33: 9 | CW33: 9 | CX33: 9 | CY33: =CX33+CY4 -> 9 | CZ33: 9 | DA33: 9 | DB33: 9 | DC33: 9 | DD33: 9 | DE33: 9 | DF33: 9 | DG33: 9 | DH33: 9 | DI33: 9 | DJ33: 9 | DK33: 9 | DL33: 9 | DM33: 9 | DN33: 9 | DO33: 9 | DP33: 9 | DQ33: 9 | DR33: 9 | DS33: 9 | DT33: 9 | DU33: 9 | DV33: 9 | DW33: 9 | DX33: 9
B34: Repayment Percent - Level | E34: =1/(E23-E24)/E8 -> 0.1111111111 | F34: =SUM(G34:AZ34) -> 1 | G34: =$E$34*G4 -> 0 | H34: 0.1111111111 | I34: 0.1111111111 | J34: 0.1111111111 | K34: 0.1111111111 | L34: 0.1111111111 | M34: 0.1111111111 | N34: 0.1111111111 | O34: 0.1111111111 | P34: 0.1111111111 | Q34: 0 | R34: 0 | S34: 0 | T34: 0 | U34: 0 | V34: 0 | W34: 0 | X34: 0 | Y34: 0 | Z34: 0 | AA34: 0 | AB34: 0 | AC34: 0 | AD34: 0 | AE34: 0 | AF34: 0 | AG34: 0 | AH34: 0 | AI34: 0 | AJ34: 0 | AK34: 0 | AL34: 0 | AM34: =$E$34*AM4 -> 0 | AN34: 0 | AO34: 0 | AP34: 0 | AQ34: 0 | AR34: 0 | AS34: 0 | AT34: 0 | AU34: 0 | AV34: 0 | AW34: 0 | AX34: 0 | AY34: 0 | AZ34: 0 | BA34: 0 | BB34: 0 | BC34: 0 | BD34: 0 | BE34: 0 | BF34: 0 | BG34: 0 | BH34: 0 | BI34: 0 | BJ34: 0 | BK34: 0 | BL34: 0 | BM34: 0 | BN34: 0 | BO34: 0 | BP34: 0 | BQ34: 0 | BR34: 0 | BS34: =$E$34*BS4 -> 0 | BT34: 0 | BU34: 0 | BV34: 0 | BW34: 0 | BX34: 0 | BY34: 0 | BZ34: 0 | CA34: 0 | CB34: 0 | CC34: 0 | CD34: 0 | CE34: 0 | CF34: 0 | CG34: 0 | CH34: 0 | CI34: 0 | CJ34: 0 | CK34: 0 | CL34: 0 | CM34: 0 | CN34: 0 | CO34: 0 | CP34: 0 | CQ34: 0 | CR34: 0 | CS34: 0 | CT34: 0 | CU34: 0 | CV34: 0 | CW34: 0 | CX34: 0 | CY34: =$E$34*CY4 -> 0 | CZ34: 0 | DA34: 0 | DB34: 0 | DC34: 0 | DD34: 0 | DE34: 0 | DF34: 0 | DG34: 0 | DH34: 0 | DI34: 0 | DJ34: 0 | DK34: 0 | DL34: 0 | DM34: 0 | DN34: 0 | DO34: 0 | DP34: 0 | DQ34: 0 | DR34: 0 | DS34: 0 | DT34: 0 | DU34: 0 | DV34: 0 | DW34: 0 | DX34: 0
B35: Repayment Percent - Mortgage | E35: =E14/E8 -> 0.069 | F35: =(E23-E24)*E8 -> 9 | G35: =IF(G4,PPMT($E$35,G33,$F$35,-1))*1 -> 0 | H35: 0.08383419007 | I35: 0.08961874918 | J35: 0.09580244287 | K35: 0.1024128114 | L35: 0.1094792954 | M35: 0.1170333668 | N35: 0.1251086691 | O35: 0.1337411673 | P35: 0.1429693078 | Q35: 0 | R35: 0 | S35: 0 | T35: 0 | U35: 0 | V35: 0 | W35: 0 | X35: 0 | Y35: 0 | Z35: 0 | AA35: 0 | AB35: 0 | AC35: 0 | AD35: 0 | AE35: 0 | AF35: 0 | AG35: 0 | AH35: 0 | AI35: 0 | AJ35: 0 | AK35: 0 | AL35: 0 | AM35: =IF(AM4,PPMT($E$35,AM33,$F$35,-1))*1 -> 0 | AN35: 0 | AO35: 0 | AP35: 0 | AQ35: 0 | AR35: 0 | AS35: 0 | AT35: 0 | AU35: 0 | AV35: 0 | AW35: 0 | AX35: 0 | AY35: 0 | AZ35: 0 | BA35: 0 | BB35: 0 | BC35: 0 | BD35: 0 | BE35: 0 | BF35: 0 | BG35: 0 | BH35: 0 | BI35: 0 | BJ35: 0 | BK35: 0 | BL35: 0 | BM35: 0 | BN35: 0 | BO35: 0 | BP35: 0 | BQ35: 0 | BR35: 0 | BS35: =IF(BS4,PPMT($E$35,BS33,$F$35,-1))*1 -> 0 | BT35: 0 | BU35: 0 | BV35: 0 | BW35: 0 | BX35: 0 | BY35: 0 | BZ35: 0 | CA35: 0 | CB35: 0 | CC35: 0 | CD35: 0 | CE35: 0 | CF35: 0 | CG35: 0 | CH35: 0 | CI35: 0 | CJ35: 0 | CK35: 0 | CL35: 0 | CM35: 0 | CN35: 0 | CO35: 0 | CP35: 0 | CQ35: 0 | CR35: 0 | CS35: 0 | CT35: 0 | CU35: 0 | CV35: 0 | CW35: 0 | CX35: 0 | CY35: =IF(CY4,PPMT($E$35,CY33,$F$35,-1))*1 -> 0 | CZ35: 0 | DA35: 0 | DB35: 0 | DC35: 0 | DD35: 0 | DE35: 0 | DF35: 0 | DG35: 0 | DH35: 0 | DI35: 0 | DJ35: 0 | DK35: 0 | DL35: 0 | DM35: 0 | DN35: 0 | DO35: 0 | DP35: 0 | DQ35: 0 | DR35: 0 | DS35: 0 | DT35: 0 | DU35: 0 | DV35: 0 | DW35: 0 | DX35: 0
B36: Repayments | E36: =E25 -> 1 | G36: =CHOOSE($E$36,G34,G35) -> 0 | H36: =CHOOSE($E$36,H34,H35) -> 0.1111111111 | I36: 0.1111111111 | J36: 0.1111111111 | K36: 0.1111111111 | L36: 0.1111111111 | M36: 0.1111111111 | N36: 0.1111111111 | O36: 0.1111111111 | P36: 0.1111111111 | Q36: 0 | R36: 0 | S36: 0 | T36: 0 | U36: 0 | V36: 0 | W36: 0 | X36: 0 | Y36: 0 | Z36: 0 | AA36: 0 | AB36: 0 | AC36: 0 | AD36: 0 | AE36: 0 | AF36: 0 | AG36: 0 | AH36: 0 | AI36: 0 | AJ36: 0 | AK36: 0 | AL36: 0 | AM36: 0 | AN36: 0 | AO36: 0 | AP36: 0 | AQ36: 0 | AR36: 0 | AS36: 0 | AT36: 0 | AU36: 0 | AV36: 0 | AW36: 0 | AX36: 0 | AY36: 0 | AZ36: 0 | BA36: 0 | BB36: 0 | BC36: 0 | BD36: 0 | BE36: 0 | BF36: 0 | BG36: 0 | BH36: 0 | BI36: 0 | BJ36: 0 | BK36: 0 | BL36: 0 | BM36: 0 | BN36: 0 | BO36: 0 | BP36: 0 | BQ36: 0 | BR36: 0 | BS36: 0 | BT36: =CHOOSE($E$36,BT34,BT35) -> 0 | BU36: 0 | BV36: 0 | BW36: 0 | BX36: 0 | BY36: 0 | BZ36: 0 | CA36: 0 | CB36: 0 | CC36: 0 | CD36: 0 | CE36: 0 | CF36: 0 | CG36: 0 | CH36: 0 | CI36: 0 | CJ36: 0 | CK36: 0 | CL36: 0 | CM36: 0 | CN36: 0 | CO36: 0 | CP36: 0 | CQ36: 0 | CR36: 0 | CS36: 0 | CT36: 0 | CU36: 0 | CV36: 0 | CW36: 0 | CX36: 0 | CY36: 0 | CZ36: 0 | DA36: 0 | DB36: 0 | DC36: 0 | DD36: 0 | DE36: 0 | DF36: 0 | DG36: 0 | DH36: 0 | DI36: 0 | DJ36: 0 | DK36: 0 | DL36: 0 | DM36: 0 | DN36: 0 | DO36: 0 | DP36: 0 | DQ36: 0 | DR36: 0 | DS36: 0 | DT36: 0 | DU36: 0 | DV36: 0 | DW36: 0 | DX36: 0
B37: Repayments | E37: =E25 -> 1 | G37: =CHOOSE($E$37,G34*$E$32,G35*$E$32) -> 0 | H37: =CHOOSE($E$37,H34*$E$32,H35*$E$32) -> 1111.111111 | I37: 1111.111111 | J37: 1111.111111 | K37: 1111.111111 | L37: 1111.111111 | M37: 1111.111111 | N37: 1111.111111 | O37: 1111.111111 | P37: 1111.111111 | Q37: 0 | R37: 0 | S37: 0 | T37: 0 | U37: 0 | V37: 0 | W37: 0 | X37: 0 | Y37: 0 | Z37: 0 | AA37: 0 | AB37: 0 | AC37: 0 | AD37: 0 | AE37: 0 | AF37: 0 | AG37: 0 | AH37: 0 | AI37: 0 | AJ37: 0 | AK37: 0 | AL37: 0 | AM37: 0 | AN37: 0 | AO37: =CHOOSE($E$37,AO34*$E$32,AO35*$E$32) -> 0 | AP37: =CHOOSE($E$37,AP34*$E$32,AP35*$E$32) -> 0 | AQ37: =CHOOSE($E$37,AQ34*$E$32,AQ35*$E$32) -> 0 | AR37: =CHOOSE($E$37,AR34*$E$32,AR35*$E$32) -> 0 | AS37: =CHOOSE($E$37,AS34*$E$32,AS35*$E$32) -> 0 | AT37: =CHOOSE($E$37,AT34*$E$32,AT35*$E$32) -> 0 | AU37: =CHOOSE($E$37,AU34*$E$32,AU35*$E$32) -> 0 | AV37: =CHOOSE($E$37,AV34*$E$32,AV35*$E$32) -> 0 | AW37: =CHOOSE($E$37,AW34*$E$32,AW35*$E$32) -> 0 | AX37: =CHOOSE($E$37,AX34*$E$32,AX35*$E$32) -> 0 | AY37: =CHOOSE($E$37,AY34*$E$32,AY35*$E$32) -> 0 | AZ37: =CHOOSE($E$37,AZ34*$E$32,AZ35*$E$32) -> 0 | BA37: =CHOOSE($E$37,BA34*$E$32,BA35*$E$32) -> 0 | BB37: =CHOOSE($E$37,BB34*$E$32,BB35*$E$32) -> 0 | BC37: =CHOOSE($E$37,BC34*$E$32,BC35*$E$32) -> 0 | BD37: =CHOOSE($E$37,BD34*$E$32,BD35*$E$32) -> 0 | BE37: =CHOOSE($E$37,BE34*$E$32,BE35*$E$32) -> 0 | BF37: =CHOOSE($E$37,BF34*$E$32,BF35*$E$32) -> 0 | BG37: =CHOOSE($E$37,BG34*$E$32,BG35*$E$32) -> 0 | BH37: =CHOOSE($E$37,BH34*$E$32,BH35*$E$32) -> 0 | BI37: =CHOOSE($E$37,BI34*$E$32,BI35*$E$32) -> 0 | BJ37: =CHOOSE($E$37,BJ34*$E$32,BJ35*$E$32) -> 0 | BK37: =CHOOSE($E$37,BK34*$E$32,BK35*$E$32) -> 0 | BL37: =CHOOSE($E$37,BL34*$E$32,BL35*$E$32) -> 0 | BM37: =CHOOSE($E$37,BM34*$E$32,BM35*$E$32) -> 0 | BN37: =CHOOSE($E$37,BN34*$E$32,BN35*$E$32) -> 0 | BO37: =CHOOSE($E$37,BO34*$E$32,BO35*$E$32) -> 0 | BP37: =CHOOSE($E$37,BP34*$E$32,BP35*$E$32) -> 0 | BQ37: =CHOOSE($E$37,BQ34*$E$32,BQ35*$E$32) -> 0 | BR37: =CHOOSE($E$37,BR34*$E$32,BR35*$E$32) -> 0 | BS37: =CHOOSE($E$37,BS34*$E$32,BS35*$E$32) -> 0 | BT37: =CHOOSE($E$37,BT34*$E$32,BT35*$E$32) -> 0 | BU37: =CHOOSE($E$37,BU34*$E$32,BU35*$E$32) -> 0 | BV37: =CHOOSE($E$37,BV34*$E$32,BV35*$E$32) -> 0 | BW37: =CHOOSE($E$37,BW34*$E$32,BW35*$E$32) -> 0 | BX37: =CHOOSE($E$37,BX34*$E$32,BX35*$E$32) -> 0 | BY37: =CHOOSE($E$37,BY34*$E$32,BY35*$E$32) -> 0 | BZ37: =CHOOSE($E$37,BZ34*$E$32,BZ35*$E$32) -> 0 | CA37: =CHOOSE($E$37,CA34*$E$32,CA35*$E$32) -> 0 | CB37: =CHOOSE($E$37,CB34*$E$32,CB35*$E$32) -> 0 | CC37: =CHOOSE($E$37,CC34*$E$32,CC35*$E$32) -> 0 | CD37: =CHOOSE($E$37,CD34*$E$32,CD35*$E$32) -> 0 | CE37: =CHOOSE($E$37,CE34*$E$32,CE35*$E$32) -> 0 | CF37: =CHOOSE($E$37,CF34*$E$32,CF35*$E$32) -> 0 | CG37: =CHOOSE($E$37,CG34*$E$32,CG35*$E$32) -> 0 | CH37: =CHOOSE($E$37,CH34*$E$32,CH35*$E$32) -> 0 | CI37: =CHOOSE($E$37,CI34*$E$32,CI35*$E$32) -> 0 | CJ37: =CHOOSE($E$37,CJ34*$E$32,CJ35*$E$32) -> 0 | CK37: =CHOOSE($E$37,CK34*$E$32,CK35*$E$32) -> 0 | CL37: =CHOOSE($E$37,CL34*$E$32,CL35*$E$32) -> 0 | CM37: =CHOOSE($E$37,CM34*$E$32,CM35*$E$32) -> 0 | CN37: =CHOOSE($E$37,CN34*$E$32,CN35*$E$32) -> 0 | CO37: =CHOOSE($E$37,CO34*$E$32,CO35*$E$32) -> 0 | CP37: =CHOOSE($E$37,CP34*$E$32,CP35*$E$32) -> 0 | CQ37: =CHOOSE($E$37,CQ34*$E$32,CQ35*$E$32) -> 0 | CR37: =CHOOSE($E$37,CR34*$E$32,CR35*$E$32) -> 0 | CS37: =CHOOSE($E$37,CS34*$E$32,CS35*$E$32) -> 0 | CT37: =CHOOSE($E$37,CT34*$E$32,CT35*$E$32) -> 0 | CU37: =CHOOSE($E$37,CU34*$E$32,CU35*$E$32) -> 0 | CV37: =CHOOSE($E$37,CV34*$E$32,CV35*$E$32) -> 0 | CW37: =CHOOSE($E$37,CW34*$E$32,CW35*$E$32) -> 0 | CX37: =CHOOSE($E$37,CX34*$E$32,CX35*$E$32) -> 0 | CY37: =CHOOSE($E$37,CY34*$E$32,CY35*$E$32) -> 0 | CZ37: =CHOOSE($E$37,CZ34*$E$32,CZ35*$E$32) -> 0 | DA37: =CHOOSE($E$37,DA34*$E$32,DA35*$E$32) -> 0 | DB37: =CHOOSE($E$37,DB34*$E$32,DB35*$E$32) -> 0 | DC37: =CHOOSE($E$37,DC34*$E$32,DC35*$E$32) -> 0 | DD37: =CHOOSE($E$37,DD34*$E$32,DD35*$E$32) -> 0 | DE37: =CHOOSE($E$37,DE34*$E$32,DE35*$E$32) -> 0 | DF37: =CHOOSE($E$37,DF34*$E$32,DF35*$E$32) -> 0 | DG37: =CHOOSE($E$37,DG34*$E$32,DG35*$E$32) -> 0 | DH37: =CHOOSE($E$37,DH34*$E$32,DH35*$E$32) -> 0 | DI37: =CHOOSE($E$37,DI34*$E$32,DI35*$E$32) -> 0 | DJ37: =CHOOSE($E$37,DJ34*$E$32,DJ35*$E$32) -> 0 | DK37: =CHOOSE($E$37,DK34*$E$32,DK35*$E$32) -> 0 | DL37: =CHOOSE($E$37,DL34*$E$32,DL35*$E$32) -> 0 | DM37: =CHOOSE($E$37,DM34*$E$32,DM35*$E$32) -> 0 | DN37: =CHOOSE($E$37,DN34*$E$32,DN35*$E$32) -> 0 | DO37: =CHOOSE($E$37,DO34*$E$32,DO35*$E$32) -> 0 | DP37: =CHOOSE($E$37,DP34*$E$32,DP35*$E$32) -> 0 | DQ37: =CHOOSE($E$37,DQ34*$E$32,DQ35*$E$32) -> 0 | DR37: =CHOOSE($E$37,DR34*$E$32,DR35*$E$32) -> 0 | DS37: =CHOOSE($E$37,DS34*$E$32,DS35*$E$32) -> 0 | DT37: =CHOOSE($E$37,DT34*$E$32,DT35*$E$32) -> 0 | DU37: =CHOOSE($E$37,DU34*$E$32,DU35*$E$32) -> 0 | DV37: =CHOOSE($E$37,DV34*$E$32,DV35*$E$32) -> 0 | DW37: =CHOOSE($E$37,DW34*$E$32,DW35*$E$32) -> 0 | DX37: =CHOOSE($E$37,DX34*$E$32,DX35*$E$32) -> 0
B39: Loan Balance
C40: Opening Balance | G40: =F43 -> 0 | H40: =G43 -> 10000 | I40: 8888.888889 | J40: 7777.777778 | K40: 6666.666667 | L40: 5555.555556 | M40: 4444.444444 | N40: 3333.333333 | O40: 2222.222222 | P40: 1111.111111 | Q40: 0 | R40: 0 | S40: 0 | T40: 0 | U40: 0 | V40: 0 | W40: 0 | X40: 0 | Y40: 0 | Z40: 0 | AA40: 0 | AB40: 0 | AC40: 0 | AD40: 0 | AE40: 0 | AF40: 0 | AG40: 0 | AH40: 0 | AI40: 0 | AJ40: 0 | AK40: 0 | AL40: 0 | AM40: 0 | AN40: 0 | AO40: =AN43 -> 0 | AP40: 0 | AQ40: 0 | AR40: 0 | AS40: 0 | AT40: 0 | AU40: 0 | AV40: 0 | AW40: 0 | AX40: 0 | AY40: 0 | AZ40: 0 | BA40: 0 | BB40: 0 | BC40: 0 | BD40: 0 | BE40: 0 | BF40: 0 | BG40: 0 | BH40: 0 | BI40: 0 | BJ40: 0 | BK40: 0 | BL40: 0 | BM40: 0 | BN40: 0 | BO40: 0 | BP40: 0 | BQ40: 0 | BR40: 0 | BS40: 0 | BT40: 0 | BU40: 0 | BV40: 0 | BW40: 0 | BX40: 0 | BY40: 0 | BZ40: 0 | CA40: 0 | CB40: 0 | CC40: 0 | CD40: 0 | CE40: 0 | CF40: 0 | CG40: 0 | CH40: 0 | CI40: 0 | CJ40: 0 | CK40: 0 | CL40: 0 | CM40: 0 | CN40: 0 | CO40: 0 | CP40: 0 | CQ40: 0 | CR40: 0 | CS40: 0 | CT40: 0 | CU40: 0 | CV40: 0 | CW40: 0 | CX40: 0 | CY40: 0 | CZ40: 0 | DA40: =CZ43 -> 0 | DB40: 0 | DC40: 0 | DD40: 0 | DE40: 0 | DF40: 0 | DG40: 0 | DH40: 0 | DI40: 0 | DJ40: 0 | DK40: 0 | DL40: 0 | DM40: 0 | DN40: 0 | DO40: 0 | DP40: 0 | DQ40: 0 | DR40: 0 | DS40: 0 | DT40: 0 | DU40: 0 | DV40: 0 | DW40: 0 | DX40: 0
C41: Add: Draws | G41: =G32 -> 10000 | H41: =H32 -> 0 | I41: 0 | J41: 0 | K41: 0 | L41: 0 | M41: 0 | N41: 0 | O41: 0 | P41: 0 | Q41: 0 | R41: 0 | S41: 0 | T41: 0 | U41: 0 | V41: 0 | W41: 0 | X41: 0 | Y41: 0 | Z41: 0 | AA41: 0 | AB41: 0 | AC41: 0 | AD41: 0 | AE41: 0 | AF41: 0 | AG41: 0 | AH41: 0 | AI41: 0 | AJ41: 0 | AK41: 0 | AL41: 0 | AM41: 0 | AN41: 0 | AO41: =AO32 -> 0 | AP41: 0 | AQ41: 0 | AR41: 0 | AS41: 0 | AT41: 0 | AU41: 0 | AV41: 0 | AW41: 0 | AX41: 0 | AY41: 0 | AZ41: 0 | BA41: 0 | BB41: 0 | BC41: 0 | BD41: 0 | BE41: 0 | BF41: 0 | BG41: 0 | BH41: 0 | BI41: 0 | BJ41: 0 | BK41: 0 | BL41: 0 | BM41: 0 | BN41: 0 | BO41: 0 | BP41: 0 | BQ41: 0 | BR41: 0 | BS41: 0 | BT41: 0 | BU41: 0 | BV41: 0 | BW41: 0 | BX41: 0 | BY41: 0 | BZ41: 0 | CA41: 0 | CB41: 0 | CC41: 0 | CD41: 0 | CE41: 0 | CF41: 0 | CG41: 0 | CH41: 0 | CI41: 0 | CJ41: 0 | CK41: 0 | CL41: 0 | CM41: 0 | CN41: 0 | CO41: 0 | CP41: 0 | CQ41: 0 | CR41: 0 | CS41: 0 | CT41: 0 | CU41: 0 | CV41: 0 | CW41: 0 | CX41: 0 | CY41: 0 | CZ41: 0 | DA41: =DA32 -> 0 | DB41: 0 | DC41: 0 | DD41: 0 | DE41: 0 | DF41: 0 | DG41: 0 | DH41: 0 | DI41: 0 | DJ41: 0 | DK41: 0 | DL41: 0 | DM41: 0 | DN41: 0 | DO41: 0 | DP41: 0 | DQ41: 0 | DR41: 0 | DS41: 0 | DT41: 0 | DU41: 0 | DV41: 0 | DW41: 0 | DX41: 0
C42: Less: Repayments | G42: =G37 -> 0 | H42: =H37 -> 1111.111111 | I42: 1111.111111 | J42: 1111.111111 | K42: 1111.111111 | L42: 1111.111111 | M42: 1111.111111 | N42: 1111.111111 | O42: 1111.111111 | P42: 1111.111111 | Q42: 0 | R42: 0 | S42: 0 | T42: 0 | U42: 0 | V42: 0 | W42: 0 | X42: 0 | Y42: 0 | Z42: 0 | AA42: 0 | AB42: 0 | AC42: 0 | AD42: 0 | AE42: 0 | AF42: 0 | AG42: 0 | AH42: 0 | AI42: 0 | AJ42: 0 | AK42: 0 | AL42: 0 | AM42: 0 | AN42: 0 | AO42: =AO37 -> 0 | AP42: 0 | AQ42: 0 | AR42: 0 | AS42: 0 | AT42: 0 | AU42: 0 | AV42: 0 | AW42: 0 | AX42: 0 | AY42: 0 | AZ42: 0 | BA42: 0 | BB42: 0 | BC42: 0 | BD42: 0 | BE42: 0 | BF42: 0 | BG42: 0 | BH42: 0 | BI42: 0 | BJ42: 0 | BK42: 0 | BL42: 0 | BM42: 0 | BN42: 0 | BO42: 0 | BP42: 0 | BQ42: 0 | BR42: 0 | BS42: 0 | BT42: 0 | BU42: 0 | BV42: 0 | BW42: 0 | BX42: 0 | BY42: 0 | BZ42: 0 | CA42: 0 | CB42: 0 | CC42: 0 | CD42: 0 | CE42: 0 | CF42: 0 | CG42: 0 | CH42: 0 | CI42: 0 | CJ42: 0 | CK42: 0 | CL42: 0 | CM42: 0 | CN42: 0 | CO42: 0 | CP42: 0 | CQ42: 0 | CR42: 0 | CS42: 0 | CT42: 0 | CU42: 0 | CV42: 0 | CW42: 0 | CX42: 0 | CY42: 0 | CZ42: 0 | DA42: =DA37 -> 0 | DB42: 0 | DC42: 0 | DD42: 0 | DE42: 0 | DF42: 0 | DG42: 0 | DH42: 0 | DI42: 0 | DJ42: 0 | DK42: 0 | DL42: 0 | DM42: 0 | DN42: 0 | DO42: 0 | DP42: 0 | DQ42: 0 | DR42: 0 | DS42: 0 | DT42: 0 | DU42: 0 | DV42: 0 | DW42: 0 | DX42: 0
C43: Closing Balance | G43: =G40+G41-G42 -> 10000 | H43: =H40+H41-H42 -> 8888.888889 | I43: 7777.777778 | J43: 6666.666667 | K43: 5555.555556 | L43: 4444.444444 | M43: 3333.333333 | N43: 2222.222222 | O43: 1111.111111 | P43: 0 | Q43: 0 | R43: 0 | S43: 0 | T43: 0 | U43: 0 | V43: 0 | W43: 0 | X43: 0 | Y43: 0 | Z43: 0 | AA43: 0 | AB43: 0 | AC43: 0 | AD43: 0 | AE43: 0 | AF43: 0 | AG43: 0 | AH43: 0 | AI43: 0 | AJ43: 0 | AK43: 0 | AL43: 0 | AM43: 0 | AN43: 0 | AO43: =AO40+AO41-AO42 -> 0 | AP43: =AP40+AP41-AP42 -> 0 | AQ43: =AQ40+AQ41-AQ42 -> 0 | AR43: =AR40+AR41-AR42 -> 0 | AS43: =AS40+AS41-AS42 -> 0 | AT43: =AT40+AT41-AT42 -> 0 | AU43: =AU40+AU41-AU42 -> 0 | AV43: =AV40+AV41-AV42 -> 0 | AW43: =AW40+AW41-AW42 -> 0 | AX43: =AX40+AX41-AX42 -> 0 | AY43: =AY40+AY41-AY42 -> 0 | AZ43: =AZ40+AZ41-AZ42 -> 0 | BA43: =BA40+BA41-BA42 -> 0 | BB43: =BB40+BB41-BB42 -> 0 | BC43: =BC40+BC41-BC42 -> 0 | BD43: =BD40+BD41-BD42 -> 0 | BE43: =BE40+BE41-BE42 -> 0 | BF43: =BF40+BF41-BF42 -> 0 | BG43: =BG40+BG41-BG42 -> 0 | BH43: =BH40+BH41-BH42 -> 0 | BI43: =BI40+BI41-BI42 -> 0 | BJ43: =BJ40+BJ41-BJ42 -> 0 | BK43: =BK40+BK41-BK42 -> 0 | BL43: =BL40+BL41-BL42 -> 0 | BM43: =BM40+BM41-BM42 -> 0 | BN43: =BN40+BN41-BN42 -> 0 | BO43: =BO40+BO41-BO42 -> 0 | BP43: =BP40+BP41-BP42 -> 0 | BQ43: =BQ40+BQ41-BQ42 -> 0 | BR43: =BR40+BR41-BR42 -> 0 | BS43: =BS40+BS41-BS42 -> 0 | BT43: =BT40+BT41-BT42 -> 0 | BU43: =BU40+BU41-BU42 -> 0 | BV43: =BV40+BV41-BV42 -> 0 | BW43: =BW40+BW41-BW42 -> 0 | BX43: =BX40+BX41-BX42 -> 0 | BY43: =BY40+BY41-BY42 -> 0 | BZ43: =BZ40+BZ41-BZ42 -> 0 | CA43: =CA40+CA41-CA42 -> 0 | CB43: =CB40+CB41-CB42 -> 0 | CC43: =CC40+CC41-CC42 -> 0 | CD43: =CD40+CD41-CD42 -> 0 | CE43: =CE40+CE41-CE42 -> 0 | CF43: =CF40+CF41-CF42 -> 0 | CG43: =CG40+CG41-CG42 -> 0 | CH43: =CH40+CH41-CH42 -> 0 | CI43: =CI40+CI41-CI42 -> 0 | CJ43: =CJ40+CJ41-CJ42 -> 0 | CK43: =CK40+CK41-CK42 -> 0 | CL43: =CL40+CL41-CL42 -> 0 | CM43: =CM40+CM41-CM42 -> 0 | CN43: =CN40+CN41-CN42 -> 0 | CO43: =CO40+CO41-CO42 -> 0 | CP43: =CP40+CP41-CP42 -> 0 | CQ43: =CQ40+CQ41-CQ42 -> 0 | CR43: =CR40+CR41-CR42 -> 0 | CS43: =CS40+CS41-CS42 -> 0 | CT43: =CT40+CT41-CT42 -> 0 | CU43: =CU40+CU41-CU42 -> 0 | CV43: =CV40+CV41-CV42 -> 0 | CW43: =CW40+CW41-CW42 -> 0 | CX43: =CX40+CX41-CX42 -> 0 | CY43: =CY40+CY41-CY42 -> 0 | CZ43: =CZ40+CZ41-CZ42 -> 0 | DA43: =DA40+DA41-DA42 -> 0 | DB43: =DB40+DB41-DB42 -> 0 | DC43: =DC40+DC41-DC42 -> 0 | DD43: =DD40+DD41-DD42 -> 0 | DE43: =DE40+DE41-DE42 -> 0 | DF43: =DF40+DF41-DF42 -> 0 | DG43: =DG40+DG41-DG42 -> 0 | DH43: =DH40+DH41-DH42 -> 0 | DI43: =DI40+DI41-DI42 -> 0 | DJ43: =DJ40+DJ41-DJ42 -> 0 | DK43: =DK40+DK41-DK42 -> 0 | DL43: =DL40+DL41-DL42 -> 0 | DM43: =DM40+DM41-DM42 -> 0 | DN43: =DN40+DN41-DN42 -> 0 | DO43: =DO40+DO41-DO42 -> 0 | DP43: =DP40+DP41-DP42 -> 0 | DQ43: =DQ40+DQ41-DQ42 -> 0 | DR43: =DR40+DR41-DR42 -> 0 | DS43: =DS40+DS41-DS42 -> 0 | DT43: =DT40+DT41-DT42 -> 0 | DU43: =DU40+DU41-DU42 -> 0 | DV43: =DV40+DV41-DV42 -> 0 | DW43: =DW40+DW41-DW42 -> 0 | DX43: =DX40+DX41-DX42 -> 0
C44: Interest | E44: =E14/E8 -> 0.069 | G44: =G40*$E$44 -> 0 | H44: =H40*$E$44 -> 690 | I44: 613.3333333 | J44: 536.6666667 | K44: 460 | L44: 383.3333333 | M44: 306.6666667 | N44: 230 | O44: 153.3333333 | P44: 76.66666667 | Q44: 0 | R44: 0 | S44: 0 | T44: 0 | U44: 0 | V44: 0 | W44: 0 | X44: 0 | Y44: 0 | Z44: 0 | AA44: 0 | AB44: 0 | AC44: 0 | AD44: 0 | AE44: 0 | AF44: 0 | AG44: 0 | AH44: 0 | AI44: 0 | AJ44: 0 | AK44: 0 | AL44: 0 | AM44: 0 | AN44: 0 | AO44: =AO40*$E$44 -> 0 | AP44: 0 | AQ44: 0 | AR44: 0 | AS44: 0 | AT44: 0 | AU44: 0 | AV44: 0 | AW44: 0 | AX44: 0 | AY44: 0 | AZ44: 0 | BA44: 0 | BB44: 0 | BC44: 0 | BD44: 0 | BE44: 0 | BF44: 0 | BG44: 0 | BH44: 0 | BI44: 0 | BJ44: 0 | BK44: 0 | BL44: 0 | BM44: 0 | BN44: 0 | BO44: 0 | BP44: 0 | BQ44: 0 | BR44: 0 | BS44: 0 | BT44: 0 | BU44: 0 | BV44: 0 | BW44: 0 | BX44: 0 | BY44: 0 | BZ44: 0 | CA44: 0 | CB44: 0 | CC44: 0 | CD44: 0 | CE44: 0 | CF44: 0 | CG44: 0 | CH44: 0 | CI44: 0 | CJ44: 0 | CK44: 0 | CL44: 0 | CM44: 0 | CN44: 0 | CO44: 0 | CP44: 0 | CQ44: 0 | CR44: 0 | CS44: 0 | CT44: 0 | CU44: 0 | CV44: 0 | CW44: 0 | CX44: 0 | CY44: 0 | CZ44: 0 | DA44: =DA40*$E$44 -> 0 | DB44: 0 | DC44: 0 | DD44: 0 | DE44: 0 | DF44: 0 | DG44: 0 | DH44: 0 | DI44: 0 | DJ44: 0 | DK44: 0 | DL44: 0 | DM44: 0 | DN44: 0 | DO44: 0 | DP44: 0 | DQ44: 0 | DR44: 0 | DS44: 0 | DT44: 0 | DU44: 0 | DV44: 0 | DW44: 0 | DX44: 0
C45: Debt Service on Loan | G45: =G44+G42 -> 0 | H45: =H44+H42 -> 1801.111111 | I45: 1724.444444 | J45: 1647.777778 | K45: 1571.111111 | L45: 1494.444444 | M45: 1417.777778 | N45: 1341.111111 | O45: 1264.444444 | P45: 1187.777778 | Q45: 0 | R45: 0 | S45: 0 | T45: 0 | U45: 0 | V45: 0 | W45: 0 | X45: 0 | Y45: 0 | Z45: 0 | AA45: 0 | AB45: 0 | AC45: 0 | AD45: 0 | AE45: 0 | AF45: 0 | AG45: 0 | AH45: 0 | AI45: 0 | AJ45: 0 | AK45: 0 | AL45: 0 | AM45: 0 | AN45: 0 | AO45: =AO44+AO42 -> 0 | AP45: =AP44+AP42 -> 0 | AQ45: =AQ44+AQ42 -> 0 | AR45: =AR44+AR42 -> 0 | AS45: =AS44+AS42 -> 0 | AT45: =AT44+AT42 -> 0 | AU45: =AU44+AU42 -> 0 | AV45: =AV44+AV42 -> 0 | AW45: =AW44+AW42 -> 0 | AX45: =AX44+AX42 -> 0 | AY45: =AY44+AY42 -> 0 | AZ45: =AZ44+AZ42 -> 0 | BA45: =BA44+BA42 -> 0 | BB45: =BB44+BB42 -> 0 | BC45: =BC44+BC42 -> 0 | BD45: =BD44+BD42 -> 0 | BE45: =BE44+BE42 -> 0 | BF45: =BF44+BF42 -> 0 | BG45: =BG44+BG42 -> 0 | BH45: =BH44+BH42 -> 0 | BI45: =BI44+BI42 -> 0 | BJ45: =BJ44+BJ42 -> 0 | BK45: =BK44+BK42 -> 0 | BL45: =BL44+BL42 -> 0 | BM45: =BM44+BM42 -> 0 | BN45: =BN44+BN42 -> 0 | BO45: =BO44+BO42 -> 0 | BP45: =BP44+BP42 -> 0 | BQ45: =BQ44+BQ42 -> 0 | BR45: =BR44+BR42 -> 0 | BS45: =BS44+BS42 -> 0 | BT45: =BT44+BT42 -> 0 | BU45: =BU44+BU42 -> 0 | BV45: =BV44+BV42 -> 0 | BW45: =BW44+BW42 -> 0 | BX45: =BX44+BX42 -> 0 | BY45: =BY44+BY42 -> 0 | BZ45: =BZ44+BZ42 -> 0 | CA45: =CA44+CA42 -> 0 | CB45: =CB44+CB42 -> 0 | CC45: =CC44+CC42 -> 0 | CD45: =CD44+CD42 -> 0 | CE45: =CE44+CE42 -> 0 | CF45: =CF44+CF42 -> 0 | CG45: =CG44+CG42 -> 0 | CH45: =CH44+CH42 -> 0 | CI45: =CI44+CI42 -> 0 | CJ45: =CJ44+CJ42 -> 0 | CK45: =CK44+CK42 -> 0 | CL45: =CL44+CL42 -> 0 | CM45: =CM44+CM42 -> 0 | CN45: =CN44+CN42 -> 0 | CO45: =CO44+CO42 -> 0 | CP45: =CP44+CP42 -> 0 | CQ45: =CQ44+CQ42 -> 0 | CR45: =CR44+CR42 -> 0 | CS45: =CS44+CS42 -> 0 | CT45: =CT44+CT42 -> 0 | CU45: =CU44+CU42 -> 0 | CV45: =CV44+CV42 -> 0 | CW45: =CW44+CW42 -> 0 | CX45: =CX44+CX42 -> 0 | CY45: =CY44+CY42 -> 0 | CZ45: =CZ44+CZ42 -> 0 | DA45: =DA44+DA42 -> 0 | DB45: =DB44+DB42 -> 0 | DC45: =DC44+DC42 -> 0 | DD45: =DD44+DD42 -> 0 | DE45: =DE44+DE42 -> 0 | DF45: =DF44+DF42 -> 0 | DG45: =DG44+DG42 -> 0 | DH45: =DH44+DH42 -> 0 | DI45: =DI44+DI42 -> 0 | DJ45: =DJ44+DJ42 -> 0 | DK45: =DK44+DK42 -> 0 | DL45: =DL44+DL42 -> 0 | DM45: =DM44+DM42 -> 0 | DN45: =DN44+DN42 -> 0 | DO45: =DO44+DO42 -> 0 | DP45: =DP44+DP42 -> 0 | DQ45: =DQ44+DQ42 -> 0 | DR45: =DR44+DR42 -> 0 | DS45: =DS44+DS42 -> 0 | DT45: =DT44+DT42 -> 0 | DU45: =DU44+DU42 -> 0 | DV45: =DV44+DV42 -> 0 | DW45: =DW44+DW42 -> 0 | DX45: =DX44+DX42 -> 0
C47: Undrawn Balance | E47: =E32 -> 10000 | G47: =($E$47-G40)*G3 -> 10000 | H47: 0 | I47: 0 | J47: 0 | K47: 0 | L47: 0 | M47: 0 | N47: 0 | O47: 0 | P47: 0 | Q47: 0 | R47: 0 | S47: 0 | T47: 0 | U47: 0 | V47: 0 | W47: 0 | X47: 0 | Y47: 0 | Z47: 0 | AA47: 0 | AB47: 0 | AC47: 0 | AD47: 0 | AE47: 0 | AF47: 0 | AG47: 0 | AH47: 0 | AI47: 0 | AJ47: 0 | AK47: 0 | AL47: 0 | AM47: =($E$47-AM40)*AM3 -> 0 | AN47: 0 | AO47: 0 | AP47: 0 | AQ47: 0 | AR47: 0 | AS47: 0 | AT47: 0 | AU47: 0 | AV47: 0 | AW47: 0 | AX47: 0 | AY47: 0 | AZ47: 0 | BA47: 0 | BB47: 0 | BC47: 0 | BD47: 0 | BE47: 0 | BF47: 0 | BG47: 0 | BH47: 0 | BI47: 0 | BJ47: 0 | BK47: 0 | BL47: 0 | BM47: 0 | BN47: 0 | BO47: 0 | BP47: 0 | BQ47: 0 | BR47: 0 | BS47: =($E$47-BS40)*BS3 -> 0 | BT47: 0 | BU47: 0 | BV47: 0 | BW47: 0 | BX47: 0 | BY47: 0 | BZ47: 0 | CA47: 0 | CB47: 0 | CC47: 0 | CD47: 0 | CE47: 0 | CF47: 0 | CG47: 0 | CH47: 0 | CI47: 0 | CJ47: 0 | CK47: 0 | CL47: 0 | CM47: 0 | CN47: 0 | CO47: 0 | CP47: 0 | CQ47: 0 | CR47: 0 | CS47: 0 | CT47: 0 | CU47: 0 | CV47: 0 | CW47: 0 | CX47: 0 | CY47: =($E$47-CY40)*CY3 -> 0 | CZ47: 0 | DA47: 0 | DB47: 0 | DC47: 0 | DD47: 0 | DE47: 0 | DF47: 0 | DG47: 0 | DH47: 0 | DI47: 0 | DJ47: 0 | DK47: 0 | DL47: 0 | DM47: 0 | DN47: 0 | DO47: 0 | DP47: 0 | DQ47: 0 | DR47: 0 | DS47: 0 | DT47: 0 | DU47: 0 | DV47: 0 | DW47: 0 | DX47: 0
C48: Commitment Fee | E48: =E20 -> 0.015 | G48: =$E$48*G47 -> 150 | H48: =$E$48*H47 -> 0 | I48: 0 | J48: 0 | K48: 0 | L48: 0 | M48: 0 | N48: 0 | O48: 0 | P48: 0 | Q48: 0 | R48: 0 | S48: 0 | T48: 0 | U48: 0 | V48: 0 | W48: 0 | X48: 0 | Y48: 0 | Z48: 0 | AA48: 0 | AB48: 0 | AC48: 0 | AD48: 0 | AE48: 0 | AF48: 0 | AG48: 0 | AH48: 0 | AI48: 0 | AJ48: 0 | AK48: 0 | AL48: 0 | AM48: 0 | AN48: 0 | AO48: =$E$48*AO47 -> 0 | AP48: =$E$48*AP47 -> 0 | AQ48: =$E$48*AQ47 -> 0 | AR48: =$E$48*AR47 -> 0 | AS48: =$E$48*AS47 -> 0 | AT48: =$E$48*AT47 -> 0 | AU48: =$E$48*AU47 -> 0 | AV48: =$E$48*AV47 -> 0 | AW48: =$E$48*AW47 -> 0 | AX48: =$E$48*AX47 -> 0 | AY48: =$E$48*AY47 -> 0 | AZ48: =$E$48*AZ47 -> 0 | BA48: =$E$48*BA47 -> 0 | BB48: =$E$48*BB47 -> 0 | BC48: =$E$48*BC47 -> 0 | BD48: =$E$48*BD47 -> 0 | BE48: =$E$48*BE47 -> 0 | BF48: =$E$48*BF47 -> 0 | BG48: =$E$48*BG47 -> 0 | BH48: =$E$48*BH47 -> 0 | BI48: =$E$48*BI47 -> 0 | BJ48: =$E$48*BJ47 -> 0 | BK48: =$E$48*BK47 -> 0 | BL48: =$E$48*BL47 -> 0 | BM48: =$E$48*BM47 -> 0 | BN48: =$E$48*BN47 -> 0 | BO48: =$E$48*BO47 -> 0 | BP48: =$E$48*BP47 -> 0 | BQ48: =$E$48*BQ47 -> 0 | BR48: =$E$48*BR47 -> 0 | BS48: =$E$48*BS47 -> 0 | BT48: =$E$48*BT47 -> 0 | BU48: =$E$48*BU47 -> 0 | BV48: =$E$48*BV47 -> 0 | BW48: =$E$48*BW47 -> 0 | BX48: =$E$48*BX47 -> 0 | BY48: =$E$48*BY47 -> 0 | BZ48: =$E$48*BZ47 -> 0 | CA48: =$E$48*CA47 -> 0 | CB48: =$E$48*CB47 -> 0 | CC48: =$E$48*CC47 -> 0 | CD48: =$E$48*CD47 -> 0 | CE48: =$E$48*CE47 -> 0 | CF48: =$E$48*CF47 -> 0 | CG48: =$E$48*CG47 -> 0 | CH48: =$E$48*CH47 -> 0 | CI48: =$E$48*CI47 -> 0 | CJ48: =$E$48*CJ47 -> 0 | CK48: =$E$48*CK47 -> 0 | CL48: =$E$48*CL47 -> 0 | CM48: =$E$48*CM47 -> 0 | CN48: =$E$48*CN47 -> 0 | CO48: =$E$48*CO47 -> 0 | CP48: =$E$48*CP47 -> 0 | CQ48: =$E$48*CQ47 -> 0 | CR48: =$E$48*CR47 -> 0 | CS48: =$E$48*CS47 -> 0 | CT48: =$E$48*CT47 -> 0 | CU48: =$E$48*CU47 -> 0 | CV48: =$E$48*CV47 -> 0 | CW48: =$E$48*CW47 -> 0 | CX48: =$E$48*CX47 -> 0 | CY48: =$E$48*CY47 -> 0 | CZ48: =$E$48*CZ47 -> 0 | DA48: =$E$48*DA47 -> 0 | DB48: =$E$48*DB47 -> 0 | DC48: =$E$48*DC47 -> 0 | DD48: =$E$48*DD47 -> 0 | DE48: =$E$48*DE47 -> 0 | DF48: =$E$48*DF47 -> 0 | DG48: =$E$48*DG47 -> 0 | DH48: =$E$48*DH47 -> 0 | DI48: =$E$48*DI47 -> 0 | DJ48: =$E$48*DJ47 -> 0 | DK48: =$E$48*DK47 -> 0 | DL48: =$E$48*DL47 -> 0 | DM48: =$E$48*DM47 -> 0 | DN48: =$E$48*DN47 -> 0 | DO48: =$E$48*DO47 -> 0 | DP48: =$E$48*DP47 -> 0 | DQ48: =$E$48*DQ47 -> 0 | DR48: =$E$48*DR47 -> 0 | DS48: =$E$48*DS47 -> 0 | DT48: =$E$48*DT47 -> 0 | DU48: =$E$48*DU47 -> 0 | DV48: =$E$48*DV47 -> 0 | DW48: =$E$48*DW47 -> 0 | DX48: =$E$48*DX47 -> 0
C49: Up-front Fee | E49: =E19 -> 0.01 | F49: =E47 -> 10000 | G49: =F49*E49 -> 100
C50: Other Fees | E50: =E21 -> 0 | G50: =E50 -> 0
C52: Total Cash Flow | G52: =G44+G42-G41+G48+G49+G50 -> -9750 | H52: =H44+H42-H41+H48+H49+H50 -> 1801.111111 | I52: 1724.444444 | J52: 1647.777778 | K52: 1571.111111 | L52: 1494.444444 | M52: 1417.777778 | N52: 1341.111111 | O52: 1264.444444 | P52: 1187.777778 | Q52: 0 | R52: 0 | S52: 0 | T52: 0 | U52: 0 | V52: 0 | W52: 0 | X52: 0 | Y52: 0 | Z52: 0 | AA52: 0 | AB52: 0 | AC52: 0 | AD52: 0 | AE52: 0 | AF52: 0 | AG52: 0 | AH52: 0 | AI52: 0 | AJ52: 0 | AK52: 0 | AL52: 0 | AM52: 0 | AN52: 0 | AO52: =AO44+AO42-AO41+AO48+AO49+AO50 -> 0 | AP52: 0 | AQ52: 0 | AR52: 0 | AS52: 0 | AT52: 0 | AU52: 0 | AV52: 0 | AW52: 0 | AX52: 0 | AY52: 0 | AZ52: 0 | BA52: 0 | BB52: 0 | BC52: 0 | BD52: 0 | BE52: 0 | BF52: 0 | BG52: 0 | BH52: 0 | BI52: 0 | BJ52: 0 | BK52: 0 | BL52: 0 | BM52: 0 | BN52: 0 | BO52: 0 | BP52: 0 | BQ52: 0 | BR52: 0 | BS52: 0 | BT52: 0 | BU52: 0 | BV52: 0 | BW52: 0 | BX52: 0 | BY52: 0 | BZ52: 0 | CA52: 0 | CB52: 0 | CC52: 0 | CD52: 0 | CE52: 0 | CF52: 0 | CG52: 0 | CH52: 0 | CI52: 0 | CJ52: 0 | CK52: 0 | CL52: 0 | CM52: 0 | CN52: 0 | CO52: 0 | CP52: 0 | CQ52: 0 | CR52: 0 | CS52: 0 | CT52: 0 | CU52: 0 | CV52: 0 | CW52: 0 | CX52: 0 | CY52: 0 | CZ52: 0 | DA52: =DA44+DA42-DA41+DA48+DA49+DA50 -> 0 | DB52: 0 | DC52: 0 | DD52: 0 | DE52: 0 | DF52: 0 | DG52: 0 | DH52: 0 | DI52: 0 | DJ52: 0 | DK52: 0 | DL52: 0 | DM52: 0 | DN52: 0 | DO52: 0 | DP52: 0 | DQ52: 0 | DR52: 0 | DS52: 0 | DT52: 0 | DU52: 0 | DV52: 0 | DW52: 0 | DX52: 0
C53: Periodic IRR from Cash Flow | E53: =IRR(52:52) -> 0.07544702198
C54: Simple IRR | E54: =E53*E8 -> 0.07544702198
C55: Annualised IRR from Cash Flow | E55: =(1+E53)^(E8)-1 -> 0.07544702198
C56: Cost of Funding - Periodic | E56: =(1+E13)^(1/E8)-1 -> 0.03
C58: Effective Periodic CS from Periodic IRR | E58: =(1+E53)/(1+E56)-1 -> 0.04412332231 | F58: 1 | G58: 1 | H58: =G58*(1+$E$58) -> 1.044123322 | I58: 1.090193512 | J58: 1.138296472 | K58: 1.188521894 | L58: 1.240963429 | M58: 1.295718858 | N58: 1.352890279 | O58: 1.412584293 | P58: 1.474912205 | Q58: 1.539990231 | R58: 1.607939716 | S58: 1.678887359 | T58: 1.752965447 | U58: 1.830312106 | V58: 1.911071557 | W58: 1.995394384 | X58: 2.083437813 | Y58: 2.175366011 | Z58: 2.271350387 | AA58: 2.371569912 | AB58: 2.476211456 | AC58: 2.585470132 | AD58: 2.699549664 | AE58: 2.818662764 | AF58: 2.943031529 | AG58: 3.072887858 | AH58: 3.208473879 | AI58: 3.350042406 | AJ58: 3.497857407 | AK58: 3.652194497 | AL58: 3.813341452 | AM58: 3.981598746 | AN58: 4.157280111 | AO58: 4.340713121 | AP58: 4.532239805 | AQ58: 4.732217283 | AR58: 4.941018431 | AS58: 5.15903258 | AT58: 5.386666237 | AU58: 5.624343848 | AV58: 5.872508584 | AW58: 6.131623173 | AX58: 6.402170759 | AY58: 6.684655802 | AZ58: 6.979605025 | BA58: 7.287568387 | BB58: 7.609120116 | BC58: 7.944859775 | BD58: 8.295413384 | BE58: 8.661434582 | BF58: 9.043605852 | BG58: 9.442639788 | BH58: 9.859280426 | BI58: 10.29430463 | BJ58: 10.74852356 | BK58: 11.22278412 | BL58: 11.71797065 | BM58: 12.23500644 | BN58: 12.77485557 | BO58: 13.33852464 | BP58: 13.92706467 | BQ58: 14.54157303 | BR58: 15.18319554 | BS58: 15.85312857 | BT58: =BS58*(1+$E$58) -> 16.55262127 | BU58: 17.28297792 | BV58: 18.04556032 | BW58: 18.8417904 | BX58: 19.67315279 | BY58: 20.54119765 | BZ58: 21.44754353 | CA58: 22.39388041 | CB58: 23.38197281 | CC58: 24.41366314 | CD58: 25.49087506 | CE58: 26.61561716 | CF58: 27.78998661 | CG58: 29.01617315 | CH58: 30.29646311 | CI58: 31.63324372 | CJ58: 33.02900753 | CK58: 34.48635707 | CL58: 36.00800972 | CM58: 37.59680274 | CN58: 39.25569858 | CO58: 40.98779042 | CP58: 42.79630791 | CQ58: 44.6846232 | CR58: 46.65625723 | CS58: 48.7148863 | CT58: 50.86434893 | CU58: 53.108653 | CV58: 55.45198321 | CW58: 57.89870894 | CX58: 60.45339233 | CY58: 63.12079685 | CZ58: 65.90589611 | DA58: 68.81388321 | DB58: 71.85018035 | DC58: 75.02044902 | DD58: 78.33060047 | DE58: 81.7868068 | DF58: 85.39551244 | DG58: 89.16344616 | DH58: 93.09763363 | DI58: 97.20541053 | DJ58: 101.4944362 | DK58: 105.9727079 | DL58: 110.6485759 | DM58: 115.5307586 | DN58: 120.6283595 | DO58: 125.9508835 | DP58: 131.5082549 | DQ58: 137.3108361 | DR58: 143.3694463 | DS58: 149.6953826 | DT58: 156.3004402 | DU58: 163.1969349 | DV58: 170.3977259 | DW58: 177.9162397 | DX58: 185.7664953
C59: Funding Portion of Debt Service | G59: =G45/G58 -> 0 | H59: =H45/H58 -> 1724.998449 | I59: 1581.778304 | J59: 1447.582259 | K59: 1321.903382 | L59: 1204.261471 | M59: 1094.201701 | N59: 991.2933312 | O59: 895.1284898 | P59: 805.3210043 | Q59: 0 | R59: 0 | S59: 0 | T59: 0 | U59: 0 | V59: 0 | W59: 0 | X59: 0 | Y59: 0 | Z59: 0 | AA59: 0 | AB59: 0 | AC59: 0 | AD59: 0 | AE59: 0 | AF59: 0 | AG59: 0 | AH59: 0 | AI59: 0 | AJ59: 0 | AK59: 0 | AL59: 0 | AM59: 0 | AN59: 0 | AO59: 0 | AP59: 0 | AQ59: 0 | AR59: 0 | AS59: 0 | AT59: 0 | AU59: 0 | AV59: 0 | AW59: 0 | AX59: 0 | AY59: 0 | AZ59: 0 | BA59: 0 | BB59: 0 | BC59: 0 | BD59: 0 | BE59: 0 | BF59: 0 | BG59: 0 | BH59: 0 | BI59: 0 | BJ59: 0 | BK59: 0 | BL59: 0 | BM59: 0 | BN59: 0 | BO59: 0 | BP59: 0 | BQ59: 0 | BR59: 0 | BS59: 0 | BT59: =BT45/BT58 -> 0 | BU59: 0 | BV59: 0 | BW59: 0 | BX59: 0 | BY59: 0 | BZ59: 0 | CA59: 0 | CB59: 0 | CC59: 0 | CD59: 0 | CE59: 0 | CF59: 0 | CG59: 0 | CH59: 0 | CI59: 0 | CJ59: 0 | CK59: 0 | CL59: 0 | CM59: 0 | CN59: 0 | CO59: 0 | CP59: 0 | CQ59: 0 | CR59: 0 | CS59: 0 | CT59: 0 | CU59: 0 | CV59: 0 | CW59: 0 | CX59: 0 | CY59: 0 | CZ59: 0 | DA59: 0 | DB59: 0 | DC59: 0 | DD59: 0 | DE59: 0 | DF59: 0 | DG59: 0 | DH59: 0 | DI59: 0 | DJ59: 0 | DK59: 0 | DL59: 0 | DM59: 0 | DN59: 0 | DO59: 0 | DP59: 0 | DQ59: 0 | DR59: 0 | DS59: 0 | DT59: 0 | DU59: 0 | DV59: 0 | DW59: 0 | DX59: 0
C60: Risk Premium Earned Portion of Debt Service | G60: =(G45-G59) -> 0 | H60: =(H45-H59) -> 76.11266253 | I60: 142.6661407 | J60: 200.1955192 | K60: 249.2077292 | L60: 290.1829731 | M60: 323.5760772 | N60: 349.8177799 | O60: 369.3159547 | P60: 382.4567735 | Q60: 0 | R60: 0 | S60: 0 | T60: 0 | U60: 0 | V60: 0 | W60: 0 | X60: 0 | Y60: 0 | Z60: 0 | AA60: 0 | AB60: 0 | AC60: 0 | AD60: 0 | AE60: 0 | AF60: 0 | AG60: 0 | AH60: 0 | AI60: 0 | AJ60: 0 | AK60: 0 | AL60: 0 | AM60: 0 | AN60: 0 | AO60: =(AO45-AO59) -> 0 | AP60: =(AP45-AP59) -> 0 | AQ60: =(AQ45-AQ59) -> 0 | AR60: =(AR45-AR59) -> 0 | AS60: =(AS45-AS59) -> 0 | AT60: =(AT45-AT59) -> 0 | AU60: =(AU45-AU59) -> 0 | AV60: =(AV45-AV59) -> 0 | AW60: =(AW45-AW59) -> 0 | AX60: =(AX45-AX59) -> 0 | AY60: =(AY45-AY59) -> 0 | AZ60: =(AZ45-AZ59) -> 0 | BA60: =(BA45-BA59) -> 0 | BB60: =(BB45-BB59) -> 0 | BC60: =(BC45-BC59) -> 0 | BD60: =(BD45-BD59) -> 0 | BE60: =(BE45-BE59) -> 0 | BF60: =(BF45-BF59) -> 0 | BG60: =(BG45-BG59) -> 0 | BH60: =(BH45-BH59) -> 0 | BI60: =(BI45-BI59) -> 0 | BJ60: =(BJ45-BJ59) -> 0 | BK60: =(BK45-BK59) -> 0 | BL60: =(BL45-BL59) -> 0 | BM60: =(BM45-BM59) -> 0 | BN60: =(BN45-BN59) -> 0 | BO60: =(BO45-BO59) -> 0 | BP60: =(BP45-BP59) -> 0 | BQ60: =(BQ45-BQ59) -> 0 | BR60: =(BR45-BR59) -> 0 | BS60: =(BS45-BS59) -> 0 | BT60: =(BT45-BT59) -> 0 | BU60: =(BU45-BU59) -> 0 | BV60: =(BV45-BV59) -> 0 | BW60: =(BW45-BW59) -> 0 | BX60: =(BX45-BX59) -> 0 | BY60: =(BY45-BY59) -> 0 | BZ60: =(BZ45-BZ59) -> 0 | CA60: =(CA45-CA59) -> 0 | CB60: =(CB45-CB59) -> 0 | CC60: =(CC45-CC59) -> 0 | CD60: =(CD45-CD59) -> 0 | CE60: =(CE45-CE59) -> 0 | CF60: =(CF45-CF59) -> 0 | CG60: =(CG45-CG59) -> 0 | CH60: =(CH45-CH59) -> 0 | CI60: =(CI45-CI59) -> 0 | CJ60: =(CJ45-CJ59) -> 0 | CK60: =(CK45-CK59) -> 0 | CL60: =(CL45-CL59) -> 0 | CM60: =(CM45-CM59) -> 0 | CN60: =(CN45-CN59) -> 0 | CO60: =(CO45-CO59) -> 0 | CP60: =(CP45-CP59) -> 0 | CQ60: =(CQ45-CQ59) -> 0 | CR60: =(CR45-CR59) -> 0 | CS60: =(CS45-CS59) -> 0 | CT60: =(CT45-CT59) -> 0 | CU60: =(CU45-CU59) -> 0 | CV60: =(CV45-CV59) -> 0 | CW60: =(CW45-CW59) -> 0 | CX60: =(CX45-CX59) -> 0 | CY60: =(CY45-CY59) -> 0 | CZ60: =(CZ45-CZ59) -> 0 | DA60: =(DA45-DA59) -> 0 | DB60: =(DB45-DB59) -> 0 | DC60: =(DC45-DC59) -> 0 | DD60: =(DD45-DD59) -> 0 | DE60: =(DE45-DE59) -> 0 | DF60: =(DF45-DF59) -> 0 | DG60: =(DG45-DG59) -> 0 | DH60: =(DH45-DH59) -> 0 | DI60: =(DI45-DI59) -> 0 | DJ60: =(DJ45-DJ59) -> 0 | DK60: =(DK45-DK59) -> 0 | DL60: =(DL45-DL59) -> 0 | DM60: =(DM45-DM59) -> 0 | DN60: =(DN45-DN59) -> 0 | DO60: =(DO45-DO59) -> 0 | DP60: =(DP45-DP59) -> 0 | DQ60: =(DQ45-DQ59) -> 0 | DR60: =(DR45-DR59) -> 0 | DS60: =(DS45-DS59) -> 0 | DT60: =(DT45-DT59) -> 0 | DU60: =(DU45-DU59) -> 0 | DV60: =(DV45-DV59) -> 0 | DW60: =(DW45-DW59) -> 0 | DX60: =(DX45-DX59) -> 0
C62: Funding Cost after Time Value Adjustment and Fees | G62: =(G41-G48-G49-G50)/G58 -> 9750 | H62: =(H41-H48-H49-H50)/H58 -> 0 | I62: 0 | J62: 0 | K62: 0 | L62: 0 | M62: 0 | N62: 0 | O62: 0 | P62: 0 | Q62: 0 | R62: 0 | S62: 0 | T62: 0 | U62: 0 | V62: 0 | W62: 0 | X62: 0 | Y62: 0 | Z62: 0 | AA62: 0 | AB62: 0 | AC62: 0 | AD62: 0 | AE62: 0 | AF62: 0 | AG62: 0 | AH62: 0 | AI62: 0 | AJ62: 0 | AK62: 0 | AL62: 0 | AM62: 0 | AN62: 0 | AO62: 0 | AP62: 0 | AQ62: 0 | AR62: 0 | AS62: 0 | AT62: 0 | AU62: 0 | AV62: 0 | AW62: 0 | AX62: 0 | AY62: 0 | AZ62: 0 | BA62: 0 | BB62: 0 | BC62: 0 | BD62: 0 | BE62: 0 | BF62: 0 | BG62: 0 | BH62: 0 | BI62: 0 | BJ62: 0 | BK62: 0 | BL62: 0 | BM62: 0 | BN62: 0 | BO62: 0 | BP62: 0 | BQ62: 0 | BR62: 0 | BS62: 0 | BT62: =(BT41-BT48-BT49-BT50)/BT58 -> 0 | BU62: 0 | BV62: 0 | BW62: 0 | BX62: 0 | BY62: 0 | BZ62: 0 | CA62: 0 | CB62: 0 | CC62: 0 | CD62: 0 | CE62: 0 | CF62: 0 | CG62: 0 | CH62: 0 | CI62: 0 | CJ62: 0 | CK62: 0 | CL62: 0 | CM62: 0 | CN62: 0 | CO62: 0 | CP62: 0 | CQ62: 0 | CR62: 0 | CS62: 0 | CT62: 0 | CU62: 0 | CV62: 0 | CW62: 0 | CX62: 0 | CY62: 0 | CZ62: 0 | DA62: 0 | DB62: 0 | DC62: 0 | DD62: 0 | DE62: 0 | DF62: 0 | DG62: 0 | DH62: 0 | DI62: 0 | DJ62: 0 | DK62: 0 | DL62: 0 | DM62: 0 | DN62: 0 | DO62: 0 | DP62: 0 | DQ62: 0 | DR62: 0 | DS62: 0 | DT62: 0 | DU62: 0 | DV62: 0 | DW62: 0 | DX62: 0
C63: Final Period Before Repayment | G63: =AND(G3,(H4)) -> TRUE | H63: FALSE | I63: FALSE | J63: FALSE | K63: FALSE | L63: FALSE | M63: FALSE | N63: FALSE | O63: FALSE | P63: FALSE | Q63: FALSE | R63: FALSE | S63: FALSE | T63: FALSE | U63: FALSE | V63: FALSE | W63: FALSE | X63: FALSE | Y63: FALSE | Z63: FALSE | AA63: FALSE | AB63: FALSE | AC63: FALSE | AD63: FALSE | AE63: FALSE | AF63: FALSE | AG63: FALSE | AH63: FALSE | AI63: FALSE | AJ63: FALSE | AK63: FALSE | AL63: FALSE | AM63: =AND(AM3,(AN4)) -> FALSE | AN63: FALSE | AO63: FALSE | AP63: FALSE | AQ63: FALSE | AR63: FALSE | AS63: FALSE | AT63: FALSE | AU63: FALSE | AV63: FALSE | AW63: FALSE | AX63: FALSE | AY63: FALSE | AZ63: FALSE | BA63: FALSE | BB63: FALSE | BC63: FALSE | BD63: FALSE | BE63: FALSE | BF63: FALSE | BG63: FALSE | BH63: FALSE | BI63: FALSE | BJ63: FALSE | BK63: FALSE | BL63: FALSE | BM63: FALSE | BN63: FALSE | BO63: FALSE | BP63: FALSE | BQ63: FALSE | BR63: FALSE | BS63: =AND(BS3,(BT4)) -> FALSE | BT63: FALSE | BU63: FALSE | BV63: FALSE | BW63: FALSE | BX63: FALSE | BY63: FALSE | BZ63: FALSE | CA63: FALSE | CB63: FALSE | CC63: FALSE | CD63: FALSE | CE63: FALSE | CF63: FALSE | CG63: FALSE | CH63: FALSE | CI63: FALSE | CJ63: FALSE | CK63: FALSE | CL63: FALSE | CM63: FALSE | CN63: FALSE | CO63: FALSE | CP63: FALSE | CQ63: FALSE | CR63: FALSE | CS63: FALSE | CT63: FALSE | CU63: FALSE | CV63: FALSE | CW63: FALSE | CX63: FALSE | CY63: =AND(CY3,(CZ4)) -> FALSE | CZ63: FALSE | DA63: FALSE | DB63: FALSE | DC63: FALSE | DD63: FALSE | DE63: FALSE | DF63: FALSE | DG63: FALSE | DH63: FALSE | DI63: FALSE | DJ63: FALSE | DK63: FALSE | DL63: FALSE | DM63: FALSE | DN63: FALSE | DO63: FALSE | DP63: FALSE | DQ63: FALSE | DR63: FALSE | DS63: FALSE | DT63: FALSE | DU63: FALSE | DV63: FALSE | DW63: FALSE | DX63: FALSE
C64: Cost of Funding Check | E64: =IRR(G64:AZ64) -> 0.03 | G64: =G59-G62 -> -9750 | H64: =H59-H62 -> 1724.998449 | I64: 1581.778304 | J64: 1447.582259 | K64: 1321.903382 | L64: 1204.261471 | M64: 1094.201701 | N64: 991.2933312 | O64: 895.1284898 | P64: 805.3210043 | Q64: 0 | R64: 0 | S64: 0 | T64: 0 | U64: 0 | V64: 0 | W64: 0 | X64: 0 | Y64: 0 | Z64: 0 | AA64: 0 | AB64: 0 | AC64: 0 | AD64: 0 | AE64: 0 | AF64: 0 | AG64: 0 | AH64: 0 | AI64: 0 | AJ64: 0 | AK64: 0 | AL64: 0 | AM64: 0 | AN64: 0 | AO64: 0 | AP64: 0 | AQ64: 0 | AR64: 0 | AS64: 0 | AT64: 0 | AU64: 0 | AV64: 0 | AW64: 0 | AX64: 0 | AY64: 0 | AZ64: 0 | BA64: 0 | BB64: 0 | BC64: 0 | BD64: 0 | BE64: 0 | BF64: 0 | BG64: 0 | BH64: 0 | BI64: 0 | BJ64: 0 | BK64: 0 | BL64: 0 | BM64: 0 | BN64: 0 | BO64: 0 | BP64: 0 | BQ64: 0 | BR64: 0 | BS64: 0 | BT64: =BT59-BT62 -> 0 | BU64: 0 | BV64: 0 | BW64: 0 | BX64: 0 | BY64: 0 | BZ64: 0 | CA64: 0 | CB64: 0 | CC64: 0 | CD64: 0 | CE64: 0 | CF64: 0 | CG64: 0 | CH64: 0 | CI64: 0 | CJ64: 0 | CK64: 0 | CL64: 0 | CM64: 0 | CN64: 0 | CO64: 0 | CP64: 0 | CQ64: 0 | CR64: 0 | CS64: 0 | CT64: 0 | CU64: 0 | CV64: 0 | CW64: 0 | CX64: 0 | CY64: 0 | CZ64: 0 | DA64: 0 | DB64: 0 | DC64: 0 | DD64: 0 | DE64: 0 | DF64: 0 | DG64: 0 | DH64: 0 | DI64: 0 | DJ64: 0 | DK64: 0 | DL64: 0 | DM64: 0 | DN64: 0 | DO64: 0 | DP64: 0 | DQ64: 0 | DR64: 0 | DS64: 0 | DT64: 0 | DU64: 0 | DV64: 0 | DW64: 0 | DX64: 0
C66: NPV of Risk Premium Earned | E66: =E16 -> 0.03 | F66: =XNPV(E66,G60:DX60,G2:DX2) -> 2003.18249
C67: PV of Risk Premium/Loan | E67: =F66/E47 -> 0.200318249
A69: Cummulative Probability Trends
B70: Year | G70: 1 | H70: =G70+1 -> 2 | I70: =H70+1 -> 3 | J70: 4 | K70: 5 | L70: 6 | M70: 7 | N70: 8 | O70: 9 | P70: 10 | Q70: 11 | R70: 12 | S70: 13 | T70: 14 | U70: 15
B71: Increase in Default Rate | H71: ='Rating and PD'!E25 -> 2.092105263 | I71: ='Rating and PD'!F25 -> 0.8 | J71: ='Rating and PD'!G25 -> 0.4326241135 | K71: ='Rating and PD'!H25 -> 0.2722772277 | L71: ='Rating and PD'!I25 -> 0.2036316472 | M71: ='Rating and PD'!J25 -> 0.1411637931 | N71: ='Rating and PD'!K25 -> 0.1095372993 | O71: ='Rating and PD'!L25 -> 0.08936170213 | P71: ='Rating and PD'!M25 -> 0.0734375 | Q71: ='Rating and PD'!N25 -> 0.05676855895 | R71: ='Rating and PD'!O25 -> 0.04545454545 | S71: ='Rating and PD'!P25 -> 0.03754940711 | T71: ='Rating and PD'!Q25 -> 0.03111111111 | U71: ='Rating and PD'!R25 -> 0.03263546798 | V71: ='Rating and PD'!S25 -> 0 | W71: ='Rating and PD'!T25 -> 0 | X71: ='Rating and PD'!U25 -> 0 | Y71: ='Rating and PD'!V25 -> 0 | Z71: ='Rating and PD'!W25 -> 0 | AA71: ='Rating and PD'!X25 -> 0 | AB71: ='Rating and PD'!Y25 -> 0 | AC71: ='Rating and PD'!Z25 -> 0 | AD71: ='Rating and PD'!AA25 -> 0 | AE71: ='Rating and PD'!AB25 -> 0 | AF71: ='Rating and PD'!AC25 -> 0 | AG71: ='Rating and PD'!AD25 -> 0 | AH71: ='Rating and PD'!AE25 -> 0 | AI71: ='Rating and PD'!AF25 -> 0 | AJ71: ='Rating and PD'!AG25 -> 0 | AK71: ='Rating and PD'!AH25 -> 0 | AL71: ='Rating and PD'!AI25 -> 0 | AM71: ='Rating and PD'!AJ25 -> 0 | AN71: ='Rating and PD'!AK25 -> 0 | AO71: ='Rating and PD'!AL25 -> 0 | AP71: ='Rating and PD'!AM25 -> 0 | AQ71: ='Rating and PD'!AN25 -> 0 | AR71: ='Rating and PD'!AO25 -> 0 | AS71: ='Rating and PD'!AP25 -> 0 | AT71: ='Rating and PD'!AQ25 -> 0 | AU71: ='Rating and PD'!AR25 -> 0 | AV71: ='Rating and PD'!AS25 -> 0 | AW71: ='Rating and PD'!AT25 -> 0 | AX71: ='Rating and PD'!AU25 -> 0 | AY71: ='Rating and PD'!AV25 -> 0 | AZ71: ='Rating and PD'!AW25 -> 0 | BA71: ='Rating and PD'!AX25 -> 0 | BB71: ='Rating and PD'!AY25 -> 0 | BC71: ='Rating and PD'!AZ25 -> 0 | BD71: ='Rating and PD'!BA25 -> 0 | BE71: ='Rating and PD'!BB25 -> 0 | BF71: ='Rating and PD'!BC25 -> 0 | BG71: ='Rating and PD'!BD25 -> 0 | BH71: ='Rating and PD'!BE25 -> 0 | BI71: ='Rating and PD'!BF25 -> 0 | BJ71: ='Rating and PD'!BG25 -> 0 | BK71: ='Rating and PD'!BH25 -> 0 | BL71: ='Rating and PD'!BI25 -> 0 | BM71: ='Rating and PD'!BJ25 -> 0 | BN71: ='Rating and PD'!BK25 -> 0 | BO71: ='Rating and PD'!BL25 -> 0 | BP71: ='Rating and PD'!BM25 -> 0 | BQ71: ='Rating and PD'!BN25 -> 0 | BR71: ='Rating and PD'!BO25 -> 0 | BS71: ='Rating and PD'!BP25 -> 0 | BT71: ='Rating and PD'!BQ25 -> 0 | BU71: ='Rating and PD'!BR25 -> 0 | BV71: ='Rating and PD'!BS25 -> 0 | BW71: ='Rating and PD'!BT25 -> 0 | BX71: ='Rating and PD'!BU25 -> 0 | BY71: ='Rating and PD'!BV25 -> 0 | BZ71: ='Rating and PD'!BW25 -> 0 | CA71: ='Rating and PD'!BX25 -> 0 | CB71: ='Rating and PD'!BY25 -> 0 | CC71: ='Rating and PD'!BZ25 -> 0 | CD71: ='Rating and PD'!CA25 -> 0 | CE71: ='Rating and PD'!CB25 -> 0 | CF71: ='Rating and PD'!CC25 -> 0 | CG71: ='Rating and PD'!CD25 -> 0 | CH71: ='Rating and PD'!CE25 -> 0 | CI71: ='Rating and PD'!CF25 -> 0 | CJ71: ='Rating and PD'!CG25 -> 0 | CK71: ='Rating and PD'!CH25 -> 0 | CL71: ='Rating and PD'!CI25 -> 0 | CM71: ='Rating and PD'!CJ25 -> 0 | CN71: ='Rating and PD'!CK25 -> 0 | CO71: ='Rating and PD'!CL25 -> 0 | CP71: ='Rating and PD'!CM25 -> 0 | CQ71: ='Rating and PD'!CN25 -> 0 | CR71: ='Rating and PD'!CO25 -> 0 | CS71: ='Rating and PD'!CP25 -> 0 | CT71: ='Rating and PD'!CQ25 -> 0 | CU71: ='Rating and PD'!CR25 -> 0 | CV71: ='Rating and PD'!CS25 -> 0 | CW71: ='Rating and PD'!CT25 -> 0 | CX71: ='Rating and PD'!CU25 -> 0 | CY71: ='Rating and PD'!CV25 -> 0 | CZ71: ='Rating and PD'!CW25 -> 0 | DA71: ='Rating and PD'!CX25 -> 0 | DB71: ='Rating and PD'!CY25 -> 0 | DC71: ='Rating and PD'!CZ25 -> 0 | DD71: ='Rating and PD'!DA25 -> 0 | DE71: ='Rating and PD'!DB25 -> 0 | DF71: ='Rating and PD'!DC25 -> 0 | DG71: ='Rating and PD'!DD25 -> 0 | DH71: ='Rating and PD'!DE25 -> 0 | DI71: ='Rating and PD'!DF25 -> 0 | DJ71: ='Rating and PD'!DG25 -> 0 | DK71: ='Rating and PD'!DH25 -> 0 | DL71: ='Rating and PD'!DI25 -> 0 | DM71: ='Rating and PD'!DJ25 -> 0 | DN71: ='Rating and PD'!DK25 -> 0 | DO71: ='Rating and PD'!DL25 -> 0 | DP71: ='Rating and PD'!DM25 -> 0 | DQ71: ='Rating and PD'!DN25 -> 0 | DR71: ='Rating and PD'!DO25 -> 0 | DS71: ='Rating and PD'!DP25 -> 0 | DT71: ='Rating and PD'!DQ25 -> 0 | DU71: ='Rating and PD'!DR25 -> 0 | DV71: ='Rating and PD'!DS25 -> 0 | DW71: ='Rating and PD'!DT25 -> 0 | DX71: ='Rating and PD'!DU25 -> 0
B73: Period of Repayment | G73: =IF(NOT(G3),F73+1,0) -> 0 | H73: =IF(NOT(H3),G73+1,0) -> 1 | I73: 2 | J73: 3 | K73: 4 | L73: 5 | M73: 6 | N73: 7 | O73: 8 | P73: 9 | Q73: 10 | R73: 11 | S73: 12 | T73: 13 | U73: 14 | V73: 15 | W73: 16 | X73: 17 | Y73: 18 | Z73: 19 | AA73: 20 | AB73: 21 | AC73: 22 | AD73: 23 | AE73: 24 | AF73: 25 | AG73: 26 | AH73: 27 | AI73: 28 | AJ73: 29 | AK73: 30 | AL73: 31 | AM73: 32 | AN73: 33 | AO73: 34 | AP73: 35 | AQ73: 36 | AR73: 37 | AS73: 38 | AT73: 39 | AU73: 40 | AV73: 41 | AW73: 42 | AX73: 43 | AY73: 44 | AZ73: 45 | BA73: 46 | BB73: 47 | BC73: 48 | BD73: 49 | BE73: 50 | BF73: 51 | BG73: 52 | BH73: 53 | BI73: 54 | BJ73: 55 | BK73: 56 | BL73: 57 | BM73: 58 | BN73: 59 | BO73: 60 | BP73: 61 | BQ73: 62 | BR73: 63 | BS73: 64 | BT73: =IF(NOT(BT3),BS73+1,0) -> 65 | BU73: 66 | BV73: 67 | BW73: 68 | BX73: 69 | BY73: 70 | BZ73: 71 | CA73: 72 | CB73: 73 | CC73: 74 | CD73: 75 | CE73: 76 | CF73: 77 | CG73: 78 | CH73: 79 | CI73: 80 | CJ73: 81 | CK73: 82 | CL73: 83 | CM73: 84 | CN73: 85 | CO73: 86 | CP73: 87 | CQ73: 88 | CR73: 89 | CS73: 90 | CT73: 91 | CU73: 92 | CV73: 93 | CW73: 94 | CX73: 95 | CY73: 96 | CZ73: 97 | DA73: 98 | DB73: 99 | DC73: 100 | DD73: 101 | DE73: 102 | DF73: 103 | DG73: 104 | DH73: 105 | DI73: 106 | DJ73: 107 | DK73: 108 | DL73: 109 | DM73: 110 | DN73: 111 | DO73: 112 | DP73: 113 | DQ73: 114 | DR73: 115 | DS73: 116 | DT73: 117 | DU73: 118 | DV73: 119 | DW73: 120 | DX73: 121
B74: Year of Repayment | G74: =ROUNDUP(G73/$E$8,0) -> 0 | H74: =ROUNDUP(H73/$E$8,0) -> 1 | I74: 2 | J74: 3 | K74: 4 | L74: 5 | M74: 6 | N74: 7 | O74: 8 | P74: 9 | Q74: 10 | R74: 11 | S74: 12 | T74: 13 | U74: 14 | V74: 15 | W74: 16 | X74: 17 | Y74: 18 | Z74: 19 | AA74: 20 | AB74: 21 | AC74: 22 | AD74: 23 | AE74: 24 | AF74: 25 | AG74: 26 | AH74: 27 | AI74: 28 | AJ74: 29 | AK74: 30 | AL74: 31 | AM74: 32 | AN74: 33 | AO74: 34 | AP74: 35 | AQ74: 36 | AR74: 37 | AS74: 38 | AT74: 39 | AU74: 40 | AV74: 41 | AW74: 42 | AX74: 43 | AY74: 44 | AZ74: 45 | BA74: 46 | BB74: 47 | BC74: 48 | BD74: 49 | BE74: 50 | BF74: 51 | BG74: 52 | BH74: 53 | BI74: 54 | BJ74: 55 | BK74: 56 | BL74: 57 | BM74: 58 | BN74: 59 | BO74: 60 | BP74: 61 | BQ74: 62 | BR74: 63 | BS74: 64 | BT74: =ROUNDUP(BT73/$E$8,0) -> 65 | BU74: 66 | BV74: 67 | BW74: 68 | BX74: 69 | BY74: 70 | BZ74: 71 | CA74: 72 | CB74: 73 | CC74: 74 | CD74: 75 | CE74: 76 | CF74: 77 | CG74: 78 | CH74: 79 | CI74: 80 | CJ74: 81 | CK74: 82 | CL74: 83 | CM74: 84 | CN74: 85 | CO74: 86 | CP74: 87 | CQ74: 88 | CR74: 89 | CS74: 90 | CT74: 91 | CU74: 92 | CV74: 93 | CW74: 94 | CX74: 95 | CY74: 96 | CZ74: 97 | DA74: 98 | DB74: 99 | DC74: 100 | DD74: 101 | DE74: 102 | DF74: 103 | DG74: 104 | DH74: 105 | DI74: 106 | DJ74: 107 | DK74: 108 | DL74: 109 | DM74: 110 | DN74: 111 | DO74: 112 | DP74: 113 | DQ74: 114 | DR74: 115 | DS74: 116 | DT74: 117 | DU74: 118 | DV74: 119 | DW74: 120 | DX74: 121
B75: Period of Model | G75: 1 | H75: =G75+1 -> 2 | I75: =H75+1 -> 3 | J75: 4 | K75: 5 | L75: 6 | M75: 7 | N75: 8 | O75: 9 | P75: 10 | Q75: 11 | R75: 12 | S75: 13 | T75: 14 | U75: 15 | V75: 16 | W75: 17 | X75: 18 | Y75: 19 | Z75: 20 | AA75: 21 | AB75: 22 | AC75: 23 | AD75: 24 | AE75: 25 | AF75: 26 | AG75: 27 | AH75: 28 | AI75: 29 | AJ75: 30 | AK75: 31 | AL75: 32 | AM75: 33 | AN75: 34 | AO75: 35 | AP75: 36 | AQ75: 37 | AR75: 38 | AS75: 39 | AT75: 40 | AU75: 41 | AV75: 42 | AW75: 43 | AX75: 44 | AY75: 45 | AZ75: 46 | BA75: 47 | BB75: 48 | BC75: 49 | BD75: 50 | BE75: 51 | BF75: 52 | BG75: 53 | BH75: 54 | BI75: 55 | BJ75: 56 | BK75: 57 | BL75: 58 | BM75: 59 | BN75: 60 | BO75: 61 | BP75: 62 | BQ75: 63 | BR75: 64 | BS75: 65 | BT75: 66 | BU75: =BT75+1 -> 67 | BV75: 68 | BW75: 69 | BX75: 70 | BY75: 71 | BZ75: 72 | CA75: 73 | CB75: 74 | CC75: 75 | CD75: 76 | CE75: 77 | CF75: 78 | CG75: 79 | CH75: 80 | CI75: 81 | CJ75: 82 | CK75: 83 | CL75: 84 | CM75: 85 | CN75: 86 | CO75: 87 | CP75: 88 | CQ75: 89 | CR75: 90 | CS75: 91 | CT75: 92 | CU75: 93 | CV75: 94 | CW75: 95 | CX75: 96 | CY75: 97 | CZ75: 98 | DA75: 99 | DB75: 100 | DC75: 101 | DD75: 102 | DE75: 103 | DF75: 104 | DG75: 105 | DH75: 106 | DI75: 107 | DJ75: 108 | DK75: 109 | DL75: 110 | DM75: 111 | DN75: 112 | DO75: 113 | DP75: 114 | DQ75: 115 | DR75: 116 | DS75: 117 | DT75: 118 | DU75: 119 | DV75: 120 | DW75: 121 | DX75: 122
B76: Year of Model | G76: =ROUNDUP(G75/$E$8,0) -> 1 | H76: =ROUNDUP(H75/$E$8,0) -> 2 | I76: 3 | J76: 4 | K76: 5 | L76: 6 | M76: 7 | N76: 8 | O76: 9 | P76: 10 | Q76: 11 | R76: 12 | S76: 13 | T76: 14 | U76: 15 | V76: 16 | W76: 17 | X76: 18 | Y76: 19 | Z76: 20 | AA76: 21 | AB76: 22 | AC76: 23 | AD76: 24 | AE76: 25 | AF76: 26 | AG76: 27 | AH76: 28 | AI76: 29 | AJ76: 30 | AK76: 31 | AL76: 32 | AM76: 33 | AN76: 34 | AO76: 35 | AP76: 36 | AQ76: 37 | AR76: 38 | AS76: 39 | AT76: 40 | AU76: 41 | AV76: 42 | AW76: 43 | AX76: 44 | AY76: 45 | AZ76: 46 | BA76: 47 | BB76: 48 | BC76: 49 | BD76: 50 | BE76: 51 | BF76: 52 | BG76: 53 | BH76: 54 | BI76: 55 | BJ76: 56 | BK76: 57 | BL76: 58 | BM76: 59 | BN76: 60 | BO76: 61 | BP76: 62 | BQ76: 63 | BR76: 64 | BS76: 65 | BT76: =ROUNDUP(BT75/$E$8,0) -> 66 | BU76: 67 | BV76: 68 | BW76: 69 | BX76: 70 | BY76: 71 | BZ76: 72 | CA76: 73 | CB76: 74 | CC76: 75 | CD76: 76 | CE76: 77 | CF76: 78 | CG76: 79 | CH76: 80 | CI76: 81 | CJ76: 82 | CK76: 83 | CL76: 84 | CM76: 85 | CN76: 86 | CO76: 87 | CP76: 88 | CQ76: 89 | CR76: 90 | CS76: 91 | CT76: 92 | CU76: 93 | CV76: 94 | CW76: 95 | CX76: 96 | CY76: 97 | CZ76: 98 | DA76: 99 | DB76: 100 | DC76: 101 | DD76: 102 | DE76: 103 | DF76: 104 | DG76: 105 | DH76: 106 | DI76: 107 | DJ76: 108 | DK76: 109 | DL76: 110 | DM76: 111 | DN76: 112 | DO76: 113 | DP76: 114 | DQ76: 115 | DR76: 116 | DS76: 117 | DT76: 118 | DU76: 119 | DV76: 120 | DW76: 121 | DX76: 122
B78: Annual Default Rate Percent Increase | G78: =LOOKUP(G76,70:70,71:71) -> 0 | H78: =LOOKUP(H76,70:70,71:71) -> 2.092105263 | I78: 0.8 | J78: 0.4326241135 | K78: 0.2722772277 | L78: 0.2036316472 | M78: 0.1411637931 | N78: 0.1095372993 | O78: 0.08936170213 | P78: 0.0734375 | Q78: 0.05676855895 | R78: 0.04545454545 | S78: 0.03754940711 | T78: 0.03111111111 | U78: 0.03263546798 | V78: 0.03263546798 | W78: 0.03263546798 | X78: 0.03263546798 | Y78: 0.03263546798 | Z78: 0.03263546798 | AA78: 0.03263546798 | AB78: 0.03263546798 | AC78: 0.03263546798 | AD78: 0.03263546798 | AE78: 0.03263546798 | AF78: 0.03263546798 | AG78: 0.03263546798 | AH78: 0.03263546798 | AI78: 0.03263546798 | AJ78: 0.03263546798 | AK78: 0.03263546798 | AL78: 0.03263546798 | AM78: 0.03263546798 | AN78: 0.03263546798 | AO78: 0.03263546798 | AP78: 0.03263546798 | AQ78: 0.03263546798 | AR78: 0.03263546798 | AS78: 0.03263546798 | AT78: 0.03263546798 | AU78: 0.03263546798 | AV78: 0.03263546798 | AW78: 0.03263546798 | AX78: 0.03263546798 | AY78: 0.03263546798 | AZ78: 0.03263546798 | BA78: 0.03263546798 | BB78: 0.03263546798 | BC78: 0.03263546798 | BD78: 0.03263546798 | BE78: 0.03263546798 | BF78: 0.03263546798 | BG78: 0.03263546798 | BH78: 0.03263546798 | BI78: 0.03263546798 | BJ78: 0.03263546798 | BK78: 0.03263546798 | BL78: 0.03263546798 | BM78: 0.03263546798 | BN78: 0.03263546798 | BO78: 0.03263546798 | BP78: 0.03263546798 | BQ78: 0.03263546798 | BR78: 0.03263546798 | BS78: 0.03263546798 | BT78: =LOOKUP(BT76,70:70,71:71) -> 0.03263546798 | BU78: 0.03263546798 | BV78: 0.03263546798 | BW78: 0.03263546798 | BX78: 0.03263546798 | BY78: 0.03263546798 | BZ78: 0.03263546798 | CA78: 0.03263546798 | CB78: 0.03263546798 | CC78: 0.03263546798 | CD78: 0.03263546798 | CE78: 0.03263546798 | CF78: 0.03263546798 | CG78: 0.03263546798 | CH78: 0.03263546798 | CI78: 0.03263546798 | CJ78: 0.03263546798 | CK78: 0.03263546798 | CL78: 0.03263546798 | CM78: 0.03263546798 | CN78: 0.03263546798 | CO78: 0.03263546798 | CP78: 0.03263546798 | CQ78: 0.03263546798 | CR78: 0.03263546798 | CS78: 0.03263546798 | CT78: 0.03263546798 | CU78: 0.03263546798 | CV78: 0.03263546798 | CW78: 0.03263546798 | CX78: 0.03263546798 | CY78: 0.03263546798 | CZ78: 0.03263546798 | DA78: 0.03263546798 | DB78: 0.03263546798 | DC78: 0.03263546798 | DD78: 0.03263546798 | DE78: 0.03263546798 | DF78: 0.03263546798 | DG78: 0.03263546798 | DH78: 0.03263546798 | DI78: 0.03263546798 | DJ78: 0.03263546798 | DK78: 0.03263546798 | DL78: 0.03263546798 | DM78: 0.03263546798 | DN78: 0.03263546798 | DO78: 0.03263546798 | DP78: 0.03263546798 | DQ78: 0.03263546798 | DR78: 0.03263546798 | DS78: 0.03263546798 | DT78: 0.03263546798 | DU78: 0.03263546798 | DV78: 0.03263546798 | DW78: 0.03263546798 | DX78: 0.03263546798
B79: Periodic Default Rate Percent Increase | G79: =IF(AND(G76>0,MONTH($G$2)=MONTH(G2)),G78/$E$8,0) -> 0 | H79: =IF(AND(H76>0,MONTH($G$2)=MONTH(H2)),H78/$E$8,0) -> 2.092105263 | I79: 0.8 | J79: 0.4326241135 | K79: 0.2722772277 | L79: 0.2036316472 | M79: 0.1411637931 | N79: 0.1095372993 | O79: 0.08936170213 | P79: 0.0734375 | Q79: 0.05676855895 | R79: 0.04545454545 | S79: 0.03754940711 | T79: 0.03111111111 | U79: 0.03263546798 | V79: 0.03263546798 | W79: 0.03263546798 | X79: 0.03263546798 | Y79: 0.03263546798 | Z79: 0.03263546798 | AA79: 0.03263546798 | AB79: 0.03263546798 | AC79: 0.03263546798 | AD79: 0.03263546798 | AE79: 0.03263546798 | AF79: 0.03263546798 | AG79: 0.03263546798 | AH79: 0.03263546798 | AI79: 0.03263546798 | AJ79: 0.03263546798 | AK79: 0.03263546798 | AL79: 0.03263546798 | AM79: 0.03263546798 | AN79: 0.03263546798 | AO79: 0.03263546798 | AP79: 0.03263546798 | AQ79: 0.03263546798 | AR79: 0.03263546798 | AS79: 0.03263546798 | AT79: 0.03263546798 | AU79: 0.03263546798 | AV79: 0.03263546798 | AW79: 0.03263546798 | AX79: 0.03263546798 | AY79: 0.03263546798 | AZ79: 0.03263546798 | BA79: 0.03263546798 | BB79: 0.03263546798 | BC79: 0.03263546798 | BD79: 0.03263546798 | BE79: 0.03263546798 | BF79: 0.03263546798 | BG79: 0.03263546798 | BH79: 0.03263546798 | BI79: 0.03263546798 | BJ79: 0.03263546798 | BK79: 0.03263546798 | BL79: 0.03263546798 | BM79: 0.03263546798 | BN79: 0.03263546798 | BO79: 0.03263546798 | BP79: 0.03263546798 | BQ79: 0.03263546798 | BR79: 0.03263546798 | BS79: 0.03263546798 | BT79: =IF(AND(BT76>0,MONTH($G$2)=MONTH(BT2)),BT78/$E$8,0) -> 0.03263546798 | BU79: 0.03263546798 | BV79: 0.03263546798 | BW79: 0.03263546798 | BX79: 0.03263546798 | BY79: 0.03263546798 | BZ79: 0.03263546798 | CA79: 0.03263546798 | CB79: 0.03263546798 | CC79: 0.03263546798 | CD79: 0.03263546798 | CE79: 0.03263546798 | CF79: 0.03263546798 | CG79: 0.03263546798 | CH79: 0.03263546798 | CI79: 0.03263546798 | CJ79: 0.03263546798 | CK79: 0.03263546798 | CL79: 0.03263546798 | CM79: 0.03263546798 | CN79: 0.03263546798 | CO79: 0.03263546798 | CP79: 0.03263546798 | CQ79: 0.03263546798 | CR79: 0.03263546798 | CS79: 0.03263546798 | CT79: 0.03263546798 | CU79: 0.03263546798 | CV79: 0.03263546798 | CW79: 0.03263546798 | CX79: 0.03263546798 | CY79: 0.03263546798 | CZ79: 0.03263546798 | DA79: 0.03263546798 | DB79: 0.03263546798 | DC79: 0.03263546798 | DD79: 0.03263546798 | DE79: 0.03263546798 | DF79: 0.03263546798 | DG79: 0.03263546798 | DH79: 0.03263546798 | DI79: 0.03263546798 | DJ79: 0.03263546798 | DK79: 0.03263546798 | DL79: 0.03263546798 | DM79: 0.03263546798 | DN79: 0.03263546798 | DO79: 0.03263546798 | DP79: 0.03263546798 | DQ79: 0.03263546798 | DR79: 0.03263546798 | DS79: 0.03263546798 | DT79: 0.03263546798 | DU79: 0.03263546798 | DV79: 0.03263546798 | DW79: 0.03263546798 | DX79: 0.03263546798
A81: Calculation of Equivalent Cumulative PD with Loan Balance
B82: Maturity | E82: =E23-E24 -> 9 | F82: =E82*E8 -> 9
B83: Interest Rate | E83: =E44 -> 0.069
B84: Loan Balance | E84: =E11 -> 10000
B86: Period of Repayment | G86: =G73 -> 0 | H86: 1 | I86: 2 | J86: 3 | K86: 4 | L86: 5 | M86: 6 | N86: 7 | O86: 8 | P86: 9 | Q86: 10 | R86: 11 | S86: 12 | T86: 13 | U86: 14 | V86: 15 | W86: 16 | X86: 17 | Y86: 18 | Z86: 19 | AA86: 20 | AB86: 21 | AC86: 22 | AD86: 23 | AE86: 24 | AF86: 25 | AG86: 26 | AH86: 27 | AI86: 28 | AJ86: 29 | AK86: 30 | AL86: 31 | AM86: =AM73 -> 32 | AN86: 33 | AO86: 34 | AP86: 35 | AQ86: 36 | AR86: 37 | AS86: 38 | AT86: 39 | AU86: 40 | AV86: 41 | AW86: 42 | AX86: 43 | AY86: 44 | AZ86: 45 | BA86: 46 | BB86: 47 | BC86: 48 | BD86: 49 | BE86: 50 | BF86: 51 | BG86: 52 | BH86: 53 | BI86: 54 | BJ86: 55 | BK86: 56 | BL86: 57 | BM86: 58 | BN86: 59 | BO86: 60 | BP86: 61 | BQ86: 62 | BR86: 63 | BS86: =BS73 -> 64 | BT86: 65 | BU86: 66 | BV86: 67 | BW86: 68 | BX86: 69 | BY86: 70 | BZ86: 71 | CA86: 72 | CB86: 73 | CC86: 74 | CD86: 75 | CE86: 76 | CF86: 77 | CG86: 78 | CH86: 79 | CI86: 80 | CJ86: 81 | CK86: 82 | CL86: 83 | CM86: 84 | CN86: 85 | CO86: 86 | CP86: 87 | CQ86: 88 | CR86: 89 | CS86: 90 | CT86: 91 | CU86: 92 | CV86: 93 | CW86: 94 | CX86: 95 | CY86: =CY73 -> 96 | CZ86: 97 | DA86: 98 | DB86: 99 | DC86: 100 | DD86: 101 | DE86: 102 | DF86: 103 | DG86: 104 | DH86: 105 | DI86: 106 | DJ86: 107 | DK86: 108 | DL86: 109 | DM86: 110 | DN86: 111 | DO86: 112 | DP86: 113 | DQ86: 114 | DR86: 115 | DS86: 116 | DT86: 117 | DU86: 118 | DV86: 119 | DW86: 120 | DX86: 121
B87: Switch | G87: =AND(G86>0,G86<=$F$82) -> FALSE | H87: =AND(H86>0,H86<=$F$82) -> TRUE | I87: TRUE | J87: TRUE | K87: TRUE | L87: TRUE | M87: TRUE | N87: TRUE | O87: TRUE | P87: TRUE | Q87: FALSE | R87: FALSE | S87: FALSE | T87: FALSE | U87: FALSE | V87: FALSE | W87: FALSE | X87: FALSE | Y87: FALSE | Z87: FALSE | AA87: FALSE | AB87: FALSE | AC87: FALSE | AD87: FALSE | AE87: FALSE | AF87: FALSE | AG87: FALSE | AH87: FALSE | AI87: FALSE | AJ87: FALSE | AK87: FALSE | AL87: FALSE | AM87: FALSE | AN87: FALSE | AO87: FALSE | AP87: FALSE | AQ87: FALSE | AR87: FALSE | AS87: FALSE | AT87: FALSE | AU87: FALSE | AV87: FALSE | AW87: FALSE | AX87: FALSE | AY87: FALSE | AZ87: FALSE | BA87: FALSE | BB87: FALSE | BC87: FALSE | BD87: FALSE | BE87: FALSE | BF87: FALSE | BG87: FALSE | BH87: FALSE | BI87: FALSE | BJ87: FALSE | BK87: FALSE | BL87: FALSE | BM87: FALSE | BN87: FALSE | BO87: FALSE | BP87: FALSE | BQ87: FALSE | BR87: FALSE | BS87: FALSE | BT87: =AND(BT86>0,BT86<=$F$82) -> FALSE | BU87: FALSE | BV87: FALSE | BW87: FALSE | BX87: FALSE | BY87: FALSE | BZ87: FALSE | CA87: FALSE | CB87: FALSE | CC87: FALSE | CD87: FALSE | CE87: FALSE | CF87: FALSE | CG87: FALSE | CH87: FALSE | CI87: FALSE | CJ87: FALSE | CK87: FALSE | CL87: FALSE | CM87: FALSE | CN87: FALSE | CO87: FALSE | CP87: FALSE | CQ87: FALSE | CR87: FALSE | CS87: FALSE | CT87: FALSE | CU87: FALSE | CV87: FALSE | CW87: FALSE | CX87: FALSE | CY87: FALSE | CZ87: FALSE | DA87: FALSE | DB87: FALSE | DC87: FALSE | DD87: FALSE | DE87: FALSE | DF87: FALSE | DG87: FALSE | DH87: FALSE | DI87: FALSE | DJ87: FALSE | DK87: FALSE | DL87: FALSE | DM87: FALSE | DN87: FALSE | DO87: FALSE | DP87: FALSE | DQ87: FALSE | DR87: FALSE | DS87: FALSE | DT87: FALSE | DU87: FALSE | DV87: FALSE | DW87: FALSE | DX87: FALSE
B88: Terminal Switch | G88: =G86=$F$82 -> FALSE | H88: =H86=$F$82 -> FALSE | I88: FALSE | J88: FALSE | K88: FALSE | L88: FALSE | M88: FALSE | N88: FALSE | O88: FALSE | P88: TRUE | Q88: FALSE | R88: FALSE | S88: FALSE | T88: FALSE | U88: FALSE | V88: FALSE | W88: FALSE | X88: FALSE | Y88: FALSE | Z88: FALSE | AA88: FALSE | AB88: FALSE | AC88: FALSE | AD88: FALSE | AE88: FALSE | AF88: FALSE | AG88: FALSE | AH88: FALSE | AI88: FALSE | AJ88: FALSE | AK88: FALSE | AL88: FALSE | AM88: FALSE | AN88: FALSE | AO88: FALSE | AP88: FALSE | AQ88: FALSE | AR88: FALSE | AS88: FALSE | AT88: FALSE | AU88: FALSE | AV88: FALSE | AW88: FALSE | AX88: FALSE | AY88: FALSE | AZ88: FALSE | BA88: FALSE | BB88: FALSE | BC88: FALSE | BD88: FALSE | BE88: FALSE | BF88: FALSE | BG88: FALSE | BH88: FALSE | BI88: FALSE | BJ88: FALSE | BK88: FALSE | BL88: FALSE | BM88: FALSE | BN88: FALSE | BO88: FALSE | BP88: FALSE | BQ88: FALSE | BR88: FALSE | BS88: FALSE | BT88: =BT86=$F$82 -> FALSE | BU88: FALSE | BV88: FALSE | BW88: FALSE | BX88: FALSE | BY88: FALSE | BZ88: FALSE | CA88: FALSE | CB88: FALSE | CC88: FALSE | CD88: FALSE | CE88: FALSE | CF88: FALSE | CG88: FALSE | CH88: FALSE | CI88: FALSE | CJ88: FALSE | CK88: FALSE | CL88: FALSE | CM88: FALSE | CN88: FALSE | CO88: FALSE | CP88: FALSE | CQ88: FALSE | CR88: FALSE | CS88: FALSE | CT88: FALSE | CU88: FALSE | CV88: FALSE | CW88: FALSE | CX88: FALSE | CY88: FALSE | CZ88: FALSE | DA88: FALSE | DB88: FALSE | DC88: FALSE | DD88: FALSE | DE88: FALSE | DF88: FALSE | DG88: FALSE | DH88: FALSE | DI88: FALSE | DJ88: FALSE | DK88: FALSE | DL88: FALSE | DM88: FALSE | DN88: FALSE | DO88: FALSE | DP88: FALSE | DQ88: FALSE | DR88: FALSE | DS88: FALSE | DT88: FALSE | DU88: FALSE | DV88: FALSE | DW88: FALSE | DX88: FALSE
B90: For Computing Function | G90: =G75 -> 1 | H90: =H75 -> 2 | I90: 3 | J90: 4 | K90: 5 | L90: 6 | M90: 7 | N90: 8 | O90: 9 | P90: 10 | Q90: 11 | R90: 12 | S90: 13 | T90: 14 | U90: 15 | V90: 16 | W90: 17 | X90: 18 | Y90: 19 | Z90: 20 | AA90: 21 | AB90: 22 | AC90: 23 | AD90: 24 | AE90: 25 | AF90: 26 | AG90: 27 | AH90: 28 | AI90: 29 | AJ90: 30 | AK90: 31 | AL90: 32 | AM90: 33 | AN90: 34 | AO90: 35 | AP90: 36 | AQ90: 37 | AR90: 38 | AS90: 39 | AT90: 40 | AU90: 41 | AV90: 42 | AW90: 43 | AX90: 44 | AY90: 45 | AZ90: 46 | BA90: 47 | BB90: 48 | BC90: 49 | BD90: 50 | BE90: 51 | BF90: 52 | BG90: 53 | BH90: 54 | BI90: 55 | BJ90: 56 | BK90: 57 | BL90: 58 | BM90: 59 | BN90: 60 | BO90: 61 | BP90: 62 | BQ90: 63 | BR90: 64 | BS90: 65 | BT90: =BT75 -> 66 | BU90: 67 | BV90: 68 | BW90: 69 | BX90: 70 | BY90: 71 | BZ90: 72 | CA90: 73 | CB90: 74 | CC90: 75 | CD90: 76 | CE90: 77 | CF90: 78 | CG90: 79 | CH90: 80 | CI90: 81 | CJ90: 82 | CK90: 83 | CL90: 84 | CM90: 85 | CN90: 86 | CO90: 87 | CP90: 88 | CQ90: 89 | CR90: 90 | CS90: 91 | CT90: 92 | CU90: 93 | CV90: 94 | CW90: 95 | CX90: 96 | CY90: 97 | CZ90: 98 | DA90: 99 | DB90: 100 | DC90: 101 | DD90: 102 | DE90: 103 | DF90: 104 | DG90: 105 | DH90: 106 | DI90: 107 | DJ90: 108 | DK90: 109 | DL90: 110 | DM90: 111 | DN90: 112 | DO90: 113 | DP90: 114 | DQ90: 115 | DR90: 116 | DS90: 117 | DT90: 118 | DU90: 119 | DV90: 120 | DW90: 121 | DX90: 122
C91: Cash Flow without Default | E91: =XIRR(G91:DX91,G2:DX2) -> 0.07540135682 | G91: =G179 -> -9750 | H91: 1801.111111 | I91: 1724.444444 | J91: 1647.777778 | K91: 1571.111111 | L91: 1494.444444 | M91: 1417.777778 | N91: 1341.111111 | O91: 1264.444444 | P91: 1187.777778 | Q91: 0 | R91: 0 | S91: 0 | T91: 0 | U91: 0 | V91: 0 | W91: 0 | X91: 0 | Y91: 0 | Z91: 0 | AA91: 0 | AB91: 0 | AC91: 0 | AD91: 0 | AE91: 0 | AF91: 0 | AG91: 0 | AH91: 0 | AI91: 0 | AJ91: 0 | AK91: 0 | AL91: 0 | AM91: =AM179 -> 0 | AN91: 0 | AO91: 0 | AP91: 0 | AQ91: 0 | AR91: 0 | AS91: 0 | AT91: 0 | AU91: 0 | AV91: 0 | AW91: 0 | AX91: 0 | AY91: 0 | AZ91: 0 | BA91: 0 | BB91: 0 | BC91: 0 | BD91: 0 | BE91: 0 | BF91: 0 | BG91: 0 | BH91: 0 | BI91: 0 | BJ91: 0 | BK91: 0 | BL91: 0 | BM91: 0 | BN91: 0 | BO91: 0 | BP91: 0 | BQ91: 0 | BR91: 0 | BS91: =BS179 -> 0 | BT91: 0 | BU91: 0 | BV91: 0 | BW91: 0 | BX91: 0 | BY91: 0 | BZ91: 0 | CA91: 0 | CB91: 0 | CC91: 0 | CD91: 0 | CE91: 0 | CF91: 0 | CG91: 0 | CH91: 0 | CI91: 0 | CJ91: 0 | CK91: 0 | CL91: 0 | CM91: 0 | CN91: 0 | CO91: 0 | CP91: 0 | CQ91: 0 | CR91: 0 | CS91: 0 | CT91: 0 | CU91: 0 | CV91: 0 | CW91: 0 | CX91: 0 | CY91: =CY179 -> 0 | CZ91: 0 | DA91: 0 | DB91: 0 | DC91: 0 | DD91: 0 | DE91: 0 | DF91: 0 | DG91: 0 | DH91: 0 | DI91: 0 | DJ91: 0 | DK91: 0 | DL91: 0 | DM91: 0 | DN91: 0 | DO91: 0 | DP91: 0 | DQ91: 0 | DR91: 0 | DS91: 0 | DT91: 0 | DU91: 0 | DV91: 0 | DW91: 0 | DX91: 0
C92: PD Growth | G92: =G79 -> 0 | H92: 2.092105263 | I92: 0.8 | J92: 0.4326241135 | K92: 0.2722772277 | L92: 0.2036316472 | M92: 0.1411637931 | N92: 0.1095372993 | O92: 0.08936170213 | P92: 0.0734375 | Q92: 0.05676855895 | R92: 0.04545454545 | S92: 0.03754940711 | T92: 0.03111111111 | U92: 0.03263546798 | V92: 0.03263546798 | W92: 0.03263546798 | X92: 0.03263546798 | Y92: 0.03263546798 | Z92: 0.03263546798 | AA92: 0.03263546798 | AB92: 0.03263546798 | AC92: 0.03263546798 | AD92: 0.03263546798 | AE92: 0.03263546798 | AF92: 0.03263546798 | AG92: 0.03263546798 | AH92: 0.03263546798 | AI92: 0.03263546798 | AJ92: 0.03263546798 | AK92: 0.03263546798 | AL92: 0.03263546798 | AM92: =AM79 -> 0.03263546798 | AN92: 0.03263546798 | AO92: 0.03263546798 | AP92: 0.03263546798 | AQ92: 0.03263546798 | AR92: 0.03263546798 | AS92: 0.03263546798 | AT92: 0.03263546798 | AU92: 0.03263546798 | AV92: 0.03263546798 | AW92: 0.03263546798 | AX92: 0.03263546798 | AY92: 0.03263546798 | AZ92: 0.03263546798 | BA92: 0.03263546798 | BB92: 0.03263546798 | BC92: 0.03263546798 | BD92: 0.03263546798 | BE92: 0.03263546798 | BF92: 0.03263546798 | BG92: 0.03263546798 | BH92: 0.03263546798 | BI92: 0.03263546798 | BJ92: 0.03263546798 | BK92: 0.03263546798 | BL92: 0.03263546798 | BM92: 0.03263546798 | BN92: 0.03263546798 | BO92: 0.03263546798 | BP92: 0.03263546798 | BQ92: 0.03263546798 | BR92: 0.03263546798 | BS92: =BS79 -> 0.03263546798 | BT92: 0.03263546798 | BU92: 0.03263546798 | BV92: 0.03263546798 | BW92: 0.03263546798 | BX92: 0.03263546798 | BY92: 0.03263546798 | BZ92: 0.03263546798 | CA92: 0.03263546798 | CB92: 0.03263546798 | CC92: 0.03263546798 | CD92: 0.03263546798 | CE92: 0.03263546798 | CF92: 0.03263546798 | CG92: 0.03263546798 | CH92: 0.03263546798 | CI92: 0.03263546798 | CJ92: 0.03263546798 | CK92: 0.03263546798 | CL92: 0.03263546798 | CM92: 0.03263546798 | CN92: 0.03263546798 | CO92: 0.03263546798 | CP92: 0.03263546798 | CQ92: 0.03263546798 | CR92: 0.03263546798 | CS92: 0.03263546798 | CT92: 0.03263546798 | CU92: 0.03263546798 | CV92: 0.03263546798 | CW92: 0.03263546798 | CX92: 0.03263546798 | CY92: =CY79 -> 0.03263546798 | CZ92: 0.03263546798 | DA92: 0.03263546798 | DB92: 0.03263546798 | DC92: 0.03263546798 | DD92: 0.03263546798 | DE92: 0.03263546798 | DF92: 0.03263546798 | DG92: 0.03263546798 | DH92: 0.03263546798 | DI92: 0.03263546798 | DJ92: 0.03263546798 | DK92: 0.03263546798 | DL92: 0.03263546798 | DM92: 0.03263546798 | DN92: 0.03263546798 | DO92: 0.03263546798 | DP92: 0.03263546798 | DQ92: 0.03263546798 | DR92: 0.03263546798 | DS92: 0.03263546798 | DT92: 0.03263546798 | DU92: 0.03263546798 | DV92: 0.03263546798 | DW92: 0.03263546798 | DX92: 0.03263546798
C93: PD Amount | F93: =E110 -> 0.0177716736 | G93: =F93 -> 0.0177716736 | H93: =G93*(1+H92) -> 0.05495188547 | I93: =H93*(1+I92) -> 0.09891339385 | J93: 0.1417057132 | K93: 0.1802889519 | L93: 0.2170014882 | M93: 0.2476342413 | N93: 0.2747594274 | O93: 0.2993123975 | P93: 0.3212931517 | Q93: 0.3395325009 | R93: 0.3549657964 | S93: 0.3682945516 | T93: 0.3797526043 | U93: 0.3921460083 | V93: 0.4049438767 | W93: 0.4181594097 | X93: 0.4318062377 | Y93: 0.4458984363 | Z93: 0.4604505405 | AA93: 0.4754775594 | AB93: 0.490994992 | AC93: 0.5070188434 | AD93: 0.5235656406 | AE93: 0.5406524503 | AF93: 0.558296896 | AG93: 0.5765171765 | AH93: 0.5953320843 | AI93: 0.6147610255 | AJ93: 0.6348240393 | AK93: 0.6555418189 | AL93: 0.6769357329 | AM93: 0.6990278474 | AN93: 0.7218409483 | AO93: 0.7453985654 | AP93: 0.7697249965 | AQ93: 0.7948453319 | AR93: 0.8207854813 | AS93: 0.8475721996 | AT93: 0.875233115 | AU93: 0.9037967573 | AV93: 0.9332925874 | AW93: 0.9637510278 | AX93: 0.9952034936 | AY93: 1.027682425 | AZ93: 1.061221322 | BA93: 1.095854777 | BB93: 1.13161851 | BC93: 1.16854941 | BD93: 1.206685567 | BE93: 1.246066315 | BF93: 1.286732272 | BG93: 1.328725382 | BH93: 1.372088957 | BI93: 1.416867722 | BJ93: 1.463107863 | BK93: 1.510857073 | BL93: 1.560164601 | BM93: 1.611081302 | BN93: 1.663659695 | BO93: 1.717954007 | BP93: 1.77402024 | BQ93: 1.831916221 | BR93: 1.891701664 | BS93: 1.953438233 | BT93: 2.017189604 | BU93: =BT93*(1+BU92) -> 2.083021531 | BV93: 2.151001914 | BW93: 2.221200868 | BX93: 2.293690797 | BY93: 2.36854647 | BZ93: 2.445845092 | CA93: 2.525666392 | CB93: 2.608092696 | CC93: 2.693209022 | CD93: 2.781103159 | CE93: 2.871865762 | CF93: 2.965590445 | CG93: 3.062373877 | CH93: 3.162315882 | CI93: 3.26551954 | CJ93: 3.372091299 | CK93: 3.482141076 | CL93: 3.59578238 | CM93: 3.713132421 | CN93: 3.834312235 | CO93: 3.959446809 | CP93: 4.088665209 | CQ93: 4.222100711 | CR93: 4.359890944 | CS93: 4.502178025 | CT93: 4.649108712 | CU93: 4.80083455 | CV93: 4.957512032 | CW93: 5.119302758 | CX93: 5.286373599 | CY93: 5.458896875 | CZ93: 5.637050529 | DA93: 5.821018311 | DB93: 6.010989968 | DC93: 6.207161439 | DD93: 6.409735057 | DE93: 6.61891976 | DF93: 6.834931304 | DG93: 7.057992486 | DH93: 7.288333374 | DI93: 7.526191544 | DJ93: 7.771812327 | DK93: 8.02544906 | DL93: 8.287363345 | DM93: 8.557825327 | DN93: 8.837113961 | DO93: 9.125517311 | DP93: 9.423332839 | DQ93: 9.730867716 | DR93: 10.04843914 | DS93: 10.37637465 | DT93: 10.71501249 | DU93: 11.06470194 | DV93: 11.42580367 | DW93: 11.79869012 | DX93: 12.18374589
C94: Incremental PD | G94: =G93 -> 0.0177716736 | H94: =H93-G93 -> 0.03718021187 | I94: =I93-H93 -> 0.04396150838 | J94: =J93-I93 -> 0.04279231933 | K94: 0.03858323874 | L94: 0.03671253625 | M94: 0.03063275318 | N94: 0.02712518602 | O94: 0.02455297011 | P94: 0.02198075419 | Q94: 0.01823934922 | R94: 0.01543329549 | S94: 0.0133287552 | T94: 0.01145805272 | U94: 0.01239340396 | V94: 0.0127978685 | W94: 0.01321553292 | X94: 0.01364682803 | Y94: 0.01409219864 | Z94: 0.01455210414 | AA94: 0.01502701887 | AB94: 0.01551743266 | AC94: 0.01602385134 | AD94: 0.01654679723 | AE94: 0.0170868097 | AF94: 0.01764444573 | AG94: 0.01822028047 | AH94: 0.01881490785 | AI94: 0.01942894118 | AJ94: 0.02006301376 | AK94: 0.02071777961 | AL94: 0.02139391404 | AM94: 0.02209211444 | AN94: 0.02281310093 | AO94: 0.02355761715 | AP94: 0.02432643102 | AQ94: 0.02512033548 | AR94: 0.02594014938 | AS94: 0.02678671829 | AT94: 0.02766091538 | AU94: 0.0285636423 | AV94: 0.02949583013 | AW94: 0.03045844035 | AX94: 0.03145246581 | AY94: 0.03247893175 | AZ94: 0.03353889689 | BA94: 0.03463345448 | BB94: 0.03576373348 | BC94: 0.03693089965 | BD94: 0.03813615685 | BE94: 0.03938074817 | BF94: 0.04066595732 | BG94: 0.04199310987 | BH94: 0.04336357466 | BI94: 0.04477876521 | BJ94: 0.04624014117 | BK94: 0.04774920982 | BL94: 0.04930752763 | BM94: 0.05091670186 | BN94: 0.05257839226 | BO94: 0.0542943127 | BP94: 0.056066233 | BQ94: 0.05789598075 | BR94: 0.05978544318 | BS94: 0.06173656909 | BT94: 0.06375137092 | BU94: =BU93-BT93 -> 0.06583192674 | BV94: 0.06798038248 | BW94: 0.07019895407 | BX94: 0.07248992979 | BY94: 0.07485567257 | BZ94: 0.07729862248 | CA94: 0.0798212992 | CB94: 0.08242630465 | CC94: 0.08511632568 | CD94: 0.0878941368 | CE94: 0.09076260309 | CF94: 0.09372468311 | CG94: 0.09678343201 | CH94: 0.09994200461 | CI94: 0.1032036587 | CJ94: 0.1065717584 | CK94: 0.1100497776 | CL94: 0.1136413036 | CM94: 0.1173500407 | CN94: 0.1211798142 | CO94: 0.1251345742 | CP94: 0.1292183996 | CQ94: 0.1334355025 | CR94: 0.1377902326 | CS94: 0.1422870813 | CT94: 0.1469306868 | CU94: 0.1517258385 | CV94: 0.1566774822 | CW94: 0.1617907252 | CX94: 0.1670708412 | CY94: 0.1725232763 | CZ94: 0.1781536542 | DA94: 0.1839677821 | DB94: 0.1899716567 | DC94: 0.1961714706 | DD94: 0.2025736184 | DE94: 0.2091847032 | DF94: 0.2160115439 | DG94: 0.2230611817 | DH94: 0.2303408878 | DI94: 0.2378581704 | DJ94: 0.2456207832 | DK94: 0.2536367324 | DL94: 0.2619142858 | DM94: 0.2704619811 | DN94: 0.2792886344 | DO94: 0.2884033497 | DP94: 0.297815528 | DQ94: 0.3075348771 | DR94: 0.3175714218 | DS94: 0.3279355137 | DT94: 0.3386378427 | DU94: 0.3496894472 | DV94: 0.3611017259 | DW94: 0.3728864497 | DX94: 0.3850557735
C95: LGD | E95: =E201 -> 0.6 | G95: =$E$95 -> 0.6 | H95: =$E$95 -> 0.6 | I95: 0.6 | J95: 0.6 | K95: 0.6 | L95: 0.6 | M95: 0.6 | N95: 0.6 | O95: 0.6 | P95: 0.6 | Q95: 0.6 | R95: 0.6 | S95: 0.6 | T95: 0.6 | U95: 0.6 | V95: 0.6 | W95: 0.6 | X95: 0.6 | Y95: 0.6 | Z95: 0.6 | AA95: 0.6 | AB95: 0.6 | AC95: 0.6 | AD95: 0.6 | AE95: 0.6 | AF95: 0.6 | AG95: 0.6 | AH95: 0.6 | AI95: 0.6 | AJ95: 0.6 | AK95: 0.6 | AL95: 0.6 | AM95: 0.6 | AN95: 0.6 | AO95: 0.6 | AP95: 0.6 | AQ95: 0.6 | AR95: 0.6 | AS95: 0.6 | AT95: 0.6 | AU95: 0.6 | AV95: 0.6 | AW95: 0.6 | AX95: 0.6 | AY95: 0.6 | AZ95: 0.6 | BA95: 0.6 | BB95: 0.6 | BC95: 0.6 | BD95: 0.6 | BE95: 0.6 | BF95: 0.6 | BG95: 0.6 | BH95: 0.6 | BI95: 0.6 | BJ95: 0.6 | BK95: 0.6 | BL95: 0.6 | BM95: 0.6 | BN95: 0.6 | BO95: 0.6 | BP95: 0.6 | BQ95: 0.6 | BR95: 0.6 | BS95: 0.6 | BT95: =$E$95 -> 0.6 | BU95: 0.6 | BV95: 0.6 | BW95: 0.6 | BX95: 0.6 | BY95: 0.6 | BZ95: 0.6 | CA95: 0.6 | CB95: 0.6 | CC95: 0.6 | CD95: 0.6 | CE95: 0.6 | CF95: 0.6 | CG95: 0.6 | CH95: 0.6 | CI95: 0.6 | CJ95: 0.6 | CK95: 0.6 | CL95: 0.6 | CM95: 0.6 | CN95: 0.6 | CO95: 0.6 | CP95: 0.6 | CQ95: 0.6 | CR95: 0.6 | CS95: 0.6 | CT95: 0.6 | CU95: 0.6 | CV95: 0.6 | CW95: 0.6 | CX95: 0.6 | CY95: 0.6 | CZ95: 0.6 | DA95: 0.6 | DB95: 0.6 | DC95: 0.6 | DD95: 0.6 | DE95: 0.6 | DF95: 0.6 | DG95: 0.6 | DH95: 0.6 | DI95: 0.6 | DJ95: 0.6 | DK95: 0.6 | DL95: 0.6 | DM95: 0.6 | DN95: 0.6 | DO95: 0.6 | DP95: 0.6 | DQ95: 0.6 | DR95: 0.6 | DS95: 0.6 | DT95: 0.6 | DU95: 0.6 | DV95: 0.6 | DW95: 0.6 | DX95: 0.6
C96: Loss Percent | G96: =G94*G95 -> 0.01066300416 | H96: =H94*H95 -> 0.02230812712 | I96: 0.02637690503 | J96: 0.0256753916 | K96: 0.02314994324 | L96: 0.02202752175 | M96: 0.01837965191 | N96: 0.01627511161 | O96: 0.01473178206 | P96: 0.01318845251 | Q96: 0.01094360953 | R96: 0.009259977297 | S96: 0.00799725312 | T96: 0.006874831629 | U96: 0.007436042375 | V96: 0.007678721098 | W96: 0.007929319754 | X96: 0.008188096815 | Y96: 0.008455319186 | Z96: 0.008731262485 | AA96: 0.009016211322 | AB96: 0.009310459598 | AC96: 0.009614310804 | AD96: 0.009928078337 | AE96: 0.01025208582 | AF96: 0.01058666744 | AG96: 0.01093216828 | AH96: 0.01128894471 | AI96: 0.01165736471 | AJ96: 0.01203780826 | AK96: 0.01243066776 | AL96: 0.01283634842 | AM96: 0.01325526866 | AN96: 0.01368786056 | AO96: 0.01413457029 | AP96: 0.01459585861 | AQ96: 0.01507220129 | AR96: 0.01556408963 | AS96: 0.01607203098 | AT96: 0.01659654923 | AU96: 0.01713818538 | AV96: 0.01769749808 | AW96: 0.01827506421 | AX96: 0.01887147948 | AY96: 0.01948735905 | AZ96: 0.02012333813 | BA96: 0.02078007269 | BB96: 0.02145824009 | BC96: 0.02215853979 | BD96: 0.02288169411 | BE96: 0.0236284489 | BF96: 0.02439957439 | BG96: 0.02519586592 | BH96: 0.0260181448 | BI96: 0.02686725913 | BJ96: 0.0277440847 | BK96: 0.02864952589 | BL96: 0.02958451658 | BM96: 0.03055002112 | BN96: 0.03154703535 | BO96: 0.03257658762 | BP96: 0.0336397398 | BQ96: 0.03473758845 | BR96: 0.03587126591 | BS96: 0.03704194146 | BT96: =BT94*BT95 -> 0.03825082255 | BU96: 0.03949915604 | BV96: 0.04078822949 | BW96: 0.04211937244 | BX96: 0.04349395788 | BY96: 0.04491340354 | BZ96: 0.04637917349 | CA96: 0.04789277952 | CB96: 0.04945578279 | CC96: 0.05106979541 | CD96: 0.05273648208 | CE96: 0.05445756185 | CF96: 0.05623480987 | CG96: 0.05807005921 | CH96: 0.05996520276 | CI96: 0.06192219522 | CJ96: 0.06394305504 | CK96: 0.06602986656 | CL96: 0.06818478216 | CM96: 0.07041002443 | CN96: 0.07270788853 | CO96: 0.0750807445 | CP96: 0.07753103973 | CQ96: 0.0800613015 | CR96: 0.08267413954 | CS96: 0.08537224877 | CT96: 0.08815841206 | CU96: 0.0910355031 | CV96: 0.09400648934 | CW96: 0.09707443512 | CX96: 0.1002425047 | CY96: 0.1035139658 | CZ96: 0.1068921925 | DA96: 0.1103806692 | DB96: 0.113982994 | DC96: 0.1177028824 | DD96: 0.121544171 | DE96: 0.1255108219 | DF96: 0.1296069263 | DG96: 0.133836709 | DH96: 0.1382045327 | DI96: 0.1427149023 | DJ96: 0.1473724699 | DK96: 0.1521820394 | DL96: 0.1571485715 | DM96: 0.1622771887 | DN96: 0.1675731807 | DO96: 0.1730420098 | DP96: 0.1786893168 | DQ96: 0.1845209263 | DR96: 0.1905428531 | DS96: 0.1967613082 | DT96: 0.2031827056 | DU96: 0.2098136683 | DV96: 0.2166610355 | DW96: 0.2237318698 | DX96: 0.2310334641
C97: Loan Balance | E97: =E193 -> 10000 | G97: =$E$97 -> 10000 | H97: =$E$97 -> 10000 | I97: 10000 | J97: 10000 | K97: 10000 | L97: 10000 | M97: 10000 | N97: 10000 | O97: 10000 | P97: 10000 | Q97: 10000 | R97: 10000 | S97: 10000 | T97: 10000 | U97: 10000 | V97: 10000 | W97: 10000 | X97: 10000 | Y97: 10000 | Z97: 10000 | AA97: 10000 | AB97: 10000 | AC97: 10000 | AD97: 10000 | AE97: 10000 | AF97: 10000 | AG97: 10000 | AH97: 10000 | AI97: 10000 | AJ97: 10000 | AK97: 10000 | AL97: 10000 | AM97: 10000 | AN97: 10000 | AO97: 10000 | AP97: 10000 | AQ97: 10000 | AR97: 10000 | AS97: 10000 | AT97: 10000 | AU97: 10000 | AV97: 10000 | AW97: 10000 | AX97: 10000 | AY97: 10000 | AZ97: 10000 | BA97: 10000 | BB97: 10000 | BC97: 10000 | BD97: 10000 | BE97: 10000 | BF97: 10000 | BG97: 10000 | BH97: 10000 | BI97: 10000 | BJ97: 10000 | BK97: 10000 | BL97: 10000 | BM97: 10000 | BN97: 10000 | BO97: 10000 | BP97: 10000 | BQ97: 10000 | BR97: 10000 | BS97: 10000 | BT97: =$E$97 -> 10000 | BU97: 10000 | BV97: 10000 | BW97: 10000 | BX97: 10000 | BY97: 10000 | BZ97: 10000 | CA97: 10000 | CB97: 10000 | CC97: 10000 | CD97: 10000 | CE97: 10000 | CF97: 10000 | CG97: 10000 | CH97: 10000 | CI97: 10000 | CJ97: 10000 | CK97: 10000 | CL97: 10000 | CM97: 10000 | CN97: 10000 | CO97: 10000 | CP97: 10000 | CQ97: 10000 | CR97: 10000 | CS97: 10000 | CT97: 10000 | CU97: 10000 | CV97: 10000 | CW97: 10000 | CX97: 10000 | CY97: 10000 | CZ97: 10000 | DA97: 10000 | DB97: 10000 | DC97: 10000 | DD97: 10000 | DE97: 10000 | DF97: 10000 | DG97: 10000 | DH97: 10000 | DI97: 10000 | DJ97: 10000 | DK97: 10000 | DL97: 10000 | DM97: 10000 | DN97: 10000 | DO97: 10000 | DP97: 10000 | DQ97: 10000 | DR97: 10000 | DS97: 10000 | DT97: 10000 | DU97: 10000 | DV97: 10000 | DW97: 10000 | DX97: 10000
C98: Default | G98: =G96*G97*(G3+G4) -> 106.6300416 | H98: 223.0812712 | I98: 263.7690503 | J98: 256.753916 | K98: 231.4994324 | L98: 220.2752175 | M98: 183.7965191 | N98: 162.7511161 | O98: 147.3178206 | P98: 131.8845251 | Q98: 0 | R98: 0 | S98: 0 | T98: 0 | U98: 0 | V98: 0 | W98: 0 | X98: 0 | Y98: 0 | Z98: 0 | AA98: 0 | AB98: 0 | AC98: 0 | AD98: 0 | AE98: 0 | AF98: 0 | AG98: 0 | AH98: 0 | AI98: 0 | AJ98: 0 | AK98: 0 | AL98: 0 | AM98: =AM96*AM97*(AM3+AM4) -> 0 | AN98: 0 | AO98: 0 | AP98: 0 | AQ98: 0 | AR98: 0 | AS98: 0 | AT98: 0 | AU98: 0 | AV98: 0 | AW98: 0 | AX98: 0 | AY98: 0 | AZ98: 0 | BA98: 0 | BB98: 0 | BC98: 0 | BD98: 0 | BE98: 0 | BF98: 0 | BG98: 0 | BH98: 0 | BI98: 0 | BJ98: 0 | BK98: 0 | BL98: 0 | BM98: 0 | BN98: 0 | BO98: 0 | BP98: 0 | BQ98: 0 | BR98: 0 | BS98: =BS96*BS97*(BS3+BS4) -> 0 | BT98: 0 | BU98: 0 | BV98: 0 | BW98: 0 | BX98: 0 | BY98: 0 | BZ98: 0 | CA98: 0 | CB98: 0 | CC98: 0 | CD98: 0 | CE98: 0 | CF98: 0 | CG98: 0 | CH98: 0 | CI98: 0 | CJ98: 0 | CK98: 0 | CL98: 0 | CM98: 0 | CN98: 0 | CO98: 0 | CP98: 0 | CQ98: 0 | CR98: 0 | CS98: 0 | CT98: 0 | CU98: 0 | CV98: 0 | CW98: 0 | CX98: 0 | CY98: =CY96*CY97*(CY3+CY4) -> 0 | CZ98: 0 | DA98: 0 | DB98: 0 | DC98: 0 | DD98: 0 | DE98: 0 | DF98: 0 | DG98: 0 | DH98: 0 | DI98: 0 | DJ98: 0 | DK98: 0 | DL98: 0 | DM98: 0 | DN98: 0 | DO98: 0 | DP98: 0 | DQ98: 0 | DR98: 0 | DS98: 0 | DT98: 0 | DU98: 0 | DV98: 0 | DW98: 0 | DX98: 0
C99: Accumulated | G99: =F99+G98 -> 106.6300416 | H99: =G99+H98 -> 329.7113128 | I99: 593.4803631 | J99: 850.2342791 | K99: 1081.733711 | L99: 1302.008929 | M99: 1485.805448 | N99: 1648.556564 | O99: 1795.874385 | P99: 1927.75891 | Q99: 1927.75891 | R99: 1927.75891 | S99: 1927.75891 | T99: 1927.75891 | U99: 1927.75891 | V99: 1927.75891 | W99: 1927.75891 | X99: 1927.75891 | Y99: 1927.75891 | Z99: 1927.75891 | AA99: 1927.75891 | AB99: 1927.75891 | AC99: 1927.75891 | AD99: 1927.75891 | AE99: 1927.75891 | AF99: 1927.75891 | AG99: 1927.75891 | AH99: 1927.75891 | AI99: 1927.75891 | AJ99: 1927.75891 | AK99: 1927.75891 | AL99: 1927.75891 | AM99: 1927.75891 | AN99: 1927.75891 | AO99: 1927.75891 | AP99: 1927.75891 | AQ99: 1927.75891 | AR99: 1927.75891 | AS99: 1927.75891 | AT99: 1927.75891 | AU99: 1927.75891 | AV99: 1927.75891 | AW99: 1927.75891 | AX99: 1927.75891 | AY99: 1927.75891 | AZ99: 1927.75891 | BA99: 1927.75891 | BB99: 1927.75891 | BC99: 1927.75891 | BD99: 1927.75891 | BE99: 1927.75891 | BF99: 1927.75891 | BG99: 1927.75891 | BH99: 1927.75891 | BI99: 1927.75891 | BJ99: 1927.75891 | BK99: 1927.75891 | BL99: 1927.75891 | BM99: 1927.75891 | BN99: 1927.75891 | BO99: 1927.75891 | BP99: 1927.75891 | BQ99: 1927.75891 | BR99: 1927.75891 | BS99: 1927.75891 | BT99: =BS99+BT98 -> 1927.75891 | BU99: 1927.75891 | BV99: 1927.75891 | BW99: 1927.75891 | BX99: 1927.75891 | BY99: 1927.75891 | BZ99: 1927.75891 | CA99: 1927.75891 | CB99: 1927.75891 | CC99: 1927.75891 | CD99: 1927.75891 | CE99: 1927.75891 | CF99: 1927.75891 | CG99: 1927.75891 | CH99: 1927.75891 | CI99: 1927.75891 | CJ99: 1927.75891 | CK99: 1927.75891 | CL99: 1927.75891 | CM99: 1927.75891 | CN99: 1927.75891 | CO99: 1927.75891 | CP99: 1927.75891 | CQ99: 1927.75891 | CR99: 1927.75891 | CS99: 1927.75891 | CT99: 1927.75891 | CU99: 1927.75891 | CV99: 1927.75891 | CW99: 1927.75891 | CX99: 1927.75891 | CY99: 1927.75891 | CZ99: 1927.75891 | DA99: 1927.75891 | DB99: 1927.75891 | DC99: 1927.75891 | DD99: 1927.75891 | DE99: 1927.75891 | DF99: 1927.75891 | DG99: 1927.75891 | DH99: 1927.75891 | DI99: 1927.75891 | DJ99: 1927.75891 | DK99: 1927.75891 | DL99: 1927.75891 | DM99: 1927.75891 | DN99: 1927.75891 | DO99: 1927.75891 | DP99: 1927.75891 | DQ99: 1927.75891 | DR99: 1927.75891 | DS99: 1927.75891 | DT99: 1927.75891 | DU99: 1927.75891 | DV99: 1927.75891 | DW99: 1927.75891 | DX99: 1927.75891
C100: Interest Loss | E100: =E83 -> 0.069 | G100: =$E$100*F99*(G3+G4) -> 0 | H100: 7.35747287 | I100: 22.75008059 | J100: 40.95014505 | K100: 58.66616526 | L100: 74.63962609 | M100: 89.8386161 | N100: 102.5205759 | O100: 113.7504029 | P100: 123.9153326 | Q100: 0 | R100: 0 | S100: 0 | T100: 0 | U100: 0 | V100: 0 | W100: 0 | X100: 0 | Y100: 0 | Z100: 0 | AA100: 0 | AB100: 0 | AC100: 0 | AD100: 0 | AE100: 0 | AF100: 0 | AG100: 0 | AH100: 0 | AI100: 0 | AJ100: 0 | AK100: 0 | AL100: 0 | AM100: =$E$100*AL99*(AM3+AM4) -> 0 | AN100: 0 | AO100: 0 | AP100: 0 | AQ100: 0 | AR100: 0 | AS100: 0 | AT100: 0 | AU100: 0 | AV100: 0 | AW100: 0 | AX100: 0 | AY100: 0 | AZ100: 0 | BA100: 0 | BB100: 0 | BC100: 0 | BD100: 0 | BE100: 0 | BF100: 0 | BG100: 0 | BH100: 0 | BI100: 0 | BJ100: 0 | BK100: 0 | BL100: 0 | BM100: 0 | BN100: 0 | BO100: 0 | BP100: 0 | BQ100: 0 | BR100: 0 | BS100: =$E$100*BR99*(BS3+BS4) -> 0 | BT100: 0 | BU100: 0 | BV100: 0 | BW100: 0 | BX100: 0 | BY100: 0 | BZ100: 0 | CA100: 0 | CB100: 0 | CC100: 0 | CD100: 0 | CE100: 0 | CF100: 0 | CG100: 0 | CH100: 0 | CI100: 0 | CJ100: 0 | CK100: 0 | CL100: 0 | CM100: 0 | CN100: 0 | CO100: 0 | CP100: 0 | CQ100: 0 | CR100: 0 | CS100: 0 | CT100: 0 | CU100: 0 | CV100: 0 | CW100: 0 | CX100: 0 | CY100: =$E$100*CX99*(CY3+CY4) -> 0 | CZ100: 0 | DA100: 0 | DB100: 0 | DC100: 0 | DD100: 0 | DE100: 0 | DF100: 0 | DG100: 0 | DH100: 0 | DI100: 0 | DJ100: 0 | DK100: 0 | DL100: 0 | DM100: 0 | DN100: 0 | DO100: 0 | DP100: 0 | DQ100: 0 | DR100: 0 | DS100: 0 | DT100: 0 | DU100: 0 | DV100: 0 | DW100: 0 | DX100: 0
C101: Repayment Date | E101: =F3+F4 -> 10 | G101: =G88 -> FALSE | H101: FALSE | I101: FALSE | J101: FALSE | K101: FALSE | L101: FALSE | M101: FALSE | N101: FALSE | O101: FALSE | P101: TRUE | Q101: FALSE | R101: FALSE | S101: FALSE | T101: FALSE | U101: FALSE | V101: FALSE | W101: FALSE | X101: FALSE | Y101: FALSE | Z101: FALSE | AA101: FALSE | AB101: FALSE | AC101: FALSE | AD101: FALSE | AE101: FALSE | AF101: FALSE | AG101: FALSE | AH101: FALSE | AI101: FALSE | AJ101: FALSE | AK101: FALSE | AL101: FALSE | AM101: =AM88 -> FALSE | AN101: FALSE | AO101: FALSE | AP101: FALSE | AQ101: FALSE | AR101: FALSE | AS101: FALSE | AT101: FALSE | AU101: FALSE | AV101: FALSE | AW101: FALSE | AX101: FALSE | AY101: FALSE | AZ101: FALSE | BA101: FALSE | BB101: FALSE | BC101: FALSE | BD101: FALSE | BE101: FALSE | BF101: FALSE | BG101: FALSE | BH101: FALSE | BI101: FALSE | BJ101: FALSE | BK101: FALSE | BL101: FALSE | BM101: FALSE | BN101: FALSE | BO101: FALSE | BP101: FALSE | BQ101: FALSE | BR101: FALSE | BS101: =BS88 -> FALSE | BT101: FALSE | BU101: FALSE | BV101: FALSE | BW101: FALSE | BX101: FALSE | BY101: FALSE | BZ101: FALSE | CA101: FALSE | CB101: FALSE | CC101: FALSE | CD101: FALSE | CE101: FALSE | CF101: FALSE | CG101: FALSE | CH101: FALSE | CI101: FALSE | CJ101: FALSE | CK101: FALSE | CL101: FALSE | CM101: FALSE | CN101: FALSE | CO101: FALSE | CP101: FALSE | CQ101: FALSE | CR101: FALSE | CS101: FALSE | CT101: FALSE | CU101: FALSE | CV101: FALSE | CW101: FALSE | CX101: FALSE | CY101: =CY88 -> FALSE | CZ101: FALSE | DA101: FALSE | DB101: FALSE | DC101: FALSE | DD101: FALSE | DE101: FALSE | DF101: FALSE | DG101: FALSE | DH101: FALSE | DI101: FALSE | DJ101: FALSE | DK101: FALSE | DL101: FALSE | DM101: FALSE | DN101: FALSE | DO101: FALSE | DP101: FALSE | DQ101: FALSE | DR101: FALSE | DS101: FALSE | DT101: FALSE | DU101: FALSE | DV101: FALSE | DW101: FALSE | DX101: FALSE
C102: Repayment Loss | G102: =G101*G99 -> 0 | H102: =H101*H99 -> 0 | I102: 0 | J102: 0 | K102: 0 | L102: 0 | M102: 0 | N102: 0 | O102: 0 | P102: 1927.75891 | Q102: 0 | R102: 0 | S102: 0 | T102: 0 | U102: 0 | V102: 0 | W102: 0 | X102: 0 | Y102: 0 | Z102: 0 | AA102: 0 | AB102: 0 | AC102: 0 | AD102: 0 | AE102: 0 | AF102: 0 | AG102: 0 | AH102: 0 | AI102: 0 | AJ102: 0 | AK102: 0 | AL102: 0 | AM102: 0 | AN102: 0 | AO102: 0 | AP102: 0 | AQ102: 0 | AR102: 0 | AS102: 0 | AT102: 0 | AU102: 0 | AV102: 0 | AW102: 0 | AX102: 0 | AY102: 0 | AZ102: 0 | BA102: 0 | BB102: 0 | BC102: 0 | BD102: 0 | BE102: 0 | BF102: 0 | BG102: 0 | BH102: 0 | BI102: 0 | BJ102: 0 | BK102: 0 | BL102: 0 | BM102: 0 | BN102: 0 | BO102: 0 | BP102: 0 | BQ102: 0 | BR102: 0 | BS102: 0 | BT102: =BT101*BT99 -> 0 | BU102: 0 | BV102: 0 | BW102: 0 | BX102: 0 | BY102: 0 | BZ102: 0 | CA102: 0 | CB102: 0 | CC102: 0 | CD102: 0 | CE102: 0 | CF102: 0 | CG102: 0 | CH102: 0 | CI102: 0 | CJ102: 0 | CK102: 0 | CL102: 0 | CM102: 0 | CN102: 0 | CO102: 0 | CP102: 0 | CQ102: 0 | CR102: 0 | CS102: 0 | CT102: 0 | CU102: 0 | CV102: 0 | CW102: 0 | CX102: 0 | CY102: 0 | CZ102: 0 | DA102: 0 | DB102: 0 | DC102: 0 | DD102: 0 | DE102: 0 | DF102: 0 | DG102: 0 | DH102: 0 | DI102: 0 | DJ102: 0 | DK102: 0 | DL102: 0 | DM102: 0 | DN102: 0 | DO102: 0 | DP102: 0 | DQ102: 0 | DR102: 0 | DS102: 0 | DT102: 0 | DU102: 0 | DV102: 0 | DW102: 0 | DX102: 0
C103: Total Loss from Default | G103: =G100+G102 -> 0 | H103: =H100+H102 -> 7.35747287 | I103: 22.75008059 | J103: 40.95014505 | K103: 58.66616526 | L103: 74.63962609 | M103: 89.8386161 | N103: 102.5205759 | O103: 113.7504029 | P103: 2051.674243 | Q103: 0 | R103: 0 | S103: 0 | T103: 0 | U103: 0 | V103: 0 | W103: 0 | X103: 0 | Y103: 0 | Z103: 0 | AA103: 0 | AB103: 0 | AC103: 0 | AD103: 0 | AE103: 0 | AF103: 0 | AG103: 0 | AH103: 0 | AI103: 0 | AJ103: 0 | AK103: 0 | AL103: 0 | AM103: 0 | AN103: 0 | AO103: 0 | AP103: 0 | AQ103: 0 | AR103: 0 | AS103: 0 | AT103: 0 | AU103: 0 | AV103: 0 | AW103: 0 | AX103: 0 | AY103: 0 | AZ103: 0 | BA103: 0 | BB103: 0 | BC103: 0 | BD103: 0 | BE103: 0 | BF103: 0 | BG103: 0 | BH103: 0 | BI103: 0 | BJ103: 0 | BK103: 0 | BL103: 0 | BM103: 0 | BN103: 0 | BO103: 0 | BP103: 0 | BQ103: 0 | BR103: 0 | BS103: 0 | BT103: =BT100+BT102 -> 0 | BU103: 0 | BV103: 0 | BW103: 0 | BX103: 0 | BY103: 0 | BZ103: 0 | CA103: 0 | CB103: 0 | CC103: 0 | CD103: 0 | CE103: 0 | CF103: 0 | CG103: 0 | CH103: 0 | CI103: 0 | CJ103: 0 | CK103: 0 | CL103: 0 | CM103: 0 | CN103: 0 | CO103: 0 | CP103: 0 | CQ103: 0 | CR103: 0 | CS103: 0 | CT103: 0 | CU103: 0 | CV103: 0 | CW103: 0 | CX103: 0 | CY103: 0 | CZ103: 0 | DA103: 0 | DB103: 0 | DC103: 0 | DD103: 0 | DE103: 0 | DF103: 0 | DG103: 0 | DH103: 0 | DI103: 0 | DJ103: 0 | DK103: 0 | DL103: 0 | DM103: 0 | DN103: 0 | DO103: 0 | DP103: 0 | DQ103: 0 | DR103: 0 | DS103: 0 | DT103: 0 | DU103: 0 | DV103: 0 | DW103: 0 | DX103: 0
C104: Cash Flow with Default | E104: =SUM(G104:DX104) -> 1137.852673 | G104: =G91-G103 -> -9750 | H104: =H91-H103 -> 1793.753638 | I104: 1701.694364 | J104: 1606.827633 | K104: 1512.444946 | L104: 1419.804818 | M104: 1327.939162 | N104: 1238.590535 | O104: 1150.694042 | P104: -863.8964648 | Q104: 0 | R104: 0 | S104: 0 | T104: 0 | U104: 0 | V104: 0 | W104: 0 | X104: 0 | Y104: 0 | Z104: 0 | AA104: 0 | AB104: 0 | AC104: 0 | AD104: 0 | AE104: 0 | AF104: 0 | AG104: 0 | AH104: 0 | AI104: 0 | AJ104: 0 | AK104: 0 | AL104: 0 | AM104: 0 | AN104: 0 | AO104: 0 | AP104: 0 | AQ104: 0 | AR104: 0 | AS104: 0 | AT104: 0 | AU104: 0 | AV104: 0 | AW104: 0 | AX104: 0 | AY104: 0 | AZ104: 0 | BA104: 0 | BB104: 0 | BC104: 0 | BD104: 0 | BE104: 0 | BF104: 0 | BG104: 0 | BH104: 0 | BI104: 0 | BJ104: 0 | BK104: 0 | BL104: 0 | BM104: 0 | BN104: 0 | BO104: 0 | BP104: 0 | BQ104: 0 | BR104: 0 | BS104: 0 | BT104: =BT91-BT103 -> 0 | BU104: 0 | BV104: 0 | BW104: 0 | BX104: 0 | BY104: 0 | BZ104: 0 | CA104: 0 | CB104: 0 | CC104: 0 | CD104: 0 | CE104: 0 | CF104: 0 | CG104: 0 | CH104: 0 | CI104: 0 | CJ104: 0 | CK104: 0 | CL104: 0 | CM104: 0 | CN104: 0 | CO104: 0 | CP104: 0 | CQ104: 0 | CR104: 0 | CS104: 0 | CT104: 0 | CU104: 0 | CV104: 0 | CW104: 0 | CX104: 0 | CY104: 0 | CZ104: 0 | DA104: 0 | DB104: 0 | DC104: 0 | DD104: 0 | DE104: 0 | DF104: 0 | DG104: 0 | DH104: 0 | DI104: 0 | DJ104: 0 | DK104: 0 | DL104: 0 | DM104: 0 | DN104: 0 | DO104: 0 | DP104: 0 | DQ104: 0 | DR104: 0 | DS104: 0 | DT104: 0 | DU104: 0 | DV104: 0 | DW104: 0 | DX104: 0
B106: Cost of Funding | E106: =E64 -> 0.03 | F106: =NPV(E106,G104:DX104) -> -0.003222537164
B107: IRR Realised | E107: =IRR(G104:DX104) -> 0.02999990474
B108: Difference | E108: =E106-E107 -> 9.525611921e-08
B109: Target
B110: Function | E110: =p_def(E97,E106,G91:DX91,G92:DX92,E95,E100,F3+F4) -> 0.0177716736
B111: Cumulative Default | E111: =LOOKUP(E101,90:90,93:93) -> 0.3212931517
B113: Total Defaults | E113: =SUM(98:98) -> 1927.75891
B114: Percent of Original Loan | E114: =E113/E97 -> 0.192775891
A117: Loss on Loan from Risk Rating
B118: Year | G118: 1 | H118: 2 | I118: 3 | J118: 4 | K118: 5 | L118: 6 | M118: 7 | N118: 8 | O118: 9 | P118: 10 | Q118: 11 | R118: 12 | S118: 13 | T118: 14 | U118: 15
B119: Incremental Default Rate | G119: ='Rating and PD'!D97 -> 0.003775290753 | H119: ='Rating and PD'!E97 -> 0.007567597712 | I119: ='Rating and PD'!F97 -> 0.008623541468 | J119: ='Rating and PD'!G97 -> 0.009216315539 | K119: ='Rating and PD'!H97 -> 0.008577387989 | L119: ='Rating and PD'!I97 -> 0.008255476644 | M119: ='Rating and PD'!J97 -> 0.006953145853 | N119: ='Rating and PD'!K97 -> 0.006545919924 | O119: ='Rating and PD'!L97 -> 0.006060605338 | P119: ='Rating and PD'!M97 -> 0.005711887512 | Q119: ='Rating and PD'!N97 -> 0.005409556721 | R119: ='Rating and PD'!O97 -> 0.004482750238 | S119: ='Rating and PD'!P97 -> 0.004060838894 | T119: ='Rating and PD'!Q97 -> 0.003807225929 | U119: ='Rating and PD'!R97 -> 0.004002330791 | V119: ='Rating and PD'!S97 -> 0 | W119: ='Rating and PD'!T97 -> 0 | X119: ='Rating and PD'!U97 -> 0 | Y119: ='Rating and PD'!V97 -> 0 | Z119: ='Rating and PD'!W97 -> 0 | AA119: ='Rating and PD'!X97 -> 0 | AB119: ='Rating and PD'!Y97 -> 0 | AC119: ='Rating and PD'!Z97 -> 0 | AD119: ='Rating and PD'!AA97 -> 0 | AE119: ='Rating and PD'!AB97 -> 0 | AF119: ='Rating and PD'!AC97 -> 0 | AG119: ='Rating and PD'!AD97 -> 0 | AH119: ='Rating and PD'!AE97 -> 0 | AI119: ='Rating and PD'!AF97 -> 0 | AJ119: ='Rating and PD'!AG97 -> 0 | AK119: ='Rating and PD'!AH97 -> 0 | AL119: ='Rating and PD'!AI97 -> 0 | AM119: ='Rating and PD'!AJ97 -> 0 | AN119: ='Rating and PD'!AK97 -> 0 | AO119: ='Rating and PD'!AL97 -> 0 | AP119: ='Rating and PD'!AM97 -> 0 | AQ119: ='Rating and PD'!AN97 -> 0 | AR119: ='Rating and PD'!AO97 -> 0 | AS119: ='Rating and PD'!AP97 -> 0 | AT119: ='Rating and PD'!AQ97 -> 0 | AU119: ='Rating and PD'!AR97 -> 0 | AV119: ='Rating and PD'!AS97 -> 0 | AW119: ='Rating and PD'!AT97 -> 0 | AX119: ='Rating and PD'!AU97 -> 0 | AY119: ='Rating and PD'!AV97 -> 0 | AZ119: ='Rating and PD'!AW97 -> 0 | BA119: ='Rating and PD'!AX97 -> 0 | BB119: ='Rating and PD'!AY97 -> 0 | BC119: ='Rating and PD'!AZ97 -> 0 | BD119: ='Rating and PD'!BA97 -> 0 | BE119: ='Rating and PD'!BB97 -> 0 | BF119: ='Rating and PD'!BC97 -> 0 | BG119: ='Rating and PD'!BD97 -> 0 | BH119: ='Rating and PD'!BE97 -> 0 | BI119: ='Rating and PD'!BF97 -> 0 | BJ119: ='Rating and PD'!BG97 -> 0 | BK119: ='Rating and PD'!BH97 -> 0 | BL119: ='Rating and PD'!BI97 -> 0 | BM119: ='Rating and PD'!BJ97 -> 0 | BN119: ='Rating and PD'!BK97 -> 0 | BO119: ='Rating and PD'!BL97 -> 0 | BP119: ='Rating and PD'!BM97 -> 0 | BQ119: ='Rating and PD'!BN97 -> 0 | BR119: ='Rating and PD'!BO97 -> 0 | BS119: ='Rating and PD'!BP97 -> 0 | BT119: ='Rating and PD'!BQ97 -> 0 | BU119: ='Rating and PD'!BR97 -> 0 | BV119: ='Rating and PD'!BS97 -> 0 | BW119: ='Rating and PD'!BT97 -> 0 | BX119: ='Rating and PD'!BU97 -> 0 | BY119: ='Rating and PD'!BV97 -> 0 | BZ119: ='Rating and PD'!BW97 -> 0 | CA119: ='Rating and PD'!BX97 -> 0 | CB119: ='Rating and PD'!BY97 -> 0 | CC119: ='Rating and PD'!BZ97 -> 0 | CD119: ='Rating and PD'!CA97 -> 0 | CE119: ='Rating and PD'!CB97 -> 0 | CF119: ='Rating and PD'!CC97 -> 0 | CG119: ='Rating and PD'!CD97 -> 0 | CH119: ='Rating and PD'!CE97 -> 0 | CI119: ='Rating and PD'!CF97 -> 0 | CJ119: ='Rating and PD'!CG97 -> 0 | CK119: ='Rating and PD'!CH97 -> 0 | CL119: ='Rating and PD'!CI97 -> 0 | CM119: ='Rating and PD'!CJ97 -> 0 | CN119: ='Rating and PD'!CK97 -> 0 | CO119: ='Rating and PD'!CL97 -> 0 | CP119: ='Rating and PD'!CM97 -> 0 | CQ119: ='Rating and PD'!CN97 -> 0 | CR119: ='Rating and PD'!CO97 -> 0 | CS119: ='Rating and PD'!CP97 -> 0 | CT119: ='Rating and PD'!CQ97 -> 0 | CU119: ='Rating and PD'!CR97 -> 0 | CV119: ='Rating and PD'!CS97 -> 0 | CW119: ='Rating and PD'!CT97 -> 0 | CX119: ='Rating and PD'!CU97 -> 0 | CY119: ='Rating and PD'!CV97 -> 0 | CZ119: ='Rating and PD'!CW97 -> 0 | DA119: ='Rating and PD'!CX97 -> 0 | DB119: ='Rating and PD'!CY97 -> 0 | DC119: ='Rating and PD'!CZ97 -> 0 | DD119: ='Rating and PD'!DA97 -> 0 | DE119: ='Rating and PD'!DB97 -> 0 | DF119: ='Rating and PD'!DC97 -> 0 | DG119: ='Rating and PD'!DD97 -> 0 | DH119: ='Rating and PD'!DE97 -> 0 | DI119: ='Rating and PD'!DF97 -> 0 | DJ119: ='Rating and PD'!DG97 -> 0 | DK119: ='Rating and PD'!DH97 -> 0 | DL119: ='Rating and PD'!DI97 -> 0 | DM119: ='Rating and PD'!DJ97 -> 0 | DN119: ='Rating and PD'!DK97 -> 0 | DO119: ='Rating and PD'!DL97 -> 0 | DP119: ='Rating and PD'!DM97 -> 0 | DQ119: ='Rating and PD'!DN97 -> 0 | DR119: ='Rating and PD'!DO97 -> 0 | DS119: ='Rating and PD'!DP97 -> 0 | DT119: ='Rating and PD'!DQ97 -> 0 | DU119: ='Rating and PD'!DR97 -> 0 | DV119: ='Rating and PD'!DS97 -> 0 | DW119: ='Rating and PD'!DT97 -> 0 | DX119: ='Rating and PD'!DU97 -> 0
B121: Year of Repayment | G121: =G76 -> 1 | H121: 2 | I121: 3 | J121: 4 | K121: 5 | L121: 6 | M121: 7 | N121: 8 | O121: 9 | P121: 10 | Q121: 11 | R121: 12 | S121: 13 | T121: 14 | U121: 15 | V121: 16 | W121: 17 | X121: 18 | Y121: 19 | Z121: 20 | AA121: 21 | AB121: 22 | AC121: 23 | AD121: 24 | AE121: 25 | AF121: 26 | AG121: 27 | AH121: 28 | AI121: 29 | AJ121: 30 | AK121: 31 | AL121: 32 | AM121: =AM76 -> 33 | AN121: 34 | AO121: 35 | AP121: 36 | AQ121: 37 | AR121: 38 | AS121: 39 | AT121: 40 | AU121: 41 | AV121: 42 | AW121: 43 | AX121: 44 | AY121: 45 | AZ121: 46 | BA121: 47 | BB121: 48 | BC121: 49 | BD121: 50 | BE121: 51 | BF121: 52 | BG121: 53 | BH121: 54 | BI121: 55 | BJ121: 56 | BK121: 57 | BL121: 58 | BM121: 59 | BN121: 60 | BO121: 61 | BP121: 62 | BQ121: 63 | BR121: 64 | BS121: =BS76 -> 65 | BT121: 66 | BU121: 67 | BV121: 68 | BW121: 69 | BX121: 70 | BY121: 71 | BZ121: 72 | CA121: 73 | CB121: 74 | CC121: 75 | CD121: 76 | CE121: 77 | CF121: 78 | CG121: 79 | CH121: 80 | CI121: 81 | CJ121: 82 | CK121: 83 | CL121: 84 | CM121: 85 | CN121: 86 | CO121: 87 | CP121: 88 | CQ121: 89 | CR121: 90 | CS121: 91 | CT121: 92 | CU121: 93 | CV121: 94 | CW121: 95 | CX121: 96 | CY121: =CY76 -> 97 | CZ121: 98 | DA121: 99 | DB121: 100 | DC121: 101 | DD121: 102 | DE121: 103 | DF121: 104 | DG121: 105 | DH121: 106 | DI121: 107 | DJ121: 108 | DK121: 109 | DL121: 110 | DM121: 111 | DN121: 112 | DO121: 113 | DP121: 114 | DQ121: 115 | DR121: 116 | DS121: 117 | DT121: 118 | DU121: 119 | DV121: 120 | DW121: 121 | DX121: 122
B122: Probability of Default | G122: =LOOKUP(G121,118:118,119:119)/$E$8 -> 0.003775290753 | H122: 0.007567597712 | I122: 0.008623541468 | J122: 0.009216315539 | K122: 0.008577387989 | L122: 0.008255476644 | M122: 0.006953145853 | N122: 0.006545919924 | O122: 0.006060605338 | P122: 0.005711887512 | Q122: 0.005409556721 | R122: 0.004482750238 | S122: 0.004060838894 | T122: 0.003807225929 | U122: 0.004002330791 | V122: 0.004002330791 | W122: 0.004002330791 | X122: 0.004002330791 | Y122: 0.004002330791 | Z122: 0.004002330791 | AA122: 0.004002330791 | AB122: 0.004002330791 | AC122: 0.004002330791 | AD122: 0.004002330791 | AE122: 0.004002330791 | AF122: 0.004002330791 | AG122: 0.004002330791 | AH122: 0.004002330791 | AI122: 0.004002330791 | AJ122: 0.004002330791 | AK122: 0.004002330791 | AL122: 0.004002330791 | AM122: =LOOKUP(AM121,118:118,119:119)/$E$8 -> 0.004002330791 | AN122: 0.004002330791 | AO122: 0.004002330791 | AP122: 0.004002330791 | AQ122: 0.004002330791 | AR122: 0.004002330791 | AS122: 0.004002330791 | AT122: 0.004002330791 | AU122: 0.004002330791 | AV122: 0.004002330791 | AW122: 0.004002330791 | AX122: 0.004002330791 | AY122: 0.004002330791 | AZ122: 0.004002330791 | BA122: 0.004002330791 | BB122: 0.004002330791 | BC122: 0.004002330791 | BD122: 0.004002330791 | BE122: 0.004002330791 | BF122: 0.004002330791 | BG122: 0.004002330791 | BH122: 0.004002330791 | BI122: 0.004002330791 | BJ122: 0.004002330791 | BK122: 0.004002330791 | BL122: 0.004002330791 | BM122: 0.004002330791 | BN122: 0.004002330791 | BO122: 0.004002330791 | BP122: 0.004002330791 | BQ122: 0.004002330791 | BR122: 0.004002330791 | BS122: =LOOKUP(BS121,118:118,119:119)/$E$8 -> 0.004002330791 | BT122: 0.004002330791 | BU122: 0.004002330791 | BV122: 0.004002330791 | BW122: 0.004002330791 | BX122: 0.004002330791 | BY122: 0.004002330791 | BZ122: 0.004002330791 | CA122: 0.004002330791 | CB122: 0.004002330791 | CC122: 0.004002330791 | CD122: 0.004002330791 | CE122: 0.004002330791 | CF122: 0.004002330791 | CG122: 0.004002330791 | CH122: 0.004002330791 | CI122: 0.004002330791 | CJ122: 0.004002330791 | CK122: 0.004002330791 | CL122: 0.004002330791 | CM122: 0.004002330791 | CN122: 0.004002330791 | CO122: 0.004002330791 | CP122: 0.004002330791 | CQ122: 0.004002330791 | CR122: 0.004002330791 | CS122: 0.004002330791 | CT122: 0.004002330791 | CU122: 0.004002330791 | CV122: 0.004002330791 | CW122: 0.004002330791 | CX122: 0.004002330791 | CY122: =LOOKUP(CY121,118:118,119:119)/$E$8 -> 0.004002330791 | CZ122: 0.004002330791 | DA122: 0.004002330791 | DB122: 0.004002330791 | DC122: 0.004002330791 | DD122: 0.004002330791 | DE122: 0.004002330791 | DF122: 0.004002330791 | DG122: 0.004002330791 | DH122: 0.004002330791 | DI122: 0.004002330791 | DJ122: 0.004002330791 | DK122: 0.004002330791 | DL122: 0.004002330791 | DM122: 0.004002330791 | DN122: 0.004002330791 | DO122: 0.004002330791 | DP122: 0.004002330791 | DQ122: 0.004002330791 | DR122: 0.004002330791 | DS122: 0.004002330791 | DT122: 0.004002330791 | DU122: 0.004002330791 | DV122: 0.004002330791 | DW122: 0.004002330791 | DX122: 0.004002330791
B123: Loss Given Default | E123: ='RAROC Analysis'!F28 -> 0.6 | G123: =$E$123 -> 0.6 | H123: =$E$123 -> 0.6 | I123: 0.6 | J123: 0.6 | K123: 0.6 | L123: 0.6 | M123: 0.6 | N123: 0.6 | O123: 0.6 | P123: 0.6 | Q123: 0.6 | R123: 0.6 | S123: 0.6 | T123: 0.6 | U123: 0.6 | V123: 0.6 | W123: 0.6 | X123: 0.6 | Y123: 0.6 | Z123: 0.6 | AA123: 0.6 | AB123: 0.6 | AC123: 0.6 | AD123: 0.6 | AE123: 0.6 | AF123: 0.6 | AG123: 0.6 | AH123: 0.6 | AI123: 0.6 | AJ123: 0.6 | AK123: 0.6 | AL123: 0.6 | AM123: 0.6 | AN123: 0.6 | AO123: 0.6 | AP123: 0.6 | AQ123: 0.6 | AR123: 0.6 | AS123: 0.6 | AT123: 0.6 | AU123: 0.6 | AV123: 0.6 | AW123: 0.6 | AX123: 0.6 | AY123: 0.6 | AZ123: 0.6 | BA123: 0.6 | BB123: 0.6 | BC123: 0.6 | BD123: 0.6 | BE123: 0.6 | BF123: 0.6 | BG123: 0.6 | BH123: 0.6 | BI123: 0.6 | BJ123: 0.6 | BK123: 0.6 | BL123: 0.6 | BM123: 0.6 | BN123: 0.6 | BO123: 0.6 | BP123: 0.6 | BQ123: 0.6 | BR123: 0.6 | BS123: 0.6 | BT123: =$E$123 -> 0.6 | BU123: 0.6 | BV123: 0.6 | BW123: 0.6 | BX123: 0.6 | BY123: 0.6 | BZ123: 0.6 | CA123: 0.6 | CB123: 0.6 | CC123: 0.6 | CD123: 0.6 | CE123: 0.6 | CF123: 0.6 | CG123: 0.6 | CH123: 0.6 | CI123: 0.6 | CJ123: 0.6 | CK123: 0.6 | CL123: 0.6 | CM123: 0.6 | CN123: 0.6 | CO123: 0.6 | CP123: 0.6 | CQ123: 0.6 | CR123: 0.6 | CS123: 0.6 | CT123: 0.6 | CU123: 0.6 | CV123: 0.6 | CW123: 0.6 | CX123: 0.6 | CY123: 0.6 | CZ123: 0.6 | DA123: 0.6 | DB123: 0.6 | DC123: 0.6 | DD123: 0.6 | DE123: 0.6 | DF123: 0.6 | DG123: 0.6 | DH123: 0.6 | DI123: 0.6 | DJ123: 0.6 | DK123: 0.6 | DL123: 0.6 | DM123: 0.6 | DN123: 0.6 | DO123: 0.6 | DP123: 0.6 | DQ123: 0.6 | DR123: 0.6 | DS123: 0.6 | DT123: 0.6 | DU123: 0.6 | DV123: 0.6 | DW123: 0.6 | DX123: 0.6
B124: Net Loss Percent | G124: =G122*G123 -> 0.002265174452 | H124: =H122*H123 -> 0.004540558627 | I124: 0.005174124881 | J124: 0.005529789323 | K124: 0.005146432793 | L124: 0.004953285987 | M124: 0.004171887512 | N124: 0.003927551954 | O124: 0.003636363203 | P124: 0.003427132507 | Q124: 0.003245734032 | R124: 0.002689650143 | S124: 0.002436503337 | T124: 0.002284335558 | U124: 0.002401398475 | V124: 0.002401398475 | W124: 0.002401398475 | X124: 0.002401398475 | Y124: 0.002401398475 | Z124: 0.002401398475 | AA124: 0.002401398475 | AB124: 0.002401398475 | AC124: 0.002401398475 | AD124: 0.002401398475 | AE124: 0.002401398475 | AF124: 0.002401398475 | AG124: 0.002401398475 | AH124: 0.002401398475 | AI124: 0.002401398475 | AJ124: 0.002401398475 | AK124: 0.002401398475 | AL124: 0.002401398475 | AM124: 0.002401398475 | AN124: 0.002401398475 | AO124: 0.002401398475 | AP124: 0.002401398475 | AQ124: 0.002401398475 | AR124: 0.002401398475 | AS124: 0.002401398475 | AT124: 0.002401398475 | AU124: 0.002401398475 | AV124: 0.002401398475 | AW124: 0.002401398475 | AX124: 0.002401398475 | AY124: 0.002401398475 | AZ124: 0.002401398475 | BA124: 0.002401398475 | BB124: 0.002401398475 | BC124: 0.002401398475 | BD124: 0.002401398475 | BE124: 0.002401398475 | BF124: 0.002401398475 | BG124: 0.002401398475 | BH124: 0.002401398475 | BI124: 0.002401398475 | BJ124: 0.002401398475 | BK124: 0.002401398475 | BL124: 0.002401398475 | BM124: 0.002401398475 | BN124: 0.002401398475 | BO124: 0.002401398475 | BP124: 0.002401398475 | BQ124: 0.002401398475 | BR124: 0.002401398475 | BS124: 0.002401398475 | BT124: =BT122*BT123 -> 0.002401398475 | BU124: 0.002401398475 | BV124: 0.002401398475 | BW124: 0.002401398475 | BX124: 0.002401398475 | BY124: 0.002401398475 | BZ124: 0.002401398475 | CA124: 0.002401398475 | CB124: 0.002401398475 | CC124: 0.002401398475 | CD124: 0.002401398475 | CE124: 0.002401398475 | CF124: 0.002401398475 | CG124: 0.002401398475 | CH124: 0.002401398475 | CI124: 0.002401398475 | CJ124: 0.002401398475 | CK124: 0.002401398475 | CL124: 0.002401398475 | CM124: 0.002401398475 | CN124: 0.002401398475 | CO124: 0.002401398475 | CP124: 0.002401398475 | CQ124: 0.002401398475 | CR124: 0.002401398475 | CS124: 0.002401398475 | CT124: 0.002401398475 | CU124: 0.002401398475 | CV124: 0.002401398475 | CW124: 0.002401398475 | CX124: 0.002401398475 | CY124: 0.002401398475 | CZ124: 0.002401398475 | DA124: 0.002401398475 | DB124: 0.002401398475 | DC124: 0.002401398475 | DD124: 0.002401398475 | DE124: 0.002401398475 | DF124: 0.002401398475 | DG124: 0.002401398475 | DH124: 0.002401398475 | DI124: 0.002401398475 | DJ124: 0.002401398475 | DK124: 0.002401398475 | DL124: 0.002401398475 | DM124: 0.002401398475 | DN124: 0.002401398475 | DO124: 0.002401398475 | DP124: 0.002401398475 | DQ124: 0.002401398475 | DR124: 0.002401398475 | DS124: 0.002401398475 | DT124: 0.002401398475 | DU124: 0.002401398475 | DV124: 0.002401398475 | DW124: 0.002401398475 | DX124: 0.002401398475
B125: Loan Balance for Loss Measurement | E125: =E32 -> 10000 | G125: =$E$125 -> 10000 | H125: =$E$125 -> 10000 | I125: 10000 | J125: 10000 | K125: 10000 | L125: 10000 | M125: 10000 | N125: 10000 | O125: 10000 | P125: 10000 | Q125: 10000 | R125: 10000 | S125: 10000 | T125: 10000 | U125: 10000 | V125: 10000 | W125: 10000 | X125: 10000 | Y125: 10000 | Z125: 10000 | AA125: 10000 | AB125: 10000 | AC125: 10000 | AD125: 10000 | AE125: 10000 | AF125: 10000 | AG125: 10000 | AH125: 10000 | AI125: 10000 | AJ125: 10000 | AK125: 10000 | AL125: 10000 | AM125: 10000 | AN125: 10000 | AO125: 10000 | AP125: 10000 | AQ125: 10000 | AR125: 10000 | AS125: 10000 | AT125: 10000 | AU125: 10000 | AV125: 10000 | AW125: 10000 | AX125: 10000 | AY125: 10000 | AZ125: 10000 | BA125: 10000 | BB125: 10000 | BC125: 10000 | BD125: 10000 | BE125: 10000 | BF125: 10000 | BG125: 10000 | BH125: 10000 | BI125: 10000 | BJ125: 10000 | BK125: 10000 | BL125: 10000 | BM125: 10000 | BN125: 10000 | BO125: 10000 | BP125: 10000 | BQ125: 10000 | BR125: 10000 | BS125: 10000 | BT125: =$E$125 -> 10000 | BU125: 10000 | BV125: 10000 | BW125: 10000 | BX125: 10000 | BY125: 10000 | BZ125: 10000 | CA125: 10000 | CB125: 10000 | CC125: 10000 | CD125: 10000 | CE125: 10000 | CF125: 10000 | CG125: 10000 | CH125: 10000 | CI125: 10000 | CJ125: 10000 | CK125: 10000 | CL125: 10000 | CM125: 10000 | CN125: 10000 | CO125: 10000 | CP125: 10000 | CQ125: 10000 | CR125: 10000 | CS125: 10000 | CT125: 10000 | CU125: 10000 | CV125: 10000 | CW125: 10000 | CX125: 10000 | CY125: 10000 | CZ125: 10000 | DA125: 10000 | DB125: 10000 | DC125: 10000 | DD125: 10000 | DE125: 10000 | DF125: 10000 | DG125: 10000 | DH125: 10000 | DI125: 10000 | DJ125: 10000 | DK125: 10000 | DL125: 10000 | DM125: 10000 | DN125: 10000 | DO125: 10000 | DP125: 10000 | DQ125: 10000 | DR125: 10000 | DS125: 10000 | DT125: 10000 | DU125: 10000 | DV125: 10000 | DW125: 10000 | DX125: 10000
B126: Losses | G126: =G124*G125*(G3+G4) -> 22.65174452 | H126: 45.40558627 | I126: 51.74124881 | J126: 55.29789323 | K126: 51.46432793 | L126: 49.53285987 | M126: 41.71887512 | N126: 39.27551954 | O126: 36.36363203 | P126: 34.27132507 | Q126: 0 | R126: 0 | S126: 0 | T126: 0 | U126: 0 | V126: 0 | W126: 0 | X126: 0 | Y126: 0 | Z126: 0 | AA126: 0 | AB126: 0 | AC126: 0 | AD126: 0 | AE126: 0 | AF126: 0 | AG126: 0 | AH126: 0 | AI126: 0 | AJ126: 0 | AK126: 0 | AL126: 0 | AM126: =AM124*AM125*(AM3+AM4) -> 0 | AN126: 0 | AO126: 0 | AP126: 0 | AQ126: 0 | AR126: 0 | AS126: 0 | AT126: 0 | AU126: 0 | AV126: 0 | AW126: 0 | AX126: 0 | AY126: 0 | AZ126: 0 | BA126: 0 | BB126: 0 | BC126: 0 | BD126: 0 | BE126: 0 | BF126: 0 | BG126: 0 | BH126: 0 | BI126: 0 | BJ126: 0 | BK126: 0 | BL126: 0 | BM126: 0 | BN126: 0 | BO126: 0 | BP126: 0 | BQ126: 0 | BR126: 0 | BS126: =BS124*BS125*(BS3+BS4) -> 0 | BT126: 0 | BU126: 0 | BV126: 0 | BW126: 0 | BX126: 0 | BY126: 0 | BZ126: 0 | CA126: 0 | CB126: 0 | CC126: 0 | CD126: 0 | CE126: 0 | CF126: 0 | CG126: 0 | CH126: 0 | CI126: 0 | CJ126: 0 | CK126: 0 | CL126: 0 | CM126: 0 | CN126: 0 | CO126: 0 | CP126: 0 | CQ126: 0 | CR126: 0 | CS126: 0 | CT126: 0 | CU126: 0 | CV126: 0 | CW126: 0 | CX126: 0 | CY126: =CY124*CY125*(CY3+CY4) -> 0 | CZ126: 0 | DA126: 0 | DB126: 0 | DC126: 0 | DD126: 0 | DE126: 0 | DF126: 0 | DG126: 0 | DH126: 0 | DI126: 0 | DJ126: 0 | DK126: 0 | DL126: 0 | DM126: 0 | DN126: 0 | DO126: 0 | DP126: 0 | DQ126: 0 | DR126: 0 | DS126: 0 | DT126: 0 | DU126: 0 | DV126: 0 | DW126: 0 | DX126: 0
B128: Loan Balance
C129: Opening Balance | G129: =F133 -> 0 | H129: =G133 -> 9750 | I129: 8666.666667 | J129: 7583.333333 | K129: 6500 | L129: 5416.666667 | M129: 4333.333333 | N129: 3250 | O129: 2166.666667 | P129: 1083.333333 | Q129: 0 | R129: 0 | S129: 0 | T129: 0 | U129: 0 | V129: 0 | W129: 0 | X129: 0 | Y129: 0 | Z129: 0 | AA129: 0 | AB129: 0 | AC129: 0 | AD129: 0 | AE129: 0 | AF129: 0 | AG129: 0 | AH129: 0 | AI129: 0 | AJ129: 0 | AK129: 0 | AL129: 0 | AM129: 0 | AN129: 0 | AO129: 0 | AP129: 0 | AQ129: 0 | AR129: 0 | AS129: 0 | AT129: 0 | AU129: 0 | AV129: 0 | AW129: 0 | AX129: 0 | AY129: 0 | AZ129: 0 | BA129: 0 | BB129: 0 | BC129: 0 | BD129: 0 | BE129: 0 | BF129: 0 | BG129: 0 | BH129: 0 | BI129: 0 | BJ129: 0 | BK129: 0 | BL129: 0 | BM129: 0 | BN129: 0 | BO129: 0 | BP129: 0 | BQ129: 0 | BR129: 0 | BS129: 0 | BT129: =BS133 -> 0 | BU129: 0 | BV129: 0 | BW129: 0 | BX129: 0 | BY129: 0 | BZ129: 0 | CA129: 0 | CB129: 0 | CC129: 0 | CD129: 0 | CE129: 0 | CF129: 0 | CG129: 0 | CH129: 0 | CI129: 0 | CJ129: 0 | CK129: 0 | CL129: 0 | CM129: 0 | CN129: 0 | CO129: 0 | CP129: 0 | CQ129: 0 | CR129: 0 | CS129: 0 | CT129: 0 | CU129: 0 | CV129: 0 | CW129: 0 | CX129: 0 | CY129: 0 | CZ129: 0 | DA129: 0 | DB129: 0 | DC129: 0 | DD129: 0 | DE129: 0 | DF129: 0 | DG129: 0 | DH129: 0 | DI129: 0 | DJ129: 0 | DK129: 0 | DL129: 0 | DM129: 0 | DN129: 0 | DO129: 0 | DP129: 0 | DQ129: 0 | DR129: 0 | DS129: 0 | DT129: 0 | DU129: 0 | DV129: 0 | DW129: 0 | DX129: 0
C130: Add: Draws | G130: =G41 -> 10000 | H130: 0 | I130: 0 | J130: 0 | K130: 0 | L130: 0 | M130: 0 | N130: 0 | O130: 0 | P130: 0 | Q130: 0 | R130: 0 | S130: 0 | T130: 0 | U130: 0 | V130: 0 | W130: 0 | X130: 0 | Y130: 0 | Z130: 0 | AA130: 0 | AB130: 0 | AC130: 0 | AD130: 0 | AE130: 0 | AF130: 0 | AG130: 0 | AH130: 0 | AI130: 0 | AJ130: 0 | AK130: 0 | AL130: 0 | AM130: =AM41 -> 0 | AN130: 0 | AO130: 0 | AP130: 0 | AQ130: 0 | AR130: 0 | AS130: 0 | AT130: 0 | AU130: 0 | AV130: 0 | AW130: 0 | AX130: 0 | AY130: 0 | AZ130: 0 | BA130: 0 | BB130: 0 | BC130: 0 | BD130: 0 | BE130: 0 | BF130: 0 | BG130: 0 | BH130: 0 | BI130: 0 | BJ130: 0 | BK130: 0 | BL130: 0 | BM130: 0 | BN130: 0 | BO130: 0 | BP130: 0 | BQ130: 0 | BR130: 0 | BS130: =BS41 -> 0 | BT130: 0 | BU130: 0 | BV130: 0 | BW130: 0 | BX130: 0 | BY130: 0 | BZ130: 0 | CA130: 0 | CB130: 0 | CC130: 0 | CD130: 0 | CE130: 0 | CF130: 0 | CG130: 0 | CH130: 0 | CI130: 0 | CJ130: 0 | CK130: 0 | CL130: 0 | CM130: 0 | CN130: 0 | CO130: 0 | CP130: 0 | CQ130: 0 | CR130: 0 | CS130: 0 | CT130: 0 | CU130: 0 | CV130: 0 | CW130: 0 | CX130: 0 | CY130: =CY41 -> 0 | CZ130: 0 | DA130: 0 | DB130: 0 | DC130: 0 | DD130: 0 | DE130: 0 | DF130: 0 | DG130: 0 | DH130: 0 | DI130: 0 | DJ130: 0 | DK130: 0 | DL130: 0 | DM130: 0 | DN130: 0 | DO130: 0 | DP130: 0 | DQ130: 0 | DR130: 0 | DS130: 0 | DT130: 0 | DU130: 0 | DV130: 0 | DW130: 0 | DX130: 0
C131: Less: Fees | G131: =G48+G49+G50 -> 250 | H131: 0 | I131: 0 | J131: 0 | K131: 0 | L131: 0 | M131: 0 | N131: 0 | O131: 0 | P131: 0 | Q131: 0 | R131: 0 | S131: 0 | T131: 0 | U131: 0 | V131: 0 | W131: 0 | X131: 0 | Y131: 0 | Z131: 0 | AA131: 0 | AB131: 0 | AC131: 0 | AD131: 0 | AE131: 0 | AF131: 0 | AG131: 0 | AH131: 0 | AI131: 0 | AJ131: 0 | AK131: 0 | AL131: 0 | AM131: =AM48+AM49+AM50 -> 0 | AN131: 0 | AO131: 0 | AP131: 0 | AQ131: 0 | AR131: 0 | AS131: 0 | AT131: 0 | AU131: 0 | AV131: 0 | AW131: 0 | AX131: 0 | AY131: 0 | AZ131: 0 | BA131: 0 | BB131: 0 | BC131: 0 | BD131: 0 | BE131: 0 | BF131: 0 | BG131: 0 | BH131: 0 | BI131: 0 | BJ131: 0 | BK131: 0 | BL131: 0 | BM131: 0 | BN131: 0 | BO131: 0 | BP131: 0 | BQ131: 0 | BR131: 0 | BS131: =BS48+BS49+BS50 -> 0 | BT131: 0 | BU131: 0 | BV131: 0 | BW131: 0 | BX131: 0 | BY131: 0 | BZ131: 0 | CA131: 0 | CB131: 0 | CC131: 0 | CD131: 0 | CE131: 0 | CF131: 0 | CG131: 0 | CH131: 0 | CI131: 0 | CJ131: 0 | CK131: 0 | CL131: 0 | CM131: 0 | CN131: 0 | CO131: 0 | CP131: 0 | CQ131: 0 | CR131: 0 | CS131: 0 | CT131: 0 | CU131: 0 | CV131: 0 | CW131: 0 | CX131: 0 | CY131: =CY48+CY49+CY50 -> 0 | CZ131: 0 | DA131: 0 | DB131: 0 | DC131: 0 | DD131: 0 | DE131: 0 | DF131: 0 | DG131: 0 | DH131: 0 | DI131: 0 | DJ131: 0 | DK131: 0 | DL131: 0 | DM131: 0 | DN131: 0 | DO131: 0 | DP131: 0 | DQ131: 0 | DR131: 0 | DS131: 0 | DT131: 0 | DU131: 0 | DV131: 0 | DW131: 0 | DX131: 0
C132: Less: Repayment | G132: =$E$135*G36 -> 0 | H132: 1083.333333 | I132: 1083.333333 | J132: 1083.333333 | K132: 1083.333333 | L132: 1083.333333 | M132: 1083.333333 | N132: 1083.333333 | O132: 1083.333333 | P132: 1083.333333 | Q132: 0 | R132: 0 | S132: 0 | T132: 0 | U132: 0 | V132: 0 | W132: 0 | X132: 0 | Y132: 0 | Z132: 0 | AA132: 0 | AB132: 0 | AC132: 0 | AD132: 0 | AE132: 0 | AF132: 0 | AG132: 0 | AH132: 0 | AI132: 0 | AJ132: 0 | AK132: 0 | AL132: 0 | AM132: =$E$135*AM36 -> 0 | AN132: 0 | AO132: 0 | AP132: 0 | AQ132: 0 | AR132: 0 | AS132: 0 | AT132: 0 | AU132: 0 | AV132: 0 | AW132: 0 | AX132: 0 | AY132: 0 | AZ132: 0 | BA132: 0 | BB132: 0 | BC132: 0 | BD132: 0 | BE132: 0 | BF132: 0 | BG132: 0 | BH132: 0 | BI132: 0 | BJ132: 0 | BK132: 0 | BL132: 0 | BM132: 0 | BN132: 0 | BO132: 0 | BP132: 0 | BQ132: 0 | BR132: 0 | BS132: =$E$135*BS36 -> 0 | BT132: 0 | BU132: 0 | BV132: 0 | BW132: 0 | BX132: 0 | BY132: 0 | BZ132: 0 | CA132: 0 | CB132: 0 | CC132: 0 | CD132: 0 | CE132: 0 | CF132: 0 | CG132: 0 | CH132: 0 | CI132: 0 | CJ132: 0 | CK132: 0 | CL132: 0 | CM132: 0 | CN132: 0 | CO132: 0 | CP132: 0 | CQ132: 0 | CR132: 0 | CS132: 0 | CT132: 0 | CU132: 0 | CV132: 0 | CW132: 0 | CX132: 0 | CY132: =$E$135*CY36 -> 0 | CZ132: 0 | DA132: 0 | DB132: 0 | DC132: 0 | DD132: 0 | DE132: 0 | DF132: 0 | DG132: 0 | DH132: 0 | DI132: 0 | DJ132: 0 | DK132: 0 | DL132: 0 | DM132: 0 | DN132: 0 | DO132: 0 | DP132: 0 | DQ132: 0 | DR132: 0 | DS132: 0 | DT132: 0 | DU132: 0 | DV132: 0 | DW132: 0 | DX132: 0
C133: Closing Balance | G133: =G129+G130-G131-G132 -> 9750 | H133: =H129+H130-H131-H132 -> 8666.666667 | I133: 7583.333333 | J133: 6500 | K133: 5416.666667 | L133: 4333.333333 | M133: 3250 | N133: 2166.666667 | O133: 1083.333333 | P133: 0 | Q133: 0 | R133: 0 | S133: 0 | T133: 0 | U133: 0 | V133: 0 | W133: 0 | X133: 0 | Y133: 0 | Z133: 0 | AA133: 0 | AB133: 0 | AC133: 0 | AD133: 0 | AE133: 0 | AF133: 0 | AG133: 0 | AH133: 0 | AI133: 0 | AJ133: 0 | AK133: 0 | AL133: 0 | AM133: 0 | AN133: 0 | AO133: 0 | AP133: 0 | AQ133: 0 | AR133: 0 | AS133: 0 | AT133: 0 | AU133: 0 | AV133: 0 | AW133: 0 | AX133: 0 | AY133: 0 | AZ133: 0 | BA133: 0 | BB133: 0 | BC133: 0 | BD133: 0 | BE133: 0 | BF133: 0 | BG133: 0 | BH133: 0 | BI133: 0 | BJ133: 0 | BK133: 0 | BL133: 0 | BM133: 0 | BN133: 0 | BO133: 0 | BP133: 0 | BQ133: 0 | BR133: 0 | BS133: 0 | BT133: =BT129+BT130-BT131-BT132 -> 0 | BU133: 0 | BV133: 0 | BW133: 0 | BX133: 0 | BY133: 0 | BZ133: 0 | CA133: 0 | CB133: 0 | CC133: 0 | CD133: 0 | CE133: 0 | CF133: 0 | CG133: 0 | CH133: 0 | CI133: 0 | CJ133: 0 | CK133: 0 | CL133: 0 | CM133: 0 | CN133: 0 | CO133: 0 | CP133: 0 | CQ133: 0 | CR133: 0 | CS133: 0 | CT133: 0 | CU133: 0 | CV133: 0 | CW133: 0 | CX133: 0 | CY133: 0 | CZ133: 0 | DA133: 0 | DB133: 0 | DC133: 0 | DD133: 0 | DE133: 0 | DF133: 0 | DG133: 0 | DH133: 0 | DI133: 0 | DJ133: 0 | DK133: 0 | DL133: 0 | DM133: 0 | DN133: 0 | DO133: 0 | DP133: 0 | DQ133: 0 | DR133: 0 | DS133: 0 | DT133: 0 | DU133: 0 | DV133: 0 | DW133: 0 | DX133: 0
C135: Accumulated Debt | E135: =SUM(130:130)-SUM(131:131) -> 9750
A137: Balance Sheet
B138: Assets
C139: Investments in Liquid Assets | F139: ='RAROC Analysis'!F9 -> 0.09268064824 | G139: =$F$139*G140 -> 903.6363203 | H139: =$F$139*H140 -> 803.2322847 | I139: 702.8282491 | J139: 602.4242135 | K139: 502.0201779 | L139: 401.6161424 | M139: 301.2121068 | N139: 200.8080712 | O139: 100.4040356 | P139: 0 | Q139: 0 | R139: 0 | S139: 0 | T139: 0 | U139: 0 | V139: 0 | W139: 0 | X139: 0 | Y139: 0 | Z139: 0 | AA139: 0 | AB139: 0 | AC139: 0 | AD139: 0 | AE139: 0 | AF139: 0 | AG139: 0 | AH139: 0 | AI139: 0 | AJ139: 0 | AK139: 0 | AL139: 0 | AM139: 0 | AN139: 0 | AO139: 0 | AP139: 0 | AQ139: 0 | AR139: 0 | AS139: 0 | AT139: 0 | AU139: 0 | AV139: 0 | AW139: 0 | AX139: 0 | AY139: 0 | AZ139: 0 | BA139: 0 | BB139: 0 | BC139: 0 | BD139: 0 | BE139: 0 | BF139: 0 | BG139: 0 | BH139: 0 | BI139: 0 | BJ139: 0 | BK139: 0 | BL139: 0 | BM139: 0 | BN139: 0 | BO139: 0 | BP139: 0 | BQ139: 0 | BR139: 0 | BS139: 0 | BT139: =$F$139*BT140 -> 0 | BU139: 0 | BV139: 0 | BW139: 0 | BX139: 0 | BY139: 0 | BZ139: 0 | CA139: 0 | CB139: 0 | CC139: 0 | CD139: 0 | CE139: 0 | CF139: 0 | CG139: 0 | CH139: 0 | CI139: 0 | CJ139: 0 | CK139: 0 | CL139: 0 | CM139: 0 | CN139: 0 | CO139: 0 | CP139: 0 | CQ139: 0 | CR139: 0 | CS139: 0 | CT139: 0 | CU139: 0 | CV139: 0 | CW139: 0 | CX139: 0 | CY139: 0 | CZ139: 0 | DA139: 0 | DB139: 0 | DC139: 0 | DD139: 0 | DE139: 0 | DF139: 0 | DG139: 0 | DH139: 0 | DI139: 0 | DJ139: 0 | DK139: 0 | DL139: 0 | DM139: 0 | DN139: 0 | DO139: 0 | DP139: 0 | DQ139: 0 | DR139: 0 | DS139: 0 | DT139: 0 | DU139: 0 | DV139: 0 | DW139: 0 | DX139: 0
C140: Loan Balance | G140: =G133 -> 9750 | H140: =H133 -> 8666.666667 | I140: 7583.333333 | J140: 6500 | K140: 5416.666667 | L140: 4333.333333 | M140: 3250 | N140: 2166.666667 | O140: 1083.333333 | P140: 0 | Q140: 0 | R140: 0 | S140: 0 | T140: 0 | U140: 0 | V140: 0 | W140: 0 | X140: 0 | Y140: 0 | Z140: 0 | AA140: 0 | AB140: 0 | AC140: 0 | AD140: 0 | AE140: 0 | AF140: 0 | AG140: 0 | AH140: 0 | AI140: 0 | AJ140: 0 | AK140: 0 | AL140: 0 | AM140: 0 | AN140: 0 | AO140: 0 | AP140: 0 | AQ140: 0 | AR140: 0 | AS140: 0 | AT140: 0 | AU140: 0 | AV140: 0 | AW140: 0 | AX140: 0 | AY140: 0 | AZ140: 0 | BA140: 0 | BB140: 0 | BC140: 0 | BD140: 0 | BE140: 0 | BF140: 0 | BG140: 0 | BH140: 0 | BI140: 0 | BJ140: 0 | BK140: 0 | BL140: 0 | BM140: 0 | BN140: 0 | BO140: 0 | BP140: 0 | BQ140: 0 | BR140: 0 | BS140: 0 | BT140: =BT133 -> 0 | BU140: 0 | BV140: 0 | BW140: 0 | BX140: 0 | BY140: 0 | BZ140: 0 | CA140: 0 | CB140: 0 | CC140: 0 | CD140: 0 | CE140: 0 | CF140: 0 | CG140: 0 | CH140: 0 | CI140: 0 | CJ140: 0 | CK140: 0 | CL140: 0 | CM140: 0 | CN140: 0 | CO140: 0 | CP140: 0 | CQ140: 0 | CR140: 0 | CS140: 0 | CT140: 0 | CU140: 0 | CV140: 0 | CW140: 0 | CX140: 0 | CY140: 0 | CZ140: 0 | DA140: 0 | DB140: 0 | DC140: 0 | DD140: 0 | DE140: 0 | DF140: 0 | DG140: 0 | DH140: 0 | DI140: 0 | DJ140: 0 | DK140: 0 | DL140: 0 | DM140: 0 | DN140: 0 | DO140: 0 | DP140: 0 | DQ140: 0 | DR140: 0 | DS140: 0 | DT140: 0 | DU140: 0 | DV140: 0 | DW140: 0 | DX140: 0
D141: Total Assets | G141: =SUM(G139:G140) -> 10653.63632 | H141: =SUM(H139:H140) -> 9469.898951 | I141: 8286.161582 | J141: 7102.424214 | K141: 5918.686845 | L141: 4734.949476 | M141: 3551.212107 | N141: 2367.474738 | O141: 1183.737369 | P141: 0 | Q141: 0 | R141: 0 | S141: 0 | T141: 0 | U141: 0 | V141: 0 | W141: 0 | X141: 0 | Y141: 0 | Z141: 0 | AA141: 0 | AB141: 0 | AC141: 0 | AD141: 0 | AE141: 0 | AF141: 0 | AG141: 0 | AH141: 0 | AI141: 0 | AJ141: 0 | AK141: 0 | AL141: 0 | AM141: 0 | AN141: 0 | AO141: 0 | AP141: 0 | AQ141: 0 | AR141: 0 | AS141: 0 | AT141: 0 | AU141: 0 | AV141: 0 | AW141: 0 | AX141: 0 | AY141: 0 | AZ141: 0 | BA141: 0 | BB141: 0 | BC141: 0 | BD141: 0 | BE141: 0 | BF141: 0 | BG141: 0 | BH141: 0 | BI141: 0 | BJ141: 0 | BK141: 0 | BL141: 0 | BM141: 0 | BN141: 0 | BO141: 0 | BP141: 0 | BQ141: 0 | BR141: 0 | BS141: 0 | BT141: =SUM(BT139:BT140) -> 0 | BU141: 0 | BV141: 0 | BW141: 0 | BX141: 0 | BY141: 0 | BZ141: 0 | CA141: 0 | CB141: 0 | CC141: 0 | CD141: 0 | CE141: 0 | CF141: 0 | CG141: 0 | CH141: 0 | CI141: 0 | CJ141: 0 | CK141: 0 | CL141: 0 | CM141: 0 | CN141: 0 | CO141: 0 | CP141: 0 | CQ141: 0 | CR141: 0 | CS141: 0 | CT141: 0 | CU141: 0 | CV141: 0 | CW141: 0 | CX141: 0 | CY141: 0 | CZ141: 0 | DA141: 0 | DB141: 0 | DC141: 0 | DD141: 0 | DE141: 0 | DF141: 0 | DG141: 0 | DH141: 0 | DI141: 0 | DJ141: 0 | DK141: 0 | DL141: 0 | DM141: 0 | DN141: 0 | DO141: 0 | DP141: 0 | DQ141: 0 | DR141: 0 | DS141: 0 | DT141: 0 | DU141: 0 | DV141: 0 | DW141: 0 | DX141: 0
B143: Liabilities and Capital
C144: Deposits | G144: =G140 -> 9750 | H144: =H140 -> 8666.666667 | I144: 7583.333333 | J144: 6500 | K144: 5416.666667 | L144: 4333.333333 | M144: 3250 | N144: 2166.666667 | O144: 1083.333333 | P144: 0 | Q144: 0 | R144: 0 | S144: 0 | T144: 0 | U144: 0 | V144: 0 | W144: 0 | X144: 0 | Y144: 0 | Z144: 0 | AA144: 0 | AB144: 0 | AC144: 0 | AD144: 0 | AE144: 0 | AF144: 0 | AG144: 0 | AH144: 0 | AI144: 0 | AJ144: 0 | AK144: 0 | AL144: 0 | AM144: 0 | AN144: 0 | AO144: 0 | AP144: 0 | AQ144: 0 | AR144: 0 | AS144: 0 | AT144: 0 | AU144: 0 | AV144: 0 | AW144: 0 | AX144: 0 | AY144: 0 | AZ144: 0 | BA144: 0 | BB144: 0 | BC144: 0 | BD144: 0 | BE144: 0 | BF144: 0 | BG144: 0 | BH144: 0 | BI144: 0 | BJ144: 0 | BK144: 0 | BL144: 0 | BM144: 0 | BN144: 0 | BO144: 0 | BP144: 0 | BQ144: 0 | BR144: 0 | BS144: 0 | BT144: =BT140 -> 0 | BU144: 0 | BV144: 0 | BW144: 0 | BX144: 0 | BY144: 0 | BZ144: 0 | CA144: 0 | CB144: 0 | CC144: 0 | CD144: 0 | CE144: 0 | CF144: 0 | CG144: 0 | CH144: 0 | CI144: 0 | CJ144: 0 | CK144: 0 | CL144: 0 | CM144: 0 | CN144: 0 | CO144: 0 | CP144: 0 | CQ144: 0 | CR144: 0 | CS144: 0 | CT144: 0 | CU144: 0 | CV144: 0 | CW144: 0 | CX144: 0 | CY144: 0 | CZ144: 0 | DA144: 0 | DB144: 0 | DC144: 0 | DD144: 0 | DE144: 0 | DF144: 0 | DG144: 0 | DH144: 0 | DI144: 0 | DJ144: 0 | DK144: 0 | DL144: 0 | DM144: 0 | DN144: 0 | DO144: 0 | DP144: 0 | DQ144: 0 | DR144: 0 | DS144: 0 | DT144: 0 | DU144: 0 | DV144: 0 | DW144: 0 | DX144: 0
C145: Total Capital Required | G145: =G141-G144 -> 903.6363203 | H145: =H141-H144 -> 803.2322847 | I145: 702.8282491 | J145: 602.4242135 | K145: 502.0201779 | L145: 401.6161424 | M145: 301.2121068 | N145: 200.8080712 | O145: 100.4040356 | P145: 0 | Q145: 0 | R145: 0 | S145: 0 | T145: 0 | U145: 0 | V145: 0 | W145: 0 | X145: 0 | Y145: 0 | Z145: 0 | AA145: 0 | AB145: 0 | AC145: 0 | AD145: 0 | AE145: 0 | AF145: 0 | AG145: 0 | AH145: 0 | AI145: 0 | AJ145: 0 | AK145: 0 | AL145: 0 | AM145: 0 | AN145: 0 | AO145: 0 | AP145: 0 | AQ145: 0 | AR145: 0 | AS145: 0 | AT145: 0 | AU145: 0 | AV145: 0 | AW145: 0 | AX145: 0 | AY145: 0 | AZ145: 0 | BA145: 0 | BB145: 0 | BC145: 0 | BD145: 0 | BE145: 0 | BF145: 0 | BG145: 0 | BH145: 0 | BI145: 0 | BJ145: 0 | BK145: 0 | BL145: 0 | BM145: 0 | BN145: 0 | BO145: 0 | BP145: 0 | BQ145: 0 | BR145: 0 | BS145: 0 | BT145: =BT141-BT144 -> 0 | BU145: 0 | BV145: 0 | BW145: 0 | BX145: 0 | BY145: 0 | BZ145: 0 | CA145: 0 | CB145: 0 | CC145: 0 | CD145: 0 | CE145: 0 | CF145: 0 | CG145: 0 | CH145: 0 | CI145: 0 | CJ145: 0 | CK145: 0 | CL145: 0 | CM145: 0 | CN145: 0 | CO145: 0 | CP145: 0 | CQ145: 0 | CR145: 0 | CS145: 0 | CT145: 0 | CU145: 0 | CV145: 0 | CW145: 0 | CX145: 0 | CY145: 0 | CZ145: 0 | DA145: 0 | DB145: 0 | DC145: 0 | DD145: 0 | DE145: 0 | DF145: 0 | DG145: 0 | DH145: 0 | DI145: 0 | DJ145: 0 | DK145: 0 | DL145: 0 | DM145: 0 | DN145: 0 | DO145: 0 | DP145: 0 | DQ145: 0 | DR145: 0 | DS145: 0 | DT145: 0 | DU145: 0 | DV145: 0 | DW145: 0 | DX145: 0
D146: Total | G146: =SUM(G144:G145) -> 10653.63632 | H146: =SUM(H144:H145) -> 9469.898951 | I146: 8286.161582 | J146: 7102.424214 | K146: 5918.686845 | L146: 4734.949476 | M146: 3551.212107 | N146: 2367.474738 | O146: 1183.737369 | P146: 0 | Q146: 0 | R146: 0 | S146: 0 | T146: 0 | U146: 0 | V146: 0 | W146: 0 | X146: 0 | Y146: 0 | Z146: 0 | AA146: 0 | AB146: 0 | AC146: 0 | AD146: 0 | AE146: 0 | AF146: 0 | AG146: 0 | AH146: 0 | AI146: 0 | AJ146: 0 | AK146: 0 | AL146: 0 | AM146: 0 | AN146: 0 | AO146: 0 | AP146: 0 | AQ146: 0 | AR146: 0 | AS146: 0 | AT146: 0 | AU146: 0 | AV146: 0 | AW146: 0 | AX146: 0 | AY146: 0 | AZ146: 0 | BA146: 0 | BB146: 0 | BC146: 0 | BD146: 0 | BE146: 0 | BF146: 0 | BG146: 0 | BH146: 0 | BI146: 0 | BJ146: 0 | BK146: 0 | BL146: 0 | BM146: 0 | BN146: 0 | BO146: 0 | BP146: 0 | BQ146: 0 | BR146: 0 | BS146: 0 | BT146: =SUM(BT144:BT145) -> 0 | BU146: 0 | BV146: 0 | BW146: 0 | BX146: 0 | BY146: 0 | BZ146: 0 | CA146: 0 | CB146: 0 | CC146: 0 | CD146: 0 | CE146: 0 | CF146: 0 | CG146: 0 | CH146: 0 | CI146: 0 | CJ146: 0 | CK146: 0 | CL146: 0 | CM146: 0 | CN146: 0 | CO146: 0 | CP146: 0 | CQ146: 0 | CR146: 0 | CS146: 0 | CT146: 0 | CU146: 0 | CV146: 0 | CW146: 0 | CX146: 0 | CY146: 0 | CZ146: 0 | DA146: 0 | DB146: 0 | DC146: 0 | DD146: 0 | DE146: 0 | DF146: 0 | DG146: 0 | DH146: 0 | DI146: 0 | DJ146: 0 | DK146: 0 | DL146: 0 | DM146: 0 | DN146: 0 | DO146: 0 | DP146: 0 | DQ146: 0 | DR146: 0 | DS146: 0 | DT146: 0 | DU146: 0 | DV146: 0 | DW146: 0 | DX146: 0
B148: Cost of Deposits | F148: ='RAROC Analysis'!F25/'IRR Analysis'!E8 -> 0.03 | G148: =$F$148*F144 -> 0 | H148: =$F$148*G144 -> 292.5 | I148: 260 | J148: 227.5 | K148: 195 | L148: 162.5 | M148: 130 | N148: 97.5 | O148: 65 | P148: 32.5 | Q148: 0 | R148: 0 | S148: 0 | T148: 0 | U148: 0 | V148: 0 | W148: 0 | X148: 0 | Y148: 0 | Z148: 0 | AA148: 0 | AB148: 0 | AC148: 0 | AD148: 0 | AE148: 0 | AF148: 0 | AG148: 0 | AH148: 0 | AI148: 0 | AJ148: 0 | AK148: 0 | AL148: 0 | AM148: 0 | AN148: 0 | AO148: 0 | AP148: 0 | AQ148: 0 | AR148: 0 | AS148: 0 | AT148: 0 | AU148: 0 | AV148: 0 | AW148: 0 | AX148: 0 | AY148: 0 | AZ148: 0 | BA148: 0 | BB148: 0 | BC148: 0 | BD148: 0 | BE148: 0 | BF148: 0 | BG148: 0 | BH148: 0 | BI148: 0 | BJ148: 0 | BK148: 0 | BL148: 0 | BM148: 0 | BN148: 0 | BO148: 0 | BP148: 0 | BQ148: 0 | BR148: 0 | BS148: 0 | BT148: =$F$148*BS144 -> 0 | BU148: 0 | BV148: 0 | BW148: 0 | BX148: 0 | BY148: 0 | BZ148: 0 | CA148: 0 | CB148: 0 | CC148: 0 | CD148: 0 | CE148: 0 | CF148: 0 | CG148: 0 | CH148: 0 | CI148: 0 | CJ148: 0 | CK148: 0 | CL148: 0 | CM148: 0 | CN148: 0 | CO148: 0 | CP148: 0 | CQ148: 0 | CR148: 0 | CS148: 0 | CT148: 0 | CU148: 0 | CV148: 0 | CW148: 0 | CX148: 0 | CY148: 0 | CZ148: 0 | DA148: 0 | DB148: 0 | DC148: 0 | DD148: 0 | DE148: 0 | DF148: 0 | DG148: 0 | DH148: 0 | DI148: 0 | DJ148: 0 | DK148: 0 | DL148: 0 | DM148: 0 | DN148: 0 | DO148: 0 | DP148: 0 | DQ148: 0 | DR148: 0 | DS148: 0 | DT148: 0 | DU148: 0 | DV148: 0 | DW148: 0 | DX148: 0
B149: Return on Liquid Assets | F149: ='RAROC Analysis'!F26/'IRR Analysis'!E8 -> 0.015 | G149: =$F$149*F145 -> 0 | H149: =$F$149*G145 -> 13.5545448 | I149: 12.04848427 | J149: 10.54242374 | K149: 9.036363203 | L149: 7.530302669 | M149: 6.024242135 | N149: 4.518181602 | O149: 3.012121068 | P149: 1.506060534 | Q149: 0 | R149: 0 | S149: 0 | T149: 0 | U149: 0 | V149: 0 | W149: 0 | X149: 0 | Y149: 0 | Z149: 0 | AA149: 0 | AB149: 0 | AC149: 0 | AD149: 0 | AE149: 0 | AF149: 0 | AG149: 0 | AH149: 0 | AI149: 0 | AJ149: 0 | AK149: 0 | AL149: 0 | AM149: 0 | AN149: 0 | AO149: 0 | AP149: 0 | AQ149: 0 | AR149: 0 | AS149: 0 | AT149: 0 | AU149: 0 | AV149: 0 | AW149: 0 | AX149: 0 | AY149: 0 | AZ149: 0 | BA149: 0 | BB149: 0 | BC149: 0 | BD149: 0 | BE149: 0 | BF149: 0 | BG149: 0 | BH149: 0 | BI149: 0 | BJ149: 0 | BK149: 0 | BL149: 0 | BM149: 0 | BN149: 0 | BO149: 0 | BP149: 0 | BQ149: 0 | BR149: 0 | BS149: 0 | BT149: =$F$149*BS145 -> 0 | BU149: 0 | BV149: 0 | BW149: 0 | BX149: 0 | BY149: 0 | BZ149: 0 | CA149: 0 | CB149: 0 | CC149: 0 | CD149: 0 | CE149: 0 | CF149: 0 | CG149: 0 | CH149: 0 | CI149: 0 | CJ149: 0 | CK149: 0 | CL149: 0 | CM149: 0 | CN149: 0 | CO149: 0 | CP149: 0 | CQ149: 0 | CR149: 0 | CS149: 0 | CT149: 0 | CU149: 0 | CV149: 0 | CW149: 0 | CX149: 0 | CY149: 0 | CZ149: 0 | DA149: 0 | DB149: 0 | DC149: 0 | DD149: 0 | DE149: 0 | DF149: 0 | DG149: 0 | DH149: 0 | DI149: 0 | DJ149: 0 | DK149: 0 | DL149: 0 | DM149: 0 | DN149: 0 | DO149: 0 | DP149: 0 | DQ149: 0 | DR149: 0 | DS149: 0 | DT149: 0 | DU149: 0 | DV149: 0 | DW149: 0 | DX149: 0
A151: Profit and Loss
B152: Interest Income from Loan | G152: =G44 -> 0 | H152: 690 | I152: 613.3333333 | J152: 536.6666667 | K152: 460 | L152: 383.3333333 | M152: 306.6666667 | N152: 230 | O152: 153.3333333 | P152: 76.66666667 | Q152: 0 | R152: 0 | S152: 0 | T152: 0 | U152: 0 | V152: 0 | W152: 0 | X152: 0 | Y152: 0 | Z152: 0 | AA152: 0 | AB152: 0 | AC152: 0 | AD152: 0 | AE152: 0 | AF152: 0 | AG152: 0 | AH152: 0 | AI152: 0 | AJ152: 0 | AK152: 0 | AL152: 0 | AM152: =AM44 -> 0 | AN152: 0 | AO152: 0 | AP152: 0 | AQ152: 0 | AR152: 0 | AS152: 0 | AT152: 0 | AU152: 0 | AV152: 0 | AW152: 0 | AX152: 0 | AY152: 0 | AZ152: 0 | BA152: 0 | BB152: 0 | BC152: 0 | BD152: 0 | BE152: 0 | BF152: 0 | BG152: 0 | BH152: 0 | BI152: 0 | BJ152: 0 | BK152: 0 | BL152: 0 | BM152: 0 | BN152: 0 | BO152: 0 | BP152: 0 | BQ152: 0 | BR152: 0 | BS152: =BS44 -> 0 | BT152: 0 | BU152: 0 | BV152: 0 | BW152: 0 | BX152: 0 | BY152: 0 | BZ152: 0 | CA152: 0 | CB152: 0 | CC152: 0 | CD152: 0 | CE152: 0 | CF152: 0 | CG152: 0 | CH152: 0 | CI152: 0 | CJ152: 0 | CK152: 0 | CL152: 0 | CM152: 0 | CN152: 0 | CO152: 0 | CP152: 0 | CQ152: 0 | CR152: 0 | CS152: 0 | CT152: 0 | CU152: 0 | CV152: 0 | CW152: 0 | CX152: 0 | CY152: =CY44 -> 0 | CZ152: 0 | DA152: 0 | DB152: 0 | DC152: 0 | DD152: 0 | DE152: 0 | DF152: 0 | DG152: 0 | DH152: 0 | DI152: 0 | DJ152: 0 | DK152: 0 | DL152: 0 | DM152: 0 | DN152: 0 | DO152: 0 | DP152: 0 | DQ152: 0 | DR152: 0 | DS152: 0 | DT152: 0 | DU152: 0 | DV152: 0 | DW152: 0 | DX152: 0
B153: Add: Fees Earned
B154: Add: Interest on Safe Investments | G154: =G149 -> 0 | H154: =H149 -> 13.5545448 | I154: 12.04848427 | J154: 10.54242374 | K154: 9.036363203 | L154: 7.530302669 | M154: 6.024242135 | N154: 4.518181602 | O154: 3.012121068 | P154: 1.506060534 | Q154: 0 | R154: 0 | S154: 0 | T154: 0 | U154: 0 | V154: 0 | W154: 0 | X154: 0 | Y154: 0 | Z154: 0 | AA154: 0 | AB154: 0 | AC154: 0 | AD154: 0 | AE154: 0 | AF154: 0 | AG154: 0 | AH154: 0 | AI154: 0 | AJ154: 0 | AK154: 0 | AL154: 0 | AM154: 0 | AN154: 0 | AO154: 0 | AP154: 0 | AQ154: 0 | AR154: 0 | AS154: 0 | AT154: 0 | AU154: 0 | AV154: 0 | AW154: 0 | AX154: 0 | AY154: 0 | AZ154: 0 | BA154: 0 | BB154: 0 | BC154: 0 | BD154: 0 | BE154: 0 | BF154: 0 | BG154: 0 | BH154: 0 | BI154: 0 | BJ154: 0 | BK154: 0 | BL154: 0 | BM154: 0 | BN154: 0 | BO154: 0 | BP154: 0 | BQ154: 0 | BR154: 0 | BS154: 0 | BT154: =BT149 -> 0 | BU154: 0 | BV154: 0 | BW154: 0 | BX154: 0 | BY154: 0 | BZ154: 0 | CA154: 0 | CB154: 0 | CC154: 0 | CD154: 0 | CE154: 0 | CF154: 0 | CG154: 0 | CH154: 0 | CI154: 0 | CJ154: 0 | CK154: 0 | CL154: 0 | CM154: 0 | CN154: 0 | CO154: 0 | CP154: 0 | CQ154: 0 | CR154: 0 | CS154: 0 | CT154: 0 | CU154: 0 | CV154: 0 | CW154: 0 | CX154: 0 | CY154: 0 | CZ154: 0 | DA154: 0 | DB154: 0 | DC154: 0 | DD154: 0 | DE154: 0 | DF154: 0 | DG154: 0 | DH154: 0 | DI154: 0 | DJ154: 0 | DK154: 0 | DL154: 0 | DM154: 0 | DN154: 0 | DO154: 0 | DP154: 0 | DQ154: 0 | DR154: 0 | DS154: 0 | DT154: 0 | DU154: 0 | DV154: 0 | DW154: 0 | DX154: 0
B155: Less: Cost of Deposits | G155: =-G148 -> 0 | H155: =-H148 -> -292.5 | I155: -260 | J155: -227.5 | K155: -195 | L155: -162.5 | M155: -130 | N155: -97.5 | O155: -65 | P155: -32.5 | Q155: 0 | R155: 0 | S155: 0 | T155: 0 | U155: 0 | V155: 0 | W155: 0 | X155: 0 | Y155: 0 | Z155: 0 | AA155: 0 | AB155: 0 | AC155: 0 | AD155: 0 | AE155: 0 | AF155: 0 | AG155: 0 | AH155: 0 | AI155: 0 | AJ155: 0 | AK155: 0 | AL155: 0 | AM155: 0 | AN155: 0 | AO155: 0 | AP155: 0 | AQ155: 0 | AR155: 0 | AS155: 0 | AT155: 0 | AU155: 0 | AV155: 0 | AW155: 0 | AX155: 0 | AY155: 0 | AZ155: 0 | BA155: 0 | BB155: 0 | BC155: 0 | BD155: 0 | BE155: 0 | BF155: 0 | BG155: 0 | BH155: 0 | BI155: 0 | BJ155: 0 | BK155: 0 | BL155: 0 | BM155: 0 | BN155: 0 | BO155: 0 | BP155: 0 | BQ155: 0 | BR155: 0 | BS155: 0 | BT155: =-BT148 -> 0 | BU155: 0 | BV155: 0 | BW155: 0 | BX155: 0 | BY155: 0 | BZ155: 0 | CA155: 0 | CB155: 0 | CC155: 0 | CD155: 0 | CE155: 0 | CF155: 0 | CG155: 0 | CH155: 0 | CI155: 0 | CJ155: 0 | CK155: 0 | CL155: 0 | CM155: 0 | CN155: 0 | CO155: 0 | CP155: 0 | CQ155: 0 | CR155: 0 | CS155: 0 | CT155: 0 | CU155: 0 | CV155: 0 | CW155: 0 | CX155: 0 | CY155: 0 | CZ155: 0 | DA155: 0 | DB155: 0 | DC155: 0 | DD155: 0 | DE155: 0 | DF155: 0 | DG155: 0 | DH155: 0 | DI155: 0 | DJ155: 0 | DK155: 0 | DL155: 0 | DM155: 0 | DN155: 0 | DO155: 0 | DP155: 0 | DQ155: 0 | DR155: 0 | DS155: 0 | DT155: 0 | DU155: 0 | DV155: 0 | DW155: 0 | DX155: 0
B156: Less: Loss Provision | G156: =-G124*G40 -> 0 | H156: -45.40558627 | I156: -45.99222116 | J156: -43.00947251 | K156: -34.30955195 | L156: -27.51825548 | M156: -18.54172228 | N156: -13.09183985 | O156: -8.080807118 | P156: -3.807925008 | Q156: 0 | R156: 0 | S156: 0 | T156: 0 | U156: 0 | V156: 0 | W156: 0 | X156: 0 | Y156: 0 | Z156: 0 | AA156: 0 | AB156: 0 | AC156: 0 | AD156: 0 | AE156: 0 | AF156: 0 | AG156: 0 | AH156: 0 | AI156: 0 | AJ156: 0 | AK156: 0 | AL156: 0 | AM156: =-AM124*AM40 -> 0 | AN156: 0 | AO156: 0 | AP156: 0 | AQ156: 0 | AR156: 0 | AS156: 0 | AT156: 0 | AU156: 0 | AV156: 0 | AW156: 0 | AX156: 0 | AY156: 0 | AZ156: 0 | BA156: 0 | BB156: 0 | BC156: 0 | BD156: 0 | BE156: 0 | BF156: 0 | BG156: 0 | BH156: 0 | BI156: 0 | BJ156: 0 | BK156: 0 | BL156: 0 | BM156: 0 | BN156: 0 | BO156: 0 | BP156: 0 | BQ156: 0 | BR156: 0 | BS156: =-BS124*BS40 -> 0 | BT156: 0 | BU156: 0 | BV156: 0 | BW156: 0 | BX156: 0 | BY156: 0 | BZ156: 0 | CA156: 0 | CB156: 0 | CC156: 0 | CD156: 0 | CE156: 0 | CF156: 0 | CG156: 0 | CH156: 0 | CI156: 0 | CJ156: 0 | CK156: 0 | CL156: 0 | CM156: 0 | CN156: 0 | CO156: 0 | CP156: 0 | CQ156: 0 | CR156: 0 | CS156: 0 | CT156: 0 | CU156: 0 | CV156: 0 | CW156: 0 | CX156: 0 | CY156: =-CY124*CY40 -> 0 | CZ156: 0 | DA156: 0 | DB156: 0 | DC156: 0 | DD156: 0 | DE156: 0 | DF156: 0 | DG156: 0 | DH156: 0 | DI156: 0 | DJ156: 0 | DK156: 0 | DL156: 0 | DM156: 0 | DN156: 0 | DO156: 0 | DP156: 0 | DQ156: 0 | DR156: 0 | DS156: 0 | DT156: 0 | DU156: 0 | DV156: 0 | DW156: 0 | DX156: 0
B157: Less: Expenses on Loan | F157: ='RAROC Analysis'!F27/E8 -> 0.005 | G157: =-$F$157*$E$11*(G3+G4) -> -50 | H157: -50 | I157: -50 | J157: -50 | K157: -50 | L157: -50 | M157: -50 | N157: -50 | O157: -50 | P157: -50 | Q157: 0 | R157: 0 | S157: 0 | T157: 0 | U157: 0 | V157: 0 | W157: 0 | X157: 0 | Y157: 0 | Z157: 0 | AA157: 0 | AB157: 0 | AC157: 0 | AD157: 0 | AE157: 0 | AF157: 0 | AG157: 0 | AH157: 0 | AI157: 0 | AJ157: 0 | AK157: 0 | AL157: 0 | AM157: =-$F$157*$E$11*(AM3+AM4) -> 0 | AN157: 0 | AO157: 0 | AP157: 0 | AQ157: 0 | AR157: 0 | AS157: 0 | AT157: 0 | AU157: 0 | AV157: 0 | AW157: 0 | AX157: 0 | AY157: 0 | AZ157: 0 | BA157: 0 | BB157: 0 | BC157: 0 | BD157: 0 | BE157: 0 | BF157: 0 | BG157: 0 | BH157: 0 | BI157: 0 | BJ157: 0 | BK157: 0 | BL157: 0 | BM157: 0 | BN157: 0 | BO157: 0 | BP157: 0 | BQ157: 0 | BR157: 0 | BS157: =-$F$157*$E$11*(BS3+BS4) -> 0 | BT157: 0 | BU157: 0 | BV157: 0 | BW157: 0 | BX157: 0 | BY157: 0 | BZ157: 0 | CA157: 0 | CB157: 0 | CC157: 0 | CD157: 0 | CE157: 0 | CF157: 0 | CG157: 0 | CH157: 0 | CI157: 0 | CJ157: 0 | CK157: 0 | CL157: 0 | CM157: 0 | CN157: 0 | CO157: 0 | CP157: 0 | CQ157: 0 | CR157: 0 | CS157: 0 | CT157: 0 | CU157: 0 | CV157: 0 | CW157: 0 | CX157: 0 | CY157: =-$F$157*$E$11*(CY3+CY4) -> 0 | CZ157: 0 | DA157: 0 | DB157: 0 | DC157: 0 | DD157: 0 | DE157: 0 | DF157: 0 | DG157: 0 | DH157: 0 | DI157: 0 | DJ157: 0 | DK157: 0 | DL157: 0 | DM157: 0 | DN157: 0 | DO157: 0 | DP157: 0 | DQ157: 0 | DR157: 0 | DS157: 0 | DT157: 0 | DU157: 0 | DV157: 0 | DW157: 0 | DX157: 0
C158: Net Income from Loan | G158: =SUM(G152:G157) -> -50 | H158: =SUM(H152:H157) -> 315.6489585 | I158: 269.3895964 | J158: 226.6996179 | K158: 189.7268112 | L158: 150.8453805 | M158: 114.1491865 | N158: 73.92634175 | O158: 33.26464728 | P158: -8.135197807 | Q158: 0 | R158: 0 | S158: 0 | T158: 0 | U158: 0 | V158: 0 | W158: 0 | X158: 0 | Y158: 0 | Z158: 0 | AA158: 0 | AB158: 0 | AC158: 0 | AD158: 0 | AE158: 0 | AF158: 0 | AG158: 0 | AH158: 0 | AI158: 0 | AJ158: 0 | AK158: 0 | AL158: 0 | AM158: 0 | AN158: 0 | AO158: 0 | AP158: 0 | AQ158: 0 | AR158: 0 | AS158: 0 | AT158: 0 | AU158: 0 | AV158: 0 | AW158: 0 | AX158: 0 | AY158: 0 | AZ158: 0 | BA158: 0 | BB158: 0 | BC158: 0 | BD158: 0 | BE158: 0 | BF158: 0 | BG158: 0 | BH158: 0 | BI158: 0 | BJ158: 0 | BK158: 0 | BL158: 0 | BM158: 0 | BN158: 0 | BO158: 0 | BP158: 0 | BQ158: 0 | BR158: 0 | BS158: 0 | BT158: =SUM(BT152:BT157) -> 0 | BU158: 0 | BV158: 0 | BW158: 0 | BX158: 0 | BY158: 0 | BZ158: 0 | CA158: 0 | CB158: 0 | CC158: 0 | CD158: 0 | CE158: 0 | CF158: 0 | CG158: 0 | CH158: 0 | CI158: 0 | CJ158: 0 | CK158: 0 | CL158: 0 | CM158: 0 | CN158: 0 | CO158: 0 | CP158: 0 | CQ158: 0 | CR158: 0 | CS158: 0 | CT158: 0 | CU158: 0 | CV158: 0 | CW158: 0 | CX158: 0 | CY158: 0 | CZ158: 0 | DA158: 0 | DB158: 0 | DC158: 0 | DD158: 0 | DE158: 0 | DF158: 0 | DG158: 0 | DH158: 0 | DI158: 0 | DJ158: 0 | DK158: 0 | DL158: 0 | DM158: 0 | DN158: 0 | DO158: 0 | DP158: 0 | DQ158: 0 | DR158: 0 | DS158: 0 | DT158: 0 | DU158: 0 | DV158: 0 | DW158: 0 | DX158: 0
A160: Implied Equity Funding
B161: Opening Balance | G161: =F166 -> 0 | H161: =G166 -> 903.6363203 | I161: 803.2322847 | J161: 702.8282491 | K161: 602.4242135 | L161: 502.0201779 | M161: 401.6161424 | N161: 301.2121068 | O161: 200.8080712 | P161: 100.4040356 | Q161: 0 | R161: 0 | S161: 0 | T161: 0 | U161: 0 | V161: 0 | W161: 0 | X161: 0 | Y161: 0 | Z161: 0 | AA161: 0 | AB161: 0 | AC161: 0 | AD161: 0 | AE161: 0 | AF161: 0 | AG161: 0 | AH161: 0 | AI161: 0 | AJ161: 0 | AK161: 0 | AL161: 0 | AM161: 0 | AN161: 0 | AO161: 0 | AP161: 0 | AQ161: 0 | AR161: 0 | AS161: 0 | AT161: 0 | AU161: 0 | AV161: 0 | AW161: 0 | AX161: 0 | AY161: 0 | AZ161: 0 | BA161: 0 | BB161: 0 | BC161: 0 | BD161: 0 | BE161: 0 | BF161: 0 | BG161: 0 | BH161: 0 | BI161: 0 | BJ161: 0 | BK161: 0 | BL161: 0 | BM161: 0 | BN161: 0 | BO161: 0 | BP161: 0 | BQ161: 0 | BR161: 0 | BS161: 0 | BT161: =BS166 -> 0 | BU161: 0 | BV161: 0 | BW161: 0 | BX161: 0 | BY161: 0 | BZ161: 0 | CA161: 0 | CB161: 0 | CC161: 0 | CD161: 0 | CE161: 0 | CF161: 0 | CG161: 0 | CH161: 0 | CI161: 0 | CJ161: 0 | CK161: 0 | CL161: 0 | CM161: 0 | CN161: 0 | CO161: 0 | CP161: 0 | CQ161: 0 | CR161: 0 | CS161: 0 | CT161: 0 | CU161: 0 | CV161: 0 | CW161: 0 | CX161: 0 | CY161: 0 | CZ161: 0 | DA161: 0 | DB161: 0 | DC161: 0 | DD161: 0 | DE161: 0 | DF161: 0 | DG161: 0 | DH161: 0 | DI161: 0 | DJ161: 0 | DK161: 0 | DL161: 0 | DM161: 0 | DN161: 0 | DO161: 0 | DP161: 0 | DQ161: 0 | DR161: 0 | DS161: 0 | DT161: 0 | DU161: 0 | DV161: 0 | DW161: 0 | DX161: 0
B162: Add: Income | G162: =G158 -> -50 | H162: =H158 -> 315.6489585 | I162: 269.3895964 | J162: 226.6996179 | K162: 189.7268112 | L162: 150.8453805 | M162: 114.1491865 | N162: 73.92634175 | O162: 33.26464728 | P162: -8.135197807 | Q162: 0 | R162: 0 | S162: 0 | T162: 0 | U162: 0 | V162: 0 | W162: 0 | X162: 0 | Y162: 0 | Z162: 0 | AA162: 0 | AB162: 0 | AC162: 0 | AD162: 0 | AE162: 0 | AF162: 0 | AG162: 0 | AH162: 0 | AI162: 0 | AJ162: 0 | AK162: 0 | AL162: 0 | AM162: 0 | AN162: 0 | AO162: 0 | AP162: 0 | AQ162: 0 | AR162: 0 | AS162: 0 | AT162: 0 | AU162: 0 | AV162: 0 | AW162: 0 | AX162: 0 | AY162: 0 | AZ162: 0 | BA162: 0 | BB162: 0 | BC162: 0 | BD162: 0 | BE162: 0 | BF162: 0 | BG162: 0 | BH162: 0 | BI162: 0 | BJ162: 0 | BK162: 0 | BL162: 0 | BM162: 0 | BN162: 0 | BO162: 0 | BP162: 0 | BQ162: 0 | BR162: 0 | BS162: 0 | BT162: =BT158 -> 0 | BU162: 0 | BV162: 0 | BW162: 0 | BX162: 0 | BY162: 0 | BZ162: 0 | CA162: 0 | CB162: 0 | CC162: 0 | CD162: 0 | CE162: 0 | CF162: 0 | CG162: 0 | CH162: 0 | CI162: 0 | CJ162: 0 | CK162: 0 | CL162: 0 | CM162: 0 | CN162: 0 | CO162: 0 | CP162: 0 | CQ162: 0 | CR162: 0 | CS162: 0 | CT162: 0 | CU162: 0 | CV162: 0 | CW162: 0 | CX162: 0 | CY162: 0 | CZ162: 0 | DA162: 0 | DB162: 0 | DC162: 0 | DD162: 0 | DE162: 0 | DF162: 0 | DG162: 0 | DH162: 0 | DI162: 0 | DJ162: 0 | DK162: 0 | DL162: 0 | DM162: 0 | DN162: 0 | DO162: 0 | DP162: 0 | DQ162: 0 | DR162: 0 | DS162: 0 | DT162: 0 | DU162: 0 | DV162: 0 | DW162: 0 | DX162: 0
B163: Subtotal | G163: =G161+G162 -> -50 | H163: =H161+H162 -> 1219.285279 | I163: 1072.621881 | J163: 929.527867 | K163: 792.1510248 | L163: 652.8655585 | M163: 515.7653289 | N163: 375.1384485 | O163: 234.0727185 | P163: 92.26883778 | Q163: 0 | R163: 0 | S163: 0 | T163: 0 | U163: 0 | V163: 0 | W163: 0 | X163: 0 | Y163: 0 | Z163: 0 | AA163: 0 | AB163: 0 | AC163: 0 | AD163: 0 | AE163: 0 | AF163: 0 | AG163: 0 | AH163: 0 | AI163: 0 | AJ163: 0 | AK163: 0 | AL163: 0 | AM163: 0 | AN163: 0 | AO163: 0 | AP163: 0 | AQ163: 0 | AR163: 0 | AS163: 0 | AT163: 0 | AU163: 0 | AV163: 0 | AW163: 0 | AX163: 0 | AY163: 0 | AZ163: 0 | BA163: 0 | BB163: 0 | BC163: 0 | BD163: 0 | BE163: 0 | BF163: 0 | BG163: 0 | BH163: 0 | BI163: 0 | BJ163: 0 | BK163: 0 | BL163: 0 | BM163: 0 | BN163: 0 | BO163: 0 | BP163: 0 | BQ163: 0 | BR163: 0 | BS163: 0 | BT163: =BT161+BT162 -> 0 | BU163: 0 | BV163: 0 | BW163: 0 | BX163: 0 | BY163: 0 | BZ163: 0 | CA163: 0 | CB163: 0 | CC163: 0 | CD163: 0 | CE163: 0 | CF163: 0 | CG163: 0 | CH163: 0 | CI163: 0 | CJ163: 0 | CK163: 0 | CL163: 0 | CM163: 0 | CN163: 0 | CO163: 0 | CP163: 0 | CQ163: 0 | CR163: 0 | CS163: 0 | CT163: 0 | CU163: 0 | CV163: 0 | CW163: 0 | CX163: 0 | CY163: 0 | CZ163: 0 | DA163: 0 | DB163: 0 | DC163: 0 | DD163: 0 | DE163: 0 | DF163: 0 | DG163: 0 | DH163: 0 | DI163: 0 | DJ163: 0 | DK163: 0 | DL163: 0 | DM163: 0 | DN163: 0 | DO163: 0 | DP163: 0 | DQ163: 0 | DR163: 0 | DS163: 0 | DT163: 0 | DU163: 0 | DV163: 0 | DW163: 0 | DX163: 0
B164: Required | G164: =G145 -> 903.6363203 | H164: =H145 -> 803.2322847 | I164: 702.8282491 | J164: 602.4242135 | K164: 502.0201779 | L164: 401.6161424 | M164: 301.2121068 | N164: 200.8080712 | O164: 100.4040356 | P164: 0 | Q164: 0 | R164: 0 | S164: 0 | T164: 0 | U164: 0 | V164: 0 | W164: 0 | X164: 0 | Y164: 0 | Z164: 0 | AA164: 0 | AB164: 0 | AC164: 0 | AD164: 0 | AE164: 0 | AF164: 0 | AG164: 0 | AH164: 0 | AI164: 0 | AJ164: 0 | AK164: 0 | AL164: 0 | AM164: 0 | AN164: 0 | AO164: 0 | AP164: 0 | AQ164: 0 | AR164: 0 | AS164: 0 | AT164: 0 | AU164: 0 | AV164: 0 | AW164: 0 | AX164: 0 | AY164: 0 | AZ164: 0 | BA164: 0 | BB164: 0 | BC164: 0 | BD164: 0 | BE164: 0 | BF164: 0 | BG164: 0 | BH164: 0 | BI164: 0 | BJ164: 0 | BK164: 0 | BL164: 0 | BM164: 0 | BN164: 0 | BO164: 0 | BP164: 0 | BQ164: 0 | BR164: 0 | BS164: 0 | BT164: =BT145 -> 0 | BU164: 0 | BV164: 0 | BW164: 0 | BX164: 0 | BY164: 0 | BZ164: 0 | CA164: 0 | CB164: 0 | CC164: 0 | CD164: 0 | CE164: 0 | CF164: 0 | CG164: 0 | CH164: 0 | CI164: 0 | CJ164: 0 | CK164: 0 | CL164: 0 | CM164: 0 | CN164: 0 | CO164: 0 | CP164: 0 | CQ164: 0 | CR164: 0 | CS164: 0 | CT164: 0 | CU164: 0 | CV164: 0 | CW164: 0 | CX164: 0 | CY164: 0 | CZ164: 0 | DA164: 0 | DB164: 0 | DC164: 0 | DD164: 0 | DE164: 0 | DF164: 0 | DG164: 0 | DH164: 0 | DI164: 0 | DJ164: 0 | DK164: 0 | DL164: 0 | DM164: 0 | DN164: 0 | DO164: 0 | DP164: 0 | DQ164: 0 | DR164: 0 | DS164: 0 | DT164: 0 | DU164: 0 | DV164: 0 | DW164: 0 | DX164: 0
B165: Added Funding | G165: =G164-G163 -> 953.6363203 | H165: =H164-H163 -> -416.0529941 | I165: -369.793632 | J165: -327.1036535 | K165: -290.1308468 | L165: -251.2494161 | M165: -214.5532221 | N165: -174.3303773 | O165: -133.6686829 | P165: -92.26883778 | Q165: 0 | R165: 0 | S165: 0 | T165: 0 | U165: 0 | V165: 0 | W165: 0 | X165: 0 | Y165: 0 | Z165: 0 | AA165: 0 | AB165: 0 | AC165: 0 | AD165: 0 | AE165: 0 | AF165: 0 | AG165: 0 | AH165: 0 | AI165: 0 | AJ165: 0 | AK165: 0 | AL165: 0 | AM165: 0 | AN165: 0 | AO165: 0 | AP165: 0 | AQ165: 0 | AR165: 0 | AS165: 0 | AT165: 0 | AU165: 0 | AV165: 0 | AW165: 0 | AX165: 0 | AY165: 0 | AZ165: 0 | BA165: 0 | BB165: 0 | BC165: 0 | BD165: 0 | BE165: 0 | BF165: 0 | BG165: 0 | BH165: 0 | BI165: 0 | BJ165: 0 | BK165: 0 | BL165: 0 | BM165: 0 | BN165: 0 | BO165: 0 | BP165: 0 | BQ165: 0 | BR165: 0 | BS165: 0 | BT165: =BT164-BT163 -> 0 | BU165: 0 | BV165: 0 | BW165: 0 | BX165: 0 | BY165: 0 | BZ165: 0 | CA165: 0 | CB165: 0 | CC165: 0 | CD165: 0 | CE165: 0 | CF165: 0 | CG165: 0 | CH165: 0 | CI165: 0 | CJ165: 0 | CK165: 0 | CL165: 0 | CM165: 0 | CN165: 0 | CO165: 0 | CP165: 0 | CQ165: 0 | CR165: 0 | CS165: 0 | CT165: 0 | CU165: 0 | CV165: 0 | CW165: 0 | CX165: 0 | CY165: 0 | CZ165: 0 | DA165: 0 | DB165: 0 | DC165: 0 | DD165: 0 | DE165: 0 | DF165: 0 | DG165: 0 | DH165: 0 | DI165: 0 | DJ165: 0 | DK165: 0 | DL165: 0 | DM165: 0 | DN165: 0 | DO165: 0 | DP165: 0 | DQ165: 0 | DR165: 0 | DS165: 0 | DT165: 0 | DU165: 0 | DV165: 0 | DW165: 0 | DX165: 0
B166: Closing Balance | G166: =G161+G162+G165 -> 903.6363203 | H166: =H161+H162+H165 -> 803.2322847 | I166: 702.8282491 | J166: 602.4242135 | K166: 502.0201779 | L166: 401.6161424 | M166: 301.2121068 | N166: 200.8080712 | O166: 100.4040356 | P166: 0 | Q166: 0 | R166: 0 | S166: 0 | T166: 0 | U166: 0 | V166: 0 | W166: 0 | X166: 0 | Y166: 0 | Z166: 0 | AA166: 0 | AB166: 0 | AC166: 0 | AD166: 0 | AE166: 0 | AF166: 0 | AG166: 0 | AH166: 0 | AI166: 0 | AJ166: 0 | AK166: 0 | AL166: 0 | AM166: 0 | AN166: 0 | AO166: 0 | AP166: 0 | AQ166: 0 | AR166: 0 | AS166: 0 | AT166: 0 | AU166: 0 | AV166: 0 | AW166: 0 | AX166: 0 | AY166: 0 | AZ166: 0 | BA166: 0 | BB166: 0 | BC166: 0 | BD166: 0 | BE166: 0 | BF166: 0 | BG166: 0 | BH166: 0 | BI166: 0 | BJ166: 0 | BK166: 0 | BL166: 0 | BM166: 0 | BN166: 0 | BO166: 0 | BP166: 0 | BQ166: 0 | BR166: 0 | BS166: 0 | BT166: =BT161+BT162+BT165 -> 0 | BU166: 0 | BV166: 0 | BW166: 0 | BX166: 0 | BY166: 0 | BZ166: 0 | CA166: 0 | CB166: 0 | CC166: 0 | CD166: 0 | CE166: 0 | CF166: 0 | CG166: 0 | CH166: 0 | CI166: 0 | CJ166: 0 | CK166: 0 | CL166: 0 | CM166: 0 | CN166: 0 | CO166: 0 | CP166: 0 | CQ166: 0 | CR166: 0 | CS166: 0 | CT166: 0 | CU166: 0 | CV166: 0 | CW166: 0 | CX166: 0 | CY166: 0 | CZ166: 0 | DA166: 0 | DB166: 0 | DC166: 0 | DD166: 0 | DE166: 0 | DF166: 0 | DG166: 0 | DH166: 0 | DI166: 0 | DJ166: 0 | DK166: 0 | DL166: 0 | DM166: 0 | DN166: 0 | DO166: 0 | DP166: 0 | DQ166: 0 | DR166: 0 | DS166: 0 | DT166: 0 | DU166: 0 | DV166: 0 | DW166: 0 | DX166: 0
B168: Equity Cash Flow | E168: =SUM(G168:DX168) -> 1315.515342 | G168: =-G165 -> -953.6363203 | H168: =-H165 -> 416.0529941 | I168: 369.793632 | J168: 327.1036535 | K168: 290.1308468 | L168: 251.2494161 | M168: 214.5532221 | N168: 174.3303773 | O168: 133.6686829 | P168: 92.26883778 | Q168: 0 | R168: 0 | S168: 0 | T168: 0 | U168: 0 | V168: 0 | W168: 0 | X168: 0 | Y168: 0 | Z168: 0 | AA168: 0 | AB168: 0 | AC168: 0 | AD168: 0 | AE168: 0 | AF168: 0 | AG168: 0 | AH168: 0 | AI168: 0 | AJ168: 0 | AK168: 0 | AL168: 0 | AM168: 0 | AN168: 0 | AO168: 0 | AP168: 0 | AQ168: 0 | AR168: 0 | AS168: 0 | AT168: 0 | AU168: 0 | AV168: 0 | AW168: 0 | AX168: 0 | AY168: 0 | AZ168: 0 | BA168: 0 | BB168: 0 | BC168: 0 | BD168: 0 | BE168: 0 | BF168: 0 | BG168: 0 | BH168: 0 | BI168: 0 | BJ168: 0 | BK168: 0 | BL168: 0 | BM168: 0 | BN168: 0 | BO168: 0 | BP168: 0 | BQ168: 0 | BR168: 0 | BS168: 0 | BT168: =-BT165 -> 0 | BU168: 0 | BV168: 0 | BW168: 0 | BX168: 0 | BY168: 0 | BZ168: 0 | CA168: 0 | CB168: 0 | CC168: 0 | CD168: 0 | CE168: 0 | CF168: 0 | CG168: 0 | CH168: 0 | CI168: 0 | CJ168: 0 | CK168: 0 | CL168: 0 | CM168: 0 | CN168: 0 | CO168: 0 | CP168: 0 | CQ168: 0 | CR168: 0 | CS168: 0 | CT168: 0 | CU168: 0 | CV168: 0 | CW168: 0 | CX168: 0 | CY168: 0 | CZ168: 0 | DA168: 0 | DB168: 0 | DC168: 0 | DD168: 0 | DE168: 0 | DF168: 0 | DG168: 0 | DH168: 0 | DI168: 0 | DJ168: 0 | DK168: 0 | DL168: 0 | DM168: 0 | DN168: 0 | DO168: 0 | DP168: 0 | DQ168: 0 | DR168: 0 | DS168: 0 | DT168: 0 | DU168: 0 | DV168: 0 | DW168: 0 | DX168: 0
B169: Equity IRR | E169: =IFERROR(XIRR(G168:DX168,G2:DX2,0.1),FALSE) -> 0.3001682699
B171: New Capital for Loan | E171: =SUM(G171:DX171) -> 953.6363203 | G171: =MAX(-G168,0) -> 953.6363203 | H171: =MAX(-H168,0) -> 0 | I171: 0 | J171: 0 | K171: 0 | L171: 0 | M171: 0 | N171: 0 | O171: 0 | P171: 0 | Q171: 0 | R171: 0 | S171: 0 | T171: 0 | U171: 0 | V171: 0 | W171: 0 | X171: 0 | Y171: 0 | Z171: 0 | AA171: 0 | AB171: 0 | AC171: 0 | AD171: 0 | AE171: 0 | AF171: 0 | AG171: 0 | AH171: 0 | AI171: 0 | AJ171: 0 | AK171: 0 | AL171: 0 | AM171: 0 | AN171: 0 | AO171: 0 | AP171: 0 | AQ171: 0 | AR171: 0 | AS171: 0 | AT171: 0 | AU171: 0 | AV171: 0 | AW171: 0 | AX171: 0 | AY171: 0 | AZ171: 0 | BA171: 0 | BB171: 0 | BC171: 0 | BD171: 0 | BE171: 0 | BF171: 0 | BG171: 0 | BH171: 0 | BI171: 0 | BJ171: 0 | BK171: 0 | BL171: 0 | BM171: 0 | BN171: 0 | BO171: 0 | BP171: 0 | BQ171: 0 | BR171: 0 | BS171: 0 | BT171: =MAX(-BT168,0) -> 0 | BU171: 0 | BV171: 0 | BW171: 0 | BX171: 0 | BY171: 0 | BZ171: 0 | CA171: 0 | CB171: 0 | CC171: 0 | CD171: 0 | CE171: 0 | CF171: 0 | CG171: 0 | CH171: 0 | CI171: 0 | CJ171: 0 | CK171: 0 | CL171: 0 | CM171: 0 | CN171: 0 | CO171: 0 | CP171: 0 | CQ171: 0 | CR171: 0 | CS171: 0 | CT171: 0 | CU171: 0 | CV171: 0 | CW171: 0 | CX171: 0 | CY171: 0 | CZ171: 0 | DA171: 0 | DB171: 0 | DC171: 0 | DD171: 0 | DE171: 0 | DF171: 0 | DG171: 0 | DH171: 0 | DI171: 0 | DJ171: 0 | DK171: 0 | DL171: 0 | DM171: 0 | DN171: 0 | DO171: 0 | DP171: 0 | DQ171: 0 | DR171: 0 | DS171: 0 | DT171: 0 | DU171: 0 | DV171: 0 | DW171: 0 | DX171: 0
A173: Alternative Method of Computing Implied Default
B175: Default Probability | E175: =prob_default(E56,G179:DA179,G180:DA180,E177,G79:DA79,F3+F4) -> 0.0271346688 | F175: 0.02 | G175: =IF(NOT(G4),$F$175,F175*(1+G79)) -> 0.02 | H175: =G175*(1+H79) -> 0.06184210526 | I175: 0.1113157895 | J175: 0.1594736842 | K175: 0.2028947368 | L175: 0.2442105263 | M175: 0.2786842105 | N175: 0.3092105263 | O175: 0.3368421053 | P175: 0.3615789474 | Q175: 0.3821052632 | R175: 0.3994736842 | S175: 0.4144736842 | T175: 0.4273684211 | U175: 0.4413157895 | V175: 0.4557183368 | W175: 0.470590918 | X175: 0.4859488728 | Y175: 0.5018080417 | Z175: 0.518184782 | AA175: 0.5350959848 | AB175: 0.5525590927 | AC175: 0.5705921173 | AD175: 0.5892136581 | AE175: 0.6084429215 | AF175: 0.628299741 | AG175: 0.6488045971 | AH175: 0.6699786387 | AI175: 0.6918437052 | AJ175: 0.7144223482 | AK175: 0.7377378559 | AL175: 0.7618142761 | AM175: 0.7866764415 | AN175: =AM175*(1+AN79) -> 0.8123499953 | AO175: 0.8388614176 | AP175: 0.8662380525 | AQ175: 0.8945081367 | AR175: 0.9237008284 | AS175: 0.9538462372 | AT175: 0.9849754555 | AU175: 1.01712059 | AV175: 1.050314797 | AW175: 1.084592312 | AX175: 1.11998849 | AY175: 1.156539838 | AZ175: 1.194284057 | BA175: 1.233260076 | BB175: 1.273508096 | BC175: 1.315069628 | BD175: 1.357987541 | BE175: 1.4023061 | BF175: 1.448071016 | BG175: 1.495329491 | BH175: 1.544130269 | BI175: 1.594523683 | BJ175: 1.646561709 | BK175: 1.700298021 | BL175: 1.755788043 | BM175: 1.813089007 | BN175: 1.872260016 | BO175: 1.933362097 | BP175: 1.996458274 | BQ175: 2.061613624 | BR175: 2.12889535 | BS175: 2.198372846 | BT175: =BS175*(1+BT79) -> 2.270117772 | BU175: 2.344204128 | BV175: 2.420708327 | BW175: 2.499709276 | BX175: 2.581288458 | BY175: 2.665530015 | BZ175: 2.752520835 | CA175: 2.84235064 | CB175: 2.935112083 | CC175: 3.03090084 | CD175: 3.129815707 | CE175: 3.231958707 | CF175: 3.337435192 | CG175: 3.446353952 | CH175: 3.558827326 | CI175: 3.674971321 | CJ175: 3.79490573 | CK175: 3.918754254 | CL175: 4.046644633 | CM175: 4.178708775 | CN175: 4.315082891 | CO175: 4.455907641 | CP175: 4.601328272 | CQ175: 4.751494773 | CR175: 4.906562029 | CS175: 5.066689977 | CT175: 5.232043775 | CU175: 5.402793972 | CV175: 5.579116682 | CW175: 5.761193766 | CX175: 5.94921302 | CY175: 6.143368371 | CZ175: =CY175*(1+CZ79) -> 6.343860073 | DA175: 6.550894916 | DB175: 6.764686437 | DC175: 6.985455144 | DD175: 7.213428742 | DE175: 7.448842365 | DF175: 7.691938821 | DG175: 7.942968844 | DH175: 8.20219135 | DI175: 8.469873703 | DJ175: 8.746291995 | DK175: 9.031731327 | DL175: 9.326486106 | DM175: 9.630860345 | DN175: 9.945167979 | DO175: 10.26973319 | DP175: 10.60489074 | DQ175: 10.95098631 | DR175: 11.30837687 | DS175: 11.67743105 | DT175: 12.05852947 | DU175: 12.45206522 | DV175: 12.8584442 | DW175: 13.27808554 | DX175: 13.71142208
B176: Incremental Percent | G176: =IF(G75=1,G175,G4*(G175-F175))*1 -> 0.02 | H176: =IF(H75=1,H175,H175-G175) -> 0.04184210526 | I176: 0.04947368421 | J176: 0.04815789474 | K176: 0.04342105263 | L176: 0.04131578947 | M176: 0.03447368421 | N176: 0.03052631579 | O176: 0.02763157895 | P176: 0.02473684211 | Q176: 0.02052631579 | R176: 0.01736842105 | S176: 0.015 | T176: 0.01289473684 | U176: 0.01394736842 | V176: 0.01440254732 | W176: 0.01487258119 | X176: 0.01535795484 | Y176: 0.01585916888 | Z176: 0.01637674028 | AA176: 0.01691120286 | AB176: 0.01746310788 | AC176: 0.01803302458 | AD176: 0.01862154077 | AE176: 0.01922926347 | AF176: 0.01985681948 | AG176: 0.02050485608 | AH176: 0.02117404165 | AI176: 0.02186506641 | AJ176: 0.02257864309 | AK176: 0.02331550767 | AL176: 0.02407642017 | AM176: 0.02486216541 | AN176: =IF(AN75=1,AN175,AN175-AM175) -> 0.02567355382 | AO176: 0.02651142226 | AP176: 0.02737663493 | AQ176: 0.02827008423 | AR176: 0.02919269165 | AS176: 0.03014540881 | AT176: 0.03112921833 | AU176: 0.03214513494 | AV176: 0.03319420646 | AW176: 0.03427751492 | AX176: 0.03539617767 | AY176: 0.03655134849 | AZ176: 0.03774421885 | BA176: 0.0389760191 | BB176: 0.04024801972 | BC176: 0.04156153268 | BD176: 0.04291791275 | BE176: 0.04431855892 | BF176: 0.04576491583 | BG176: 0.04725847527 | BH176: 0.04880077773 | BI176: 0.05039341395 | BJ176: 0.05203802659 | BK176: 0.05373631194 | BL176: 0.05549002163 | BM176: 0.05730096446 | BN176: 0.05917100825 | BO176: 0.06110208179 | BP176: 0.06309617683 | BQ176: 0.06515535009 | BR176: 0.06728172543 | BS176: 0.06947749602 | BT176: =IF(BT75=1,BT175,BT175-BS175) -> 0.07174492662 | BU176: 0.07408635587 | BV176: 0.07650419877 | BW176: 0.0790009491 | BX176: 0.08157918204 | BY176: 0.08424155683 | BZ176: 0.08699081946 | CA176: 0.08982980556 | CB176: 0.0927614433 | CC176: 0.09578875642 | CD176: 0.09891486731 | CE176: 0.1021430003 | CF176: 0.1054764849 | CG176: 0.1089187594 | CH176: 0.112473374 | CI176: 0.1161439952 | CJ176: 0.1199344089 | CK176: 0.1238485244 | CL176: 0.127890379 | CM176: 0.1320641414 | CN176: 0.1363741164 | CO176: 0.1408247495 | CP176: 0.1454206311 | CQ176: 0.1501665015 | CR176: 0.1550672555 | CS176: 0.160127948 | CT176: 0.1653537985 | CU176: 0.1707501971 | CV176: 0.1763227097 | CW176: 0.1820770838 | CX176: 0.1880192547 | CY176: 0.194155351 | CZ176: =IF(CZ75=1,CZ175,CZ175-CY175) -> 0.2004917018 | DA176: 0.2070348423 | DB176: 0.2137915213 | DC176: 0.2207687076 | DD176: 0.2279735977 | DE176: 0.2354136227 | DF176: 0.2430964565 | DG176: 0.2510300231 | DH176: 0.2592225054 | DI176: 0.2676823532 | DJ176: 0.276418292 | DK176: 0.2854393324 | DL176: 0.2947547785 | DM176: 0.3043742387 | DN176: 0.3143076344 | DO176: 0.3245652111 | DP176: 0.3351575487 | DQ176: 0.3460955721 | DR176: 0.3573905631 | DS176: 0.3690541714 | DT176: 0.381098427 | DU176: 0.3935357525 | DV176: 0.4063789759 | DW176: 0.419641344 | DX176: 0.4333365356
B177: Percent Loss | E177: ='RAROC Analysis'!F28 -> 0.6 | G177: =$E$177*G176 -> 0.012 | H177: 0.02510526316 | I177: 0.02968421053 | J177: 0.02889473684 | K177: 0.02605263158 | L177: 0.02478947368 | M177: 0.02068421053 | N177: 0.01831578947 | O177: 0.01657894737 | P177: 0.01484210526 | Q177: 0.01231578947 | R177: 0.01042105263 | S177: 0.009 | T177: 0.007736842105 | U177: 0.008368421053 | V177: 0.00864152839 | W177: 0.008923548713 | X177: 0.009214772901 | Y177: 0.009515501327 | Z177: 0.009826044166 | AA177: 0.01014672172 | AB177: 0.01047786473 | AC177: 0.01081981475 | AD177: 0.01117292446 | AE177: 0.01153755808 | AF177: 0.01191409169 | AG177: 0.01230291365 | AH177: 0.01270442499 | AI177: 0.01311903985 | AJ177: 0.01354718585 | AK177: 0.0139893046 | AL177: 0.0144458521 | AM177: =$E$177*AM176 -> 0.01491729925 | AN177: 0.01540413229 | AO177: 0.01590685336 | AP177: 0.01642598096 | AQ177: 0.01696205054 | AR177: 0.01751561499 | AS177: 0.01808724529 | AT177: 0.018677531 | AU177: 0.01928708096 | AV177: 0.01991652388 | AW177: 0.02056650895 | AX177: 0.0212377066 | AY177: 0.02193080909 | AZ177: 0.02264653131 | BA177: 0.02338561146 | BB177: 0.02414881183 | BC177: 0.02493691961 | BD177: 0.02575074765 | BE177: 0.02659113535 | BF177: 0.0274589495 | BG177: 0.02835508516 | BH177: 0.02928046664 | BI177: 0.03023604837 | BJ177: 0.03122281596 | BK177: 0.03224178717 | BL177: 0.03329401298 | BM177: 0.03438057867 | BN177: 0.03550260495 | BO177: 0.03666124908 | BP177: 0.0378577061 | BQ177: 0.03909321005 | BR177: 0.04036903526 | BS177: =$E$177*BS176 -> 0.04168649761 | BT177: 0.04304695597 | BU177: 0.04445181352 | BV177: 0.04590251926 | BW177: 0.04740056946 | BX177: 0.04894750923 | BY177: 0.0505449341 | BZ177: 0.05219449167 | CA177: 0.05389788334 | CB177: 0.05565686598 | CC177: 0.05747325385 | CD177: 0.05934892039 | CE177: 0.06128580018 | CF177: 0.06328589095 | CG177: 0.06535125561 | CH177: 0.06748402442 | CI177: 0.06968639714 | CJ177: 0.07196064532 | CK177: 0.07430911466 | CL177: 0.07673422739 | CM177: 0.07923848481 | CN177: 0.08182446985 | CO177: 0.08449484971 | CP177: 0.08725237868 | CQ177: 0.09009990089 | CR177: 0.09304035332 | CS177: 0.09607676879 | CT177: 0.0992122791 | CU177: 0.1024501183 | CV177: 0.1057936258 | CW177: 0.1092462503 | CX177: 0.1128115528 | CY177: =$E$177*CY176 -> 0.1164932106 | CZ177: 0.1202950211 | DA177: 0.1242209054 | DB177: 0.1282749128 | DC177: 0.1324612246 | DD177: 0.1367841586 | DE177: 0.1412481736 | DF177: 0.1458578739 | DG177: 0.1506180139 | DH177: 0.1555335032 | DI177: 0.1606094119 | DJ177: 0.1658509752 | DK177: 0.1712635994 | DL177: 0.1768528671 | DM177: 0.1826245432 | DN177: 0.1885845806 | DO177: 0.1947391267 | DP177: 0.2010945292 | DQ177: 0.2076573433 | DR177: 0.2144343379 | DS177: 0.2214325028 | DT177: 0.2286590562 | DU177: 0.2361214515 | DV177: 0.2438273856 | DW177: 0.2517848064 | DX177: 0.2600019214
B179: Net Cash Flow without Default | G179: =G48+G49+G50-G41+G45 -> -9750 | H179: 1801.111111 | I179: 1724.444444 | J179: 1647.777778 | K179: 1571.111111 | L179: 1494.444444 | M179: 1417.777778 | N179: 1341.111111 | O179: 1264.444444 | P179: 1187.777778 | Q179: 0 | R179: 0 | S179: 0 | T179: 0 | U179: 0 | V179: 0 | W179: 0 | X179: 0 | Y179: 0 | Z179: 0 | AA179: 0 | AB179: 0 | AC179: 0 | AD179: 0 | AE179: 0 | AF179: 0 | AG179: 0 | AH179: 0 | AI179: 0 | AJ179: 0 | AK179: 0 | AL179: 0 | AM179: =AM48+AM49+AM50-AM41+AM45 -> 0 | AN179: 0 | AO179: 0 | AP179: 0 | AQ179: 0 | AR179: 0 | AS179: 0 | AT179: 0 | AU179: 0 | AV179: 0 | AW179: 0 | AX179: 0 | AY179: 0 | AZ179: 0 | BA179: 0 | BB179: 0 | BC179: 0 | BD179: 0 | BE179: 0 | BF179: 0 | BG179: 0 | BH179: 0 | BI179: 0 | BJ179: 0 | BK179: 0 | BL179: 0 | BM179: 0 | BN179: 0 | BO179: 0 | BP179: 0 | BQ179: 0 | BR179: 0 | BS179: =BS48+BS49+BS50-BS41+BS45 -> 0 | BT179: 0 | BU179: 0 | BV179: 0 | BW179: 0 | BX179: 0 | BY179: 0 | BZ179: 0 | CA179: 0 | CB179: 0 | CC179: 0 | CD179: 0 | CE179: 0 | CF179: 0 | CG179: 0 | CH179: 0 | CI179: 0 | CJ179: 0 | CK179: 0 | CL179: 0 | CM179: 0 | CN179: 0 | CO179: 0 | CP179: 0 | CQ179: 0 | CR179: 0 | CS179: 0 | CT179: 0 | CU179: 0 | CV179: 0 | CW179: 0 | CX179: 0 | CY179: =CY48+CY49+CY50-CY41+CY45 -> 0 | CZ179: 0 | DA179: 0 | DB179: 0 | DC179: 0 | DD179: 0 | DE179: 0 | DF179: 0 | DG179: 0 | DH179: 0 | DI179: 0 | DJ179: 0 | DK179: 0 | DL179: 0 | DM179: 0 | DN179: 0 | DO179: 0 | DP179: 0 | DQ179: 0 | DR179: 0 | DS179: 0 | DT179: 0 | DU179: 0 | DV179: 0 | DW179: 0 | DX179: 0
B180: Debt Service | G180: =G45 -> 0 | H180: 1801.111111 | I180: 1724.444444 | J180: 1647.777778 | K180: 1571.111111 | L180: 1494.444444 | M180: 1417.777778 | N180: 1341.111111 | O180: 1264.444444 | P180: 1187.777778 | Q180: 0 | R180: 0 | S180: 0 | T180: 0 | U180: 0 | V180: 0 | W180: 0 | X180: 0 | Y180: 0 | Z180: 0 | AA180: 0 | AB180: 0 | AC180: 0 | AD180: 0 | AE180: 0 | AF180: 0 | AG180: 0 | AH180: 0 | AI180: 0 | AJ180: 0 | AK180: 0 | AL180: 0 | AM180: =AM45 -> 0 | AN180: 0 | AO180: 0 | AP180: 0 | AQ180: 0 | AR180: 0 | AS180: 0 | AT180: 0 | AU180: 0 | AV180: 0 | AW180: 0 | AX180: 0 | AY180: 0 | AZ180: 0 | BA180: 0 | BB180: 0 | BC180: 0 | BD180: 0 | BE180: 0 | BF180: 0 | BG180: 0 | BH180: 0 | BI180: 0 | BJ180: 0 | BK180: 0 | BL180: 0 | BM180: 0 | BN180: 0 | BO180: 0 | BP180: 0 | BQ180: 0 | BR180: 0 | BS180: =BS45 -> 0 | BT180: 0 | BU180: 0 | BV180: 0 | BW180: 0 | BX180: 0 | BY180: 0 | BZ180: 0 | CA180: 0 | CB180: 0 | CC180: 0 | CD180: 0 | CE180: 0 | CF180: 0 | CG180: 0 | CH180: 0 | CI180: 0 | CJ180: 0 | CK180: 0 | CL180: 0 | CM180: 0 | CN180: 0 | CO180: 0 | CP180: 0 | CQ180: 0 | CR180: 0 | CS180: 0 | CT180: 0 | CU180: 0 | CV180: 0 | CW180: 0 | CX180: 0 | CY180: =CY45 -> 0 | CZ180: 0 | DA180: 0 | DB180: 0 | DC180: 0 | DD180: 0 | DE180: 0 | DF180: 0 | DG180: 0 | DH180: 0 | DI180: 0 | DJ180: 0 | DK180: 0 | DL180: 0 | DM180: 0 | DN180: 0 | DO180: 0 | DP180: 0 | DQ180: 0 | DR180: 0 | DS180: 0 | DT180: 0 | DU180: 0 | DV180: 0 | DW180: 0 | DX180: 0
B181: Loss | G181: =G180*G177 -> 0 | H181: =H180*H177 -> 45.21736842 | I181: 51.18877193 | J181: 47.61210526 | K181: 40.93157895 | L181: 37.04649123 | M181: 29.32561404 | N181: 24.56350877 | O181: 20.96315789 | P181: 17.62912281 | Q181: 0 | R181: 0 | S181: 0 | T181: 0 | U181: 0 | V181: 0 | W181: 0 | X181: 0 | Y181: 0 | Z181: 0 | AA181: 0 | AB181: 0 | AC181: 0 | AD181: 0 | AE181: 0 | AF181: 0 | AG181: 0 | AH181: 0 | AI181: 0 | AJ181: 0 | AK181: 0 | AL181: 0 | AM181: 0 | AN181: 0 | AO181: 0 | AP181: 0 | AQ181: 0 | AR181: 0 | AS181: 0 | AT181: 0 | AU181: 0 | AV181: 0 | AW181: 0 | AX181: 0 | AY181: 0 | AZ181: 0 | BA181: 0 | BB181: 0 | BC181: 0 | BD181: 0 | BE181: 0 | BF181: 0 | BG181: 0 | BH181: 0 | BI181: 0 | BJ181: 0 | BK181: 0 | BL181: 0 | BM181: 0 | BN181: 0 | BO181: 0 | BP181: 0 | BQ181: 0 | BR181: 0 | BS181: 0 | BT181: =BT180*BT177 -> 0 | BU181: 0 | BV181: 0 | BW181: 0 | BX181: 0 | BY181: 0 | BZ181: 0 | CA181: 0 | CB181: 0 | CC181: 0 | CD181: 0 | CE181: 0 | CF181: 0 | CG181: 0 | CH181: 0 | CI181: 0 | CJ181: 0 | CK181: 0 | CL181: 0 | CM181: 0 | CN181: 0 | CO181: 0 | CP181: 0 | CQ181: 0 | CR181: 0 | CS181: 0 | CT181: 0 | CU181: 0 | CV181: 0 | CW181: 0 | CX181: 0 | CY181: 0 | CZ181: 0 | DA181: 0 | DB181: 0 | DC181: 0 | DD181: 0 | DE181: 0 | DF181: 0 | DG181: 0 | DH181: 0 | DI181: 0 | DJ181: 0 | DK181: 0 | DL181: 0 | DM181: 0 | DN181: 0 | DO181: 0 | DP181: 0 | DQ181: 0 | DR181: 0 | DS181: 0 | DT181: 0 | DU181: 0 | DV181: 0 | DW181: 0 | DX181: 0
B182: Net Realised Debt Service | G182: =G179-G181 -> -9750 | H182: =H179-H181 -> 1755.893743 | I182: 1673.255673 | J182: 1600.165673 | K182: 1530.179532 | L182: 1457.397953 | M182: 1388.452164 | N182: 1316.547602 | O182: 1243.481287 | P182: 1170.148655 | Q182: 0 | R182: 0 | S182: 0 | T182: 0 | U182: 0 | V182: 0 | W182: 0 | X182: 0 | Y182: 0 | Z182: 0 | AA182: 0 | AB182: 0 | AC182: 0 | AD182: 0 | AE182: 0 | AF182: 0 | AG182: 0 | AH182: 0 | AI182: 0 | AJ182: 0 | AK182: 0 | AL182: 0 | AM182: 0 | AN182: 0 | AO182: 0 | AP182: 0 | AQ182: 0 | AR182: 0 | AS182: 0 | AT182: 0 | AU182: 0 | AV182: 0 | AW182: 0 | AX182: 0 | AY182: 0 | AZ182: 0 | BA182: 0 | BB182: 0 | BC182: 0 | BD182: 0 | BE182: 0 | BF182: 0 | BG182: 0 | BH182: 0 | BI182: 0 | BJ182: 0 | BK182: 0 | BL182: 0 | BM182: 0 | BN182: 0 | BO182: 0 | BP182: 0 | BQ182: 0 | BR182: 0 | BS182: 0 | BT182: =BT179-BT181 -> 0 | BU182: 0 | BV182: 0 | BW182: 0 | BX182: 0 | BY182: 0 | BZ182: 0 | CA182: 0 | CB182: 0 | CC182: 0 | CD182: 0 | CE182: 0 | CF182: 0 | CG182: 0 | CH182: 0 | CI182: 0 | CJ182: 0 | CK182: 0 | CL182: 0 | CM182: 0 | CN182: 0 | CO182: 0 | CP182: 0 | CQ182: 0 | CR182: 0 | CS182: 0 | CT182: 0 | CU182: 0 | CV182: 0 | CW182: 0 | CX182: 0 | CY182: 0 | CZ182: 0 | DA182: 0 | DB182: 0 | DC182: 0 | DD182: 0 | DE182: 0 | DF182: 0 | DG182: 0 | DH182: 0 | DI182: 0 | DJ182: 0 | DK182: 0 | DL182: 0 | DM182: 0 | DN182: 0 | DO182: 0 | DP182: 0 | DQ182: 0 | DR182: 0 | DS182: 0 | DT182: 0 | DU182: 0 | DV182: 0 | DW182: 0 | DX182: 0
B183: Net Cash Flow | G183: =G179-G181 -> -9750 | H183: =H179-H181 -> 1755.893743 | I183: 1673.255673 | J183: 1600.165673 | K183: 1530.179532 | L183: 1457.397953 | M183: 1388.452164 | N183: 1316.547602 | O183: 1243.481287 | P183: 1170.148655 | Q183: 0 | R183: 0 | S183: 0 | T183: 0 | U183: 0 | V183: 0 | W183: 0 | X183: 0 | Y183: 0 | Z183: 0 | AA183: 0 | AB183: 0 | AC183: 0 | AD183: 0 | AE183: 0 | AF183: 0 | AG183: 0 | AH183: 0 | AI183: 0 | AJ183: 0 | AK183: 0 | AL183: 0 | AM183: 0 | AN183: 0 | AO183: 0 | AP183: 0 | AQ183: 0 | AR183: 0 | AS183: 0 | AT183: 0 | AU183: 0 | AV183: 0 | AW183: 0 | AX183: 0 | AY183: 0 | AZ183: 0 | BA183: 0 | BB183: 0 | BC183: 0 | BD183: 0 | BE183: 0 | BF183: 0 | BG183: 0 | BH183: 0 | BI183: 0 | BJ183: 0 | BK183: 0 | BL183: 0 | BM183: 0 | BN183: 0 | BO183: 0 | BP183: 0 | BQ183: 0 | BR183: 0 | BS183: 0 | BT183: =BT179-BT181 -> 0 | BU183: 0 | BV183: 0 | BW183: 0 | BX183: 0 | BY183: 0 | BZ183: 0 | CA183: 0 | CB183: 0 | CC183: 0 | CD183: 0 | CE183: 0 | CF183: 0 | CG183: 0 | CH183: 0 | CI183: 0 | CJ183: 0 | CK183: 0 | CL183: 0 | CM183: 0 | CN183: 0 | CO183: 0 | CP183: 0 | CQ183: 0 | CR183: 0 | CS183: 0 | CT183: 0 | CU183: 0 | CV183: 0 | CW183: 0 | CX183: 0 | CY183: 0 | CZ183: 0 | DA183: 0 | DB183: 0 | DC183: 0 | DD183: 0 | DE183: 0 | DF183: 0 | DG183: 0 | DH183: 0 | DI183: 0 | DJ183: 0 | DK183: 0 | DL183: 0 | DM183: 0 | DN183: 0 | DO183: 0 | DP183: 0 | DQ183: 0 | DR183: 0 | DS183: 0 | DT183: 0 | DU183: 0 | DV183: 0 | DW183: 0 | DX183: 0
B185: IRR Realised | E185: =IRR(183:183) -> 0.06923375053
B186: Cost of Funding | E186: =E64 -> 0.03
B187: Difference | E187: =E185-E186 -> 0.03923375053
B189: Maturity in Periods | E189: =F4 -> 9
B190: Probability of Default | E190: =INDEX(175:175,MATCH(E189,73:73,0)) -> 0.3615789474
B193: Loan Balance | E193: =E84 -> 10000 | G193: =$E$193 -> 10000 | H193: 10000 | I193: 10000 | J193: 10000 | K193: 10000 | L193: 10000 | M193: 10000 | N193: 10000 | O193: 10000 | P193: 10000 | Q193: 10000 | R193: 10000 | S193: 10000 | T193: 10000 | U193: 10000 | V193: 10000 | W193: 10000 | X193: 10000 | Y193: 10000 | Z193: 10000 | AA193: 10000 | AB193: 10000 | AC193: 10000 | AD193: 10000 | AE193: 10000 | AF193: 10000 | AG193: 10000 | AH193: 10000 | AI193: 10000 | AJ193: 10000 | AK193: 10000 | AL193: 10000 | AM193: =$E$193 -> 10000 | AN193: 10000 | AO193: 10000 | AP193: 10000 | AQ193: 10000 | AR193: 10000 | AS193: 10000 | AT193: 10000 | AU193: 10000 | AV193: 10000 | AW193: 10000 | AX193: 10000 | AY193: 10000 | AZ193: 10000 | BA193: 10000 | BB193: 10000 | BC193: 10000 | BD193: 10000 | BE193: 10000 | BF193: 10000 | BG193: 10000 | BH193: 10000 | BI193: 10000 | BJ193: 10000 | BK193: 10000 | BL193: 10000 | BM193: 10000 | BN193: 10000 | BO193: 10000 | BP193: 10000 | BQ193: 10000 | BR193: 10000 | BS193: =$E$193 -> 10000 | BT193: 10000 | BU193: 10000 | BV193: 10000 | BW193: 10000 | BX193: 10000 | BY193: 10000 | BZ193: 10000 | CA193: 10000 | CB193: 10000 | CC193: 10000 | CD193: 10000 | CE193: 10000 | CF193: 10000 | CG193: 10000 | CH193: 10000 | CI193: 10000 | CJ193: 10000 | CK193: 10000 | CL193: 10000 | CM193: 10000 | CN193: 10000 | CO193: 10000 | CP193: 10000 | CQ193: 10000 | CR193: 10000 | CS193: 10000 | CT193: 10000 | CU193: 10000 | CV193: 10000 | CW193: 10000 | CX193: 10000 | CY193: =$E$193 -> 10000 | CZ193: 10000 | DA193: 10000 | DB193: 10000 | DC193: 10000 | DD193: 10000 | DE193: 10000 | DF193: 10000 | DG193: 10000 | DH193: 10000 | DI193: 10000 | DJ193: 10000 | DK193: 10000 | DL193: 10000 | DM193: 10000 | DN193: 10000 | DO193: 10000 | DP193: 10000 | DQ193: 10000 | DR193: 10000 | DS193: 10000 | DT193: 10000 | DU193: 10000 | DV193: 10000 | DW193: 10000 | DX193: 10000
B194: Opening Balance | G194: =F197 -> 0 | H194: =G197 -> 10000 | I194: 10000 | J194: 10000 | K194: 10000 | L194: 10000 | M194: 10000 | N194: 10000 | O194: 10000 | P194: 10000 | Q194: 0 | R194: 0 | S194: 0 | T194: 0 | U194: 0 | V194: 0 | W194: 0 | X194: 0 | Y194: 0 | Z194: 0 | AA194: 0 | AB194: 0 | AC194: 0 | AD194: 0 | AE194: 0 | AF194: 0 | AG194: 0 | AH194: 0 | AI194: 0 | AJ194: 0 | AK194: 0 | AL194: 0 | AM194: 0 | AN194: 0 | AO194: 0 | AP194: 0 | AQ194: 0 | AR194: 0 | AS194: 0 | AT194: 0 | AU194: 0 | AV194: 0 | AW194: 0 | AX194: 0 | AY194: 0 | AZ194: 0 | BA194: 0 | BB194: 0 | BC194: 0 | BD194: 0 | BE194: 0 | BF194: 0 | BG194: 0 | BH194: 0 | BI194: 0 | BJ194: 0 | BK194: 0 | BL194: 0 | BM194: 0 | BN194: 0 | BO194: 0 | BP194: 0 | BQ194: 0 | BR194: 0 | BS194: 0 | BT194: =BS197 -> 0 | BU194: 0 | BV194: 0 | BW194: 0 | BX194: 0 | BY194: 0 | BZ194: 0 | CA194: 0 | CB194: 0 | CC194: 0 | CD194: 0 | CE194: 0 | CF194: 0 | CG194: 0 | CH194: 0 | CI194: 0 | CJ194: 0 | CK194: 0 | CL194: 0 | CM194: 0 | CN194: 0 | CO194: 0 | CP194: 0 | CQ194: 0 | CR194: 0 | CS194: 0 | CT194: 0 | CU194: 0 | CV194: 0 | CW194: 0 | CX194: 0 | CY194: 0 | CZ194: 0 | DA194: 0 | DB194: 0 | DC194: 0 | DD194: 0 | DE194: 0 | DF194: 0 | DG194: 0 | DH194: 0 | DI194: 0 | DJ194: 0 | DK194: 0 | DL194: 0 | DM194: 0 | DN194: 0 | DO194: 0 | DP194: 0 | DQ194: 0 | DR194: 0 | DS194: 0 | DT194: 0 | DU194: 0 | DV194: 0 | DW194: 0 | DX194: 0
B195: Add: New Debt | E195: =E193 -> 10000 | G195: =G32 -> 10000 | H195: 0 | I195: 0 | J195: 0 | K195: 0 | L195: 0 | M195: 0 | N195: 0 | O195: 0 | P195: 0 | Q195: 0 | R195: 0 | S195: 0 | T195: 0 | U195: 0 | V195: 0 | W195: 0 | X195: 0 | Y195: 0 | Z195: 0 | AA195: 0 | AB195: 0 | AC195: 0 | AD195: 0 | AE195: 0 | AF195: 0 | AG195: 0 | AH195: 0 | AI195: 0 | AJ195: 0 | AK195: 0 | AL195: 0 | AM195: =AM32 -> 0 | AN195: 0 | AO195: 0 | AP195: 0 | AQ195: 0 | AR195: 0 | AS195: 0 | AT195: 0 | AU195: 0 | AV195: 0 | AW195: 0 | AX195: 0 | AY195: 0 | AZ195: 0 | BA195: 0 | BB195: 0 | BC195: 0 | BD195: 0 | BE195: 0 | BF195: 0 | BG195: 0 | BH195: 0 | BI195: 0 | BJ195: 0 | BK195: 0 | BL195: 0 | BM195: 0 | BN195: 0 | BO195: 0 | BP195: 0 | BQ195: 0 | BR195: 0 | BS195: =BS32 -> 0 | BT195: 0 | BU195: 0 | BV195: 0 | BW195: 0 | BX195: 0 | BY195: 0 | BZ195: 0 | CA195: 0 | CB195: 0 | CC195: 0 | CD195: 0 | CE195: 0 | CF195: 0 | CG195: 0 | CH195: 0 | CI195: 0 | CJ195: 0 | CK195: 0 | CL195: 0 | CM195: 0 | CN195: 0 | CO195: 0 | CP195: 0 | CQ195: 0 | CR195: 0 | CS195: 0 | CT195: 0 | CU195: 0 | CV195: 0 | CW195: 0 | CX195: 0 | CY195: =CY32 -> 0 | CZ195: 0 | DA195: 0 | DB195: 0 | DC195: 0 | DD195: 0 | DE195: 0 | DF195: 0 | DG195: 0 | DH195: 0 | DI195: 0 | DJ195: 0 | DK195: 0 | DL195: 0 | DM195: 0 | DN195: 0 | DO195: 0 | DP195: 0 | DQ195: 0 | DR195: 0 | DS195: 0 | DT195: 0 | DU195: 0 | DV195: 0 | DW195: 0 | DX195: 0
B196: Less: Repayment | E196: 1 | G196: =CHOOSE($E$196,(G86=$F$82)*G194,G37) -> 0 | H196: 0 | I196: 0 | J196: 0 | K196: 0 | L196: 0 | M196: 0 | N196: 0 | O196: 0 | P196: 10000 | Q196: 0 | R196: 0 | S196: 0 | T196: 0 | U196: 0 | V196: 0 | W196: 0 | X196: 0 | Y196: 0 | Z196: 0 | AA196: 0 | AB196: 0 | AC196: 0 | AD196: 0 | AE196: 0 | AF196: 0 | AG196: 0 | AH196: 0 | AI196: 0 | AJ196: 0 | AK196: 0 | AL196: 0 | AM196: =CHOOSE($E$196,(AM86=$F$82)*AM194,AM37) -> 0 | AN196: 0 | AO196: 0 | AP196: 0 | AQ196: 0 | AR196: 0 | AS196: 0 | AT196: 0 | AU196: 0 | AV196: 0 | AW196: 0 | AX196: 0 | AY196: 0 | AZ196: 0 | BA196: 0 | BB196: 0 | BC196: 0 | BD196: 0 | BE196: 0 | BF196: 0 | BG196: 0 | BH196: 0 | BI196: 0 | BJ196: 0 | BK196: 0 | BL196: 0 | BM196: 0 | BN196: 0 | BO196: 0 | BP196: 0 | BQ196: 0 | BR196: 0 | BS196: =CHOOSE($E$196,(BS86=$F$82)*BS194,BS37) -> 0 | BT196: 0 | BU196: 0 | BV196: 0 | BW196: 0 | BX196: 0 | BY196: 0 | BZ196: 0 | CA196: 0 | CB196: 0 | CC196: 0 | CD196: 0 | CE196: 0 | CF196: 0 | CG196: 0 | CH196: 0 | CI196: 0 | CJ196: 0 | CK196: 0 | CL196: 0 | CM196: 0 | CN196: 0 | CO196: 0 | CP196: 0 | CQ196: 0 | CR196: 0 | CS196: 0 | CT196: 0 | CU196: 0 | CV196: 0 | CW196: 0 | CX196: 0 | CY196: =CHOOSE($E$196,(CY86=$F$82)*CY194,CY37) -> 0 | CZ196: 0 | DA196: 0 | DB196: 0 | DC196: 0 | DD196: 0 | DE196: 0 | DF196: 0 | DG196: 0 | DH196: 0 | DI196: 0 | DJ196: 0 | DK196: 0 | DL196: 0 | DM196: 0 | DN196: 0 | DO196: 0 | DP196: 0 | DQ196: 0 | DR196: 0 | DS196: 0 | DT196: 0 | DU196: 0 | DV196: 0 | DW196: 0 | DX196: 0
B197: Closing Balance | G197: =G194+G195-G196 -> 10000 | H197: =H194+H195-H196 -> 10000 | I197: 10000 | J197: 10000 | K197: 10000 | L197: 10000 | M197: 10000 | N197: 10000 | O197: 10000 | P197: 0 | Q197: 0 | R197: 0 | S197: 0 | T197: 0 | U197: 0 | V197: 0 | W197: 0 | X197: 0 | Y197: 0 | Z197: 0 | AA197: 0 | AB197: 0 | AC197: 0 | AD197: 0 | AE197: 0 | AF197: 0 | AG197: 0 | AH197: 0 | AI197: 0 | AJ197: 0 | AK197: 0 | AL197: 0 | AM197: 0 | AN197: 0 | AO197: 0 | AP197: 0 | AQ197: 0 | AR197: 0 | AS197: 0 | AT197: 0 | AU197: 0 | AV197: 0 | AW197: 0 | AX197: 0 | AY197: 0 | AZ197: 0 | BA197: 0 | BB197: 0 | BC197: 0 | BD197: 0 | BE197: 0 | BF197: 0 | BG197: 0 | BH197: 0 | BI197: 0 | BJ197: 0 | BK197: 0 | BL197: 0 | BM197: 0 | BN197: 0 | BO197: 0 | BP197: 0 | BQ197: 0 | BR197: 0 | BS197: 0 | BT197: =BT194+BT195-BT196 -> 0 | BU197: 0 | BV197: 0 | BW197: 0 | BX197: 0 | BY197: 0 | BZ197: 0 | CA197: 0 | CB197: 0 | CC197: 0 | CD197: 0 | CE197: 0 | CF197: 0 | CG197: 0 | CH197: 0 | CI197: 0 | CJ197: 0 | CK197: 0 | CL197: 0 | CM197: 0 | CN197: 0 | CO197: 0 | CP197: 0 | CQ197: 0 | CR197: 0 | CS197: 0 | CT197: 0 | CU197: 0 | CV197: 0 | CW197: 0 | CX197: 0 | CY197: 0 | CZ197: 0 | DA197: 0 | DB197: 0 | DC197: 0 | DD197: 0 | DE197: 0 | DF197: 0 | DG197: 0 | DH197: 0 | DI197: 0 | DJ197: 0 | DK197: 0 | DL197: 0 | DM197: 0 | DN197: 0 | DO197: 0 | DP197: 0 | DQ197: 0 | DR197: 0 | DS197: 0 | DT197: 0 | DU197: 0 | DV197: 0 | DW197: 0 | DX197: 0
B198: Interest | E198: =E83 -> 0.069 | G198: =G44 -> 0 | H198: 690 | I198: 613.3333333 | J198: 536.6666667 | K198: 460 | L198: 383.3333333 | M198: 306.6666667 | N198: 230 | O198: 153.3333333 | P198: 76.66666667 | Q198: 0 | R198: 0 | S198: 0 | T198: 0 | U198: 0 | V198: 0 | W198: 0 | X198: 0 | Y198: 0 | Z198: 0 | AA198: 0 | AB198: 0 | AC198: 0 | AD198: 0 | AE198: 0 | AF198: 0 | AG198: 0 | AH198: 0 | AI198: 0 | AJ198: 0 | AK198: 0 | AL198: 0 | AM198: =AM44 -> 0 | AN198: 0 | AO198: 0 | AP198: 0 | AQ198: 0 | AR198: 0 | AS198: 0 | AT198: 0 | AU198: 0 | AV198: 0 | AW198: 0 | AX198: 0 | AY198: 0 | AZ198: 0 | BA198: 0 | BB198: 0 | BC198: 0 | BD198: 0 | BE198: 0 | BF198: 0 | BG198: 0 | BH198: 0 | BI198: 0 | BJ198: 0 | BK198: 0 | BL198: 0 | BM198: 0 | BN198: 0 | BO198: 0 | BP198: 0 | BQ198: 0 | BR198: 0 | BS198: =BS44 -> 0 | BT198: 0 | BU198: 0 | BV198: 0 | BW198: 0 | BX198: 0 | BY198: 0 | BZ198: 0 | CA198: 0 | CB198: 0 | CC198: 0 | CD198: 0 | CE198: 0 | CF198: 0 | CG198: 0 | CH198: 0 | CI198: 0 | CJ198: 0 | CK198: 0 | CL198: 0 | CM198: 0 | CN198: 0 | CO198: 0 | CP198: 0 | CQ198: 0 | CR198: 0 | CS198: 0 | CT198: 0 | CU198: 0 | CV198: 0 | CW198: 0 | CX198: 0 | CY198: =CY44 -> 0 | CZ198: 0 | DA198: 0 | DB198: 0 | DC198: 0 | DD198: 0 | DE198: 0 | DF198: 0 | DG198: 0 | DH198: 0 | DI198: 0 | DJ198: 0 | DK198: 0 | DL198: 0 | DM198: 0 | DN198: 0 | DO198: 0 | DP198: 0 | DQ198: 0 | DR198: 0 | DS198: 0 | DT198: 0 | DU198: 0 | DV198: 0 | DW198: 0 | DX198: 0
B200: Incremental Default Percent | G200: =G176 -> 0.02 | H200: 0.04184210526 | I200: 0.04947368421 | J200: 0.04815789474 | K200: 0.04342105263 | L200: 0.04131578947 | M200: 0.03447368421 | N200: 0.03052631579 | O200: 0.02763157895 | P200: 0.02473684211 | Q200: 0.02052631579 | R200: 0.01736842105 | S200: 0.015 | T200: 0.01289473684 | U200: 0.01394736842 | V200: 0.01440254732 | W200: 0.01487258119 | X200: 0.01535795484 | Y200: 0.01585916888 | Z200: 0.01637674028 | AA200: 0.01691120286 | AB200: 0.01746310788 | AC200: 0.01803302458 | AD200: 0.01862154077 | AE200: 0.01922926347 | AF200: 0.01985681948 | AG200: 0.02050485608 | AH200: 0.02117404165 | AI200: 0.02186506641 | AJ200: 0.02257864309 | AK200: 0.02331550767 | AL200: 0.02407642017 | AM200: =AM176 -> 0.02486216541 | AN200: 0.02567355382 | AO200: 0.02651142226 | AP200: 0.02737663493 | AQ200: 0.02827008423 | AR200: 0.02919269165 | AS200: 0.03014540881 | AT200: 0.03112921833 | AU200: 0.03214513494 | AV200: 0.03319420646 | AW200: 0.03427751492 | AX200: 0.03539617767 | AY200: 0.03655134849 | AZ200: 0.03774421885 | BA200: 0.0389760191 | BB200: 0.04024801972 | BC200: 0.04156153268 | BD200: 0.04291791275 | BE200: 0.04431855892 | BF200: 0.04576491583 | BG200: 0.04725847527 | BH200: 0.04880077773 | BI200: 0.05039341395 | BJ200: 0.05203802659 | BK200: 0.05373631194 | BL200: 0.05549002163 | BM200: 0.05730096446 | BN200: 0.05917100825 | BO200: 0.06110208179 | BP200: 0.06309617683 | BQ200: 0.06515535009 | BR200: 0.06728172543 | BS200: =BS176 -> 0.06947749602 | BT200: 0.07174492662 | BU200: 0.07408635587 | BV200: 0.07650419877 | BW200: 0.0790009491 | BX200: 0.08157918204 | BY200: 0.08424155683 | BZ200: 0.08699081946 | CA200: 0.08982980556 | CB200: 0.0927614433 | CC200: 0.09578875642 | CD200: 0.09891486731 | CE200: 0.1021430003 | CF200: 0.1054764849 | CG200: 0.1089187594 | CH200: 0.112473374 | CI200: 0.1161439952 | CJ200: 0.1199344089 | CK200: 0.1238485244 | CL200: 0.127890379 | CM200: 0.1320641414 | CN200: 0.1363741164 | CO200: 0.1408247495 | CP200: 0.1454206311 | CQ200: 0.1501665015 | CR200: 0.1550672555 | CS200: 0.160127948 | CT200: 0.1653537985 | CU200: 0.1707501971 | CV200: 0.1763227097 | CW200: 0.1820770838 | CX200: 0.1880192547 | CY200: =CY176 -> 0.194155351 | CZ200: 0.2004917018 | DA200: 0.2070348423 | DB200: 0.2137915213 | DC200: 0.2207687076 | DD200: 0.2279735977 | DE200: 0.2354136227 | DF200: 0.2430964565 | DG200: 0.2510300231 | DH200: 0.2592225054 | DI200: 0.2676823532 | DJ200: 0.276418292 | DK200: 0.2854393324 | DL200: 0.2947547785 | DM200: 0.3043742387 | DN200: 0.3143076344 | DO200: 0.3245652111 | DP200: 0.3351575487 | DQ200: 0.3460955721 | DR200: 0.3573905631 | DS200: 0.3690541714 | DT200: 0.381098427 | DU200: 0.3935357525 | DV200: 0.4063789759 | DW200: 0.419641344 | DX200: 0.4333365356
B201: Loss Given Default | E201: =E177 -> 0.6 | G201: =$E$201 -> 0.6 | H201: 0.6 | I201: 0.6 | J201: 0.6 | K201: 0.6 | L201: 0.6 | M201: 0.6 | N201: 0.6 | O201: 0.6 | P201: 0.6 | Q201: 0.6 | R201: 0.6 | S201: 0.6 | T201: 0.6 | U201: 0.6 | V201: 0.6 | W201: 0.6 | X201: 0.6 | Y201: 0.6 | Z201: 0.6 | AA201: 0.6 | AB201: 0.6 | AC201: 0.6 | AD201: 0.6 | AE201: 0.6 | AF201: 0.6 | AG201: 0.6 | AH201: 0.6 | AI201: 0.6 | AJ201: 0.6 | AK201: 0.6 | AL201: 0.6 | AM201: =$E$201 -> 0.6 | AN201: 0.6 | AO201: 0.6 | AP201: 0.6 | AQ201: 0.6 | AR201: 0.6 | AS201: 0.6 | AT201: 0.6 | AU201: 0.6 | AV201: 0.6 | AW201: 0.6 | AX201: 0.6 | AY201: 0.6 | AZ201: 0.6 | BA201: 0.6 | BB201: 0.6 | BC201: 0.6 | BD201: 0.6 | BE201: 0.6 | BF201: 0.6 | BG201: 0.6 | BH201: 0.6 | BI201: 0.6 | BJ201: 0.6 | BK201: 0.6 | BL201: 0.6 | BM201: 0.6 | BN201: 0.6 | BO201: 0.6 | BP201: 0.6 | BQ201: 0.6 | BR201: 0.6 | BS201: =$E$201 -> 0.6 | BT201: 0.6 | BU201: 0.6 | BV201: 0.6 | BW201: 0.6 | BX201: 0.6 | BY201: 0.6 | BZ201: 0.6 | CA201: 0.6 | CB201: 0.6 | CC201: 0.6 | CD201: 0.6 | CE201: 0.6 | CF201: 0.6 | CG201: 0.6 | CH201: 0.6 | CI201: 0.6 | CJ201: 0.6 | CK201: 0.6 | CL201: 0.6 | CM201: 0.6 | CN201: 0.6 | CO201: 0.6 | CP201: 0.6 | CQ201: 0.6 | CR201: 0.6 | CS201: 0.6 | CT201: 0.6 | CU201: 0.6 | CV201: 0.6 | CW201: 0.6 | CX201: 0.6 | CY201: =$E$201 -> 0.6 | CZ201: 0.6 | DA201: 0.6 | DB201: 0.6 | DC201: 0.6 | DD201: 0.6 | DE201: 0.6 | DF201: 0.6 | DG201: 0.6 | DH201: 0.6 | DI201: 0.6 | DJ201: 0.6 | DK201: 0.6 | DL201: 0.6 | DM201: 0.6 | DN201: 0.6 | DO201: 0.6 | DP201: 0.6 | DQ201: 0.6 | DR201: 0.6 | DS201: 0.6 | DT201: 0.6 | DU201: 0.6 | DV201: 0.6 | DW201: 0.6 | DX201: 0.6
B202: Incremental Loss Percent | G202: =G200*G201*(G3+G4) -> 0.012 | H202: 0.02510526316 | I202: 0.02968421053 | J202: 0.02889473684 | K202: 0.02605263158 | L202: 0.02478947368 | M202: 0.02068421053 | N202: 0.01831578947 | O202: 0.01657894737 | P202: 0.01484210526 | Q202: 0 | R202: 0 | S202: 0 | T202: 0 | U202: 0 | V202: 0 | W202: 0 | X202: 0 | Y202: 0 | Z202: 0 | AA202: 0 | AB202: 0 | AC202: 0 | AD202: 0 | AE202: 0 | AF202: 0 | AG202: 0 | AH202: 0 | AI202: 0 | AJ202: 0 | AK202: 0 | AL202: 0 | AM202: =AM200*AM201*(AM3+AM4) -> 0 | AN202: 0 | AO202: 0 | AP202: 0 | AQ202: 0 | AR202: 0 | AS202: 0 | AT202: 0 | AU202: 0 | AV202: 0 | AW202: 0 | AX202: 0 | AY202: 0 | AZ202: 0 | BA202: 0 | BB202: 0 | BC202: 0 | BD202: 0 | BE202: 0 | BF202: 0 | BG202: 0 | BH202: 0 | BI202: 0 | BJ202: 0 | BK202: 0 | BL202: 0 | BM202: 0 | BN202: 0 | BO202: 0 | BP202: 0 | BQ202: 0 | BR202: 0 | BS202: =BS200*BS201*(BS3+BS4) -> 0 | BT202: 0 | BU202: 0 | BV202: 0 | BW202: 0 | BX202: 0 | BY202: 0 | BZ202: 0 | CA202: 0 | CB202: 0 | CC202: 0 | CD202: 0 | CE202: 0 | CF202: 0 | CG202: 0 | CH202: 0 | CI202: 0 | CJ202: 0 | CK202: 0 | CL202: 0 | CM202: 0 | CN202: 0 | CO202: 0 | CP202: 0 | CQ202: 0 | CR202: 0 | CS202: 0 | CT202: 0 | CU202: 0 | CV202: 0 | CW202: 0 | CX202: 0 | CY202: =CY200*CY201*(CY3+CY4) -> 0 | CZ202: 0 | DA202: 0 | DB202: 0 | DC202: 0 | DD202: 0 | DE202: 0 | DF202: 0 | DG202: 0 | DH202: 0 | DI202: 0 | DJ202: 0 | DK202: 0 | DL202: 0 | DM202: 0 | DN202: 0 | DO202: 0 | DP202: 0 | DQ202: 0 | DR202: 0 | DS202: 0 | DT202: 0 | DU202: 0 | DV202: 0 | DW202: 0 | DX202: 0
B204: Opening Balance | G204: =F207 -> 0 | H204: =G207 -> 120 | I204: 371.0526316 | J204: 667.8947368 | K204: 956.8421053 | L204: 1217.368421 | M204: 1465.263158 | N204: 1672.105263 | O204: 1855.263158 | P204: 2021.052632 | Q204: 0 | R204: 0 | S204: 0 | T204: 0 | U204: 0 | V204: 0 | W204: 0 | X204: 0 | Y204: 0 | Z204: 0 | AA204: 0 | AB204: 0 | AC204: 0 | AD204: 0 | AE204: 0 | AF204: 0 | AG204: 0 | AH204: 0 | AI204: 0 | AJ204: 0 | AK204: 0 | AL204: 0 | AM204: 0 | AN204: 0 | AO204: 0 | AP204: 0 | AQ204: 0 | AR204: 0 | AS204: 0 | AT204: 0 | AU204: 0 | AV204: 0 | AW204: 0 | AX204: 0 | AY204: 0 | AZ204: 0 | BA204: 0 | BB204: 0 | BC204: 0 | BD204: 0 | BE204: 0 | BF204: 0 | BG204: 0 | BH204: 0 | BI204: 0 | BJ204: 0 | BK204: 0 | BL204: 0 | BM204: 0 | BN204: 0 | BO204: 0 | BP204: 0 | BQ204: 0 | BR204: 0 | BS204: 0 | BT204: =BS207 -> 0 | BU204: 0 | BV204: 0 | BW204: 0 | BX204: 0 | BY204: 0 | BZ204: 0 | CA204: 0 | CB204: 0 | CC204: 0 | CD204: 0 | CE204: 0 | CF204: 0 | CG204: 0 | CH204: 0 | CI204: 0 | CJ204: 0 | CK204: 0 | CL204: 0 | CM204: 0 | CN204: 0 | CO204: 0 | CP204: 0 | CQ204: 0 | CR204: 0 | CS204: 0 | CT204: 0 | CU204: 0 | CV204: 0 | CW204: 0 | CX204: 0 | CY204: 0 | CZ204: 0 | DA204: 0 | DB204: 0 | DC204: 0 | DD204: 0 | DE204: 0 | DF204: 0 | DG204: 0 | DH204: 0 | DI204: 0 | DJ204: 0 | DK204: 0 | DL204: 0 | DM204: 0 | DN204: 0 | DO204: 0 | DP204: 0 | DQ204: 0 | DR204: 0 | DS204: 0 | DT204: 0 | DU204: 0 | DV204: 0 | DW204: 0 | DX204: 0
B205: Add: Default | G205: =G202*G193 -> 120 | H205: 251.0526316 | I205: 296.8421053 | J205: 288.9473684 | K205: 260.5263158 | L205: 247.8947368 | M205: 206.8421053 | N205: 183.1578947 | O205: 165.7894737 | P205: 148.4210526 | Q205: 0 | R205: 0 | S205: 0 | T205: 0 | U205: 0 | V205: 0 | W205: 0 | X205: 0 | Y205: 0 | Z205: 0 | AA205: 0 | AB205: 0 | AC205: 0 | AD205: 0 | AE205: 0 | AF205: 0 | AG205: 0 | AH205: 0 | AI205: 0 | AJ205: 0 | AK205: 0 | AL205: 0 | AM205: =AM202*AM193 -> 0 | AN205: 0 | AO205: 0 | AP205: 0 | AQ205: 0 | AR205: 0 | AS205: 0 | AT205: 0 | AU205: 0 | AV205: 0 | AW205: 0 | AX205: 0 | AY205: 0 | AZ205: 0 | BA205: 0 | BB205: 0 | BC205: 0 | BD205: 0 | BE205: 0 | BF205: 0 | BG205: 0 | BH205: 0 | BI205: 0 | BJ205: 0 | BK205: 0 | BL205: 0 | BM205: 0 | BN205: 0 | BO205: 0 | BP205: 0 | BQ205: 0 | BR205: 0 | BS205: 0 | BT205: =BT202*BT193 -> 0 | BU205: 0 | BV205: 0 | BW205: 0 | BX205: 0 | BY205: 0 | BZ205: 0 | CA205: 0 | CB205: 0 | CC205: 0 | CD205: 0 | CE205: 0 | CF205: 0 | CG205: 0 | CH205: 0 | CI205: 0 | CJ205: 0 | CK205: 0 | CL205: 0 | CM205: 0 | CN205: 0 | CO205: 0 | CP205: 0 | CQ205: 0 | CR205: 0 | CS205: 0 | CT205: 0 | CU205: 0 | CV205: 0 | CW205: 0 | CX205: 0 | CY205: 0 | CZ205: 0 | DA205: 0 | DB205: 0 | DC205: 0 | DD205: 0 | DE205: 0 | DF205: 0 | DG205: 0 | DH205: 0 | DI205: 0 | DJ205: 0 | DK205: 0 | DL205: 0 | DM205: 0 | DN205: 0 | DO205: 0 | DP205: 0 | DQ205: 0 | DR205: 0 | DS205: 0 | DT205: 0 | DU205: 0 | DV205: 0 | DW205: 0 | DX205: 0
B206: Less: Default Reduction in Repayment | G206: =(G204+G205)*G88 -> 0 | H206: 0 | I206: 0 | J206: 0 | K206: 0 | L206: 0 | M206: 0 | N206: 0 | O206: 0 | P206: 2169.473684 | Q206: 0 | R206: 0 | S206: 0 | T206: 0 | U206: 0 | V206: 0 | W206: 0 | X206: 0 | Y206: 0 | Z206: 0 | AA206: 0 | AB206: 0 | AC206: 0 | AD206: 0 | AE206: 0 | AF206: 0 | AG206: 0 | AH206: 0 | AI206: 0 | AJ206: 0 | AK206: 0 | AL206: 0 | AM206: =(AM204+AM205)*AM88 -> 0 | AN206: 0 | AO206: 0 | AP206: 0 | AQ206: 0 | AR206: 0 | AS206: 0 | AT206: 0 | AU206: 0 | AV206: 0 | AW206: 0 | AX206: 0 | AY206: 0 | AZ206: 0 | BA206: 0 | BB206: 0 | BC206: 0 | BD206: 0 | BE206: 0 | BF206: 0 | BG206: 0 | BH206: 0 | BI206: 0 | BJ206: 0 | BK206: 0 | BL206: 0 | BM206: 0 | BN206: 0 | BO206: 0 | BP206: 0 | BQ206: 0 | BR206: 0 | BS206: =(BS204+BS205)*BS88 -> 0 | BT206: 0 | BU206: 0 | BV206: 0 | BW206: 0 | BX206: 0 | BY206: 0 | BZ206: 0 | CA206: 0 | CB206: 0 | CC206: 0 | CD206: 0 | CE206: 0 | CF206: 0 | CG206: 0 | CH206: 0 | CI206: 0 | CJ206: 0 | CK206: 0 | CL206: 0 | CM206: 0 | CN206: 0 | CO206: 0 | CP206: 0 | CQ206: 0 | CR206: 0 | CS206: 0 | CT206: 0 | CU206: 0 | CV206: 0 | CW206: 0 | CX206: 0 | CY206: =(CY204+CY205)*CY88 -> 0 | CZ206: 0 | DA206: 0 | DB206: 0 | DC206: 0 | DD206: 0 | DE206: 0 | DF206: 0 | DG206: 0 | DH206: 0 | DI206: 0 | DJ206: 0 | DK206: 0 | DL206: 0 | DM206: 0 | DN206: 0 | DO206: 0 | DP206: 0 | DQ206: 0 | DR206: 0 | DS206: 0 | DT206: 0 | DU206: 0 | DV206: 0 | DW206: 0 | DX206: 0
B207: Closing Balance | G207: =G204+G205-G206 -> 120 | H207: =H204+H205-H206 -> 371.0526316 | I207: =I204+I205-I206 -> 667.8947368 | J207: 956.8421053 | K207: 1217.368421 | L207: 1465.263158 | M207: 1672.105263 | N207: 1855.263158 | O207: 2021.052632 | P207: 0 | Q207: 0 | R207: 0 | S207: 0 | T207: 0 | U207: 0 | V207: 0 | W207: 0 | X207: 0 | Y207: 0 | Z207: 0 | AA207: 0 | AB207: 0 | AC207: 0 | AD207: 0 | AE207: 0 | AF207: 0 | AG207: 0 | AH207: 0 | AI207: 0 | AJ207: 0 | AK207: 0 | AL207: 0 | AM207: 0 | AN207: 0 | AO207: 0 | AP207: 0 | AQ207: 0 | AR207: 0 | AS207: 0 | AT207: 0 | AU207: 0 | AV207: 0 | AW207: 0 | AX207: 0 | AY207: 0 | AZ207: 0 | BA207: 0 | BB207: 0 | BC207: 0 | BD207: 0 | BE207: 0 | BF207: 0 | BG207: 0 | BH207: 0 | BI207: 0 | BJ207: 0 | BK207: 0 | BL207: 0 | BM207: 0 | BN207: 0 | BO207: 0 | BP207: 0 | BQ207: 0 | BR207: 0 | BS207: 0 | BT207: =BT204+BT205-BT206 -> 0 | BU207: 0 | BV207: 0 | BW207: 0 | BX207: 0 | BY207: 0 | BZ207: 0 | CA207: 0 | CB207: 0 | CC207: 0 | CD207: 0 | CE207: 0 | CF207: 0 | CG207: 0 | CH207: 0 | CI207: 0 | CJ207: 0 | CK207: 0 | CL207: 0 | CM207: 0 | CN207: 0 | CO207: 0 | CP207: 0 | CQ207: 0 | CR207: 0 | CS207: 0 | CT207: 0 | CU207: 0 | CV207: 0 | CW207: 0 | CX207: 0 | CY207: 0 | CZ207: 0 | DA207: 0 | DB207: 0 | DC207: 0 | DD207: 0 | DE207: 0 | DF207: 0 | DG207: 0 | DH207: 0 | DI207: 0 | DJ207: 0 | DK207: 0 | DL207: 0 | DM207: 0 | DN207: 0 | DO207: 0 | DP207: 0 | DQ207: 0 | DR207: 0 | DS207: 0 | DT207: 0 | DU207: 0 | DV207: 0 | DW207: 0 | DX207: 0
B208: Loss in Interest | E208: =E198 -> 0.069 | G208: =$E$208*G204 -> 0 | H208: 8.28 | I208: 25.60263158 | J208: 46.08473684 | K208: 66.02210526 | L208: 83.99842105 | M208: 101.1031579 | N208: 115.3752632 | O208: 128.0131579 | P208: 139.4526316 | Q208: 0 | R208: 0 | S208: 0 | T208: 0 | U208: 0 | V208: 0 | W208: 0 | X208: 0 | Y208: 0 | Z208: 0 | AA208: 0 | AB208: 0 | AC208: 0 | AD208: 0 | AE208: 0 | AF208: 0 | AG208: 0 | AH208: 0 | AI208: 0 | AJ208: 0 | AK208: 0 | AL208: 0 | AM208: =$E$208*AM204 -> 0 | AN208: 0 | AO208: 0 | AP208: 0 | AQ208: 0 | AR208: 0 | AS208: 0 | AT208: 0 | AU208: 0 | AV208: 0 | AW208: 0 | AX208: 0 | AY208: 0 | AZ208: 0 | BA208: 0 | BB208: 0 | BC208: 0 | BD208: 0 | BE208: 0 | BF208: 0 | BG208: 0 | BH208: 0 | BI208: 0 | BJ208: 0 | BK208: 0 | BL208: 0 | BM208: 0 | BN208: 0 | BO208: 0 | BP208: 0 | BQ208: 0 | BR208: 0 | BS208: =$E$208*BS204 -> 0 | BT208: 0 | BU208: 0 | BV208: 0 | BW208: 0 | BX208: 0 | BY208: 0 | BZ208: 0 | CA208: 0 | CB208: 0 | CC208: 0 | CD208: 0 | CE208: 0 | CF208: 0 | CG208: 0 | CH208: 0 | CI208: 0 | CJ208: 0 | CK208: 0 | CL208: 0 | CM208: 0 | CN208: 0 | CO208: 0 | CP208: 0 | CQ208: 0 | CR208: 0 | CS208: 0 | CT208: 0 | CU208: 0 | CV208: 0 | CW208: 0 | CX208: 0 | CY208: =$E$208*CY204 -> 0 | CZ208: 0 | DA208: 0 | DB208: 0 | DC208: 0 | DD208: 0 | DE208: 0 | DF208: 0 | DG208: 0 | DH208: 0 | DI208: 0 | DJ208: 0 | DK208: 0 | DL208: 0 | DM208: 0 | DN208: 0 | DO208: 0 | DP208: 0 | DQ208: 0 | DR208: 0 | DS208: 0 | DT208: 0 | DU208: 0 | DV208: 0 | DW208: 0 | DX208: 0
B210: Net Debt Service | G210: =G208+G196-G206+G198 -> 0 | H210: =H196-H206+H198-H208 -> 681.72 | I210: =I196-I206+I198-I208 -> 587.7307018 | J210: 490.5819298 | K210: 393.9778947 | L210: 299.3349123 | M210: 205.5635088 | N210: 114.6247368 | O210: 25.32017544 | P210: 7767.740351 | Q210: 0 | R210: 0 | S210: 0 | T210: 0 | U210: 0 | V210: 0 | W210: 0 | X210: 0 | Y210: 0 | Z210: 0 | AA210: 0 | AB210: 0 | AC210: 0 | AD210: 0 | AE210: 0 | AF210: 0 | AG210: 0 | AH210: 0 | AI210: 0 | AJ210: 0 | AK210: 0 | AL210: 0 | AM210: 0 | AN210: 0 | AO210: 0 | AP210: 0 | AQ210: 0 | AR210: 0 | AS210: 0 | AT210: 0 | AU210: 0 | AV210: 0 | AW210: 0 | AX210: 0 | AY210: 0 | AZ210: 0 | BA210: 0 | BB210: 0 | BC210: 0 | BD210: 0 | BE210: 0 | BF210: 0 | BG210: 0 | BH210: 0 | BI210: 0 | BJ210: 0 | BK210: 0 | BL210: 0 | BM210: 0 | BN210: 0 | BO210: 0 | BP210: 0 | BQ210: 0 | BR210: 0 | BS210: 0 | BT210: 0 | BU210: =BU196-BU206+BU198-BU208 -> 0 | BV210: 0 | BW210: 0 | BX210: 0 | BY210: 0 | BZ210: 0 | CA210: 0 | CB210: 0 | CC210: 0 | CD210: 0 | CE210: 0 | CF210: 0 | CG210: 0 | CH210: 0 | CI210: 0 | CJ210: 0 | CK210: 0 | CL210: 0 | CM210: 0 | CN210: 0 | CO210: 0 | CP210: 0 | CQ210: 0 | CR210: 0 | CS210: 0 | CT210: 0 | CU210: 0 | CV210: 0 | CW210: 0 | CX210: 0 | CY210: 0 | CZ210: 0 | DA210: 0 | DB210: 0 | DC210: 0 | DD210: 0 | DE210: 0 | DF210: 0 | DG210: 0 | DH210: 0 | DI210: 0 | DJ210: 0 | DK210: 0 | DL210: 0 | DM210: 0 | DN210: 0 | DO210: 0 | DP210: 0 | DQ210: 0 | DR210: 0 | DS210: 0 | DT210: 0 | DU210: 0 | DV210: 0 | DW210: 0 | DX210: 0
B211: Draws Net of Fees | G211: =G41-G48-G49-G50 -> 9750 | H211: 0 | I211: 0 | J211: 0 | K211: 0 | L211: 0 | M211: 0 | N211: 0 | O211: 0 | P211: 0 | Q211: 0 | R211: 0 | S211: 0 | T211: 0 | U211: 0 | V211: 0 | W211: 0 | X211: 0 | Y211: 0 | Z211: 0 | AA211: 0 | AB211: 0 | AC211: 0 | AD211: 0 | AE211: 0 | AF211: 0 | AG211: 0 | AH211: 0 | AI211: 0 | AJ211: 0 | AK211: 0 | AL211: 0 | AM211: =AM41-AM48-AM49-AM50 -> 0 | AN211: 0 | AO211: 0 | AP211: 0 | AQ211: 0 | AR211: 0 | AS211: 0 | AT211: 0 | AU211: 0 | AV211: 0 | AW211: 0 | AX211: 0 | AY211: 0 | AZ211: 0 | BA211: 0 | BB211: 0 | BC211: 0 | BD211: 0 | BE211: 0 | BF211: 0 | BG211: 0 | BH211: 0 | BI211: 0 | BJ211: 0 | BK211: 0 | BL211: 0 | BM211: 0 | BN211: 0 | BO211: 0 | BP211: 0 | BQ211: 0 | BR211: 0 | BS211: =BS41-BS48-BS49-BS50 -> 0 | BT211: 0 | BU211: 0 | BV211: 0 | BW211: 0 | BX211: 0 | BY211: 0 | BZ211: 0 | CA211: 0 | CB211: 0 | CC211: 0 | CD211: 0 | CE211: 0 | CF211: 0 | CG211: 0 | CH211: 0 | CI211: 0 | CJ211: 0 | CK211: 0 | CL211: 0 | CM211: 0 | CN211: 0 | CO211: 0 | CP211: 0 | CQ211: 0 | CR211: 0 | CS211: 0 | CT211: 0 | CU211: 0 | CV211: 0 | CW211: 0 | CX211: 0 | CY211: =CY41-CY48-CY49-CY50 -> 0 | CZ211: 0 | DA211: 0 | DB211: 0 | DC211: 0 | DD211: 0 | DE211: 0 | DF211: 0 | DG211: 0 | DH211: 0 | DI211: 0 | DJ211: 0 | DK211: 0 | DL211: 0 | DM211: 0 | DN211: 0 | DO211: 0 | DP211: 0 | DQ211: 0 | DR211: 0 | DS211: 0 | DT211: 0 | DU211: 0 | DV211: 0 | DW211: 0 | DX211: 0
B212: Net Cash Flow | G212: =G210-G211 -> -9750 | H212: =H210-H211 -> 681.72 | I212: 587.7307018 | J212: 490.5819298 | K212: 393.9778947 | L212: 299.3349123 | M212: 205.5635088 | N212: 114.6247368 | O212: 25.32017544 | P212: 7767.740351 | Q212: 0 | R212: 0 | S212: 0 | T212: 0 | U212: 0 | V212: 0 | W212: 0 | X212: 0 | Y212: 0 | Z212: 0 | AA212: 0 | AB212: 0 | AC212: 0 | AD212: 0 | AE212: 0 | AF212: 0 | AG212: 0 | AH212: 0 | AI212: 0 | AJ212: 0 | AK212: 0 | AL212: 0 | AM212: 0 | AN212: 0 | AO212: 0 | AP212: 0 | AQ212: 0 | AR212: 0 | AS212: 0 | AT212: 0 | AU212: 0 | AV212: 0 | AW212: 0 | AX212: 0 | AY212: 0 | AZ212: 0 | BA212: 0 | BB212: 0 | BC212: 0 | BD212: 0 | BE212: 0 | BF212: 0 | BG212: 0 | BH212: 0 | BI212: 0 | BJ212: 0 | BK212: 0 | BL212: 0 | BM212: 0 | BN212: 0 | BO212: 0 | BP212: 0 | BQ212: 0 | BR212: 0 | BS212: 0 | BT212: =BT210-BT211 -> 0 | BU212: 0 | BV212: 0 | BW212: 0 | BX212: 0 | BY212: 0 | BZ212: 0 | CA212: 0 | CB212: 0 | CC212: 0 | CD212: 0 | CE212: 0 | CF212: 0 | CG212: 0 | CH212: 0 | CI212: 0 | CJ212: 0 | CK212: 0 | CL212: 0 | CM212: 0 | CN212: 0 | CO212: 0 | CP212: 0 | CQ212: 0 | CR212: 0 | CS212: 0 | CT212: 0 | CU212: 0 | CV212: 0 | CW212: 0 | CX212: 0 | CY212: 0 | CZ212: 0 | DA212: 0 | DB212: 0 | DC212: 0 | DD212: 0 | DE212: 0 | DF212: 0 | DG212: 0 | DH212: 0 | DI212: 0 | DJ212: 0 | DK212: 0 | DL212: 0 | DM212: 0 | DN212: 0 | DO212: 0 | DP212: 0 | DQ212: 0 | DR212: 0 | DS212: 0 | DT212: 0 | DU212: 0 | DV212: 0 | DW212: 0 | DX212: 0

Sheet Loan Inputs
D2: =C2+1 -> 1 | E2: 2 | F2: 3 | G2: 4 | H2: 5 | I2: 6 | J2: =I2+1 -> 7 | K2: 8
C3: =INDEX(D3:N3,$S$17) -> Customised Loan | D3: Senegal Rice Loan | E3: Senegal Rice Loan Adj | F3: Lurio Plantation Loan | G3: Lurio Plantation Loan | H3: Manufacturing Loan | I3: Real Estate Loan | J3: Hotel Loan | K3: Customised Loan | O3: Customised Cell Links | Q3: =TRANSPOSE(D3:L3) -> Senegal Rice Loan
Q4: Senegal Rice Loan Adj | V4: Loan 1
B5: Loan Amount | C5: =INDEX(D5:N5,$S$17) -> 10000 | D5: =V5 -> 10000 | E5: =D5 -> 10000 | F5: 30000 | G5: 30000 | H5: 10000 | I5: 10000 | K5: =O5*1000 -> 10000 | O5: 10 | Q5: Lurio Plantation Loan | U5: Senior lender 1 commitment | V5: 10000 | W5: Loan amount | X5: 30000000
B6: Base Interest Rate | C6: =INDEX(D6:N6,$S$17) -> 0.03 | D6: 0.03 | E6: =D6 -> 0.03 | F6: =X7 -> 0.03 | G6: =F6 -> 0.03 | H6: =D6 -> 0.03 | I6: =F6 -> 0.03 | K6: =O6/1000 -> 0.03 | O6: 30 | Q6: Lurio Plantation Loan | U6: Tenor (Years) | V6: 10 | W6: Disbursement start date | X6: 2012-07-01
B7: Credit Spread | C7: 0.039 | D7: =V9 -> 0.0583 | E7: 0.0583 | F7: =X8 -> 0.045 | G7: =F7 -> 0.045 | H7: 0.05 | I7: 0.04 | K7: =O7/1000 -> 0.039 | O7: 39 | Q7: Manufacturing Loan | U7: Grace period | V7: 3 | W7: Libor | X7: 0.03
B8: Up-front Fee | C8: 0.01 | D8: =V12 -> 0.015 | E8: 0.015 | F8: =X15 -> 0.015 | G8: =F8 -> 0.015 | H8: 0.02 | I8: 0.02 | K8: =O8/1000 -> 0.01 | O8: 10 | Q8: Real Estate Loan | U8: Base rate- 6 months Libor (euro) | V8: 0.0067 | W8: Margin | X8: 0.045
B9: Commitment Fee | C9: 0.015 | D9: =V11 -> 0.01 | E9: 0.01 | F9: =X16 -> 0.01 | G9: =F9 -> 0.01 | H9: 0.01 | I9: 0.01 | K9: =O9/1000 -> 0.015 | O9: 15 | Q9: Hotel Loan | U9: Applicable Margin | V9: 0.0583 | W9: Interest rate | X9: 0.075
B10: Other Fees | C10: 0 | D10: =V13/1000 -> 70 | E10: 70 | F10: =X17*F5 -> 225 | G10: =F10 -> 225 | H10: 80 | I10: 80 | K10: =O10 -> 0 | O10: 0 | Q10: Customised Loan | U10: Interest Rate | V10: 0.065 | W10: Grace period (years) | X10: 5
U11: Commitment Fee | V11: 0.01 | W11: Loan period (maturity) (years) | X11: 15
B12: Maturity | C12: 10 | D12: =V6 -> 10 | E12: 10 | F12: =X11 -> 15 | G12: =F12 -> 15 | H12: 4 | I12: 10 | K12: =O12 -> 10 | O12: 10 | U12: Front-end-fee (%tage of loan) | V12: 0.015 | W12: Loan repayment duration (years) | X12: 10
B13: Grace Period | C13: 0 | D13: 0 | E13: 3 | F13: 0 | G13: 5 | H13: 1 | I13: 3 | K13: =O13/10 -> 0 | O13: 0 | U13: Due Diligence Appraisal Fee | V13: 70000 | W13: Principle repayment style | X13: 3
B14: Repayments | C14: 1 | D14: 1 | E14: 1 | F14: 1 | G14: 1 | H14: 2 | I14: 2 | K14: =O14 -> 1 | O14: 1
W15: Upfront | X15: 0.015
B16: Min DSCR | C16: 1.89 | D16: =V21 -> 1.407081365 | E16: 1.407081365 | F16: =X21 -> 1.70482855 | G16: =Y21 -> 0 | H16: 3.5 | I16: 1.8 | K16: =O16/100 -> 1.89 | O16: 189 | S16: Loan Code | W16: Commitement | X16: 0.01
B17: Average DSCR | C17: 2.81 | D17: =V22 -> 2.567312278 | E17: 2.567312278 | F17: =X22 -> 3.764975796 | G17: =Y22 -> 0 | H17: 3.5 | I17: 3.7 | K17: =O17/100 -> 2.81 | O17: 281 | R17: 1 | S17: 8 | W17: Appraisal | X17: 0.0075
B19: Debt to Capital | C19: 0.49 | D19: =V24 -> 0.55 | E19: 0.55 | F19: =X24 -> 0.55 | G19: =Y24 -> 0 | H19: 0.45 | I19: 0.65 | K19: =O19/100 -> 0.49 | O19: 49
B21: Project IRR | C21: 0.2 | D21: =V28 -> 0.2740275323 | E21: 0.2740275323 | F21: 0.1882 | G21: 0.1882 | H21: 0.18 | I21: 0.4 | K21: =O21/100 -> 0.2 | O21: 20 | U21: Min DSCR | V21: 1.407081365 | W21: Min DSCR | X21: 1.70482855
U22: Average DSCR | V22: 2.567312278 | W22: Average DSCR | X22: 3.764975796
B23: EBITDA/Interest | C23: 3.5 | H23: 3.5 | K23: =O23/100 -> 3.5 | O23: 350
B24: Debt/EBITDA | C24: 4.5 | H24: 4.2 | K24: =O24/100 -> 4.5 | O24: 450 | U24: Debt to Capital Ratio | V24: 0.55 | X24: 0.55
B26: Loan to Value | C26: 0.6 | I26: 0.7 | K26: =O26/100 -> 0.6 | O26: 60 | V26: Nominal IRR
U27: Equity | V27: 0.3631303608
U28: Project (Post Tax) | V28: 0.2740275323

Sheet Weights and Defaults
E1: Code | F1: Column
E2: =Notes!$R$20 -> 3 | F2: =MATCH(E2,4:4,0) -> 12
B4: Code Number for Industry | H4: 1 | J4: 2 | L4: 3 | N4: 4 | P4: 5 | R4: 6 | T4: 7 | V4: 8
E5: =INDEX(5:5,$F$2) -> Industry | F5: =INDEX(5:5,$F$2+1) -> Weight | H5: Agriculture | I5: Weight | J5: Social Projects | K5: Weight | L5: Industry | M5: Weight | N5: Electricity | O5: Weight | P5: Infrastructure | Q5: Weight | R5: Real Estate-Housing | S5: Weight | T5: Real Estate-Commercial | U5: Weight | V5: Real Estate - Hotel | W5: Weight
B6: Industry Assesment
C7: Industry Price Variation | E7: =INDEX(7:7,$F$2) -> 6 | F7: =INDEX(7:7,$F$2+1) -> 0.25 | H7: 7 | I7: 0.25 | J7: 4 | K7: 0.25 | L7: 6 | M7: 0.25 | N7: 5 | O7: 0.1 | P7: 7 | Q7: 0.2 | R7: 7 | S7: 0.2 | T7: 7 | U7: 0.1 | V7: 7 | W7: 0.2
C8: Industry Capital Intensity | E8: =INDEX(8:8,$F$2) -> 7 | F8: =INDEX(8:8,$F$2+1) -> 0.25 | H8: 5 | I8: 0.25 | J8: 4 | K8: 0.25 | L8: 7 | M8: 0.25 | N8: 5 | O8: 0.1 | P8: 4 | Q8: 0.3 | R8: 6 | S8: 0.2 | T8: 6 | U8: 0.2 | V8: 6 | W8: 0.2
C9: Oblosense Risk | E9: =INDEX(9:9,$F$2) -> 5 | F9: =INDEX(9:9,$F$2+1) -> 0.25 | H9: 3 | I9: 0.25 | J9: 3 | K9: 0.25 | L9: 5 | M9: 0.25 | N9: 5 | O9: 0.1 | P9: 4 | Q9: 0.1 | R9: 4 | S9: 0.1 | T9: 4 | U9: 0.1 | V9: 4 | W9: 0.2
C10: Operating Leverage | E10: =INDEX(10:10,$F$2) -> 4 | F10: =INDEX(10:10,$F$2+1) -> 0.25 | H10: 6 | I10: 0.25 | J10: 6 | K10: 0.25 | L10: 4 | M10: 0.25 | N10: 6 | O10: 0.1 | P10: 6 | Q10: 0.4 | R10: 6 | S10: 0.2 | T10: 6 | U10: 0.2 | V10: 6 | W10: 0.2
C11: Contract Strength | E11: =INDEX(11:11,$F$2) -> 0 | F11: =INDEX(11:11,$F$2+1) -> 0 | N11: 2 | O11: 0.6 | R11: 5 | S11: 0.3 | T11: 5 | U11: 0.4 | V11: 5 | W11: 0.2
B12: Management Assessment
C13: Company Size | E13: =INDEX(13:13,$F$2) -> 5 | F13: =INDEX(13:13,$F$2+1) -> 0.15 | H13: 4 | I13: 0.1 | J13: 4 | K13: 0.1 | L13: 5 | M13: 0.15 | N13: 4 | O13: 0.05 | P13: 4 | Q13: 0.05 | R13: 5 | S13: 0.05 | T13: 5 | U13: 0.05 | V13: 5 | W13: 0.05
C14: Reputation Assessment | E14: =INDEX(14:14,$F$2) -> 4 | F14: =INDEX(14:14,$F$2+1) -> 0.25 | H14: 4 | I14: 0.3 | J14: 4 | K14: 0.3 | L14: 4 | M14: 0.25 | N14: 5 | O14: 0.15 | P14: 5 | Q14: 0.05 | R14: 5 | S14: 0.05 | T14: 5 | U14: 0.05 | V14: 5 | W14: 0.05
C15: Prior Projects | E15: =INDEX(15:15,$F$2) -> 6 | F15: =INDEX(15:15,$F$2+1) -> 0.1 | H15: 5 | I15: 0.1 | J15: 5 | K15: 0.1 | L15: 6 | M15: 0.1 | N15: 6 | O15: 0.1 | P15: 6 | Q15: 0.2 | R15: 5 | S15: 0.2 | T15: 5 | U15: 0.2 | V15: 5 | W15: 0.2
C16: Business Plan Assessment | E16: =INDEX(16:16,$F$2) -> 5 | F16: =INDEX(16:16,$F$2+1) -> 0 | H16: 5 | J16: 5 | L16: 5 | N16: 4 | P16: 4 | R16: 5 | T16: 5 | V16: 5
C17: Excessive Project IRR | E17: =INDEX(17:17,$F$2) -> 5 | F17: =INDEX(17:17,$F$2+1) -> 0.5 | H17: 6 | I17: 0.5 | J17: 6 | K17: 0.5 | L17: 5 | M17: 0.5 | N17: 7 | O17: 0.7 | P17: 7 | Q17: 0.7 | R17: 5 | S17: 0.7 | T17: 5 | U17: 0.7 | V17: 5 | W17: 0.7
B18: Capital Assessment
C19: Debt to Capital Ratio | F19: =INDEX(19:19,$F$2+1) -> 0.35 | I19: 0.33 | K19: 0.25 | M19: 0.35 | O19: 0.3 | Q19: 0.3 | S19: 0.2 | U19: 0.2 | W19: 0.2
C20: Coverage Ratio - Minimum | F20: =INDEX(20:20,$F$2+1) -> 0.1 | I20: 0.33 | K20: 0.25 | M20: 0.1 | O20: 0.3 | Q20: 0.2 | S20: 0.1 | U20: 0.1 | W20: 0.1
C21: Coverage Ratio - Average | F21: =INDEX(21:21,$F$2+1) -> 0.1 | I21: 0.33 | K21: 0.25 | M21: 0.1 | O21: 0.3 | Q21: 0.1 | S21: 0.1 | U21: 0.1 | W21: 0.1
C22: Debt to EBITDA | F22: =INDEX(22:22,$F$2+1) -> 0.45 | K22: 0.25 | M22: 0.45 | O22: 0.1 | S22: 0.2 | U22: 0.2 | W22: 0.2
C23: PLCR/Loan to Value | F23: =INDEX(23:23,$F$2+1) -> 0 | Q23: 0.4 | S23: 0.4 | U23: 0.4 | W23: 0.4
B24: Collateral
C25: Collateral Included | E25: =INDEX(25:25,$F$2) -> 5 | F25: =INDEX(25:25,$F$2+1) -> 0.5 | H25: 5 | I25: 0.5 | J25: 5 | K25: 0.5 | L25: 5 | M25: 0.5 | N25: 5 | O25: 0.5 | P25: 5 | Q25: 0.5 | R25: 5 | S25: 0.5 | T25: 5 | U25: 0.5 | V25: 5 | W25: 0.5
C26: Value of Collateral/Loan | E26: =INDEX(26:26,$F$2) -> 5 | F26: =INDEX(26:26,$F$2+1) -> 0.5 | H26: 5 | I26: 0.5 | J26: 5 | K26: 0.5 | L26: 5 | M26: 0.5 | N26: 5 | O26: 0.5 | P26: 5 | Q26: 0.5 | R26: 5 | S26: 0.5 | T26: 5 | U26: 0.5 | V26: 5 | W26: 0.5
B27: Credit Enhancements
C28: DSRA | E28: =INDEX(28:28,$F$2) -> 5 | F28: =INDEX(28:28,$F$2+1) -> 0.5 | H28: 5 | I28: 0.5 | J28: 5 | K28: 0.5 | L28: 5 | M28: 0.5 | N28: 5 | O28: 0.5 | P28: 5 | Q28: 0.5 | R28: 5 | S28: 0.5 | T28: 5 | U28: 0.5 | V28: 5 | W28: 0.5
C29: Dividend Lock-up Covenant | E29: =INDEX(29:29,$F$2) -> 5 | F29: =INDEX(29:29,$F$2+1) -> 0.5 | H29: 5 | I29: 0.5 | J29: 5 | K29: 0.5 | L29: 5 | M29: 0.5 | N29: 5 | O29: 0.5 | P29: 5 | Q29: 0.5 | R29: 5 | S29: 0.5 | T29: 5 | U29: 0.5 | V29: 5 | W29: 0.5
D51: Cyclicality | E51: Competition | F51: Capital Intensity | G51: Technology | H51: Regulatory | I51: Energy
A52: General Industry | D52: H | E52: H | F52: H | G52: L | H52: M | I52: H
A53: Airlines | D53: H | E53: H | F53: H | G53: M | H53: M | I53: H
A54: Autos | D54: H | E54: H | F54: H | G54: M | H54: M | I54: M
A55: Auto Suppliers | D55: H | E55: H | F55: M | G55: H | H55: L | I55: L
A56: High Technology | D56: H | E56: H | F56: H | G56: M | H56: M | I56: M
A57: Mining | D57: H | E57: H | F57: H | G57: L | H57: M | I57: L
A58: Chemicals | D58: H | E58: H | F58: H | G58: L | H58: M | I58: H
A59: Hotels | D59: H | E59: H | F59: H | G59: L | H59: L | I59: M
A60: Shipping | D60: H | E60: H | F60: H | G60: L | H60: L | I60: M
A61: Comp Power | D61: H | E61: H | F61: M | G61: L | H61: H | I61: H
A62: Telecom | D62: M | E62: H | F62: H | G62: H | H62: H | I62: L

Sheet Bond Rating Simulation
A1: General Business | D1: Lowest FFO/Interest Acceptable | I1: Lowest FFO/Debt Acceptable | O1: Highest Debt to Capital Acceptable
D2: 1 | E2: 2 | F2: 3 | G2: 4 | J2: 1 | K2: 2 | L2: 3 | M2: 4 | P2: 1 | Q2: 2 | R2: 3 | S2: 4
D3: AA | E3: A | F3: BBB | G3: BB | H3: B | J3: AA | K3: A | L3: BBB | M3: BB | P3: AA | Q3: A | R3: BBB | S3: BB
C4: 1 | D4: 2.5 | E4: 1.5 | F4: 1 | I4: 1 | J4: 0.15 | K4: 0.1 | L4: 0.05 | M4: 0.01 | O4: 1 | P4: 0.55 | Q4: 0.6 | R4: 0.7
C5: 2 | D5: 3 | E5: 2 | F5: 1 | I5: 2 | J5: 0.2 | K5: 0.12 | L5: 0.08 | M5: 0.01 | O5: 2 | P5: 0.52 | Q5: 0.58 | R5: 0.68
C6: 3 | D6: 3.5 | E6: 2.5 | F6: 1.5 | G6: 1 | I6: 3 | J6: 0.25 | K6: 0.15 | L6: 0.1 | M6: 0.05 | O6: 3 | P6: 0.5 | Q6: 0.55 | R6: 0.65 | S6: 0.7
C7: 4 | D7: 4.2 | E7: 3.5 | F7: 2.5 | G7: 1.5 | I7: 4 | J7: 0.28 | K7: 0.2 | L7: 0.12 | M7: 0.08 | O7: 4 | P7: 0.45 | Q7: 0.52 | R7: 0.62 | S7: 0.68
C8: 5 | D8: 4.5 | E8: 3.8 | F8: 2.8 | G8: 1.8 | I8: 5 | J8: 0.3 | K8: 0.22 | L8: 0.15 | M8: 0.1 | O8: 5 | P8: 0.42 | Q8: 0.5 | R8: 0.62 | S8: 0.68
C9: 6 | D9: 5.2 | E9: 4.2 | F9: 3 | G9: 2 | I9: 6 | J9: 0.35 | K9: 0.28 | L9: 0.18 | M9: 0.12 | O9: 6 | P9: 0.4 | Q9: 0.48 | R9: 0.58 | S9: 0.62
C10: 7 | D10: 6.5 | E10: 4.5 | F10: 3.2 | G10: 2.2 | I10: 7 | J10: 0.45 | K10: 0.3 | L10: 0.2 | M10: 0.15 | O10: 7 | P10: 0.38 | Q10: 0.45 | R10: 0.55 | S10: 0.6
C11: 8 | D11: 7.5 | E11: 5.5 | F11: 3.5 | G11: 2.5 | I11: 8 | J11: 0.55 | K11: 0.4 | L11: 0.25 | M11: 0.15 | O11: 8 | P11: 0.35 | Q11: 0.42 | R11: 0.52 | S11: 0.58
C12: 9 | D12: 8.5 | E12: 7 | F12: 4 | G12: 2.8 | I12: 9 | J12: 0.65 | K12: 0.45 | L12: 0.3 | M12: 0.2 | O12: 9 | P12: 0.32 | Q12: 0.4 | R12: 0.5 | S12: 0.55
C13: 10 | D13: 9 | E13: 8 | F13: 4.5 | G13: 3 | I13: 10 | J13: 0.7 | K13: 0.55 | L13: 0.4 | M13: 0.25 | O13: 10 | P13: 0.25 | Q13: 0.35 | R13: 0.48 | S13: 0.52
C15: Ratio | D15: ='RAROC Analysis'!M25*0.8 -> 1.512 | I15: Debt/EBIT | J15: ='RAROC Analysis'!M27 -> 4.5 | O15: Debt/Cap | P15: ='RAROC Analysis'!M24 -> 0.49
C16: Business Risk | D16: ='RAROC Analysis'!L3 -> 5.755 | E16: =D16 -> 5.755 | F16: =E16 -> 5.755 | G16: 5.755 | I16: FFO/Debt | J16: =interpolate_look_up_linear(J15,K116:Q116,K109:Q109) -> 0.1073333333 | O16: Business | P16: =J17 -> 5.755 | Q16: =P16 -> 5.755 | R16: =Q16 -> 5.755 | S16: 5.755
C17: Row Number | D17: =MATCH(D16,C4:C12) -> 5 | E17: =D17 -> 5 | F17: =E17 -> 5 | G17: 5 | I17: Business | J17: =D16 -> 5.755 | K17: =J17 -> 5.755 | L17: =K17 -> 5.755 | M17: 5.755 | O17: Row Number | P17: =MATCH(P16,O4:O13) -> 5 | Q17: =P17 -> 5 | R17: =Q17 -> 5 | S17: 5
C18: Low Range | D18: =INDEX(D4:D12,D17) -> 4.5 | E18: =INDEX(E4:E12,E17) -> 3.8 | F18: =INDEX(F4:F12,F17) -> 2.8 | G18: =INDEX(G4:G12,G17) -> 1.8 | I18: Row Number | J18: =MATCH(J17,I4:I13) -> 5 | K18: =J18 -> 5 | L18: =K18 -> 5 | M18: 5 | O18: Low Range | P18: =LOOKUP(P17,$O$4:$O$13,P4:P13) -> 0.42 | Q18: =LOOKUP(Q17,$O$4:$O$13,Q4:Q13) -> 0.5 | R18: =LOOKUP(R17,$O$4:$O$13,R4:R13) -> 0.62 | S18: =LOOKUP(S17,$O$4:$O$13,S4:S13) -> 0.68
C19: High Range | D19: =INDEX(D4:D12,D17+1) -> 5.2 | E19: =INDEX(E4:E12,E17+1) -> 4.2 | F19: =INDEX(F4:F12,F17+1) -> 3 | G19: =INDEX(G4:G12,G17+1) -> 2 | I19: Low Range | J19: =LOOKUP(J17,I4:I13,J4:J13) -> 0.3 | K19: =LOOKUP(K17,J4:J13,K4:K13) -> 0.55 | L19: 0.4 | M19: 0.25 | O19: High Range | P19: =INDEX(P4:P13,MATCH(P17,$O$4:$O$13)+1) -> 0.4 | Q19: =INDEX(Q4:Q13,MATCH(Q17,$O$4:$O$13)+1) -> 0.48 | R19: =INDEX(R4:R13,MATCH(R17,$O$4:$O$13)+1) -> 0.58 | S19: =INDEX(S4:S13,MATCH(S17,$O$4:$O$13)+1) -> 0.62
C20: Interpolated | D20: =interpolate_look_up_linear(D16,$C$4:$C$12,D4:D12) -> 5.0285 | E20: =interpolate_look_up_linear(E16,$C$4:$C$12,E4:E12) -> 4.102 | F20: =interpolate_look_up_linear(F16,$C$4:$C$12,F4:F12) -> 2.951 | G20: =interpolate_look_up_linear(G16,$C$4:$C$12,G4:G12) -> 1.951 | I20: High Range | J20: =INDEX(J4:J13,MATCH(J18,$I$4:$I$13)+1) -> 0.35 | K20: =INDEX(K4:K13,MATCH(K18,$I$4:$I$13)+1) -> 0.28 | L20: 0.18 | M20: 0.12 | O20: Interpolated | P20: =interpolate_look_up_linear(P16,$O$4:$O$13,P4:P13) -> 0.4049 | Q20: =interpolate_look_up_linear(Q16,$O$4:$O$13,Q4:Q13) -> 0.4849 | R20: =interpolate_look_up_linear(R16,$O$4:$O$13,R4:R13) -> 0.5898 | S20: =interpolate_look_up_linear(S16,$O$4:$O$13,S4:S13) -> 0.6347
C21: Bond Rating | D21: =IFERROR(INDEX(D3:G3,MATCH(D15,D20:G20,-1)+1),NA()) ->  | I21: Interpolated | J21: =interpolate_look_up_linear(J17,$I$4:$I$13,J4:J13) -> 0.33775 | K21: =interpolate_look_up_linear(K17,$I$4:$I$13,K4:K13) -> 0.2653 | L21: 0.17265 | M21: 0.1151 | O21: Bond Rating | P21: =IFERROR(INDEX(P3:S3,MATCH(P15,P20:S20,1)+1),NA()) -> BBB
C22: Interpolated | D22: =interpolate_look_up_reverse(D15,D20:G20,D2:G2) -> 4 | I22: Bond Rating | J22: =IFERROR(INDEX(J3:M3,MATCH(J16,J21:M21,-1)+1),NA()) ->  | O22: Interpolated | P22: =interpolate_look_up_linear(P15,P20:S20,D2:G2) -> 2.048617731
I23: Interpolated | J23: =interpolate_look_up_reverse(J16,J21:M21,D2:G2) -> 4
A26: Project Finance
D28: Lowest Minimum DSCR Acceptable | J28: Lowest Average DSCR Acceptable | O28: Highest Debt to Capital Acceptable
D29: 1 | E29: 2 | F29: 3 | G29: 4 | J29: 1 | K29: 2 | L29: 3 | M29: 4 | P29: 1 | Q29: 2 | R29: 3 | S29: 4
D30: AA | E30: A | F30: BBB | G30: BB | J30: AA | K30: A | L30: BBB | M30: BB | P30: AA | Q30: A | R30: BBB | S30: BB
C31: 1 | D31: 2 | E31: 1.5 | F31: 1.35 | G31: 1.05 | I31: 1 | J31: 2.7 | K31: 2.25 | L31: 2 | M31: 1.4 | O31: 1 | P31: 0.6 | Q31: 0.65 | R31: 0.7 | S31: 0.8
C32: 2 | D32: =D31+0.075 -> 2.075 | E32: =E31+0.075 -> 1.575 | F32: 1.425 | G32: 1.125 | I32: 2 | J32: =J31+0.1 -> 2.8 | K32: =K31+0.1 -> 2.35 | L32: =L31+0.1 -> 2.1 | M32: =M31+0.1 -> 1.5 | O32: 2 | P32: =P31-3% -> 0.57 | Q32: =Q31-3% -> 0.62 | R32: 0.67 | S32: 0.77
C33: 3 | D33: =D32+0.075 -> 2.15 | E33: =E32+0.075 -> 1.65 | F33: =F32+0.075 -> 1.5 | G33: =G32+0.075 -> 1.2 | I33: 3 | J33: =J32+0.1 -> 2.9 | K33: =K32+0.1 -> 2.45 | L33: =L32+0.1 -> 2.2 | M33: =M32+0.1 -> 1.6 | O33: 3 | P33: =P32-3% -> 0.54 | Q33: =Q32-3% -> 0.59 | R33: =R32-3% -> 0.64 | S33: =S32-3% -> 0.74
C34: 4 | D34: 2.225 | E34: 1.725 | F34: 1.575 | G34: 1.275 | I34: 4 | J34: 3 | K34: 2.55 | L34: 2.3 | M34: 1.7 | O34: 4 | P34: 0.51 | Q34: 0.56 | R34: 0.61 | S34: 0.71
C35: 5 | D35: 2.3 | E35: 1.8 | F35: 1.65 | G35: 1.35 | I35: 5 | J35: 3.1 | K35: 2.65 | L35: 2.4 | M35: 1.8 | O35: 5 | P35: 0.48 | Q35: 0.53 | R35: 0.58 | S35: 0.68
C36: 6 | D36: 2.375 | E36: 1.875 | F36: 1.725 | G36: 1.425 | I36: 6 | J36: 3.2 | K36: 2.75 | L36: 2.5 | M36: 1.9 | O36: 6 | P36: 0.45 | Q36: 0.5 | R36: 0.55 | S36: 0.65
C37: 7 | D37: 2.45 | E37: 1.95 | F37: 1.8 | G37: 1.5 | I37: 7 | J37: 3.3 | K37: 2.85 | L37: 2.6 | M37: 2 | O37: 7 | P37: 0.42 | Q37: 0.47 | R37: 0.52 | S37: 0.62
C38: 8 | D38: 2.525 | E38: 2.025 | F38: 1.875 | G38: 1.575 | I38: 8 | J38: 3.4 | K38: 2.95 | L38: 2.7 | M38: 2.1 | O38: 8 | P38: 0.39 | Q38: 0.44 | R38: 0.49 | S38: 0.59
C39: 9 | D39: 2.6 | E39: 2.1 | F39: 1.95 | G39: 1.65 | I39: 9 | J39: 3.5 | K39: 3.05 | L39: 2.8 | M39: 2.2 | O39: 9 | P39: 0.36 | Q39: 0.41 | R39: 0.46 | S39: 0.56
O40: 10 | P40: 0.33 | Q40: 0.38 | R40: 0.43 | S40: 0.53
C42: Ratio | D42: ='RAROC Analysis'!M25 -> 1.89 | I42: Ratio | J42: ='RAROC Analysis'!M26 -> 2.81 | O42: Debt/Cap | P42: ='RAROC Analysis'!M24 -> 0.49
C43: Business Risk | D43: ='RAROC Analysis'!L3 -> 5.755 | E43: =D43 -> 5.755 | F43: =E43 -> 5.755 | G43: 5.755 | I43: Business Risk | J43: =D43 -> 5.755 | K43: =E43 -> 5.755 | L43: 5.755 | M43: 5.755 | O43: Business | P43: =J43 -> 5.755 | Q43: =K43 -> 5.755 | R43: 5.755 | S43: 5.755
C44: Row Number | D44: =MATCH(D43,$C$31:$C$39) -> 5 | E44: =MATCH(E43,$C$31:$C$39) -> 5 | F44: 5 | G44: 5 | I44: Row Number | J44: =MATCH(J43,$C$31:$C$39) -> 5 | K44: =MATCH(K43,$C$31:$C$39) -> 5 | L44: =MATCH(L43,$C$31:$C$39) -> 5 | M44: =MATCH(M43,$C$31:$C$39) -> 5 | O44: Row Number | P44: =MATCH(P43,$C$31:$C$39) -> 5 | Q44: =MATCH(Q43,$C$31:$C$39) -> 5 | R44: =MATCH(R43,$C$31:$C$39) -> 5 | S44: =MATCH(S43,$C$31:$C$39) -> 5
C45: Low Range | D45: =INDEX(D31:D39,D44) -> 2.3 | E45: =INDEX(E31:E39,E44) -> 1.8 | F45: 1.65 | G45: 1.35 | I45: Low Range | J45: =INDEX(J31:J39,J44) -> 3.1 | K45: =INDEX(K31:K39,K44) -> 2.65 | L45: =INDEX(L31:L39,L44) -> 2.4 | M45: =INDEX(M31:M39,M44) -> 1.8 | O45: Low Range | P45: =INDEX(P31:P39,P44) -> 0.48 | Q45: =INDEX(Q31:Q39,Q44) -> 0.53 | R45: =INDEX(R31:R39,R44) -> 0.58 | S45: =INDEX(S31:S39,S44) -> 0.68
C46: High Range | D46: =INDEX(D31:D39,D44+1) -> 2.375 | E46: =INDEX(E31:E39,E44+1) -> 1.875 | F46: 1.725 | G46: 1.425 | I46: High Range | J46: =INDEX(J31:J39,J44+1) -> 3.2 | K46: 2.75 | L46: 2.5 | M46: 1.9 | O46: High Range | P46: =INDEX(P31:P39,P44+1) -> 0.45 | Q46: 0.5 | R46: 0.55 | S46: 0.65
C47: Interpolated | D47: =interpolate_look_up_linear(D43,$C$31:$C$39,D31:D39) -> 2.356625 | E47: =interpolate_look_up_linear(E43,$C$31:$C$39,E31:E39) -> 1.856625 | F47: 1.706625 | G47: 1.406625 | I47: Interpolated | J47: =interpolate_look_up_linear(J43,$C$31:$C$39,J31:J39) -> 3.1755 | K47: 2.7255 | L47: 2.4755 | M47: 1.8755 | O47: Interpolated | P47: =interpolate_look_up_linear(P43,$C$31:$C$39,P31:P39) -> 0.45735 | Q47: 0.50735 | R47: 0.55735 | S47: 0.65735
C48: Bond Rating | D48: =INDEX(D30:G30,MATCH(D42,D47:G47,-1)+1) -> A | I48: Bond Rating | J48: =INDEX(J30:M30,MATCH(J42,J47:M47,-1)+1) -> A | O48: Bond Rating | P48: =INDEX(P30:S30,MATCH(P42,P47:S47,1)+1) -> A
C49: Interpolated | D49: =interpolate_look_up_reverse(D42,D47:G47,D29:G29) -> 1.933249938 | I49: Interpolated | J49: =interpolate_look_up_reverse(J42,J47:M47,J29:M29) -> 1.812222423 | O49: Interpolated | P49: =interpolate_look_up_linear(P42,P47:S47,P29:S29) -> 1.653
A53: Real Estate
D54: Lowest Minimum DSCR Acceptable | J54: Lowest Average DSCR Acceptable | O54: Highest Debt to Capital Acceptable
D55: 1 | E55: 2 | F55: 3 | G55: 4 | J55: 1 | K55: 2 | L55: 3 | M55: 4 | P55: 1 | Q55: 2 | R55: 3 | S55: 4
D56: AA | E56: A | F56: BBB | G56: BB | J56: AA | K56: A | L56: BBB | M56: BB | P56: AA | Q56: A | R56: BBB | S56: BB
C57: 1 | D57: 2.5 | E57: 1.6 | F57: 1.5 | G57: 1.1 | I57: 1 | J57: 3.5 | K57: 2.75 | L57: 2 | M57: 1.7 | O57: 1 | P57: 0.6 | Q57: 0.65 | R57: 0.7 | S57: 0.8
C58: 2 | D58: =D57+0.1 -> 2.6 | E58: =E57+0.1 -> 1.7 | F58: =F57+0.1 -> 1.6 | G58: =G57+0.1 -> 1.2 | I58: 2 | J58: =J57+0.1 -> 3.6 | K58: =K57+0.1 -> 2.85 | L58: =L57+0.1 -> 2.1 | M58: =M57+0.1 -> 1.8 | O58: 2 | P58: =P57-3% -> 0.57 | Q58: =Q57-3% -> 0.62 | R58: =R57-3% -> 0.67 | S58: =S57-3% -> 0.77
C59: 3 | D59: =D58+0.1 -> 2.7 | E59: =E58+0.1 -> 1.8 | F59: =F58+0.1 -> 1.7 | G59: =G58+0.1 -> 1.3 | I59: 3 | J59: =J58+0.1 -> 3.7 | K59: =K58+0.1 -> 2.95 | L59: =L58+0.1 -> 2.2 | M59: =M58+0.1 -> 1.9 | O59: 3 | P59: =P58-3% -> 0.54 | Q59: 0.59 | R59: 0.64 | S59: 0.74
C60: 4 | D60: 2.8 | E60: 1.9 | F60: 1.8 | G60: 1.4 | I60: 4 | J60: 3.8 | K60: 3.05 | L60: 2.3 | M60: 2 | O60: 4 | P60: 0.51 | Q60: 0.56 | R60: 0.61 | S60: 0.71
C61: 5 | D61: 2.9 | E61: 2 | F61: 1.9 | G61: 1.5 | I61: 5 | J61: 3.9 | K61: 3.15 | L61: 2.4 | M61: 2.1 | O61: 5 | P61: 0.48 | Q61: 0.53 | R61: 0.58 | S61: 0.68
C62: 6 | D62: 3 | E62: 2.1 | F62: 2 | G62: 1.6 | I62: 6 | J62: 4 | K62: 3.25 | L62: 2.5 | M62: 2.2 | O62: 6 | P62: 0.45 | Q62: 0.5 | R62: 0.55 | S62: 0.65
C63: 7 | D63: 3.1 | E63: 2.2 | F63: 2.1 | G63: 1.7 | I63: 7 | J63: 4.1 | K63: 3.35 | L63: 2.6 | M63: 2.3 | O63: 7 | P63: 0.42 | Q63: 0.47 | R63: 0.52 | S63: 0.62
C64: 8 | D64: 3.2 | E64: 2.3 | F64: 2.2 | G64: 1.8 | I64: 8 | J64: 4.2 | K64: 3.45 | L64: 2.7 | M64: 2.4 | O64: 8 | P64: 0.39 | Q64: 0.44 | R64: 0.49 | S64: 0.59
C65: 9 | D65: 3.3 | E65: 2.4 | F65: 2.3 | G65: 1.9 | I65: 9 | J65: 4.3 | K65: 3.55 | L65: 2.8 | M65: 2.5 | O65: 9 | P65: 0.36 | Q65: 0.41 | R65: 0.46 | S65: 0.56
C66: 10 | D66: =D65+0.1 -> 3.4 | E66: =E65+0.1 -> 2.5 | F66: 2.4 | G66: =G65+0.1 -> 2 | I66: 10 | J66: =J65+0.1 -> 4.4 | K66: =K65+0.1 -> 3.65 | L66: =L65+0.1 -> 2.9 | M66: =M65+0.1 -> 2.6 | O66: 10 | P66: 0.33 | Q66: 0.38 | R66: 0.43 | S66: 0.53
C68: Ratio | D68: ='RAROC Analysis'!M25 -> 1.89 | I68: Ratio | J68: ='RAROC Analysis'!M26 -> 2.81 | O68: Debt/Cap | P68: ='RAROC Analysis'!M24 -> 0.49
C69: Business Risk | D69: =D43 -> 5.755 | E69: =E43 -> 5.755 | F69: 5.755 | G69: 5.755 | I69: Business Risk | J69: =J43 -> 5.755 | K69: =K43 -> 5.755 | L69: 5.755 | M69: 5.755 | O69: Business | P69: =J69 -> 5.755 | Q69: =K69 -> 5.755 | R69: =L69 -> 5.755 | S69: =M69 -> 5.755
C70: Row Number | D70: =MATCH(D69,$C$57:$C$66) -> 5 | E70: =MATCH(E69,$C$57:$C$66) -> 5 | F70: 5 | G70: 5 | I70: Row Number | J70: =MATCH(J69,$C$57:$C$66) -> 5 | K70: =MATCH(K69,$C$57:$C$66) -> 5 | L70: =MATCH(L69,$C$57:$C$66) -> 5 | M70: =MATCH(M69,$C$57:$C$66) -> 5 | O70: Row Number | P70: =MATCH(P69,$C$57:$C$66) -> 5 | Q70: =MATCH(Q69,$C$57:$C$66) -> 5 | R70: =MATCH(R69,$C$57:$C$66) -> 5 | S70: =MATCH(S69,$C$57:$C$66) -> 5
C71: Low Range | D71: =INDEX(D57:D66,D70) -> 2.9 | E71: =INDEX(E57:E66,E70) -> 2 | F71: 1.9 | G71: 1.5 | I71: Low Range | J71: =INDEX(J57:J66,J70) -> 3.9 | K71: =INDEX(K57:K66,K70) -> 3.15 | L71: =INDEX(L57:L66,L70) -> 2.4 | M71: =INDEX(M57:M66,M70) -> 2.1 | O71: Low Range | P71: =INDEX(P57:P66,P70) -> 0.48 | Q71: =INDEX(Q57:Q66,Q70) -> 0.53 | R71: =INDEX(R57:R66,R70) -> 0.58 | S71: =INDEX(S57:S66,S70) -> 0.68
C72: High Range | D72: =INDEX(D57:D66,D70+1) -> 3 | E72: =INDEX(E57:E66,E70+1) -> 2.1 | F72: 2 | G72: 1.6 | I72: High Range | J72: =INDEX(J57:J66,J70+1) -> 4 | K72: =INDEX(K57:K66,K70+1) -> 3.25 | L72: 2.5 | M72: 2.2 | O72: High Range | P72: =INDEX(P57:P66,P70+1) -> 0.45 | Q72: =INDEX(Q57:Q66,Q70+1) -> 0.5 | R72: 0.55 | S72: 0.65
C73: Interpolated | D73: =interpolate_look_up_linear(D69,$C$57:$C$66,D57:D66) -> 2.9755 | E73: =interpolate_look_up_linear(E69,$C$57:$C$66,E57:E66) -> 2.0755 | F73: 1.9755 | G73: 1.5755 | I73: Interpolated | J73: =interpolate_look_up_linear(J69,$C$57:$C$66,J57:J66) -> 3.9755 | K73: 3.2255 | L73: 2.4755 | M73: 2.1755 | O73: Interpolated | P73: =interpolate_look_up_linear(P69,$C$57:$C$66,P57:P66) -> 0.45735 | Q73: 0.50735 | R73: 0.55735 | S73: 0.65735
C74: Bond Rating | D74: =INDEX(D56:G56,MATCH(D68,D73:G73,-1)+1) -> BB | I74: Bond Rating | J74: =INDEX(J56:M56,MATCH(J68,J73:M73,-1)+1) -> BBB | O74: Bond Rating | P74: =INDEX(P56:S56,MATCH(P68,P73:S73,1)+1) -> A
C75: Interpolated | D75: =interpolate_look_up_reverse(D68,D73:G73,D55:G55) -> 3.213749989 | I75: Interpolated | J75: =interpolate_look_up_reverse(J68,J73:M73,J55:M55) -> 2.554000159 | O75: Interpolated | P75: =interpolate_look_up_linear(P68,P73:S73,P55:S55) -> 1.653
I79: •Electric Power: | M79: 1.3-1.4
I80: •Resources: | M80: 1.5-2.0
I81: •Telecoms: | M81: 1.5-2.0
I82: •Infrastructure: | M82: 1.2-1.6
I83: •Minimum ratio could dip to 1.5
J109: FFO/Total Debt | K109: 1.288 | L109: 0.554 | M109: 0.432 | N109: 0.308 | O109: 0.188 | P109: 0.078 | Q109: 0.016
J111: EBIT/Interest | K111: 21.4 | L111: 10.1 | M111: 6.1 | N111: 3.7 | O111: 2.1 | P111: 0.8 | Q111: 0.1
J112: EBITDA/Interest | K112: 26.5 | L112: 12.9 | M112: 9.1 | N112: 5.8 | O112: 3.4 | P112: 1.8 | Q112: 1.3
J115: Total Debt/FFO | K115: =1/K109 -> 0.7763975155 | L115: =1/L109 -> 1.805054152 | M115: 2.314814815 | N115: 3.246753247 | O115: 5.319148936 | P115: 12.82051282 | Q115: 62.5
J116: Total Debt/EBITDA | K116: 0.6 | L116: 1.2 | M116: 1.6 | N116: 2.3 | O116: 3.4 | P116: 4.9 | Q116: 6.3
J117: Pct Difference | K117: =K116/K115 -> 0.7728 | L117: =L116/L115 -> 0.6648 | M117: 0.6912 | N117: 0.7084 | O117: 0.6392 | P117: 0.3822 | Q117: 0.1008
AF152: Business Risk/Financial Risk
AF154: Business risk profile | AG154: Minimal | AH154: Modest | AI154: Intermediate | AJ154: Aggressive | AK154: Highly leveraged
AF155: Excellent | AG155: AAA | AH155: AA | AI155: A | AJ155: BBB | AK155: BB
AF156: Strong | AG156: AA | AH156: A | AI156: A- | AJ156: BBB- | AK156: BB-
AF157: Satisfactory | AG157: A | AH157: BBB+ | AI157: BBB | AJ157: BB+ | AK157: B+
AF158: Weak | AG158: BBB | AH158: BBB- | AI158: BB+ | AJ158: BB- | AK158: B
AF159: Vulnerable | AG159: BB | AH159: B+ | AI159: B+ | AJ159: B | AK159: B-
AF160: Financial risk indicative ratios* | AG160: Minimal | AH160: Modest | AI160: Intermediate | AJ160: Aggressive | AK160: Highly leveraged
AF161: Cash flow (Funds from operations/Debt) (%) | AG161: Over 60 | AH161: 45–60 | AI161: 30–45 | AJ161: 15–30 | AK161: Below 15
AF162: Debt leverage (Total debt/Capital) (%) | AG162: Below 25 | AH162: 25–35 | AI162: 35–45 | AJ162: 45–55 | AK162: Over 55
AF163: Debt/EBITDA (x) | AG163: <1.4 | AH163: 1.4–2.0 | AI163: 2.0–3.0 | AJ163: 3.0–4.5 | AK163: >4.5
AF165: FFO to Debt | AG165: 0.6 | AH165: =AVERAGE(45%,60%) -> 0.525 | AI165: =AVERAGE(45%,30%) -> 0.375 | AJ165: =AVERAGE(15%,30%) -> 0.225 | AK165: 0.15
AF166: Debt to EBITDA | AG166: 1.4 | AH166: =AVERAGE(1.4,2) -> 1.7 | AI166: =AVERAGE(3,2) -> 2.5 | AJ166: =AVERAGE(3,4.5) -> 3.75 | AK166: 4.5
AF167: Debt to FFO | AG167: =1/AG165 -> 1.666666667 | AH167: =1/AH165 -> 1.904761905 | AI167: =1/AI165 -> 2.666666667 | AJ167: =1/AJ165 -> 4.444444444 | AK167: =1/AK165 -> 6.666666667

Sheet Rating and PD
S1: Slope | T1: Intercept
A2: Inputs for Default Probability | C2: Year | D2: 1 | E2: 2 | F2: 3 | G2: 4 | H2: 5 | I2: 10 | J2: 15 | R2: Coeff | S2: =LINEST(D11:J11,D2:J2,,TRUE) -> 0.005585849057 | T2: -0.003490566038
A3: Cumulative Probabilities | C3: AAA | D3: 0 | E3: 0 | F3: 0.001 | G3: 0.002 | H3: 0.003 | I3: 0.007 | J3: 0.008 | R3: Std error | S3: 0.0001083214432 | T3: 0.0007980998259
C4: AA | D4: 0 | E4: 0.001 | F4: 0.001 | G4: 0.002 | H4: 0.003 | I4: 0.009 | J4: 0.013 | R4: R2 | S4: 0.9981232576 | T4: 0.001332963785
C5: A | D5: 0.001 | E5: 0.002 | F5: 0.003 | G5: 0.005 | H5: 0.007 | I5: 0.019 | J5: 0.028 | S5: 2659.190901 | T5: 5
C6: BBB | D6: 0.002 | E6: 0.007 | F6: 0.012 | G6: 0.019 | H6: 0.026 | I6: 0.054 | J6: 0.079
C7: BB | D7: 0.011 | E7: 0.031 | F7: 0.056 | G7: 0.08 | H7: 0.101 | I7: 0.175 | J7: 0.208 | R7: T-stat | S7: =S2/S3 -> 51.56734336 | T7: =T2/T3 -> -4.373595789
C8: B | D8: 0.05 | E8: 0.109 | F8: 0.159 | G8: 0.198 | H8: 0.226 | I8: 0.304 | J8: 0.35
C9: CCC/C | D9: 0.263 | E9: 0.347 | F9: 0.4 | G9: 0.432 | H9: 0.462 | I9: 0.518 | J9: 0.546 | R9: Slope | S9: =SLOPE(D11:J11,D2:J2) -> 0.005585849057
R10: Intercept | S10: =INTERCEPT(D11:J11,D2:J2) -> -0.003490566038
C11: =INDEX(C3:C9,$D$12) -> BBB | D11: =INDEX(D3:D9,$D$12) -> 0.002 | E11: 0.007 | F11: 0.012 | G11: 0.019 | H11: 0.026 | I11: 0.054 | J11: 0.079
C12: Code | D12: 4
A14: Updated Default Study | D14: 1 | E14: =D14+1 -> 2 | F14: 3 | G14: 4 | H14: 5 | I14: 6 | J14: 7 | K14: 8 | L14: 9 | M14: 10 | N14: 11 | O14: 12 | P14: 13 | Q14: 14 | R14: 15
C15: AAA | D15: =D202/100 -> 0 | E15: =E202/100 -> 0.0003 | F15: 0.0014 | G15: 0.0024 | H15: 0.0036 | I15: 0.0047 | J15: 0.0053 | K15: 0.0061 | L15: 0.0067 | M15: 0.0074 | N15: 0.0077 | O15: 0.008 | P15: 0.0084 | Q15: 0.0091 | R15: 0.0098
C16: AA | D16: =D203/100 -> 0.0002 | E16: 0.0007 | F16: 0.0013 | G16: 0.0024 | H16: 0.0035 | I16: 0.0046 | J16: 0.0056 | K16: 0.0065 | L16: 0.0073 | M16: 0.0082 | N16: 0.009 | O16: 0.0097 | P16: 0.0105 | Q16: 0.0112 | R16: 0.0119
C17: A | D17: =D204/100 -> 0.0007 | E17: 0.0016 | F17: 0.0027 | G17: 0.0041 | H17: 0.0057 | I17: 0.0075 | J17: 0.0095 | K17: 0.0113 | L17: 0.0132 | M17: 0.0151 | N17: 0.0169 | O17: 0.0184 | P17: 0.02 | Q17: 0.0215 | R17: 0.0232
C18: BBB | D18: =D205/100 -> 0.002 | E18: 0.0057 | F18: 0.0096 | G18: 0.0146 | H18: 0.0195 | I18: 0.0243 | J18: 0.0284 | K18: 0.0326 | L18: 0.0366 | M18: 0.0406 | N18: 0.0449 | O18: 0.0484 | P18: 0.0517 | Q18: 0.055 | R18: 0.0584
C19: BB | D19: =D206/100 -> 0.0076 | E19: 0.0235 | F19: 0.0423 | G19: 0.0606 | H19: 0.0771 | I19: 0.0928 | J19: 0.1059 | K19: 0.1175 | L19: 0.128 | M19: 0.1374 | N19: 0.1452 | O19: 0.1518 | P19: 0.1575 | Q19: 0.1624 | R19: 0.1677
C20: B | D20: =D207/100 -> 0.0388 | E20: 0.088 | F20: 0.1297 | G20: 0.1622 | H20: 0.187 | I20: 0.2072 | J20: 0.2237 | K20: 0.2369 | L20: 0.2482 | M20: 0.2591 | N20: 0.2682 | O20: 0.2757 | P20: 0.2826 | Q20: 0.2888 | R20: 0.2949
C21: CCC/C | D21: =D208/100 -> 0.2638 | E21: 0.3558 | F21: 0.4067 | G21: 0.4377 | H21: 0.4628 | I21: 0.4724 | J21: 0.4827 | K21: 0.4906 | L21: 0.5003 | M21: 0.5073 | N21: 0.5128 | O21: 0.5194 | P21: 0.5272 | Q21: 0.5338 | R21: 0.5338
B23: Cumulative Default | C23: =INDEX(C15:C21,$D$27) -> BB | D23: =INDEX(D15:D21,$D$27) -> 0.0076 | E23: 0.0235 | F23: 0.0423 | G23: 0.0606 | H23: 0.0771 | I23: 0.0928 | J23: 0.1059 | K23: 0.1175 | L23: 0.128 | M23: 0.1374 | N23: 0.1452 | O23: 0.1518 | P23: 0.1575 | Q23: 0.1624 | R23: 0.1677
B24: Incremental Default | C24: =C23 -> BB | D24: =D23 -> 0.0076 | E24: =E23-D23 -> 0.0159 | F24: =F23-E23 -> 0.0188 | G24: 0.0183 | H24: 0.0165 | I24: 0.0157 | J24: 0.0131 | K24: 0.0116 | L24: 0.0105 | M24: 0.0094 | N24: 0.0078 | O24: 0.0066 | P24: 0.0057 | Q24: 0.0049 | R24: 0.0053
C25: Pecent Increase | E25: =E23/D23-1 -> 2.092105263 | F25: =F23/E23-1 -> 0.8 | G25: 0.4326241135 | H25: 0.2722772277 | I25: 0.2036316472 | J25: 0.1411637931 | K25: 0.1095372993 | L25: 0.08936170213 | M25: 0.0734375 | N25: 0.05676855895 | O25: 0.04545454545 | P25: 0.03754940711 | Q25: 0.03111111111 | R25: 0.03263546798
C27: Code | D27: 5
A29: Hypothetical Cash Flow
B30: Loan Tenure | C30: 10 | D30: Spread | E30: =C60 -> 0.01474593021
B31: Interest Rate | C31: 0.03974606957
B32: Loss, Given Default | C32: 1
B33: Default Switch | C33: TRUE
B34: Default Method | C34: 1
B35: Bullet | C35: 2
B37: Period | C37: 0 | D37: =C37+1 -> 1 | E37: =D37+1 -> 2 | F37: 3 | G37: 4 | H37: 5 | I37: 6 | J37: 7 | K37: 8 | L37: 9 | M37: 10 | N37: 11 | O37: 12 | P37: 13 | Q37: 14 | R37: 15
B38: Switch | D38: =D37<=$C$30 -> TRUE | E38: =E37<=$C$30 -> TRUE | F38: TRUE | G38: TRUE | H38: TRUE | I38: TRUE | J38: TRUE | K38: TRUE | L38: TRUE | M38: TRUE | N38: FALSE | O38: FALSE | P38: FALSE | Q38: FALSE | R38: FALSE
B39: Terminal Switch | D39: =D37=$C$30 -> FALSE | E39: =E37=$C$30 -> FALSE | F39: FALSE | G39: FALSE | H39: FALSE | I39: FALSE | J39: FALSE | K39: FALSE | L39: FALSE | M39: TRUE | N39: FALSE | O39: FALSE | P39: FALSE | Q39: FALSE | R39: FALSE
B40: Remaining Life | C40: =C30 -> 10 | D40: =C40 -> 10 | E40: =(D40-1)*E38 -> 9 | F40: 8 | G40: 7 | H40: 6 | I40: 5 | J40: 4 | K40: 3 | L40: 2 | M40: 1 | N40: 0 | O40: 0 | P40: 0 | Q40: 0 | R40: 0
B42: Loan Balance
B43: Opening Balance | D43: =C46 -> 1000 | E43: =D46 -> 1000 | F43: =E46 -> 1000 | G43: 1000 | H43: 1000 | I43: 1000 | J43: 1000 | K43: 1000 | L43: 1000 | M43: 1000 | N43: 0 | O43: 0 | P43: 0 | Q43: 0 | R43: 0
B44: Less: Repayment | C44: =1/$C$30 -> 0.1 | D44: =CHOOSE($C$35,$C$46*$C$44,(D37=$C$30)*D43)*D38 -> 0 | E44: =CHOOSE($C$35,$C$46*$C$44,(E37=$C$30)*E43)*E38 -> 0 | F44: 0 | G44: 0 | H44: 0 | I44: 0 | J44: 0 | K44: 0 | L44: 0 | M44: 1000 | N44: 0 | O44: 0 | P44: 0 | Q44: 0 | R44: 0
B45: Less: Default
B46: Closing Balance | C46: 1000 | D46: =D43-D44-D45 -> 1000 | E46: =E43-E44-E45 -> 1000 | F46: =F43-F44-F45 -> 1000 | G46: 1000 | H46: 1000 | I46: 1000 | J46: 1000 | K46: 1000 | L46: 1000 | M46: 0 | N46: 0 | O46: 0 | P46: 0 | Q46: 0 | R46: 0
B47: Interest | C47: =C31 -> 0.03974606957 | D47: =D43*$C$47 -> 39.74606957 | E47: =E43*$C$47 -> 39.74606957 | F47: 39.74606957 | G47: 39.74606957 | H47: 39.74606957 | I47: 39.74606957 | J47: 39.74606957 | K47: 39.74606957 | L47: 39.74606957 | M47: 39.74606957 | N47: 0 | O47: 0 | P47: 0 | Q47: 0 | R47: 0
B49: Defaulted Debt
B50: Opening Balance | D50: =C53 -> 0 | E50: =D53 -> 7.6 | F50: 23.5 | G50: 42.3 | H50: 60.6 | I50: 77.1 | J50: 92.8 | K50: 105.9 | L50: 117.5 | M50: 128 | N50: 0 | O50: 0 | P50: 0 | Q50: 0 | R50: 0
B51: Add: Default | D51: =CHOOSE($C$34,D24*$C$46,(D43-D50)*D24)*D38 -> 7.6 | E51: 15.9 | F51: 18.8 | G51: 18.3 | H51: 16.5 | I51: 15.7 | J51: 13.1 | K51: 11.6 | L51: 10.5 | M51: 9.4 | N51: 0 | O51: 0 | P51: 0 | Q51: 0 | R51: 0
B52: Less: Default Reduction in Repayment | D52: =D39*(D50+D51) -> 0 | E52: =E39*(E50+E51) -> 0 | F52: 0 | G52: 0 | H52: 0 | I52: 0 | J52: 0 | K52: 0 | L52: 0 | M52: 137.4 | N52: 0 | O52: 0 | P52: 0 | Q52: 0 | R52: 0
B53: Closing Balance | D53: =D50+D51-D52 -> 7.6 | E53: =E50+E51-E52 -> 23.5 | F53: 42.3 | G53: 60.6 | H53: 77.1 | I53: 92.8 | J53: 105.9 | K53: 117.5 | L53: 128 | M53: 0 | N53: 0 | O53: 0 | P53: 0 | Q53: 0 | R53: 0
B54: Interest | C54: =C31 -> 0.03974606957 | D54: =D50*$C$54*D38 -> 0 | E54: 0.3020701287 | F54: 0.9340326349 | G54: 1.681258743 | H54: 2.408611816 | I54: 3.064421964 | J54: 3.688435256 | K54: 4.209108768 | L54: 4.670163175 | M54: 5.087496905 | N54: 0 | O54: 0 | P54: 0 | Q54: 0 | R54: 0
B56: Net Debt Service | C56: =-C46 -> -1000 | D56: =D47-D54+D44-D52 -> 39.74606957 | E56: =E47-E54+E44-E52 -> 39.44399944 | F56: 38.81203694 | G56: 38.06481083 | H56: 37.33745775 | I56: 36.68164761 | J56: 36.05763431 | K56: 35.5369608 | L56: 35.0759064 | M56: 897.2585727 | N56: 0 | O56: 0 | P56: 0 | Q56: 0 | R56: 0
B58: Nominal Rate | C58: =C31 -> 0.03974606957
B59: IRR Realised | C59: =IRR(56:56) -> 0.02500013936
B60: Difference | C60: =C31-C59 -> 0.01474593021
B61: Target | C61: 0.025
B62: Difference | C62: =C61-C59 -> -1.393629189e-07
B64: Total Defaults | C64: =SUM(51:51) -> 137.4
B65: Percent of Original Loan | C65: =C64/C46 -> 0.1374
B68: Debt Cash w/o Default | C68: -190 | D68: 100 | E68: =D68*E38 -> 100 | F68: 100 | G68: 100 | H68: 100 | I68: 100 | J68: 100 | K68: 100 | L68: 100 | M68: 100 | N68: 0 | O68: 0 | P68: 0 | Q68: 0 | R68: 0
B69: Loss for Default with 100% LGD | D69: =-D23*D68 -> -0.76 | E69: -2.35 | F69: -4.23 | G69: -6.06 | H69: -7.71 | I69: -9.28 | J69: -10.59 | K69: -11.75 | L69: -12.8 | M69: -13.74 | N69: 0 | O69: 0 | P69: 0 | Q69: 0 | R69: 0
B70: Recovery | C70: =(1-C32) -> 0 | D70: =-$C$70*D69 -> 0 | E70: =-$C$70*E69 -> 0 | F70: 0 | G70: 0 | H70: 0 | I70: 0 | J70: 0 | K70: 0 | L70: 0 | M70: 0 | N70: 0 | O70: 0 | P70: 0 | Q70: 0 | R70: 0
B71: Net Cash Flow | C71: =C68 -> -190 | D71: =SUM(D68:D70) -> 99.24 | E71: =SUM(E68:E70) -> 97.65 | F71: 95.77 | G71: 93.94 | H71: 92.29 | I71: 90.72 | J71: 89.41 | K71: 88.25 | L71: 87.2 | M71: 86.26 | N71: 0 | O71: 0 | P71: 0 | Q71: 0 | R71: 0
B73: IRR w/o Default | C73: =IRR(68:68) -> 0.5182270834
B74: IRR with Default | C74: =IRR(71:71) -> 0.4972767613
B75: Min Required Credit Spread | C75: =C73-C74 -> 0.0209503221
A78: Cumulative PD from Risk Rating
B79: Maturity | C79: ='RAROC Analysis'!F21 -> 10
B80: Risk Rating | C80: ='RAROC Analysis'!F7 -> 3.317016206
B81: Probability of Default | C81: =interpolate_look_up_linear(C80,E83:E89,D83:D89) -> 0.07128716873
C83: =C15 -> AAA | D83: =LOOKUP($C$79,$14:$14,15:15) -> 0.0074 | E83: 0.5
C84: AA | D84: =LOOKUP($C$79,$14:$14,16:16) -> 0.0082 | E84: 1
C85: A | D85: 0.0151 | E85: 2
C86: BBB | D86: =LOOKUP($C$79,$14:$14,18:18) -> 0.0406 | E86: 3
C87: BB | D87: 0.1374 | E87: 4
C88: B | D88: 0.2591 | E88: 5
C89: CCC/C | D89: 0.5073 | E89: 6
A93: Implied PD from Risk
C94: Risk Rating | D94: ='RAROC Analysis'!F7 -> 3.317016206
D95: =D14 -> 1 | E95: 2 | F95: 3 | G95: 4 | H95: 5 | I95: 6 | J95: 7 | K95: 8 | L95: 9 | M95: 10 | N95: 11 | O95: 12 | P95: 13 | Q95: 14 | R95: 15
C96: Cumulative | D96: =IF($D$94=0,0,interpolate_look_up_linear($D$94,$E$83:$E$89,D$15:D$21)) -> 0.003775290753 | E96: =IF($D$94=0,0,interpolate_look_up_linear($D$94,$E$83:$E$89,E$15:E$21)) -> 0.01134288847 | F96: 0.01996642993 | G96: 0.02918274547 | H96: 0.03776013346 | I96: 0.0460156101 | J96: 0.05296875596 | K96: 0.05951467588 | L96: 0.06557528122 | M96: 0.07128716873 | N96: 0.07669672545 | O96: 0.08117947569 | P96: 0.08524031459 | Q96: 0.08904754051 | R96: 0.09304987131
C97: Incremental | D97: =D96 -> 0.003775290753 | E97: =E96-D96 -> 0.007567597712 | F97: =F96-E96 -> 0.008623541468 | G97: 0.009216315539 | H97: 0.008577387989 | I97: 0.008255476644 | J97: 0.006953145853 | K97: 0.006545919924 | L97: 0.006060605338 | M97: 0.005711887512 | N97: 0.005409556721 | O97: 0.004482750238 | P97: 0.004060838894 | Q97: 0.003807225929 | R97: 0.004002330791
A99: Alternative PD Estimates
D101: 1 | E101: 2 | F101: 3 | G101: 4 | H101: 5 | I101: 6 | J101: 7 | K101: 8 | L101: 9 | M101: 10
C102: AAA | D102: 0 | E102: 0.0003 | F102: 0.0014 | G102: 0.0025 | H102: 0.0037 | I102: 0.0049 | J102: 0.0055 | K102: 0.0064 | L102: 0.0071 | M102: 0.0078
C103: AA | D103: 0.0002 | E103: 0.0007 | F103: 0.0014 | G103: 0.0026 | H103: 0.0037 | I103: 0.0049 | J103: 0.006 | K103: 0.0069 | L103: 0.0077 | M103: 0.0086
C104: A | D104: 0.0008 | E104: 0.0018 | F104: 0.0032 | G104: 0.0048 | H104: 0.0066 | I104: 0.0086 | J104: 0.011 | K104: 0.0131 | L104: 0.0153 | M104: 0.0177
C105: BBB | D105: 0.0024 | E105: 0.0067 | F105: 0.0113 | G105: 0.0171 | H105: 0.023 | I105: 0.0288 | J105: 0.0338 | K105: 0.0388 | L105: 0.0438 | M105: 0.0488
C106: BB | D106: 0.009 | E106: 0.027 | F106: 0.048 | G106: 0.068 | H106: 0.0861 | I106: 0.1034 | J106: 0.1185 | K106: 0.1321 | L106: 0.1449 | M106: 0.1559
C107: B | D107: 0.0448 | E107: 0.0995 | F107: 0.1457 | G107: 0.1815 | H107: 0.2083 | I107: 0.23 | J107: 0.2476 | K107: 0.2619 | L107: 0.2746 | M107: 0.287
C108: CCC/C | D108: 0.2682 | E108: 0.3584 | F108: 0.4114 | G108: 0.4427 | H108: 0.4672 | I108: 0.4782 | J108: 0.4879 | K108: 0.4966 | L108: 0.5077 | M108: 0.5165
C110: =INDEX(C102:C108,$D$113) -> BB | D110: 0.009 | E110: 0.027 | F110: 0.048 | G110: 0.068 | H110: 0.0861 | I110: 0.1034 | J110: 0.1185 | K110: 0.1321 | L110: 0.1449 | M110: 0.1559
E111: =E110/D110-1 -> 2 | F111: =F110/E110-1 -> 0.7777777778 | G111: 0.4166666667 | H111: 0.2661764706 | I111: 0.2009291521 | J111: 0.1460348162 | K111: 0.1147679325 | L111: 0.09689629069 | M111: 0.07591442374
C113: Code | D113: 5 | G113: =LINEST(D110:M110,D101:M101,,TRUE) -> 0.01658606061 | H113: -0.001933333333 | J113: =C110 -> BB | K113: Percent Increase
G114: 0.0005689876306 | H114: 0.003530475402
G115: 0.9906730534 | H115: 0.005168086804
G116: 849.7297927 | H116: 8
G117: 0.02269553603 | H117: 0.0002136729697
C126: Cash Flow
B130: Full Debt Service | C130: -800 | D130: 100 | E130: 100 | F130: 100 | G130: 100 | H130: 100 | I130: 100 | J130: 100 | K130: 100 | L130: 100 | M130: 100
B131: IRR | C131: =IRR(130:130) -> 0.04277497804
B132: Default Prob | D132: =D110 -> 0.009 | E132: =E110 -> 0.027 | F132: 0.048 | G132: 0.068 | H132: 0.0861 | I132: 0.1034 | J132: 0.1185 | K132: 0.1321 | L132: 0.1449 | M132: 0.1559
B133: Default | D133: =D130*D132 -> 0.9 | E133: =E130*E132 -> 2.7 | F133: 4.8 | G133: 6.8 | H133: 8.61 | I133: 10.34 | J133: 11.85 | K133: 13.21 | L133: 14.49 | M133: 15.59
B134: Loss | C134: 0.6 | D134: =D133*$C$134 -> 0.54 | E134: =E133*$C$134 -> 1.62 | F134: 2.88 | G134: 4.08 | H134: 5.166 | I134: 6.204 | J134: 7.11 | K134: 7.926 | L134: 8.694 | M134: 9.354
B136: Net Cash Flow | C136: =C130 -> -800 | D136: =D130-D134 -> 99.46 | E136: =E130-E134 -> 98.38 | F136: 97.12 | G136: 95.92 | H136: 94.834 | I136: 93.796 | J136: 92.89 | K136: 92.074 | L136: 91.306 | M136: 90.646
B137: Realised IRR | C137: =IRR(C136:M136) -> 0.03233295697
B139: Min Required Spread | C139: =C131-C137 -> 0.01044202107
B141: Cost of Funds | C141: 0.02
B142: NPV of Loss | C142: =NPV(C141,D134:M134) -> 46.6603985
B143: Relative to Loan | C143: =C142/-C130 -> 0.05832549813
B146: Source: S&P Annual 2006 Global Default Study.
D160: 1 | E160: 2 | F160: 3 | G160: 4 | H160: 5 | I160: 7 | J160: 10 | K160: 15
C161: AAA | D161: 0.0001 | E161: 0.0004 | F161: 0.0009 | G161: 0.0018 | H161: 0.0031 | I161: 0.0066 | J161: 0.0137 | K161: 0.0281
C162: AA | D162: 0.0001 | E162: 0.0006 | F162: 0.0015 | G162: 0.0027 | H162: 0.0044 | I162: 0.0085 | J162: 0.0163 | K162: 0.0312
C163: A | D163: 0.0007 | E163: 0.0017 | F163: 0.003 | G163: 0.0046 | H163: 0.0065 | I163: 0.0111 | J163: 0.0194 | K163: 0.035
C164: BBB | D164: 0.0017 | E164: 0.0041 | F164: 0.0078 | G164: 0.0125 | H164: 0.0179 | I164: 0.0295 | J164: 0.046 | K164: 0.0683
C165: BB | D165: 0.0108 | E165: 0.0341 | F165: 0.0614 | G165: 0.0876 | H165: 0.1105 | I165: 0.1453 | J165: 0.1771 | K165: 0.2039
C166: B | D166: 0.0495 | E166: 0.1097 | F166: 0.1575 | G166: 0.1933 | H166: 0.2198 | I166: 0.2546 | J166: 0.2819 | K166: 0.3035
C167: CCC | D167: 0.1915 | E167: 0.2743 | F167: 0.3263 | G167: 0.3632 | H167: 0.3901 | I167: 0.4249 | J167: 0.4514 | K167: 0.4705
C199: 2014 Default Study
D201: 1 | E201: 2 | F201: 3 | G201: 4 | H201: 5 | I201: 6 | J201: 7 | K201: 8 | L201: 9 | M201: 10 | N201: 11 | O201: 12 | P201: 13 | Q201: 14 | R201: 15
C202: AAA | D202: 0 | E202: 0.03 | F202: 0.14 | G202: 0.24 | H202: 0.36 | I202: 0.47 | J202: 0.53 | K202: 0.61 | L202: 0.67 | M202: 0.74 | N202: 0.77 | O202: 0.8 | P202: 0.84 | Q202: 0.91 | R202: 0.98
C203: AA | D203: 0.02 | E203: 0.07 | F203: 0.13 | G203: 0.24 | H203: 0.35 | I203: 0.46 | J203: 0.56 | K203: 0.65 | L203: 0.73 | M203: 0.82 | N203: 0.9 | O203: 0.97 | P203: 1.05 | Q203: 1.12 | R203: 1.19
C204: A | D204: 0.07 | E204: 0.16 | F204: 0.27 | G204: 0.41 | H204: 0.57 | I204: 0.75 | J204: 0.95 | K204: 1.13 | L204: 1.32 | M204: 1.51 | N204: 1.69 | O204: 1.84 | P204: 2 | Q204: 2.15 | R204: 2.32
C205: BBB | D205: 0.2 | E205: 0.57 | F205: 0.96 | G205: 1.46 | H205: 1.95 | I205: 2.43 | J205: 2.84 | K205: 3.26 | L205: 3.66 | M205: 4.06 | N205: 4.49 | O205: 4.84 | P205: 5.17 | Q205: 5.5 | R205: 5.84
C206: BB | D206: 0.76 | E206: 2.35 | F206: 4.23 | G206: 6.06 | H206: 7.71 | I206: 9.28 | J206: 10.59 | K206: 11.75 | L206: 12.8 | M206: 13.74 | N206: 14.52 | O206: 15.18 | P206: 15.75 | Q206: 16.24 | R206: 16.77
C207: B | D207: 3.88 | E207: 8.8 | F207: 12.97 | G207: 16.22 | H207: 18.7 | I207: 20.72 | J207: 22.37 | K207: 23.69 | L207: 24.82 | M207: 25.91 | N207: 26.82 | O207: 27.57 | P207: 28.26 | Q207: 28.88 | R207: 29.49
C208: CCC/C | D208: 26.38 | E208: 35.58 | F208: 40.67 | G208: 43.77 | H208: 46.28 | I208: 47.24 | J208: 48.27 | K208: 49.06 | L208: 50.03 | M208: 50.73 | N208: 51.28 | O208: 51.94 | P208: 52.72 | Q208: 53.38 | R208: 53.38
C209: Investment grade | D209: 0.11 | E209: 0.29 | F209: 0.5 | G209: 0.76 | H209: 1.03 | I209: 1.29 | J209: 1.54 | K209: 1.78 | L209: 2.01 | M209: 2.24 | N209: 2.46 | O209: 2.65 | P209: 2.83 | Q209: 3.01 | R209: 3.2
C210: Speculative grade | D210: 3.87 | E210: 7.58 | F210: 10.79 | G210: 13.39 | H210: 15.49 | I210: 17.23 | J210: 18.69 | K210: 19.9 | L210: 20.98 | M210: 21.97 | N210: 22.79 | O210: 23.49 | P210: 24.13 | Q210: 24.68 | R210: 25.22
C211: All rated | D211: 1.5 | E211: 2.95 | F211: 4.23 | G211: 5.31 | H211: 6.2 | I211: 6.97 | J211: 7.62 | K211: 8.18 | L211: 8.68 | M211: 9.15 | N211: 9.56 | O211: 9.9 | P211: 10.21 | Q211: 10.49 | R211: 10.78

Sheet Capital Allocation
B2: Risk Rating | C2: ='RAROC Analysis'!R26 -> 3.317016206
B3: Capital % | C3: =interpolate_look_up_linear(C2,C8:C11,D8:D11) -> 0.09268064824
B4: Loan | C4: ='RAROC Analysis'!F14 -> 10000
B5: Capital Allocation | C5: =C3*'RAROC Analysis'!F14 -> 926.8064824
C7: Rating | D7: Capital
B8: AAA/AA | C8: 1 | D8: =F38 -> 0.016
B9: A | C9: 2 | D9: =F39 -> 0.04
B10: BBB | C10: 3 | D10: =F40 -> 0.08
B11: BB- below | C11: 4 | D11: =F41 -> 0.12
B14: Rating Scale | D14: 1 | E14: 2 | F14: 3 | G14: 4 | H14: 5
B15: Capital Assignment | D15: 0 | E15: 0.03 | F15: 0.06 | G15: 0.09 | H15: 0.12
B17: Risk Category | D17: Credit | E17: Int Rate | F17: Liquidity | G17: Composite | H17: Cap Ad | I17: Capital
D18: 0.55 | E18: 0.35 | F18: 0.1 | G18: =SUM(D18:F18) -> 1
B20: Commercial | C20: 200000 | D20: 4 | E20: 2 | F20: 2
B21: Com Real Estate | C21: 400000 | D21: 2 | E21: 4 | F21: 4
B22: Construction | C22: 60000 | D22: 5 | E22: 2 | F22: 2
B23: Consumer | C23: 50000 | D23: 3 | E23: 3 | F23: 3
B24: Residential | C24: 150000 | D24: 2 | E24: 4 | F24: 4
B25: Total Loans | C25: =SUM(C20:C24) -> 860000
G27: Assigned | H27: Total
G28: Capital | H28: Capital
B29: Commercial | C29: 200000 | D29: =LOOKUP(D20,$14:$14,$15:$15)*D$18 -> 0.0495 | E29: 0.0105 | F29: 0.003 | G29: =SUM(D29:F29) -> 0.063 | H29: =G29*C29 -> 12600
B30: Com Real Estate | C30: 400000 | D30: 0.0165 | E30: 0.0315 | F30: 0.009 | G30: =SUM(D30:F30) -> 0.057 | H30: =G30*C30 -> 22800
B31: Construction | C31: 60000 | D31: 0.066 | E31: 0.0105 | F31: 0.003 | G31: =SUM(D31:F31) -> 0.0795 | H31: =G31*C31 -> 4770
B32: Consumer | C32: 50000 | D32: 0.033 | E32: 0.021 | F32: 0.006 | G32: =SUM(D32:F32) -> 0.06 | H32: =G32*C32 -> 3000
B33: Residential | C33: 150000 | D33: 0.0165 | E33: 0.0315 | F33: 0.009 | G33: =SUM(D33:F33) -> 0.057 | H33: =G33*C33 -> 8550
B34: Total Loans | C34: =SUM(C29:C33) -> 860000 | H34: =SUM(H29:H33) -> 51720
B37: •Multiply Book Value of Loans by
B38: •1.6% | D38: AAA to AA- | F38: 0.016
B39: •4.0% | D39: A+ to A- | F39: 0.04
B40: •8.0% | D40: BBB+ to BB- | F40: 0.08
B41: •12.0% | D41: Below BB- | F41: 0.12
B42: •8.0% | D42: Unrated Debt
B43: •Exposure at default accounts for collateral, credit derivatives, quarantees.
B44: •Problems: too much capital allocation for high rated credits and too little for below BB- credits
B45: •More than 70% of credits unrated.

Sheet Audits
C2: Computed | D2: Target | E2: Test | F2: Notes
B4: Industry Weight not 100% | C4: =SUM('RAROC Analysis'!O7:O11) -> 1 | D4: 1 | E4: =C4=D4 -> TRUE | F4: =IF(E4,"",B4) -> 
B5: Management Weight not 100% | C5: =SUM('RAROC Analysis'!O13:O16) -> 1 | D5: 1 | E5: =C5=D5 -> TRUE | F5: =IF(E5,"",B5) -> 
B6: Collateral Weight not 100% | C6: =SUM('RAROC Analysis'!O18:O19) -> 1 | D6: 1 | E6: TRUE
B7: Enhancement Weight not 100% | C7: =SUM('RAROC Analysis'!O21:O22) -> 1 | D7: 1 | E7: TRUE
B8: Ratio Weight not 100% | C8: =SUM('RAROC Analysis'!O24:O28) -> 1 | D8: 1 | E8: TRUE
B9: Total Business not 100% | C9: =SUM('RAROC Analysis'!S8:S22) -> 1.1 | D9: 1 | E9: FALSE | F9: Total Business not 100%
B11: Garce Period Doesn’t Match | C11: =IF('IRR Analysis'!F3>1,'IRR Analysis'!F3,0) -> 0 | D11: ='RAROC Analysis'!$F$22 -> 0 | E11: =C11=D11 -> TRUE
B12: Level Maturity Doesn't Match | C12: ='IRR Analysis'!F34 -> 1 | D12: 1 | E12: =C12=D12 -> TRUE
B13: Mtg Maturity Doesn't Match | C13: =SUM('IRR Analysis'!G35:AZ35) -> 1 | D13: 1 | E13: TRUE
B14: Maturity Doesn’t Match | C14: ='IRR Analysis'!F5 -> 10 | D14: ='RAROC Analysis'!$F$21 -> 10 | E14: TRUE

Sheet RAROC Example
C2: Loan Amount | D2: 1000 | F2: Revenue | G2: =D4 -> 90
C3: All-in Rate Earned | D3: 0.09 | F3: Expenses | G3: =-D18-D23 -> -75
C4: Loan Revenue | D4: =D2*D3 -> 90 | F4: Return on Capital | G4: =D14 -> 4.875
F5: Expected Loss | G5: =-D21 -> -10
C6: Economic Capital for Loan | F6: Numerator | G6: =SUM(G2:G5) -> 9.875
C7: Risk Class of Loan | D7: 3
C8: Economic Capital Percent | D8: 0.075 | F8: Economic Capital | G8: =D9 -> 75
C9: Economic Capital Allocated | D9: =D8*D2 -> 75
F10: RAROC | G10: =G6/G8 -> 0.1316666667
C11: Equity Capital Invested | D11: =D9 -> 75
C12: Class of Asset for Investment | D12: 1
C13: Earnings Rate | D13: 0.065
C14: Earnings | D14: =D11*D13 -> 4.875
C16: Deposits Associated with Loan | D16: 1000
C17: Interest Expense Rates on Deposits | D17: 0.06
C18: Interest Expenses on Deposits | D18: =D16*D17 -> 60
C20: Expected Loss Percent | D20: 0.01
C21: Expected Loss Amount | D21: =D20*D2 -> 10
C23: Operating Cost | D23: 15
C25: Cost Percent | D25: =D23/D2 -> 0.015

Sheet Notes
I2: Notes:
B3: Idea of RAROC
I4: Color when below 10 | M4: Agricultural Project Finance | Q4: 2
B5: Computes profit and used as management tool | I5: Make dropdown box | M5: Social Project Finance | Q5: 2
I6: Audit page | M6: General Industry | Q6: 1
B7: Can be highly complex | M7: Infrastructure Projects - Electricity | Q7: 2
M8: Infrastructure Projects - Infrastructure | Q8: 2
B9: Requires risk assessment of loans | M9: Real Estate - Housing | Q9: 3
M10: Real Estate - Commercial | Q10: 3
M11: Real Estate - Hotels | Q11: 3
M12: Telecom Projects | Q12: 1
M13: Resources Project Finance | Q13: 2
B16: Can be used for portfolio of for individual loans | M16: End
R19: Code | S19: Rating
R20: 3 | S20: =INDEX(Q4:Q13,R20) -> 1
